Workbook

Sheet DropDowns (hidden)
B2: Spreadsheet Selection
B4: Utility | D4: 1=PG&E, 2=SDG&E, 3=SCE
B5: Climate Zone | C5: =#REF! ->  | D5: Set to 1 through 16 based on T24 standard
B6: Division (=1) | C6: 1 | D6: 1=Weighted Average (all cases in this tool)
B7: Voltage (=3) | C7: 3 | D7: 3=Secondary (all T24 customers)
B8: North / South | D8: 1=North, 2=South
B9: Measure Life | D9: years
B10: Calendar
B12: Lookup Tables
B14: Measure Life | F14: Climate Zone to Utility
C15: Measure Type | D15: Measure Life | F15: Climate Zone | G15: Utility | H15: North / South | J15: Utility
B16: 1 | C16: =#REF! ->  | D16: =#REF! ->  | F16: 1 | G16: 1 | H16: 1 | J16: PG&E
B17: 2 | C17: =#REF! ->  | D17: =#REF! ->  | F17: 2 | G17: 1 | H17: 1 | J17: PG&E
B18: 3 | C18: =#REF! ->  | D18: =#REF! ->  | F18: 3 | G18: 1 | H18: 1 | J18: PG&E
F19: 4 | G19: 1 | H19: 1 | J19: PG&E
B20: Calendar | F20: 5 | G20: 1 | H20: 1 | J20: PG&E (SCE)
F21: 6 | G21: 3 | H21: 2 | J21: SCE
B22: 1 | C22: Jan 2008 - Dec 2008 | F22: 7 | G22: 2 | H22: 2 | J22: SDG&E
B23: 2 | C23: Jul 2008 - Jun 2009 | F23: 8 | G23: 3 | H23: 2 | J23: SCE
F24: 9 | G24: 3 | H24: 2 | J24: SCE
F25: 10 | G25: 3 | H25: 2 | J25: SCE (SDG&E)
F26: 11 | G26: 1 | H26: 1 | J26: PG&E
F27: 12 | G27: 1 | H27: 1 | J27: PG&E
F28: 13 | G28: 1 | H28: 1 | J28: PG&E
F29: 14 | G29: 3 | H29: 2 | J29: SCE (SDG&E)
F30: 15 | G30: 3 | H30: 2 | J30: SCE (SDG&E)
F31: 16 | G31: 1 | H31: 1 | J31: PG&E (SCE)
G33: 1=PG&E, 2=SDG&E, 3=SCE | H33: 1=North, 2=South

Sheet Scenarios (hidden)
A2: Utility | B2: Total CZ's | C2: CZ | D2: Divisions per CZ | F2: Utility | G2: Total CZ's | H2: CZ | I2: Divisions per CZ | K2: Utility | L2: Total CZ's | M2: CZ | N2: Divisions per CZ
A3: PG&E | B3: 10 | C3: 1 | D3: 1 | F3: SDGE | G3: 4 | H3: 7 | I3: 1 | K3: SCE | L3: 8 | M3: 6 | N3: 3
C4: 2 | D4: 2 | H4: 10 | I4: 1 | M4: 8 | N4: 2
C5: 3A | D5: 3 | H5: 14 | I5: 1 | M5: 9 | N5: 4
C6: 3B | D6: 3 | H6: 15 | I6: 1 | M6: 10 | N6: 1
C7: 4 | D7: 4 | M7: 13 | N7: 1
C8: 5 | D8: 1 | M8: 14 | N8: 3
C9: 11 | D9: 3 | M9: 15 | N9: 2
C10: 12 | D10: 7 | M10: 16 | N10: 1
C11: 13 | D11: 3
C12: 16 | D12: 2

Sheet Instructions
B2: LEGEND
B3: Utility Input | E3: Enter Utility specific information and program data in yellow cells
B4: Do Not Alter
B5: Avoided Cost Input | E5: Inputs from Avoided Cost Model
B6: CPUC Input | E6: Inputs made by CPUC Energy Division Staff
B7: Formula | E7: Formulas contained in this Excel Workbook
B9: All inputs in nominal dollars
B11: TO Add PLS or DR Program
B12: Copy either DR or PLS program sheet (e.g. BIP Example or PLS Example) and rename
B13: On summary tab, insert a column between program columns and last portfolio column
B14: Copy column C (e.g. BIP Example) and paste into added column
B15: Change label in Row 2 (e.g. from "BIP Example") to name of added tab. (Must be exactly the same)
B16: INDIRECT Excel references will update the Summary results automatically
B18: Portfolio Tab
B19: The naming and formatting of the Portfolio Tab is consistent with that for individual programs
B20: Enter portfolio impacts adjusted for dual participation
B21: Total portfolio costs should be entered, including all program or portfolio level administration costs.
B22: Enter total benefits, starting in cell D107 adjusted for dual participation
B23: Average Avoided Cost values on a $/kW-Yr. and $/MWh basis are calculated by spreadsheet
B25: Fix Charts
B27: This workbook has a macro to fix chart links and formatting on any DR Reporting Template workbook
B28: Open this workbook and the workbook with data entered and the charts that need correction
B29: From the workbook with data already entered, press "Ctrl+Shift+F"
B30: If for any reason using the keyboard shortcut does not work press "Alt-F8" to see a list of macros
B31: Run the Macro "FormatChartssub" (may have workbook name in front e.g. 'DR Reporting Template 2011-05-09 Review!'FormatChartsub)

Sheet Revision Notes
A1: The following revisions were made to this version of SDG&E's DR Cost Effectiveness Report for 2018 to 2022 since it was originally filed on January 17, 2017
A3: Sheet Name | B3: Cell Reference | C3: Description of Change | D3: Why This Change was Made | E3: Affects Calculations | F3: Additional Note
A4: CBP9DA | B4: J99:N99 | C4: Correct cell contents to point to number of hours bid | D4: The cells previously pointed to MWh | E4: yes | F4: Only the AFP result is included in the base case analysis; the CBP changes are an alternate scenario provided only to give additional information on the option of extending events to 9 pm
A5: CBP9DO | B5: J99:N99
A6: AFP | B6: J99:N99
A7: budget | B7: B7, G7, L7, Q7, V7, AA7, AF7, AK7 | C7: E Factor changed to 145% for all programs except PLS | D7: The E factor workpaper was changed so that the calculation included only dates from 10/1/2015 through 9/30/2016 | E7: yes | F7: The increased E Factor has a minimal effect on the calculations because it only adjusts the energy benefits which are a small portion of the total benefits. The test results do not change as a result of this revision.
A8: budget | B8: AP7 | C8: E Factor changed to 100% for PLS (this was already correct on the PLS sheet) | D8: The E factor for PLS should be 100% as explained in Chapter 5 Testimony page BG-8 | E8: no | F8: This was only a labeling change; the actual calculation on the PLS sheet used the correct value.
A9: Programs | B9: F6, I6 | C9: PLS shift hours changed to 11 to 6 | D9: The previous use of 11 to 7 was incorrect | E9: yes
A10: RECAPavail | B10: S7, R12
A11: RECAPdispatch | B11: BI8, BM37 | C11: ACS DA max annual events changed to 80 | D11: The previous use of 60 was incorrect | E11: no | F11: The result for 60 hours and 80 hours is the same so this change had no affect on the calculations.
A12: RECAPdispatch | B12: BR7 | C12: Corrected program acronym | D12: Consistency | E12: no | F12: This was just a labeling correction.
A13: RECAPavail | B13: A2, A3
A14: impacts_ACS_DA | B14: G5:G44 | C14: Changed label "Day Of" to "Day Ahead" | D14: correction of cell labels | E14: no | F14: This was just a labeling correction.
A15: Incentives | B15: I40:N45 | C15: added summary of incentive and licensing costs related to ACS DA | D15: to facilitate the revision described below | E15: no
A16: ITrev | B16: C52:G52 | C16: Correct cell contents | D16: Cells were pointing to incorrect data | E16: yes | F16: The calculation was including additional licensing costs which should have been excluded from the ACS DA tests as these support customers who go onto rates instead of ACS DA.
A17: Qualitative Benefit Scenario | B17: B11:I14 | C17: Correct cell contents | D17: Above changes affect the results of the qualitative benefits sensitivity analysis | E17: no | F17: The changes to these cells reflect the result of the above revisions that got carried through into the sensitivity analysis results.

Sheet Inputs
B2: Program Start Year | C2: 2018 | E2: Avoided Cost Parameters | H2: Avoided Cost Values (Nominal) | P2: LEGEND
B3: Dollar Year | C3: 2017 | E3: Nominal Discount Rate | F3: 0.0506 | I3: 2018 | J3: 2019 | K3: 2020 | L3: 2021 | M3: 2022 | P3: Utility Input | S3: Enter Utility specific information and program data in yellow cells
B4: Utility | C4: SDG&E | E4: Real Discount Rate | F4: 0.03 | H4: Market Price ($/MWh) | I4: 34.89430556 | J4: 35.56236111 | K4: 37.03041667 | L4: 38.08013889 | M4: 39.03388889 | P4: Do Not Alter
E5: Inflation | F5: 0.02 | H5: On-Peak Multiplier | I5: 1.159423667 | J5: 1.162866811 | K5: 1.035546621 | L5: 1.027851281 | M5: 1.023822581 | P5: Avoided Cost Input | S5: Inputs from Avoided Cost Model
B6: Financial | E6: Hours in Year | F6: 8760 | H6: On-Peak Market Price ($/MWh) | I6: =I4*I5 -> 40.4572837 | J6: 41.35428945 | K6: 38.34672284 | L6: 39.14071954 | M6: 39.96377689 | P6: CPUC Input | S6: Inputs made by CPUC Energy Division Staff
B7: After Tax WACC | C7: 0.06166948136 | H7: Nameplate Generation Capacity ($/kW-yr) | I7: 97.26702749 | J7: 103.2645339 | K7: 106.0565704 | L7: 108.5339805 | M7: 110.3883051 | P7: Formula | S7: Formulas contained in this Excel Workbook
C8: (from CT Pro Forma) | E8: DR Time Frame | H8: Summer Generation Capacity ($/kW-yr) | I8: 106.6194261 | J8: 113.2033144 | K8: 116.2647498 | L8: 118.9799564 | M8: 121.0105153 | P8: All inputs in nominal dollars
B9: Sensitivities | E9: Start Year | F9: 2018 | H9: Transmission Deferral ($/kW-yr) | I9: =L25 -> 0 | J9: 0 | K9: 0 | L9: 0 | M9: 0
B10: % Incentives as Participant Costs | E10: Time Span | F10: 1 | H10: Distribution Deferral ($/kW-yr) | I10: =R25 -> 108.5265017 | J10: =S25 -> 110.6970317 | K10: =T25 -> 112.9109724 | L10: 115.1691918 | M10: 117.4725756
B11: high value | C11: 1 | H11: Emissions ($/ton) | I11: 14.13654385 | J11: 15.24891533 | K11: 24.62775106 | L11: 26.50740041 | M11: 28.53214535
B12: Base Case | C12: 0.75 | E12: Central Station Plant Assumptions | H12: Capacity Factor | I12: 0.1470974632 | J12: 0.1282995954 | K12: 0.0992796374 | L12: 0.09906247144 | M12: 0.09875287792
B13: low value | C13: 0.5 | F13: CT | H13: Avoided cost values above have not been adjusted for losses
B14: Generation Capacity Costs | E14: Operating Data
B15: - % | C15: -0.3 | E15: Heat rate (BTU/kWh) | F15: 9880 | H15: GHG Value
B16: + % | C16: 0.3 | E16: Cap Factor | F16: 0.124892232 | H16: Avg. On-Peak System Heat Rate Btu/kWh | I16: 8690.032249 | J16: 8689.003478 | K16: 8116.977152 | L16: 8110.26785 | M16: 8033.018732
B17: T&D Capacity Costs | E17: Lifetime (yrs) | F17: 20 | H17: Avg. On-Peak Emissions Rate Tons/MWh | I17: 0.5083668866 | J17: 0.5083067035 | K17: 0.4748431634 | L17: 0.4744506692 | M17: 0.4699315958
B18: - % | C18: -0.3 | E18: Plant Costs | H18: Avg. On-Peak GHG Value $/MWh | I18: =I17*I11 -> 7.186550785 | J18: 7.75112588 | K18: 11.69431922 | L18: 12.57645386 | M18: 13.4081566
B19: + % | C19: 0.3 | E19: In-Service Cost ($/kW) | F19: 1069
B20: Capital Ammortization Period | E20: Fixed O&M ($/kW-yr.) | F20: 24.834348 | I20: On-Peak Losses | L20: Transmission Deferral ($/kW-yr) | R20: Distribution Deferral ($/kW-yr) | X20: WACC
B21: Years | C21: 3 | E21: Variable O&M ($/MWh) | F21: 0 | I21: Gen. | J21: T&D | K21: D | L21: 2018 | M21: 2019 | N21: 2020 | O21: 2021 | P21: 2022 | R21: 2018 | S21: 2019 | T21: 2020 | U21: 2021 | V21: 2022
B22: Years | C22: 15 | E22: Cost Basis Year for Plant Costs | F22: 2013 | H22: PG&E | I22: 0.09793374001 | J22: 0.07628414977 | K22: 0.04580152672 | L22: 39.37704524 | M22: 40.16458614 | N22: 40.96787787 | O22: 41.78723542 | P22: 42.62298013 | R22: 96.2690297 | S22: 98.19441029 | T22: 100.1582985 | U22: 102.1614645 | V22: 104.2046938 | X22: 0.07
B23: Load Impact | E23: Levelized Costs (2012) | H23: SCE | I23: 0.07789908528 | J23: 0.05132413691 | K23: 0.02170625553 | L23: 33.4691169 | M23: 34.13849924 | N23: 34.82126922 | O23: 35.51769461 | P23: 36.2280485 | R23: 108.3669192 | S23: 110.5342576 | T23: 112.7449428 | U23: 114.9998416 | V23: 117.2998385 | X23: 0.0766
B24: - % | C24: -0.3 | E24: Annual Fixed Cost ($/kW-yr) | F24: 154.4262373 | H24: SDG&E | I24: 0.0748397066 | J24: 0.06627281954 | K24: 0.04114841641 | L24: 0 | M24: 0 | N24: 0 | O24: 0 | P24: 0 | R24: 108.5265017 | S24: 110.6970317 | T24: 112.9109724 | U24: 115.1691918 | V24: 117.4725756 | X24: 0.0731
B25: + % | C25: 0.3 | E25: Real-Time Energy Revenue | F25: -114.2457898 | H25: =C4 -> SDG&E | I25: =OFFSET(I21,$O$56,0) -> 0.0748397066 | J25: 0.06627281954 | K25: 0.04114841641 | L25: 0 | M25: 0 | N25: 0 | O25: 0 | P25: 0 | R25: =OFFSET(R21,$O$56,0) -> 108.5265017 | S25: 110.6970317 | T25: 112.9109724 | U25: 115.1691918 | V25: 117.4725756 | X25: 0.0731
B26: A Adjustment Factor | E26: AS Revenue | F26: -3.130334641
B27: - % | C27: -0.1 | E27: Operating Cost | F27: 60.21691467 | H27: CT Capacity Adjustments
B28: 100 % (No Adjustment) | C28: 1 | E28: Residual Capacity Value | F28: 97.26702749 | H28: Reserve Margin | I28: 0.15
B29: +/- % Sensitivity values are multiplicative | E29: Summer Output | F29: 0.912282415
B30: e.g. for low case, the A Adjustment factor will be | E30: Summer Capacity Value | F30: 106.6194261 | H30: Avoided Cost Monthly Capacity Allocation Factors
B31: ="multiplied by (1" &TEXT(FactorLowPct,"0%") & ") or "& TEXT(1+FactorLowPct,"0%") -> multiplied by (1-10%) or 90% | E31: Financing | I31: Jan | J31: Feb | K31: Mar | L31: Apr | M31: May | N31: Jun | O31: Jul | P31: Aug | Q31: Sep | R31: Oct | S31: Nov | T31: Dec
E32: Debt-to-Equity | F32: 0.67 | H32: Generation Capacity Value | I32: 0 | J32: 0 | K32: 0 | L32: 0 | M32: 0 | N32: 3.550063078e-05 | O32: 0 | P32: 0.2653796298 | Q32: 0.7339891128 | R32: 0.0005957567357 | S32: 0 | T32: 0 | U32: =SUM(I32:T32) -> 1
E33: Debt Cost | F33: 0.0452
E34: Equity Cost | F34: 0.1325
E35: Marginal Tax Rate | F35: 0.40746
H39: ="T&D Capacity Value (" & C4 &")" -> T&D Capacity Value (SDG&E) | I39: =OFFSET(I40,$O$56,0) -> 0 | J39: 0 | K39: 0.00409822224 | L39: 0 | M39: 0 | N39: 0.1123612092 | O39: 0.00368034917 | P39: 0.4812134927 | Q39: 0.2869158031 | R39: 0.1117309235 | S39: 0 | T39: 0 | U39: =SUM(I39:T39) -> 1
H40: Statewide Average | I40: 0.01468704321 | J40: 0.004270194367 | K40: 0.004096691329 | L40: 0.0006271395756 | M40: 0 | N40: 0.05990652823 | O40: 0.08980117094 | P40: 0.243712484 | Q40: 0.392353166 | R40: 0.08903748623 | S40: 0.005105834938 | T40: 0.09640226118
H41: PG&E | I41: 0.02937408642 | J41: 0.008540388735 | K41: 0.005734371333 | L41: 0.001254279151 | M41: 0 | N41: 0.07595498484 | O41: 0.1764382996 | P41: 0.1582912111 | Q41: 0.417802646 | R41: 0.04823020145 | S41: 0.01021166988 | T41: 0.06816786158
H42: SCE | I42: 0 | J42: 0 | K42: 0.0009221779841 | L42: 0 | M42: 0 | N42: 0.04385807162 | O42: 0.03151658628 | P42: 0.3234834968 | Q42: 0.35612996 | R42: 0.1194530466 | S42: 0 | T42: 0.1246366608
H43: SDG&E | I43: 0 | J43: 0 | K43: 0.00409822224 | L43: 0 | M43: 0 | N43: 0.1123612092 | O43: 0.00368034917 | P43: 0.4812134927 | Q43: 0.2869158031 | R43: 0.1117309235 | S43: 0 | T43: 0
I52: Discount Factors | O52: T&D
I53: Year 1 | J53: Year 2 | K53: Year 3 | L53: Year 4 | M53: Year 5 | O53: D Only
I54: =I55-$C$3 -> 1 | J54: =J55-$C$3 -> 2 | K54: =K55-$C$3 -> 3 | L54: =L55-$C$3 -> 4 | M54: 5 | O54: User Input
I55: =C2 -> 2018 | J55: =I55+1 -> 2019 | K55: =J55+1 -> 2020 | L55: =K55+1 -> 2021 | M55: 2022
I56: =(1+WACC)^(-I54) -> 0.9318796012 | J56: =(1+WACC)^(-J54) -> 0.868399591 | K56: =(1+WACC)^(-K54) -> 0.8092438646 | L56: =(1+WACC)^(-L54) -> 0.7541178497 | M56: =(1+WACC)^(-M54) -> 0.702747041 | O56: =MATCH($C$4,$H$22:$H$24) -> 3

Sheet PLS Inputs
B2: LEGEND | Q2: 12x24 Shapes for Energy, Losses, AS, Emissions, & RPS Adder | X2: 20 year levelized avoided cost values | AE2: 12x24 Shapes for Energy, Losses, AS, Emissions, & RPS Adder | AM2: 20 year levelized avoided cost values | BT2: 12x24 Shapes for Energy, Losses, AS, Emissions, & RPS Adder | CA2: 10 year levelized avoided cost values | CH2: 12x24 Shapes for Energy, Losses, AS, Emissions, & RPS Adder | CP2: 10 year levelized avoided cost values | DW2: 12x24 Shapes for Energy, Losses, AS, Emissions, & RPS Adder | ED2: 30 year levelized avoided cost values | EK2: 12x24 Shapes for Energy, Losses, AS, Emissions, & RPS Adder | ES2: 30 year levelized avoided cost values
B3: Utility Input | E3: Enter Utility specific information and program data in yellow cells | Q3: 1 | R3: 2 | S3: 3 | T3: 4 | U3: 5 | V3: 6 | W3: 7 | X3: 8 | Y3: 9 | Z3: 10 | AA3: 11 | AB3: 12 | AF3: 1 | AG3: 2 | AH3: 3 | AI3: 4 | AJ3: 5 | AK3: 6 | AL3: 7 | AM3: 8 | AN3: 9 | AO3: 10 | AP3: 11 | AQ3: 12 | AS3: 1 | AT3: 2 | AU3: 3 | AV3: 4 | AW3: 5 | AX3: 6 | AY3: 7 | AZ3: 8 | BA3: 9 | BB3: 10 | BC3: 11 | BD3: 12 | BF3: 1 | BG3: 2 | BH3: 3 | BI3: 4 | BJ3: 5 | BK3: 6 | BL3: 7 | BM3: 8 | BN3: 9 | BO3: 10 | BP3: 11 | BQ3: 12 | BT3: 1 | BU3: 2 | BV3: 3 | BW3: 4 | BX3: 5 | BY3: 6 | BZ3: 7 | CA3: 8 | CB3: 9 | CC3: 10 | CD3: 11 | CE3: 12 | CI3: 1 | CJ3: 2 | CK3: 3 | CL3: 4 | CM3: 5 | CN3: 6 | CO3: 7 | CP3: 8 | CQ3: 9 | CR3: 10 | CS3: 11 | CT3: 12 | CV3: 1 | CW3: 2 | CX3: 3 | CY3: 4 | CZ3: 5 | DA3: 6 | DB3: 7 | DC3: 8 | DD3: 9 | DE3: 10 | DF3: 11 | DG3: 12 | DI3: 1 | DJ3: 2 | DK3: 3 | DL3: 4 | DM3: 5 | DN3: 6 | DO3: 7 | DP3: 8 | DQ3: 9 | DR3: 10 | DS3: 11 | DT3: 12 | DW3: 1 | DX3: 2 | DY3: 3 | DZ3: 4 | EA3: 5 | EB3: 6 | EC3: 7 | ED3: 8 | EE3: 9 | EF3: 10 | EG3: 11 | EH3: 12 | EL3: 1 | EM3: 2 | EN3: 3 | EO3: 4 | EP3: 5 | EQ3: 6 | ER3: 7 | ES3: 8 | ET3: 9 | EU3: 10 | EV3: 11 | EW3: 12 | EY3: 1 | EZ3: 2 | FA3: 3 | FB3: 4 | FC3: 5 | FD3: 6 | FE3: 7 | FF3: 8 | FG3: 9 | FH3: 10 | FI3: 11 | FJ3: 12 | FL3: 1 | FM3: 2 | FN3: 3 | FO3: 4 | FP3: 5 | FQ3: 6 | FR3: 7 | FS3: 8 | FT3: 9 | FU3: 10 | FV3: 11 | FW3: 12
B4: Do Not Alter | Q4: =OFFSET(AF4,0,$R$55) -> SDG&E | R4: Weekday | AF4: PG&E | AG4: Weekday | AS4: SCE | AT4: Weekday | BF4: SDG&E | BG4: Weekday | BT4: =OFFSET(CI4,0,$R$55) -> SDG&E | BU4: Weekday | CI4: PG&E | CJ4: Weekday | CV4: SCE | CW4: Weekday | DI4: SDG&E | DJ4: Weekday | DW4: =OFFSET(EL4,0,$R$55) -> SDG&E | DX4: Weekday | EL4: PG&E | EM4: Weekday | EY4: SCE | EZ4: Weekday | FL4: SDG&E | FM4: Weekday
B5: Avoided Cost Input | E5: Inputs from Avoided Cost Model | P5: 1 | Q5: 70.35324762 | R5: 70.02572722 | S5: 65.47675849 | T5: 67.08651016 | U5: 64.52540616 | V5: 64.80324918 | W5: 66.93556144 | X5: 68.71480356 | Y5: 67.7577322 | Z5: 71.5933959 | AA5: 76.05175398 | AB5: 73.73010289 | AE5: 1 | AF5: 68.80560665 | AG5: 67.93438876 | AH5: 64.41190022 | AI5: 66.32783101 | AJ5: 66.05565419 | AK5: 63.87487084 | AL5: 64.21735611 | AM5: 65.39295861 | AN5: 65.78741659 | AO5: 69.84286253 | AP5: 74.69973891 | AQ5: 73.63919633 | AS5: 70.46753219 | AT5: 70.13931446 | AU5: 65.57829945 | AV5: 67.19086839 | AW5: 64.61719064 | AX5: 64.99726016 | AY5: 67.14011902 | AZ5: 68.92822046 | BA5: 67.96628135 | BB5: 71.70916054 | BC5: 76.17798102 | BD5: 73.85264692 | BF5: 70.35324762 | BG5: 70.02572722 | BH5: 65.47675849 | BI5: 67.08651016 | BJ5: 64.52540616 | BK5: 64.80324918 | BL5: 66.93556144 | BM5: 68.71480356 | BN5: 67.7577322 | BO5: 71.5933959 | BP5: 76.05175398 | BQ5: 73.73010289 | BS5: 1 | BT5: 59.93138328 | BU5: 59.64034363 | BV5: 56.05601869 | BW5: 57.39908354 | BX5: 55.43486508 | BY5: 55.67498184 | BZ5: 57.35533382 | CA5: 58.72357189 | CB5: 58.08273955 | CC5: 60.89480165 | CD5: 64.28931668 | CE5: 62.43508343 | CH5: 1 | CI5: 58.77399225 | CJ5: 58.06191671 | CK5: 55.27369605 | CL5: 56.85182511 | CM5: 56.66451295 | CN5: 54.99752835 | CO5: 55.28407952 | CP5: 56.18346895 | CQ5: 56.59577671 | CR5: 59.57645112 | CS5: 63.2830823 | CT5: 62.40773765 | CV5: 60.02071744 | CW5: 59.72899976 | CX5: 56.13505246 | CY5: 57.48103538 | CZ5: 55.50687044 | DA5: 55.82702263 | DB5: 57.51595543 | DC5: 58.89119838 | DD5: 58.24698825 | DE5: 60.98585263 | DF5: 64.38869187 | DG5: 62.53077328 | DI5: 59.93138328 | DJ5: 59.64034363 | DK5: 56.05601869 | DL5: 57.39908354 | DM5: 55.43486508 | DN5: 55.67498184 | DO5: 57.35533382 | DP5: 58.72357189 | DQ5: 58.08273955 | DR5: 60.89480165 | DS5: 64.28931668 | DT5: 62.43508343 | DV5: 1 | DW5: 75.99063447 | DX5: 75.63129889 | DY5: 70.46678336 | DZ5: 72.26599989 | EA5: 69.33809626 | EB5: 69.6457514 | EC5: 72.06649525 | ED5: 74.099163 | EE5: 72.96985364 | EF5: 77.4034238 | EG5: 82.50919275 | EH5: 79.88348367 | EK5: 1 | EL5: 74.20892252 | EM5: 73.22959878 | EN5: 69.2351851 | EO5: 71.38441061 | EP5: 71.0656961 | EQ5: 68.57076393 | ER5: 68.95343389 | ES5: 70.29824581 | ET5: 70.70782703 | EU5: 75.39266749 | EV5: 80.95088157 | EW5: 79.76226572 | EY5: 76.12015281 | EZ5: 75.76007814 | FA5: 70.58193593 | FB5: 72.38407648 | FC5: 69.44194617 | FD5: 69.86535368 | FE5: 72.29796676 | FF5: 74.34068111 | FG5: 73.20566586 | FH5: 77.53439898 | FI5: 82.65199409 | FJ5: 80.02243228 | FL5: 75.99063447 | FM5: 75.63129889 | FN5: 70.46678336 | FO5: 72.26599989 | FP5: 69.33809626 | FQ5: 69.6457514 | FR5: 72.06649525 | FS5: 74.099163 | FT5: 72.96985364 | FU5: 77.4034238 | FV5: 82.50919275 | FW5: 79.88348367
B6: CPUC Input | E6: Inputs made by CPUC Energy Division Staff | P6: 2 | Q6: 68.24463114 | R6: 67.33315156 | S6: 62.71326082 | T6: 63.69613305 | U6: 61.75692743 | V6: 62.81306463 | W6: 65.8373768 | X6: 63.6258764 | Y6: 64.55181443 | Z6: 68.26941091 | AA6: 74.3984842 | AB6: 72.77721527 | AE6: 2 | AF6: 66.69824067 | AG6: 65.12179082 | AH6: 61.52421177 | AI6: 63.09125292 | AJ6: 63.24262024 | AK6: 62.43046923 | AL6: 62.66030996 | AM6: 61.00475577 | AN6: 62.69912259 | AO6: 66.77169861 | AP6: 73.09868347 | AQ6: 72.72935576 | AS6: 68.35347165 | AT6: 67.43979244 | AU6: 62.80727934 | AV6: 63.79228661 | AW6: 61.84221276 | AX6: 62.99711521 | AY6: 66.03675751 | AZ6: 63.81448107 | BA6: 64.74452315 | BB6: 68.37769539 | BC6: 74.52116996 | BD6: 72.89743024 | BF6: 68.24463114 | BG6: 67.33315156 | BH6: 62.71326082 | BI6: 63.69613305 | BJ6: 61.75692743 | BK6: 62.81306463 | BL6: 65.8373768 | BM6: 63.6258764 | BN6: 64.55181443 | BO6: 68.26941091 | BP6: 74.3984842 | BQ6: 72.77721527 | BS6: 2 | BT6: 58.29701957 | BU6: 57.55434919 | BV6: 53.92109082 | BW6: 54.76751761 | BX6: 53.28639414 | BY6: 54.12998185 | BZ6: 56.50123101 | CA6: 54.84492169 | CB6: 55.44742587 | CC6: 58.31150257 | CD6: 63.00666473 | CE6: 61.69761684 | CH6: 2 | CI6: 57.14095499 | CJ6: 55.88466907 | CK6: 53.0428198 | CL6: 54.34029239 | CM6: 54.48090077 | CN6: 53.87638879 | CO6: 54.07501705 | CP6: 52.85417693 | CQ6: 54.05135322 | CR6: 57.19155211 | CS6: 62.04122965 | CT6: 61.70371451 | CV6: 58.38205579 | CW6: 57.63749286 | CX6: 53.99430156 | CY6: 54.84278333 | CZ6: 53.35317867 | DA6: 54.27406984 | DB6: 56.65761142 | DC6: 54.99293511 | DD6: 55.598271 | DE6: 58.39628662 | DF6: 63.10309024 | DG6: 61.79143821 | DI6: 58.29701957 | DJ6: 57.55434919 | DK6: 53.92109082 | DL6: 54.76751761 | DM6: 53.28639414 | DN6: 54.12998185 | DO6: 56.50123101 | DP6: 54.84492169 | DQ6: 55.44742587 | DR6: 58.31150257 | DS6: 63.00666473 | DT6: 61.69761684 | DV6: 2 | DW6: 73.58649514 | DX6: 72.56096472 | DY6: 67.31328718 | DZ6: 68.40204891 | EA6: 66.1827245 | EB6: 67.37759375 | EC6: 70.81557414 | ED6: 68.27230019 | EE6: 69.37130243 | EF6: 73.61657436 | EG6: 80.62494739 | EH6: 78.79666912 | EK6: 2 | EL6: 71.8061088 | EM6: 70.02171845 | EN6: 65.93999953 | EO6: 67.69546955 | EP6: 67.85986496 | EQ6: 66.9245595 | ER6: 67.17894793 | ES6: 65.26786955 | ET6: 67.243444 | EU6: 71.89298291 | EV6: 79.1259774 | EW6: 78.72450667 | EY6: 73.70983661 | EZ6: 72.68187231 | FA6: 67.41985885 | FB6: 68.5109037 | FC6: 66.27923906 | FD6: 67.58593182 | FE6: 71.04123708 | FF6: 68.4856773 | FG6: 69.58948331 | FH6: 73.73921677 | FI6: 80.76380137 | FJ6: 78.93298806 | FL6: 73.58649514 | FM6: 72.56096472 | FN6: 67.31328718 | FO6: 68.40204891 | FP6: 66.1827245 | FQ6: 67.37759375 | FR6: 70.81557414 | FS6: 68.27230019 | FT6: 69.37130243 | FU6: 73.61657436 | FV6: 80.62494739 | FW6: 78.79666912
B7: Formula | E7: Formulas contained in this Excel Workbook | P7: 3 | Q7: 67.13631176 | R7: 65.49942079 | S7: 63.3926641 | T7: 62.81104366 | U7: 60.0524089 | V7: 61.94399261 | W7: 64.09910978 | X7: 62.381177 | Y7: 63.41499951 | Z7: 67.98131491 | AA7: 72.7450423 | AB7: 70.74771927 | AE7: 3 | AF7: 65.65729206 | AG7: 63.39294246 | AH7: 62.09428944 | AI7: 61.96544027 | AJ7: 62.37402256 | AK7: 60.66858476 | AL7: 61.18712951 | AM7: 59.72229955 | AN7: 61.49919869 | AO7: 66.51620203 | AP7: 71.76299828 | AQ7: 70.89036125 | AS7: 67.24220226 | AT7: 65.60105913 | AU7: 63.48854207 | AV7: 62.90502827 | AW7: 60.13359825 | AX7: 62.12346229 | AY7: 64.29009025 | AZ7: 62.56313 | BA7: 63.6022351 | BB7: 68.08890643 | BC7: 72.86417384 | BD7: 70.86303273 | BF7: 67.13631176 | BG7: 65.49942079 | BH7: 63.3926641 | BI7: 62.81104366 | BJ7: 60.0524089 | BK7: 61.94399261 | BL7: 64.09910978 | BM7: 62.381177 | BN7: 63.41499951 | BO7: 67.98131491 | BP7: 72.7450423 | BQ7: 70.74771927 | BS7: 3 | BT7: 57.43839522 | BU7: 56.13564265 | BV7: 54.44589553 | BW7: 54.08062378 | BX7: 51.96456165 | BY7: 53.45621761 | BZ7: 55.15000269 | CA7: 53.80495937 | CB7: 54.56483186 | CC7: 58.0879283 | CD7: 61.72314332 | CE7: 60.12619455 | CH7: 3 | CI7: 56.33446957 | CJ7: 54.54702066 | CK7: 53.48323211 | CL7: 53.46748432 | CM7: 53.8064562 | CN7: 52.50856855 | CO7: 52.93222101 | CP7: 51.78452573 | CQ7: 53.12123807 | CR7: 56.99345099 | CS7: 61.00467935 | CT7: 60.27982771 | CV7: 57.52112338 | CW7: 56.21491113 | CX7: 54.52054261 | CY7: 54.15412777 | CZ7: 52.02809998 | DA7: 53.59673565 | DB7: 55.29957309 | DC7: 53.94741102 | DD7: 54.71123489 | DE7: 58.17214973 | DF7: 61.81657495 | DG7: 60.21604768 | DI7: 57.43839522 | DJ7: 56.13564265 | DK7: 54.44589553 | DL7: 54.08062378 | DM7: 51.96456165 | DN7: 53.45621761 | DO7: 55.15000269 | DP7: 53.80495937 | DQ7: 54.56483186 | DR7: 58.0879283 | DS7: 61.72314332 | DT7: 60.12619455 | DV7: 3 | DW7: 72.32270324 | DX7: 70.46925013 | DY7: 68.08858893 | DZ7: 67.39321368 | EA7: 64.23960637 | EB7: 66.386704 | EC7: 68.83514746 | ED7: 66.88144378 | EE7: 68.07576279 | EF7: 73.28819108 | EG7: 78.74074542 | EH7: 76.48219661 | EK7: 3 | EL7: 70.61915369 | EM7: 68.0496687 | EN7: 66.5905238 | EO7: 66.41192499 | EP7: 66.87002026 | EQ7: 64.91662319 | ER7: 65.49964097 | ES7: 63.83414175 | ET7: 65.87535918 | EU7: 71.6017011 | EV7: 77.60376762 | EW7: 76.627279 | EY7: 72.44269052 | EZ7: 70.58445344 | FA7: 68.19728252 | FB7: 67.49962486 | FC7: 64.33147975 | FD7: 66.58982005 | FE7: 69.05134508 | FF7: 67.08738812 | FG7: 68.28778398 | FH7: 73.41005247 | FI7: 78.87564839 | FJ7: 76.61299451 | FL7: 72.32270324 | FM7: 70.46925013 | FN7: 68.08858893 | FO7: 67.39321368 | FP7: 64.23960637 | FQ7: 66.386704 | FR7: 68.83514746 | FS7: 66.88144378 | FT7: 68.07576279 | FU7: 73.28819108 | FV7: 78.74074542 | FW7: 76.48219661
P8: 4 | Q8: 66.77426126 | R8: 64.61597248 | S8: 66.35458128 | T8: 66.79528007 | U8: 62.97919362 | V8: 62.86637269 | W8: 64.73720171 | X8: 63.80361111 | Y8: 65.25423424 | Z8: 70.56740888 | AA8: 74.61209481 | AB8: 72.28053193 | AE8: 4 | AF8: 65.20827989 | AG8: 62.61911865 | AH8: 64.95002236 | AI8: 67.02656939 | AJ8: 65.46830062 | AK8: 62.59148543 | AL8: 62.15814974 | AM8: 61.34481015 | AN8: 63.59226347 | AO8: 69.05255452 | AP8: 73.57493597 | AQ8: 72.48478381 | AS8: 66.87929229 | AT8: 64.71519853 | AU8: 66.45856572 | AV8: 66.89899812 | AW8: 63.06765397 | AX8: 63.05066095 | AY8: 64.93150326 | AZ8: 63.99317989 | BA8: 65.451005 | BB8: 70.68103943 | BC8: 74.73540756 | BD8: 72.39973449 | BF8: 66.77426126 | BG8: 64.61597248 | BH8: 66.35458128 | BI8: 66.79528007 | BJ8: 62.97919362 | BK8: 62.86637269 | BL8: 64.73720171 | BM8: 63.80361111 | BN8: 65.25423424 | BO8: 70.56740888 | BP8: 74.61209481 | BQ8: 72.28053193 | BS8: 4 | BT8: 57.15715608 | BU8: 55.45217209 | BV8: 56.73382695 | BW8: 57.17260613 | BX8: 54.2329406 | BY8: 54.17151959 | BZ8: 55.64514047 | CA8: 54.98266105 | CB8: 55.99027074 | CC8: 60.09671396 | CD8: 63.17128574 | CE8: 61.31198479 | CH8: 4 | CI8: 55.9858409 | CJ8: 53.94823681 | CK8: 55.68942259 | CL8: 57.39498732 | CM8: 56.20920922 | CN8: 54.00058686 | CO8: 53.68544497 | CP8: 53.11783276 | CQ8: 54.7428774 | CR8: 58.96217675 | CS8: 62.40949095 | CT8: 61.51349304 | CV8: 57.23917586 | CW8: 55.52957324 | CX8: 56.81473586 | CY8: 57.25401375 | CZ8: 54.3021805 | DA8: 54.31581203 | DB8: 55.79731511 | DC8: 55.13141776 | DD8: 56.14416062 | DE8: 60.18593232 | DF8: 63.2681721 | DG8: 61.40493061 | DI8: 57.15715608 | DJ8: 55.45217209 | DK8: 56.73382695 | DL8: 57.17260613 | DM8: 54.2329406 | DN8: 54.17151959 | DO8: 55.64514047 | DP8: 54.98266105 | DQ8: 55.99027074 | DR8: 60.09671396 | DS8: 63.17128574 | DT8: 61.31198479 | DV8: 4 | DW8: 71.91018241 | DX8: 69.46147733 | DY8: 71.46858381 | DZ8: 71.93430218 | EA8: 67.57664094 | EB8: 67.43822195 | EC8: 69.56250508 | ED8: 68.47494206 | EE8: 70.17283984 | EF8: 76.2349143 | EG8: 80.86889011 | EH8: 78.23068518 | EK8: 4 | EL8: 70.10747741 | EM8: 67.16699458 | EN8: 69.84924391 | EO8: 72.18043577 | EP8: 70.3960919 | EQ8: 67.10838217 | ER8: 66.60654339 | ES8: 65.65555402 | ET8: 68.26204739 | EU8: 74.49232578 | EV8: 79.66935912 | EW8: 78.44596987 | EY8: 72.02920755 | EZ8: 69.57392838 | FA8: 71.5865281 | FB8: 72.05167015 | FC8: 67.67677902 | FD8: 67.64681713 | FE8: 69.78248185 | FF8: 68.68941887 | FG8: 70.39569735 | FH8: 76.36353284 | FI8: 81.00847011 | FJ8: 78.36588707 | FL8: 71.91018241 | FM8: 69.46147733 | FN8: 71.46858381 | FO8: 71.93430218 | FP8: 67.57664094 | FQ8: 67.43822195 | FR8: 69.56250508 | FS8: 68.47494206 | FT8: 70.17283984 | FU8: 76.2349143 | FV8: 80.86889011 | FW8: 78.23068518
B9: Avoided Costs are in nominal 20 year levelized dollars as the default. | P9: 5 | Q9: 69.74894524 | R9: 68.62597688 | S9: 74.01464095 | T9: 81.53939106 | U9: 72.07764245 | V9: 68.06448348 | W9: 68.11749557 | X9: 69.93651906 | Y9: 71.99985813 | Z9: 77.87762621 | AA9: 78.93004645 | AB9: 76.29675347 | AE9: 5 | AF9: 68.20871117 | AG9: 66.67050636 | AH9: 72.30426783 | AI9: 81.3060599 | AJ9: 73.56830378 | AK9: 66.16136753 | AL9: 64.61567967 | AM9: 67.58429528 | AN9: 70.3012718 | AO9: 75.59456618 | AP9: 77.67732432 | AQ9: 76.42344365 | AS9: 69.86181348 | AT9: 68.73599591 | AU9: 74.13701956 | AV9: 81.67388864 | AW9: 72.1856221 | AX9: 68.27358476 | AY9: 68.32781233 | AZ9: 70.15538364 | BA9: 72.22741509 | BB9: 78.00678874 | BC9: 79.06245058 | BD9: 76.42512366 | BF9: 69.74894524 | BG9: 68.62597688 | BH9: 74.01464095 | BI9: 81.53939106 | BJ9: 72.07764245 | BK9: 68.06448348 | BL9: 68.11749557 | BM9: 69.93651906 | BN9: 71.99985813 | BO9: 77.87762621 | BP9: 78.93004645 | BQ9: 76.29675347 | BS9: 5 | BT9: 59.46230389 | BU9: 58.55561931 | BV9: 62.66686977 | BW9: 68.62075713 | BX9: 61.30349257 | BY9: 58.21049 | BZ9: 58.27386269 | CA9: 59.67488487 | CB9: 61.23184458 | CC9: 65.77737237 | CD9: 66.52137108 | CE9: 64.42480795 | CH9: 5 | CI9: 58.31060149 | CJ9: 57.08353074 | CK9: 61.38360341 | CL9: 68.47974303 | CM9: 62.49880165 | CN9: 56.77320423 | CO9: 55.59379319 | CP9: 57.88662419 | CQ9: 59.95268671 | CR9: 64.04399954 | CS9: 65.59233773 | CT9: 64.56544145 | CV9: 59.55048559 | CW9: 58.64142861 | CX9: 62.7627316 | CY9: 68.72763191 | CZ9: 61.38888741 | DA9: 58.37495176 | DB9: 58.43912989 | DC9: 59.84711678 | DD9: 61.41118778 | DE9: 65.87963338 | DF9: 66.62584412 | DG9: 64.52533936 | DI9: 59.46230389 | DJ9: 58.55561931 | DK9: 62.66686977 | DL9: 68.62075713 | DM9: 61.30349257 | DN9: 58.21049 | DO9: 58.27386269 | DP9: 59.67488487 | DQ9: 61.23184458 | DR9: 65.77737237 | DS9: 66.52137108 | DT9: 64.42480795 | DV9: 5 | DW9: 75.30195911 | DX9: 74.03530102 | DY9: 80.20335309 | DZ9: 88.73481047 | EA9: 77.94247589 | EB9: 73.36091807 | EC9: 73.41316055 | ED9: 75.49038171 | EE9: 77.85848184 | EF9: 84.56300246 | EG9: 85.79004051 | EH9: 82.80941522 | EK9: 5 | EL9: 73.52873298 | EM9: 71.78806909 | EN9: 78.23617631 | EO9: 88.45268698 | EP9: 79.62625152 | EQ9: 71.17634249 | ER9: 69.40718168 | ES9: 72.79491764 | ET9: 75.90740756 | EU9: 81.94620139 | EV9: 84.34489972 | EW9: 82.93658406 | EY9: 75.42988618 | EZ9: 74.16004322 | FA9: 80.34198541 | FB9: 88.88654916 | FC9: 78.06444453 | FD9: 73.59743183 | FE9: 73.65112886 | FF9: 75.73795938 | FG9: 78.11579662 | FH9: 84.70889545 | FI9: 85.93974772 | FJ9: 82.95486882 | FL9: 75.30195911 | FM9: 74.03530102 | FN9: 80.20335309 | FO9: 88.73481047 | FP9: 77.94247589 | FQ9: 73.36091807 | FR9: 73.41316055 | FS9: 75.49038171 | FT9: 77.85848184 | FU9: 84.56300246 | FV9: 85.79004051 | FW9: 82.80941522
B10: 10 year and 30 year values are provided for the sensitivities. | P10: 6 | Q10: 80.1559794 | R10: 84.65904783 | S10: 89.84411897 | T10: 95.26457079 | U10: 78.64791492 | V10: 72.92186975 | W10: 71.00379127 | X10: 75.63233593 | Y10: 78.18027596 | Z10: 86.11724596 | AA10: 92.34853041 | AB10: 86.66319311 | AE10: 6 | AF10: 78.29910142 | AG10: 82.17062468 | AH10: 88.06674239 | AI10: 93.37681802 | AJ10: 78.36781716 | AK10: 72.03987635 | AL10: 70.84221532 | AM10: 74.7810193 | AN10: 76.58512394 | AO10: 83.8135581 | AP10: 90.71269828 | AQ10: 86.48037158 | AS10: 80.29256019 | AT10: 84.80494544 | AU10: 89.74389925 | AV10: 94.95292292 | AW10: 78.45496932 | AX10: 72.84351789 | AY10: 70.94016566 | AZ10: 75.55166299 | BA10: 78.0955999 | BB10: 85.93024033 | BC10: 92.41726505 | BD10: 86.81368151 | BF10: 80.1559794 | BG10: 84.65904783 | BH10: 89.84411897 | BI10: 95.26457079 | BJ10: 78.64791492 | BK10: 72.92186975 | BL10: 71.00379127 | BM10: 75.63233593 | BN10: 78.18027596 | BO10: 86.11724596 | BP10: 92.34853041 | BQ10: 86.66319311 | BS10: 6 | BT10: 67.54631149 | BU10: 70.99756425 | BV10: 74.93042399 | BW10: 79.26952832 | BX10: 66.41201433 | BY10: 61.99584009 | BZ10: 60.52570226 | CA10: 64.13137429 | CB10: 66.04083867 | CC10: 72.32362628 | CD10: 76.91597326 | CE10: 72.45455777 | CH10: 6 | CI10: 66.14617616 | CJ10: 69.1088922 | CK10: 73.59000784 | CL10: 77.8362651 | CM10: 66.22493845 | CN10: 61.34494058 | CO10: 60.43839396 | CP10: 63.5039385 | CQ10: 64.83512026 | CR10: 70.56857885 | CS10: 75.68817749 | CT10: 72.35326709 | CV10: 67.65408053 | CW10: 71.11292055 | CX10: 74.85112046 | CY10: 79.02154646 | CZ10: 66.25865097 | DA10: 61.93376882 | DB10: 60.47542825 | DC10: 64.06730207 | DD10: 65.97372622 | DE10: 72.17468661 | DF10: 76.97037866 | DG10: 72.57324859 | DI10: 67.54631149 | DJ10: 70.99756425 | DK10: 74.93042399 | DL10: 79.26952832 | DM10: 66.41201433 | DN10: 61.99584009 | DO10: 60.52570226 | DP10: 64.13137429 | DQ10: 66.04083867 | DR10: 72.32362628 | DS10: 76.91597326 | DT10: 72.45455777 | DV10: 6 | DW10: 87.15987072 | DX10: 92.30796108 | DY10: 98.25000021 | DZ10: 104.3749381 | EA10: 85.42487456 | EB10: 78.88933587 | EC10: 76.69673803 | ED10: 81.96633881 | EE10: 84.89548098 | EF10: 93.89439668 | EG10: 101.0886428 | EH10: 94.62907284 | EK10: 6 | EL10: 85.02702767 | EM10: 89.4548811 | EN10: 96.20972074 | EO10: 102.2129104 | EP10: 85.09534544 | EQ10: 77.87237256 | ER10: 76.49891998 | ES10: 80.98453332 | ET10: 83.06652074 | EU10: 91.25785987 | EV10: 99.20805916 | EW10: 94.40427554 | EY10: 87.31432764 | EZ10: 92.47286532 | FA10: 98.13676404 | FB10: 104.0234825 | FC10: 85.20723857 | FD10: 78.80087562 | FE10: 76.62485051 | FF10: 81.87530762 | FG10: 84.79988064 | FH10: 93.68350692 | FI10: 101.1662993 | FJ10: 94.79928524 | FL10: 87.15987072 | FM10: 92.30796108 | FN10: 98.25000021 | FO10: 104.3749381 | FP10: 85.42487456 | FQ10: 78.88933587 | FR10: 76.69673803 | FS10: 81.96633881 | FT10: 84.89548098 | FU10: 93.89439668 | FV10: 101.0886428 | FW10: 94.62907284
B11: Program Start Year | C11: =Inputs!C2 -> 2018 | P11: 7 | Q11: 91.0808401 | R11: 92.01016946 | S11: 97.83114007 | T11: 90.56694547 | U11: 75.61963137 | V11: 71.37162139 | W11: 71.71457003 | X11: 76.28084092 | Y11: 78.56169174 | Z11: 88.43159734 | AA11: 102.2436204 | AB11: 103.5627958 | AE11: 7 | AF11: 89.48373802 | AG11: 90.46491716 | AH11: 97.68644999 | AI11: 92.78788103 | AJ11: 78.5695025 | AK11: 71.5571803 | AL11: 72.0761162 | AM11: 75.64818828 | AN11: 77.2754272 | AO11: 87.3352813 | AP11: 101.1749746 | AQ11: 103.7135502 | AS11: 90.792694 | AT11: 91.7205048 | AU11: 97.4993788 | AV11: 90.27306705 | AW11: 75.43787958 | AX11: 71.29571025 | AY11: 71.64912454 | AZ11: 76.19925419 | BA11: 78.47556198 | BB11: 88.23821632 | BC11: 102.0458302 | BD11: 103.3118679 | BF11: 91.0808401 | BG11: 92.01016946 | BH11: 97.83114007 | BI11: 90.56694547 | BJ11: 75.61963137 | BK11: 71.37162139 | BL11: 71.71457003 | BM11: 76.28084092 | BN11: 78.56169174 | BO11: 88.43159734 | BP11: 102.2436204 | BQ11: 103.5627958 | BS11: 7 | BT11: 76.0308895 | BU11: 76.7019067 | BV11: 81.11256432 | BW11: 75.62831415 | BX11: 64.0611002 | BY11: 60.78798919 | BZ11: 61.07936356 | CA11: 64.61912956 | CB11: 66.3536262 | CC11: 74.11809623 | CD11: 84.57900206 | CE11: 85.52861575 | CH11: 7 | CI11: 74.82488876 | CJ11: 75.53668681 | CK11: 81.03043635 | CL11: 77.3798515 | CM11: 66.38184246 | CN11: 60.97016068 | CO11: 61.3985158 | CP11: 64.16185797 | CQ11: 65.38757436 | CR11: 73.29835527 | CS11: 83.78474394 | CT11: 85.67730071 | CV11: 75.80252766 | CW11: 76.47246576 | CX11: 80.85010489 | CY11: 75.39448601 | CZ11: 63.91681458 | DA11: 60.72802 | DB11: 61.02756129 | DC11: 64.55432149 | DD11: 66.28530888 | DE11: 73.96405936 | DF11: 84.42226639 | DG11: 85.3305826 | DI11: 76.0308895 | DJ11: 76.7019067 | DK11: 81.11256432 | DL11: 75.62831415 | DM11: 64.0611002 | DN11: 60.78798919 | DO11: 61.07936356 | DP11: 64.61912956 | DQ11: 66.3536262 | DR11: 74.11809623 | DS11: 84.57900206 | DT11: 85.52861575 | DV11: 7 | DW11: 99.60600719 | DX11: 100.6838928 | DY11: 107.3572608 | DZ11: 99.019991 | EA11: 81.9741438 | EB11: 77.12450541 | EC11: 77.50597257 | ED11: 82.71120277 | EE11: 85.3238149 | EF11: 96.53240217 | EG11: 112.3700775 | EH11: 113.9020486 | EK11: 7 | EL11: 97.7739356 | EM11: 98.91075435 | EN11: 107.1820676 | EO11: 101.5415081 | EP11: 85.32503372 | EQ11: 77.32228719 | ER11: 77.90418209 | ES11: 81.9784539 | ET11: 83.846915 | EU11: 95.27258115 | EV11: 111.1397094 | EW11: 114.0627293 | EY11: 99.28052779 | EZ11: 100.3566588 | FA11: 106.9823776 | FB11: 98.68856931 | FC11: 81.76907778 | FD11: 77.03873818 | FE11: 77.43205828 | FF11: 82.6191442 | FG11: 85.22659281 | FH11: 96.31433003 | FI11: 112.1466986 | FJ11: 113.618279 | FL11: 99.60600719 | FM11: 100.6838928 | FN11: 107.3572608 | FO11: 99.019991 | FP11: 81.9741438 | FQ11: 77.12450541 | FR11: 77.50597257 | FS11: 82.71120277 | FT11: 85.3238149 | FU11: 96.53240217 | FV11: 112.3700775 | FW11: 113.9020486
B12: Dollar Year | C12: =Inputs!C3 -> 2017 | P12: 8 | Q12: 92.1360164 | R12: 92.92335696 | S12: 85.14211589 | T12: 69.02813172 | U12: 16.75795508 | V12: 66.97279632 | W12: 69.86751316 | X12: 69.72666466 | Y12: 71.99221878 | Z12: 79.87506824 | AA12: 91.03032819 | AB12: 106.5116802 | AE12: 8 | AF12: 93.99690513 | AG12: 93.88779976 | AH12: 89.92234336 | AI12: 84.74026042 | AJ12: 20.64840617 | AK12: 71.89526843 | AL12: 71.39540688 | AM12: 70.20831352 | AN12: 71.92488893 | AO12: 79.85311417 | AP12: 92.24168696 | AQ12: 108.9866295 | AS12: 91.84324759 | AT12: 92.63030512 | AU12: 85.00305339 | AV12: 69.02053308 | AW12: 16.75875918 | AX12: 67.09224581 | AY12: 69.99704197 | AZ12: 69.85324966 | BA12: 72.12449525 | BB12: 79.94386277 | BC12: 90.92778428 | BD12: 106.2538188 | BF12: 92.1360164 | BG12: 92.92335696 | BH12: 85.14211589 | BI12: 69.02813172 | BJ12: 16.75795508 | BK12: 66.97279632 | BL12: 69.86751316 | BM12: 69.72666466 | BN12: 71.99221878 | BO12: 79.87506824 | BP12: 91.03032819 | BQ12: 106.5116802 | BS12: 8 | BT12: 76.84945997 | BU12: 77.4089861 | BV12: 71.29308352 | BW12: 58.90993842 | BX12: 22.05936726 | BY12: 57.3664908 | BZ12: 59.64024898 | CA12: 59.51646358 | CB12: 61.22869238 | CC12: 67.33240364 | CD12: 75.89908602 | CE12: 87.80871961 | CH12: 8 | CI12: 78.3239302 | CJ12: 78.18772532 | CK12: 75.0391801 | CL12: 71.17031027 | CM12: 25.86575313 | CN12: 61.23943633 | CO12: 60.87399436 | CP12: 59.93578552 | CQ12: 61.2203742 | CR12: 67.35759868 | CS12: 76.87724533 | CT12: 89.75152784 | CV12: 76.61737796 | CW12: 77.17687977 | CX12: 71.18308774 | CY12: 58.90380103 | CZ12: 22.06215725 | DA12: 57.46048709 | DB12: 59.74231053 | DC12: 59.61615441 | DD12: 61.33291605 | DE12: 67.38692576 | DF12: 75.81787244 | DG12: 87.60522997 | DI12: 76.84945997 | DJ12: 77.4089861 | DK12: 71.29308352 | DL12: 58.90993842 | DM12: 22.05936726 | DN12: 57.3664908 | DO12: 59.64024898 | DP12: 59.51646358 | DQ12: 61.22869238 | DR12: 67.33240364 | DS12: 75.89908602 | DT12: 87.80871961 | DV12: 8 | DW12: 100.8085948 | DX12: 101.7251612 | DY12: 92.88645121 | DZ12: 74.47583657 | EA12: 13.5124494 | EB12: 72.11411109 | EC12: 75.40308907 | ED12: 75.24806244 | EE12: 77.84731278 | EF12: 86.83618135 | EG12: 99.58312678 | EH12: 117.2657739 | EK12: 8 | EL12: 102.918595 | EM12: 102.8135915 | EN12: 98.31776373 | EO12: 92.35058374 | EP12: 17.64339548 | EQ12: 77.70278035 | ER12: 77.12489338 | ES12: 75.77844923 | ET12: 77.75263175 | EU12: 86.7938134 | EV12: 100.9483068 | EW12: 120.078967 | EY12: 100.4779148 | EZ12: 101.3940942 | FA12: 92.72930606 | FB12: 74.46729514 | FC12: 13.51252826 | FD12: 72.24918156 | FE12: 75.54953061 | FF12: 75.39119996 | FG12: 77.99688337 | FH12: 86.91386273 | FI12: 99.46730047 | FJ12: 116.9741569 | FL12: 100.8085948 | FM12: 101.7251612 | FN12: 92.88645121 | FO12: 74.47583657 | FP12: 13.5124494 | FQ12: 72.11411109 | FR12: 75.40308907 | FS12: 75.24806244 | FT12: 77.84731278 | FU12: 86.83618135 | FV12: 99.58312678 | FW12: 117.2657739
B13: Utility | C13: =Inputs!C4 -> SDG&E | P13: 9 | Q13: 82.19097406 | R13: 82.06998326 | S13: 71.54861331 | T13: 14.49049012 | U13: 14.48754803 | V13: 68.86798487 | W13: 71.26498165 | X13: 71.19919283 | Y13: 72.04591011 | Z13: 76.11442807 | AA13: 78.47893851 | AB13: 83.72100182 | AE13: 9 | AF13: 85.83147565 | AG13: 84.828937 | AH13: 81.92900819 | AI13: 20.60550389 | AJ13: 19.49233572 | AK13: 74.38502336 | AL13: 72.48180509 | AM13: 71.31227308 | AN13: 72.09967978 | AO13: 76.17678993 | AP13: 81.72453016 | AQ13: 87.17358615 | AS13: 82.17597426 | AT13: 82.08241357 | AU13: 71.54069063 | AV13: 14.49022856 | AW13: 14.48850916 | AX13: 68.9920324 | AY13: 71.39824562 | AZ13: 71.3302187 | BA13: 72.17832664 | BB13: 76.17893955 | BC13: 78.5519436 | BD13: 83.79418205 | BF13: 82.19097406 | BG13: 82.06998326 | BH13: 71.54861331 | BI13: 14.49049012 | BJ13: 14.48754803 | BK13: 68.86798487 | BL13: 71.26498165 | BM13: 71.19919283 | BN13: 72.04591011 | BO13: 76.11442807 | BP13: 78.47893851 | BQ13: 83.72100182 | BS13: 9 | BT13: 69.13111725 | BU13: 68.99282888 | BV13: 60.76359184 | BW13: 18.29288315 | BX13: 18.28775187 | BY13: 58.84517826 | BZ13: 60.7275302 | CA13: 60.66223992 | CB13: 61.2687406 | CC13: 64.41106154 | CD13: 66.17534871 | CE13: 70.18217008 | CH13: 9 | CI13: 72.01374044 | CJ13: 71.18807188 | CK13: 68.85990287 | CL13: 23.77991371 | CM13: 22.80965256 | CN13: 63.17620351 | CO13: 61.71952956 | CP13: 60.79461933 | CQ13: 61.35452654 | CR13: 64.5022038 | CS13: 68.74376438 | CT13: 72.90903114 | CV13: 69.11935095 | CW13: 69.00281146 | CX13: 60.75742673 | CY13: 18.29242696 | CZ13: 18.28942817 | DA13: 58.94323398 | DB13: 60.83265739 | DC13: 60.76557815 | DD13: 61.37300035 | DE13: 64.4620187 | DF13: 66.23292519 | DG13: 70.23981776 | DI13: 69.13111725 | DJ13: 68.99282888 | DK13: 60.76359184 | DL13: 18.29288315 | DM13: 18.28775187 | DN13: 58.84517826 | DO13: 60.7275302 | DP13: 60.66223992 | DQ13: 61.2687406 | DR13: 64.41106154 | DS13: 66.17534871 | DT13: 70.18217008 | DV13: 9 | DW13: 89.4753859 | DX13: 89.35420065 | DY13: 77.38720043 | DZ13: 11.68406518 | EA13: 11.68178407 | EB13: 74.27078675 | EC13: 76.99467907 | ED13: 76.92514101 | EE13: 77.90911653 | EF13: 82.55164497 | EG13: 85.27330588 | EH13: 91.27070579 | EK13: 9 | EL13: 93.59751482 | EM13: 92.47295587 | EN13: 89.19698401 | EO13: 18.36044081 | EP13: 17.13810737 | EQ13: 80.53836359 | ER13: 78.36208359 | ES13: 77.03582982 | ET13: 77.95239043 | EU13: 82.60514188 | EV13: 88.94923018 | EW13: 95.18304026 | EY13: 89.4583998 | EZ13: 89.36819116 | FA13: 77.37819305 | FB13: 11.68386238 | FC13: 11.68252927 | FD13: 74.41088918 | FE13: 77.14530794 | FF13: 77.07325588 | FG13: 78.05887355 | FH13: 82.6245528 | FI13: 85.35585905 | FJ13: 91.35350024 | FL13: 89.4753859 | FM13: 89.35420065 | FN13: 77.38720043 | FO13: 11.68406518 | FP13: 11.68178407 | FQ13: 74.27078675 | FR13: 76.99467907 | FS13: 76.92514101 | FT13: 77.90911653 | FU13: 82.55164497 | FV13: 85.27330588 | FW13: 91.27070579
P14: 10 | Q14: 75.67292957 | R14: 73.30115953 | S14: 16.78378468 | T14: 12.80872936 | U14: 12.80978793 | V14: 17.845513 | W14: 73.51417989 | X14: 74.38478346 | Y14: 74.63166787 | Z14: 76.98098757 | AA14: 72.69370214 | AB14: 76.04980049 | AE14: 10 | AF14: 76.5668593 | AG14: 78.07124444 | AH14: 17.49213005 | AI14: 19.12112797 | AJ14: 17.51982103 | AK14: 19.17290891 | AL14: 74.61315039 | AM14: 73.41499999 | AN14: 74.22257983 | AO14: 77.06379147 | AP14: 76.96496602 | AQ14: 79.56708627 | AS14: 75.65912006 | AT14: 73.31260456 | AU14: 16.78306319 | AV14: 12.80872936 | AW14: 12.80979064 | AX14: 17.84790049 | AY14: 73.65362661 | AZ14: 74.52357218 | BA14: 74.77038097 | BB14: 77.04607409 | BC14: 72.76003641 | BD14: 76.11413221 | BF14: 75.67292957 | BG14: 73.30115953 | BH14: 16.78378468 | BI14: 12.80872936 | BJ14: 12.80978793 | BK14: 17.845513 | BL14: 73.51417989 | BM14: 74.38478346 | BN14: 74.63166787 | BO14: 76.98098757 | BP14: 72.69370214 | BQ14: 76.04980049 | BS14: 10 | BT14: 64.06684423 | BU14: 62.18708775 | BV14: 22.29260424 | BW14: 15.35973444 | BX14: 15.36055429 | BY14: 23.4075142 | BZ14: 62.47918873 | CA14: 63.14278944 | CB14: 63.27852822 | CC14: 65.08409915 | CD14: 61.68413763 | CE14: 64.23686694 | CH14: 10 | CI14: 64.81789166 | CJ14: 65.93914929 | CK14: 23.75185479 | CL14: 20.299148 | CM14: 19.0556608 | CN14: 24.8292312 | CO14: 63.37900345 | CP14: 62.43269207 | CQ14: 63.00447918 | CR14: 65.19082616 | CS14: 65.04958247 | CT14: 67.01367055 | CV14: 64.05595789 | CW14: 62.19612396 | CX14: 22.29134589 | CY14: 15.35973444 | CZ14: 15.36055639 | DA14: 23.42039599 | DB14: 62.58952318 | DC14: 63.2526581 | DD14: 63.38802582 | DE14: 65.13552598 | DF14: 61.73614976 | DG14: 64.2872182 | DI14: 64.06684423 | DJ14: 62.18708775 | DK14: 22.29260424 | DL14: 15.35973444 | DM14: 15.36055429 | DN14: 23.4075142 | DO14: 62.47918873 | DP14: 63.14278944 | DQ14: 63.27852822 | DR14: 65.08409915 | DS14: 61.68413763 | DT14: 64.23686694 | DV14: 10 | DW14: 82.04946675 | DX14: 79.36098451 | DY14: 13.46213605 | DZ14: 10.38013768 | EA14: 10.38134486 | EB14: 14.56001455 | EC14: 79.55560728 | ED14: 80.55233721 | EE14: 80.85473093 | EF14: 83.53896498 | EG14: 78.68079898 | EH14: 82.52531912 | EK14: 10 | EL14: 83.04205996 | EM14: 84.77360973 | EN14: 13.92203092 | EO14: 17.54600145 | EP14: 15.72589333 | EQ14: 15.92099809 | ER14: 80.78892621 | ES14: 79.42974838 | ET14: 80.37077551 | EU14: 83.61584681 | EV14: 83.52548839 | EW14: 86.51189868 | EY14: 82.03385645 | EZ14: 79.37393446 | FA14: 13.46157665 | FB14: 10.38013768 | FC14: 10.38134796 | FD14: 14.55844997 | FE14: 79.71310866 | FF14: 80.7090831 | FG14: 81.01150992 | FH14: 83.61251711 | FI14: 78.75591461 | FJ14: 82.59821479 | FL14: 82.04946675 | FM14: 79.36098451 | FN14: 13.46213605 | FO14: 10.38013768 | FP14: 10.38134486 | FQ14: 14.56001455 | FR14: 79.55560728 | FS14: 80.55233721 | FT14: 80.85473093 | FU14: 83.53896498 | FV14: 78.68079898 | FW14: 82.52531912
B15: On-Peak Losses | F15: G | G15: T | H15: D | I15: G | J15: T | K15: D | L15: G | M15: T | N15: D | P15: 11 | Q15: 74.36087229 | R15: 69.98425625 | S15: 16.79517418 | T15: 12.89678924 | U15: 13.11666886 | V15: 20.19489429 | W15: 75.98783677 | X15: 77.7517633 | Y15: 78.10056142 | Z15: 79.27318866 | AA15: 69.74339415 | AB15: 68.46567879 | AE15: 11 | AF15: 73.01308184 | AG15: 74.8669226 | AH15: 17.50695894 | AI15: 19.38804719 | AJ15: 17.08715911 | AK15: 21.41870015 | AL15: 76.78604418 | AM15: 76.20778514 | AN15: 76.90537655 | AO15: 78.54180152 | AP15: 73.6198737 | AQ15: 73.21956729 | AS15: 74.34693737 | AT15: 69.9957045 | AU15: 16.79450985 | AV15: 12.89613655 | AW15: 13.11555913 | AX15: 20.1932246 | AY15: 76.01023464 | AZ15: 77.76883806 | BA15: 78.11514469 | BB15: 79.34094659 | BC15: 69.80556428 | BD15: 68.52041831 | BF15: 74.36087229 | BG15: 69.98425625 | BH15: 16.79517418 | BI15: 12.89678924 | BJ15: 13.11666886 | BK15: 20.19489429 | BL15: 75.98783677 | BM15: 77.7517633 | BN15: 78.10056142 | BO15: 79.27318866 | BP15: 69.74339415 | BQ15: 68.46567879 | BS15: 11 | BT15: 63.04740435 | BU15: 59.61287215 | BV15: 22.29357376 | BW15: 15.42863163 | BX15: 15.59892771 | BY15: 25.37923651 | BZ15: 64.40628844 | CA15: 65.76422344 | CB15: 65.97624132 | CC15: 66.86364385 | CD15: 59.39699795 | CE15: 58.36295909 | CH15: 11 | CI15: 62.0571401 | CJ15: 63.45194704 | CK15: 23.66037821 | CL15: 20.50578695 | CM15: 18.7205232 | CN15: 26.62771325 | CO15: 65.06879156 | CP15: 64.60500089 | CQ15: 65.08876706 | CR15: 66.33811758 | CS15: 62.45289626 | CT15: 62.08795576 | CV15: 63.03641607 | CW15: 59.62191058 | CX15: 22.2923955 | CY15: 15.42813801 | CZ15: 15.59809851 | DA15: 25.37955717 | DB15: 64.42402026 | DC15: 65.77773362 | DD15: 65.98774965 | DE15: 66.91727077 | DF15: 59.44562989 | DG15: 58.40558253 | DI15: 63.04740435 | DJ15: 59.61287215 | DK15: 22.29357376 | DL15: 15.42863163 | DM15: 15.59892771 | DN15: 25.37923651 | DO15: 64.40628844 | DP15: 65.76422344 | DQ15: 65.97624132 | DR15: 66.86364385 | DS15: 59.39699795 | DT15: 58.36295909 | DV15: 11 | DW15: 80.55455848 | DX15: 75.5807702 | DY15: 13.47808048 | DZ15: 10.47974425 | EA15: 10.73053288 | EB15: 17.17611136 | EC15: 82.3712031 | ED15: 84.38553593 | EE15: 84.80512074 | EF15: 86.15090734 | EG15: 75.31740313 | EH15: 73.8770834 | EK15: 11 | EL15: 78.99287164 | EM15: 81.12200412 | EN15: 13.97903395 | EO15: 17.85042472 | EP15: 15.23250966 | EQ15: 18.45623935 | ER15: 83.26382204 | ES15: 82.61054905 | ET15: 83.42722234 | EU15: 85.30011291 | EV15: 79.71366175 | EW15: 79.27802591 | EY15: 80.53880636 | EZ15: 75.59372823 | FA15: 13.47757278 | FB15: 10.47898671 | FC15: 10.72923377 | FD15: 17.17354884 | FE15: 82.39650181 | FF15: 84.40482684 | FG15: 84.82160897 | FH15: 86.22744556 | FI15: 75.38783543 | FJ15: 73.93916282 | FL15: 80.55455848 | FM15: 75.5807702 | FN15: 13.47808048 | FO15: 10.47974425 | FP15: 10.73053288 | FQ15: 17.17611136 | FR15: 82.3712031 | FS15: 84.38553593 | FT15: 84.80512074 | FU15: 86.15090734 | FV15: 75.31740313 | FW15: 73.8770834
C16: Gen. | D16: T&D | E16: D | F16: 20 Year Levelized | I16: For sensitivities: 10 Year | L16: For sensitivities: 30 Year | P16: 12 | Q16: 72.7997757 | R16: 69.43411013 | S16: 15.01441045 | T16: 13.19567956 | U16: 13.44362271 | V16: 23.30970472 | W16: 78.0158056 | X16: 81.86584726 | Y16: 80.28126701 | Z16: 81.47365072 | AA16: 71.4387904 | AB16: 67.41226084 | AE16: 12 | AF16: 69.57748145 | AG16: 73.56002124 | AH16: 14.8136612 | AI16: 18.08673576 | AJ16: 16.05191978 | AK16: 24.51340262 | AL16: 80.21247533 | AM16: 80.40375131 | AN16: 80.33823185 | AO16: 81.73030168 | AP16: 74.993361 | AQ16: 72.70612764 | AS16: 72.78618054 | AT16: 69.44372139 | AU16: 15.01349066 | AV16: 13.19384886 | AW16: 13.44335136 | AX16: 23.30632003 | AY16: 78.18909376 | AZ16: 82.04859132 | BA16: 80.45908912 | BB16: 81.54402627 | BC16: 71.50326035 | BD16: 67.46569408 | BF16: 72.7997757 | BG16: 69.43411013 | BH16: 15.01441045 | BI16: 13.19567956 | BJ16: 13.44362271 | BK16: 23.30970472 | BL16: 78.0158056 | BM16: 81.86584726 | BN16: 80.28126701 | BO16: 81.47365072 | BP16: 71.4387904 | BQ16: 67.41226084 | BS16: 12 | BT16: 61.83523837 | BU16: 59.18510346 | BV16: 19.04390933 | BW16: 15.6614574 | BX16: 15.8521495 | BY16: 27.84731672 | BZ16: 65.98309865 | CA16: 69.03657269 | CB16: 67.66959553 | CC16: 68.57113403 | CD16: 60.71125822 | CE16: 57.54882417 | CH16: 12 | CI16: 59.38903494 | CJ16: 62.43674431 | CK16: 19.26496763 | CL16: 19.49658607 | CM16: 17.92135501 | CN16: 29.13366284 | CO16: 67.75270309 | CP16: 67.96687233 | CQ16: 67.77500898 | CR16: 68.83394935 | CS16: 63.51888719 | CT16: 61.69083877 | CV16: 61.82449686 | CW16: 59.1926372 | CX16: 19.04286889 | CY16: 15.66007513 | CZ16: 15.85196962 | DA16: 27.85979567 | DB16: 66.12064372 | DC16: 69.18212631 | DD16: 67.81050339 | DE16: 68.62690804 | DF16: 60.76176324 | DG16: 57.59043087 | DI16: 61.83523837 | DJ16: 59.18510346 | DK16: 19.04390933 | DL16: 15.6614574 | DM16: 15.8521495 | DN16: 27.84731672 | DO16: 65.98309865 | DP16: 69.03657269 | DQ16: 67.66959553 | DR16: 68.57113403 | DS16: 60.71125822 | DT16: 57.54882417 | DV16: 12 | DW16: 78.77556473 | DX16: 74.95408367 | DY16: 12.15099564 | DZ16: 10.81898283 | EA16: 11.10338568 | EB16: 20.70722052 | EC16: 84.68103676 | ED16: 89.04388301 | EE16: 87.28979534 | EF16: 88.65860497 | EG16: 77.25019522 | EH16: 72.67517672 | EK16: 12 | EL16: 75.07821745 | EM16: 79.63303075 | EN16: 11.77714325 | EO16: 16.36826577 | EP16: 14.04897484 | EQ16: 21.94056791 | ER16: 87.15353515 | ES16: 87.34669679 | ET16: 87.32512003 | EU16: 88.92003599 | EV16: 81.27893906 | EW16: 78.6922613 | EY16: 78.76020849 | EZ16: 74.96497527 | FA16: 12.1500615 | FB16: 10.81685548 | FC16: 11.10304266 | FD16: 20.697204 | FE16: 84.87659024 | FF16: 89.24993405 | FG16: 87.49056901 | FH16: 88.73807202 | FI16: 77.32321112 | FJ16: 72.73576962 | FL16: 78.77556473 | FM16: 74.95408367 | FN16: 12.15099564 | FO16: 10.81898283 | FP16: 11.10338568 | FQ16: 20.70722052 | FR16: 84.68103676 | FS16: 89.04388301 | FT16: 87.28979534 | FU16: 88.65860497 | FV16: 77.25019522 | FW16: 72.67517672
B17: PG&E | C17: 0.108566016 | D17: 0.082584 | E17: 0.048 | F17: 114.4276147 | G17: 37.51050015 | H17: 101.7041979 | I17: 129.4052365 | J17: 37.51050015 | K17: 101.7041979 | L17: 105.1013211 | M17: 37.51050015 | N17: 101.7041979 | P17: 13 | Q17: 71.07313123 | R17: 68.4347005 | S17: 15.00999504 | T17: 13.86334185 | U17: 13.82336003 | V17: 25.62750803 | W17: 83.57950341 | X17: 85.82663752 | Y17: 83.97700192 | Z17: 83.72864752 | AA17: 70.3465836 | AB17: 65.70650614 | AE17: 13 | AF17: 67.28395177 | AG17: 72.39820176 | AH17: 14.61219639 | AI17: 17.2500023 | AJ17: 16.07244008 | AK17: 28.94704868 | AL17: 84.85230057 | AM17: 83.10635984 | AN17: 83.41323315 | AO17: 83.88912076 | AP17: 72.50164158 | AQ17: 70.47255512 | AS17: 71.06043328 | AT17: 68.44407987 | AU17: 15.00904096 | AV17: 13.86071569 | AW17: 13.82406241 | AX17: 25.6319896 | AY17: 83.76828333 | AZ17: 86.02020125 | BA17: 84.16458769 | BB17: 83.80138715 | BC17: 70.40979796 | BD17: 65.7567676 | BF17: 71.07313123 | BG17: 68.4347005 | BH17: 15.00999504 | BI17: 13.86334185 | BJ17: 13.82336003 | BK17: 25.62750803 | BL17: 83.57950341 | BM17: 85.82663752 | BN17: 83.97700192 | BO17: 83.72864752 | BP17: 70.3465836 | BQ17: 65.70650614 | BS17: 13 | BT17: 60.49510562 | BU17: 58.41139313 | BV17: 19.0316785 | BW17: 16.17973365 | BX17: 16.14625144 | BY17: 29.61137702 | BZ17: 70.30419975 | CA17: 72.19629197 | CB17: 70.61273978 | CC17: 70.32029136 | CD17: 59.86457775 | CE17: 56.23070139 | CH17: 13 | CI17: 57.60716205 | CJ17: 61.53575199 | CK17: 19.09533744 | CL17: 18.8470442 | CM17: 17.93724992 | CN17: 32.57165303 | CO17: 71.3572288 | CP17: 70.15425123 | CQ17: 70.23879591 | CR17: 70.5093837 | CS17: 61.583146 | CT17: 59.96109272 | CV17: 60.48508104 | CW17: 58.41872223 | CX17: 19.03057355 | CY17: 16.17775885 | CZ17: 16.14682571 | DA17: 29.62969227 | DB17: 70.45414589 | DC17: 72.35086734 | DD17: 70.76180459 | DE17: 70.37797992 | DF17: 59.91406256 | DG17: 56.26984368 | DI17: 60.49510562 | DJ17: 58.41139313 | DK17: 19.0316785 | DL17: 16.17973365 | DM17: 16.14625144 | DN17: 29.61137702 | DO17: 70.30419975 | DP17: 72.19629197 | DQ17: 70.61273978 | DR17: 70.32029136 | DS17: 59.86457775 | DT17: 56.23070139 | DV17: 13 | DW17: 76.80776309 | DX17: 73.81427718 | DY17: 12.1492777 | DZ17: 11.57882275 | EA17: 11.5364319 | EB17: 23.36209559 | EC17: 91.02021061 | ED17: 93.52516399 | EE17: 91.47313776 | EF17: 91.22869067 | EG17: 76.00505171 | EH17: 70.7288585 | EK17: 13 | EL17: 72.46503237 | EM17: 78.30863526 | EN17: 11.55317953 | EO17: 15.4159613 | EP17: 14.07237505 | EQ17: 26.99464915 | ER17: 92.43965487 | ES17: 90.39245211 | ET17: 90.7999951 | EU17: 91.38003747 | EV17: 78.43998181 | EW17: 76.14521859 | EY17: 76.79341899 | EZ17: 73.82491488 | FA17: 12.14831874 | FB17: 11.57576192 | FC17: 11.53719931 | FD17: 23.36114601 | FE17: 91.23322356 | FF17: 93.74326451 | FG17: 91.68478033 | FH17: 91.31081197 | FI17: 76.07665541 | FJ17: 70.78583654 | FL17: 76.80776309 | FM17: 73.81427718 | FN17: 12.1492777 | FO17: 11.57882275 | FP17: 11.5364319 | FQ17: 23.36209559 | FR17: 91.02021061 | FS17: 93.52516399 | FT17: 91.47313776 | FU17: 91.22869067 | FV17: 76.00505171 | FW17: 70.7288585
B18: SCE | C18: 0.08448 | D18: 0.05410081453 | E18: 0.02218787113 | F18: 111.941425 | G18: 32.8128597 | H18: 106.2420777 | I18: 126.5936253 | J18: 32.8128597 | K18: 106.2420777 | L18: 102.8177656 | M18: 32.8128597 | N18: 106.2420777 | P18: 14 | Q18: 69.80475095 | R18: 68.52171409 | S18: 15.19370894 | T18: 15.13760943 | U18: 13.76433988 | V18: 29.16420766 | W18: 88.93596593 | X18: 91.22986271 | Y18: 91.59419977 | Z18: 87.00996737 | AA18: 70.54131542 | AB18: 65.59332064 | AE18: 14 | AF18: 65.75269408 | AG18: 72.51224329 | AH18: 14.6784984 | AI18: 17.1726798 | AJ18: 15.8043913 | AK18: 33.96443162 | AL18: 89.3345948 | AM18: 87.80979769 | AN18: 88.86660475 | AO18: 87.54756797 | AP18: 72.39685162 | AQ18: 69.57525336 | AS18: 69.7911403 | AT18: 68.53269919 | AU18: 15.19287327 | AV18: 15.13630519 | AW18: 13.76489093 | AX18: 29.17947298 | AY18: 89.13952138 | AZ18: 91.43798937 | BA18: 91.80607656 | BB18: 87.08620913 | BC18: 70.60469088 | BD18: 65.6436288 | BF18: 69.80475095 | BG18: 68.52171409 | BH18: 15.19370894 | BI18: 15.13760943 | BJ18: 13.76433988 | BK18: 29.16420766 | BL18: 88.93596593 | BM18: 91.22986271 | BN18: 91.59419977 | BO18: 87.00996737 | BP18: 70.54131542 | BQ18: 65.59332064 | BS18: 14 | BT18: 59.51218237 | BU18: 58.47909917 | BV18: 19.23424991 | BW18: 17.16608925 | BX18: 16.10054106 | BY18: 32.40934994 | BZ18: 74.46487539 | CA18: 76.40057137 | CB18: 76.59150477 | CC18: 72.86546072 | CD18: 60.01592017 | CE18: 56.14390734 | CH18: 14 | CI18: 56.41824846 | CJ18: 61.62575355 | CK18: 19.14941234 | CL18: 18.78629704 | CM18: 17.72962078 | CN18: 36.46029273 | CO18: 74.8406115 | CP18: 73.81846278 | CQ18: 74.54654701 | CR18: 73.34990723 | CS18: 61.50213679 | CT18: 59.26758166 | CV18: 59.50135188 | CW18: 58.4877135 | CX18: 19.23323218 | CY18: 17.1651377 | CZ18: 16.10099811 | DA18: 32.43615596 | DB18: 74.62665729 | DC18: 76.56686518 | DD18: 76.7594788 | DE18: 72.92597543 | DF18: 60.06554474 | DG18: 56.18310939 | DI18: 59.51218237 | DJ18: 58.47909917 | DK18: 19.23424991 | DL18: 17.16608925 | DM18: 16.10054106 | DN18: 32.40934994 | DO18: 74.46487539 | DP18: 76.40057137 | DQ18: 76.59150477 | DR18: 72.86546072 | DS18: 60.01592017 | DT18: 56.14390734 | DV18: 14 | DW18: 75.36153142 | DX18: 73.91336751 | DY18: 12.33608437 | DZ18: 13.03218337 | EA18: 11.46912629 | EB18: 27.37254617 | EC18: 97.12307295 | ED18: 99.67836807 | EE18: 100.1286991 | EF18: 94.96854082 | EG18: 76.22689204 | EH18: 70.59945124 | EK18: 14 | EL18: 70.7201027 | EM18: 78.4380054 | EN18: 11.62776346 | EO18: 15.32877244 | EP18: 13.76670708 | EQ18: 32.71502533 | ER18: 97.54576051 | ES18: 95.74683532 | ET18: 96.98620076 | EU18: 95.54843909 | EV18: 78.32040221 | EW18: 75.12137372 | EY18: 75.3461871 | EZ18: 73.92582417 | FA18: 12.33526213 | FB18: 13.03063025 | FC18: 11.46972111 | FD18: 27.38381371 | FE18: 97.35273543 | FF18: 99.91284459 | FG18: 100.3679439 | FH18: 95.05459784 | FI18: 76.29867442 | FJ18: 70.65647354 | FL18: 75.36153142 | FM18: 73.91336751 | FN18: 12.33608437 | FO18: 13.03218337 | FP18: 11.46912629 | FQ18: 27.37254617 | FR18: 97.12307295 | FS18: 99.67836807 | FT18: 100.1286991 | FU18: 94.96854082 | FV18: 76.22689204 | FW18: 70.59945124
B19: SDG&E | C19: 0.08089377282 | D19: 0.0709766417 | E19: 0.04291427069 | F19: 111.57125 | G19: 0 | H19: 106.3985311 | I19: 126.1749975 | J19: 0 | K19: 106.3985311 | L19: 102.4777613 | M19: 0 | N19: 106.3985311 | P19: 15 | Q19: 71.60080561 | R19: 69.97319842 | S19: 17.40063837 | T19: 15.53933917 | U19: 14.0366606 | V19: 32.27342781 | W19: 95.05777748 | X19: 95.4134727 | Y19: 98.4675241 | Z19: 92.78883799 | AA19: 73.49434384 | AB19: 67.71232749 | AE19: 15 | AF19: 67.74454222 | AG19: 73.1575526 | AH19: 17.15889271 | AI19: 17.38513552 | AJ19: 15.03931832 | AK19: 37.93238889 | AL19: 94.91132145 | AM19: 90.34370408 | AN19: 96.64840163 | AO19: 92.6410432 | AP19: 75.06523954 | AQ19: 70.00587587 | AS19: 71.5871251 | AT19: 69.9845324 | AU19: 17.40255489 | AV19: 15.53845169 | AW19: 14.03601057 | AX19: 32.30033682 | AY19: 95.27852856 | AZ19: 95.63225446 | BA19: 98.69925518 | BB19: 92.87112279 | BC19: 73.56114271 | BD19: 67.76632333 | BF19: 71.60080561 | BG19: 69.97319842 | BH19: 17.40063837 | BI19: 15.53933917 | BJ19: 14.0366606 | BK19: 32.27342781 | BL19: 95.05777748 | BM19: 95.4134727 | BN19: 98.4675241 | BO19: 92.78883799 | BP19: 73.49434384 | BQ19: 67.71232749 | BS19: 15 | BT19: 60.90545516 | BU19: 59.60587484 | BV19: 22.89061688 | BW19: 17.47705092 | BX19: 16.31214801 | BY19: 34.83997634 | BZ19: 79.21913466 | CA19: 79.4834111 | CB19: 81.77703086 | CC19: 77.34075721 | CD19: 62.30685507 | CE19: 57.78062084 | CH19: 15 | CI19: 57.96256063 | CJ19: 62.12705508 | CK19: 23.38322806 | CL19: 18.95077237 | CM19: 17.1358294 | CN19: 39.47965309 | CO19: 79.17276914 | CP19: 75.61642139 | CQ19: 80.43084771 | CR19: 77.29639373 | CS19: 63.57316803 | CT19: 59.60029 | CV19: 60.89457882 | CW19: 59.61481946 | CX19: 22.89103842 | CY19: 17.47642196 | CZ19: 16.31170512 | DA19: 34.87570182 | DB19: 79.39465747 | DC19: 79.65773204 | DD19: 81.96013188 | DE19: 77.40602216 | DF19: 62.35931413 | DG19: 57.82267114 | DI19: 60.90545516 | DJ19: 59.60587484 | DK19: 22.89061688 | DL19: 17.47705092 | DM19: 16.31214801 | DN19: 34.83997634 | DO19: 79.21913466 | DP19: 79.4834111 | DQ19: 81.77703086 | DR19: 77.34075721 | DS19: 62.30685507 | DT19: 57.78062084 | DV19: 15 | DW19: 77.4088008 | DX19: 75.56752901 | DY19: 14.11919936 | DZ19: 13.49037457 | EA19: 11.7789024 | EB19: 30.90964909 | EC19: 104.0982586 | ED19: 104.507512 | EE19: 108.0179678 | EF19: 101.5577693 | EG19: 79.59269026 | EH19: 73.01762821 | EK19: 15 | EL19: 72.99084858 | EM19: 79.17323965 | EN19: 13.58429317 | EO19: 15.5710797 | EP19: 12.89555168 | EQ19: 37.25936836 | ER19: 103.8994253 | ES19: 98.69760601 | ET19: 105.9130095 | EU19: 101.3550648 | EV19: 81.36138321 | EW19: 75.61274868 | EY19: 77.39337546 | EZ19: 75.580357 | FA19: 14.12182063 | FB19: 13.48929678 | FC19: 11.77809396 | FD19: 30.93424809 | FE19: 104.3473086 | FF19: 104.7541704 | FG19: 108.2799044 | FH19: 101.6506684 | FI19: 79.6682989 | FJ19: 73.07885968 | FL19: 77.4088008 | FM19: 75.56752901 | FN19: 14.11919936 | FO19: 13.49037457 | FP19: 11.7789024 | FQ19: 30.90964909 | FR19: 104.0982586 | FS19: 104.507512 | FT19: 108.0179678 | FU19: 101.5577693 | FV19: 79.59269026 | FW19: 73.01762821
B20: =OFFSET(B16,MATCH(Inputs!$C$4,Inputs!$H$22:$H$24,0),0) -> SDG&E | C20: =OFFSET(C16,MATCH(Inputs!$C$4,Inputs!$H$22:$H$24,0),0) -> 0.08089377282 | D20: =OFFSET(D16,MATCH(Inputs!$C$4,Inputs!$H$22:$H$24,0),0) -> 0.0709766417 | E20: =OFFSET(E16,MATCH(Inputs!$C$4,Inputs!$H$22:$H$24,0),0) -> 0.04291427069 | F20: =OFFSET(F16,MATCH(Inputs!$C$4,Inputs!$H$22:$H$24,0),0) -> 111.57125 | G20: =OFFSET(G16,MATCH(Inputs!$C$4,Inputs!$H$22:$H$24,0),0) -> 0 | H20: =OFFSET(H16,MATCH(Inputs!$C$4,Inputs!$H$22:$H$24,0),0) -> 106.3985311 | I20: =OFFSET(I16,MATCH(Inputs!$C$4,Inputs!$H$22:$H$24,0),0) -> 126.1749975 | J20: =OFFSET(J16,MATCH(Inputs!$C$4,Inputs!$H$22:$H$24,0),0) -> 0 | K20: =OFFSET(K16,MATCH(Inputs!$C$4,Inputs!$H$22:$H$24,0),0) -> 106.3985311 | L20: =OFFSET(L16,MATCH(Inputs!$C$4,Inputs!$H$22:$H$24,0),0) -> 102.4777613 | M20: =OFFSET(M16,MATCH(Inputs!$C$4,Inputs!$H$22:$H$24,0),0) -> 0 | N20: =OFFSET(N16,MATCH(Inputs!$C$4,Inputs!$H$22:$H$24,0),0) -> 106.3985311 | P20: 16 | Q20: 76.15098185 | R20: 74.65113047 | S20: 74.47052425 | T20: 18.10859161 | U20: 14.71957393 | V20: 98.27342722 | W20: 102.3371182 | X20: 103.7034348 | Y20: 105.9135134 | Z20: 99.96021904 | AA20: 77.69254143 | AB20: 76.19434388 | AE20: 16 | AF20: 73.00870976 | AG20: 76.70746795 | AH20: 81.39338371 | AI20: 21.58120541 | AJ20: 16.4691749 | AK20: 104.1899561 | AL20: 103.1761308 | AM20: 98.01352881 | AN20: 103.8220239 | AO20: 99.00713375 | AP20: 78.83346023 | AQ20: 78.29825173 | AS20: 76.13502493 | AT20: 74.66229206 | AU20: 74.4609094 | AV20: 18.11056893 | AW20: 14.72160979 | AX20: 98.50054135 | AY20: 102.5811263 | AZ20: 103.945279 | BA20: 106.1702674 | BB20: 100.05166 | BC20: 77.76431679 | BD20: 76.25951727 | BF20: 76.15098185 | BG20: 74.65113047 | BH20: 74.47052425 | BI20: 18.10859161 | BJ20: 14.71957393 | BK20: 98.27342722 | BL20: 102.3371182 | BM20: 103.7034348 | BN20: 105.9135134 | BO20: 99.96021904 | BP20: 77.69254143 | BQ20: 76.19434388 | BS20: 16 | BT20: 64.4370578 | BU20: 63.23842898 | BV20: 63.02912044 | BW20: 21.47292337 | BX20: 16.84190008 | BY20: 81.66691239 | BZ20: 84.93384313 | CA20: 85.91134933 | CB20: 87.53106814 | CC20: 82.89246719 | CD20: 65.56348177 | CE20: 64.34794503 | CH20: 16 | CI20: 62.05072617 | CJ20: 64.88450202 | CK20: 68.44113409 | CL20: 24.48730272 | CM20: 18.24455858 | CN20: 86.31555713 | CO20: 85.65658493 | CP20: 81.57157949 | CQ20: 85.97470917 | CR20: 82.22617335 | CS20: 66.49999181 | CT20: 66.0302466 | CV20: 64.42450947 | CW20: 63.24722331 | CX20: 63.02150841 | CY20: 21.47432617 | CZ20: 16.84349743 | DA20: 81.84674251 | DB20: 85.12738335 | DC20: 86.10362385 | DD20: 87.73373767 | DE20: 82.96478975 | DF20: 65.62000556 | DG20: 64.39895213 | DI20: 64.4370578 | DJ20: 63.23842898 | DK20: 63.02912044 | DL20: 21.47292337 | DM20: 16.84190008 | DN20: 81.66691239 | DO20: 84.93384313 | DP20: 85.91134933 | DQ20: 87.53106814 | DR20: 82.89246719 | DS20: 65.56348177 | DT20: 64.34794503 | DV20: 16 | DW20: 82.59459063 | DX20: 80.89799539 | DY20: 80.71768421 | DZ20: 15.66395142 | EA20: 12.55674953 | EB20: 107.7805359 | EC20: 112.3696642 | ED20: 113.9567688 | EE20: 116.5131553 | EF20: 109.7358736 | EG20: 84.37763357 | EH20: 82.69056481 | EK20: 16 | EL20: 78.98947474 | EM20: 83.21777797 | EN20: 88.58759924 | EO20: 19.49394933 | EP20: 14.52478945 | EQ20: 114.4949658 | ER20: 113.2918794 | ES20: 107.4363842 | ET20: 114.0972573 | EU20: 108.6139436 | EV20: 85.65470573 | EW20: 85.06547007 | EY20: 82.57653285 | EZ20: 80.91063341 | FA20: 80.70681254 | FB20: 15.66624657 | FC20: 12.55904835 | FD20: 108.0370461 | FE20: 112.6451813 | FF20: 114.2296017 | FG20: 116.8035053 | FH20: 109.8392048 | FI20: 84.45882469 | FJ20: 82.76441937 | FL20: 82.59459063 | FM20: 80.89799539 | FN20: 80.71768421 | FO20: 15.66395142 | FP20: 12.55674953 | FQ20: 107.7805359 | FR20: 112.3696642 | FS20: 113.9567688 | FT20: 116.5131553 | FU20: 109.7358736 | FV20: 84.37763357 | FW20: 82.69056481
P21: 17 | Q21: 91.90435442 | R21: 83.45590599 | S21: 86.93250124 | T21: 80.35984056 | U21: 18.88871921 | V21: 99.8457138 | W21: 104.0039227 | X21: 101.3718549 | Y21: 104.8751398 | Z21: 116.2729552 | AA21: 96.87844125 | AB21: 97.33447998 | AE21: 17 | AF21: 90.90296412 | AG21: 84.56200829 | AH21: 87.58631209 | AI21: 84.93572446 | AJ21: 20.32665364 | AK21: 103.4548966 | AL21: 105.470504 | AM21: 95.14740266 | AN21: 101.8155622 | AO21: 114.6061944 | AP21: 96.8040224 | AQ21: 99.76851263 | AS21: 91.88489931 | AT21: 83.46782967 | AU21: 86.72268278 | AV21: 80.04837259 | AW21: 18.8871879 | AX21: 100.0780327 | AY21: 104.2521359 | AZ21: 101.6070849 | BA21: 105.1261774 | BB21: 115.9857143 | BC21: 96.89005041 | BD21: 97.4212333 | BF21: 91.90435442 | BG21: 83.45590599 | BH21: 86.93250124 | BI21: 80.35984056 | BJ21: 18.88871921 | BK21: 99.8457138 | BL21: 104.0039227 | BM21: 101.3718549 | BN21: 104.8751398 | BO21: 116.2729552 | BP21: 96.87844125 | BQ21: 97.33447998 | BS21: 17 | BT21: 76.67005727 | BU21: 70.06584152 | BV21: 72.68197653 | BW21: 67.71231034 | BX21: 24.12981485 | BY21: 82.88706371 | BZ21: 86.17112776 | CA21: 84.10443438 | CB21: 86.72820823 | CC21: 95.52635229 | CD21: 80.44528508 | CE21: 80.71590648 | CH21: 17 | CI21: 75.95129824 | CJ21: 70.97736876 | CK21: 73.242107 | CL21: 71.31949481 | CM21: 25.67475757 | CN21: 85.75015601 | CO21: 87.37843368 | CP21: 79.34603978 | CQ21: 84.42234862 | CR21: 94.30373175 | CS21: 80.4423054 | CT21: 82.65465081 | CV21: 76.65464887 | CW21: 70.07539423 | CX21: 72.51611866 | CY21: 67.46555743 | CZ21: 24.12220457 | DA21: 83.07100148 | DB21: 86.36798024 | DC21: 84.29159664 | DD21: 86.92645102 | DE21: 95.30000159 | DF21: 80.45444007 | DG21: 80.78444865 | DI21: 76.67005727 | DJ21: 70.06584152 | DK21: 72.68197653 | DL21: 67.71231034 | DM21: 24.12981485 | DN21: 82.88706371 | DO21: 86.17112776 | DP21: 84.10443438 | DQ21: 86.72820823 | DR21: 95.52635229 | DS21: 80.44528508 | DT21: 80.71590648 | DV21: 17 | DW21: 100.5444624 | DX21: 90.93445738 | DY21: 94.92615341 | DZ21: 87.38478682 | EA21: 15.78238943 | EB21: 109.5724713 | EC21: 114.2903268 | ED21: 111.2986946 | EE21: 115.3283605 | EF21: 128.3352058 | EG21: 106.2443683 | EH21: 106.7963343 | EK21: 17 | EL21: 99.3761633 | EM21: 92.17007359 | EN21: 95.64690085 | EO21: 92.57423149 | EP21: 17.25203108 | EQ21: 113.6553376 | ER21: 115.9289072 | ES21: 104.170897 | ET21: 111.8085958 | EU21: 126.4017268 | EV21: 106.1349325 | EW21: 109.5467295 | EY21: 100.5224816 | EZ21: 90.94789167 | FA21: 94.68902572 | FB21: 87.03315998 | FC21: 15.78307603 | FD21: 109.83488 | FE21: 114.5705969 | FF21: 111.5640034 | FG21: 115.6121832 | FH21: 128.010207 | FI21: 106.257502 | FJ21: 106.8944097 | FL21: 100.5444624 | FM21: 90.93445738 | FN21: 94.92615341 | FO21: 87.38478682 | FP21: 15.78238943 | FQ21: 109.5724713 | FR21: 114.2903268 | FS21: 111.2986946 | FT21: 115.3283605 | FU21: 128.3352058 | FV21: 106.2443683 | FW21: 106.7963343
P22: 18 | Q22: 116.1851325 | R22: 104.1475339 | S22: 101.630179 | T22: 95.62217273 | U22: 82.840748 | V22: 107.4463698 | W22: 105.5371989 | X22: 100.9310813 | Y22: 107.8101511 | Z22: 142.4380392 | AA22: 131.9603745 | AB22: 127.4115849 | AE22: 18 | AF22: 105.6440363 | AG22: 102.9518389 | AH22: 99.69386518 | AI22: 94.83404769 | AJ22: 81.49125501 | AK22: 106.4769275 | AL22: 101.5301976 | AM22: 92.70318395 | AN22: 102.5127223 | AO22: 137.6589922 | AP22: 130.9511181 | AQ22: 127.0336304 | AS22: 115.6815971 | AT22: 103.7423774 | AU22: 101.1988202 | AV22: 95.23631543 | AW22: 82.877175 | AX22: 107.6613598 | AY22: 105.7531892 | AZ22: 101.1302388 | BA22: 108.0271735 | BB22: 142.0614522 | BC22: 131.6702751 | BD22: 127.0717122 | BF22: 116.1851325 | BG22: 104.1475339 | BH22: 101.630179 | BI22: 95.62217273 | BJ22: 82.840748 | BK22: 107.4463698 | BL22: 105.5371989 | BM22: 100.9310813 | BN22: 107.8101511 | BO22: 142.4380392 | BP22: 131.9603745 | BQ22: 127.4115849 | BS22: 18 | BT22: 95.49664076 | BU22: 86.11115996 | BV22: 84.05817982 | BW22: 79.55108612 | BX22: 69.66604528 | BY22: 88.77749463 | BZ22: 87.34781206 | CA22: 83.76594159 | CB22: 89.26711463 | CC22: 115.7573323 | CD22: 107.5208455 | CE22: 103.9454824 | CH22: 18 | CI22: 87.38367339 | CJ22: 85.23804513 | CK22: 82.61346581 | CL22: 78.99588814 | CM22: 68.65836683 | CN22: 88.06717648 | CO22: 84.28170824 | CP22: 77.42264752 | CQ22: 85.20959638 | CR22: 112.1025152 | CS22: 106.7948957 | CT22: 103.7053757 | CV22: 95.09773403 | CW22: 85.79004909 | CX22: 83.71681963 | CY22: 79.24423247 | CZ22: 69.69497445 | DA22: 88.94756603 | DB22: 87.51931325 | DC22: 83.92447847 | DD22: 89.43940158 | DE22: 115.462864 | DF22: 107.2944081 | DG22: 103.6795155 | DI22: 95.49664076 | DJ22: 86.11115996 | DK22: 84.05817982 | DL22: 79.55108612 | DM22: 69.66604528 | DN22: 88.77749463 | DO22: 87.34781206 | DP22: 83.76594159 | DQ22: 89.26711463 | DR22: 115.7573323 | DS22: 107.5208455 | DT22: 103.9454824 | DV22: 18 | DW22: 128.2190854 | DX22: 114.5177209 | DY22: 111.6858631 | DZ22: 104.7792804 | EA22: 90.20296076 | EB22: 118.2381704 | EC22: 116.0431002 | ED22: 110.7957753 | EE22: 118.5749852 | EF22: 158.1838522 | EG22: 146.2817525 | EH22: 141.1138129 | EK22: 18 | EL22: 116.1773287 | EM22: 113.1305295 | EN22: 109.4534439 | EO22: 103.8557717 | EP22: 88.64899134 | EQ22: 117.1171625 | ER22: 111.4594821 | ES22: 101.4025185 | ET22: 112.5167685 | EU22: 152.7174729 | EV22: 145.1064548 | EW22: 140.6596821 | EY22: 127.6502788 | EZ22: 114.0601113 | FA22: 111.1985061 | FB22: 104.3440856 | FC22: 90.24406201 | FD22: 118.4810822 | FE22: 116.2868989 | FF22: 111.0203741 | FG22: 118.8199798 | FH22: 157.7566813 | FI22: 145.9526493 | FJ22: 140.7285166 | FL22: 128.2190854 | FM22: 114.5177209 | FN22: 111.6858631 | FO22: 104.7792804 | FP22: 90.20296076 | FQ22: 118.2381704 | FR22: 116.0431002 | FS22: 110.7957753 | FT22: 118.5749852 | FU22: 158.1838522 | FV22: 146.2817525 | FW22: 141.1138129
P23: 19 | Q23: 114.9806586 | R23: 121.6319261 | S23: 121.5617138 | T23: 112.4804741 | U23: 93.11539663 | V23: 108.8912736 | W23: 103.3835511 | X23: 100.416887 | Y23: 110.0349271 | Z23: 122.4231601 | AA23: 119.3550531 | AB23: 122.570998 | AE23: 19 | AF23: 112.3970791 | AG23: 122.0699729 | AH23: 117.68746 | AI23: 109.6833237 | AJ23: 88.67754621 | AK23: 104.3493232 | AL23: 98.18720448 | AM23: 90.87637195 | AN23: 104.2306684 | AO23: 119.2122422 | AP23: 118.7985689 | AQ23: 123.3738133 | AS23: 114.4894157 | AT23: 121.1491416 | AU23: 121.0296436 | AV23: 112.0112412 | AW23: 93.15670422 | AX23: 109.1082939 | AY23: 103.5928535 | AZ23: 100.613742 | BA23: 110.2551976 | BB23: 122.1216741 | BC23: 119.0951196 | BD23: 122.246632 | BF23: 114.9806586 | BG23: 121.6319261 | BH23: 121.5617138 | BI23: 112.4804741 | BJ23: 93.11539663 | BK23: 108.8912736 | BL23: 103.3835511 | BM23: 100.416887 | BN23: 110.0349271 | BO23: 122.4231601 | BP23: 119.3550531 | BQ23: 122.570998 | BS23: 19 | BT23: 94.56246216 | BU23: 99.62987694 | BV23: 99.44995234 | BW23: 92.59822158 | BX23: 77.6364683 | BY23: 89.90338652 | BZ23: 85.68246801 | CA23: 83.36422987 | CB23: 90.73268441 | CC23: 100.2880689 | CD23: 97.79354612 | CE23: 100.2100544 | CH23: 19 | CI23: 92.61855569 | CJ23: 100.0215651 | CK23: 96.52056234 | CL23: 90.49133587 | CM23: 74.23470179 | CN23: 86.42323479 | CO23: 81.68870589 | CP23: 75.99859466 | CQ23: 86.27705958 | CR23: 97.8387679 | CS23: 97.41622064 | CT23: 100.881884 | CV23: 94.17313687 | CW23: 99.24927621 | CX23: 99.03097561 | CY23: 92.22673791 | CZ23: 77.66929523 | DA23: 90.07535408 | DB23: 85.84899921 | DC23: 83.5210702 | DD23: 90.9071961 | DE23: 100.0506521 | DF23: 97.58951694 | DG23: 99.9557811 | DI23: 94.56246216 | DJ23: 99.62987694 | DK23: 99.44995234 | DL23: 92.59822158 | DM23: 77.6364683 | DN23: 89.90338652 | DO23: 85.68246801 | DP23: 83.36422987 | DQ23: 90.73268441 | DR23: 100.2880689 | DS23: 97.79354612 | DT23: 100.2100544 | DV23: 19 | DW23: 126.8463049 | DX23: 134.4620721 | DY23: 134.4285445 | DZ23: 124.004301 | EA23: 101.9129476 | EB23: 119.8826735 | EC23: 113.5860618 | ED23: 110.210836 | EE23: 121.208157 | EF23: 135.3478802 | EG23: 131.8945598 | EH23: 135.589404 | EK23: 19 | EL23: 123.8750614 | EM23: 134.9377082 | EN23: 129.9796236 | EO23: 120.7882618 | EP23: 96.8387011 | EQ23: 114.689352 | ER23: 107.6489369 | ES23: 99.3230495 | ET23: 114.5743227 | EU23: 131.6732249 | EV23: 131.2364315 | EW23: 136.4825345 | EY23: 126.2914458 | EZ23: 133.9159422 | FA23: 133.8265454 | FB23: 123.4743679 | FC23: 101.9595493 | FD23: 120.1277438 | FE23: 113.8221557 | FF23: 110.4327873 | FG23: 121.4569253 | FH23: 135.0067392 | FI23: 131.600174 | FJ23: 135.2218659 | FL23: 126.8463049 | FM23: 134.4620721 | FN23: 134.4285445 | FO23: 124.004301 | FP23: 101.9129476 | FQ23: 119.8826735 | FR23: 113.5860618 | FS23: 110.210836 | FT23: 121.208157 | FU23: 135.3478802 | FV23: 131.8945598 | FW23: 135.589404
P24: 20 | Q24: 104.2768624 | R24: 107.459073 | S24: 110.5008507 | T24: 117.5072196 | U24: 107.058378 | V24: 106.3785521 | W24: 98.34533358 | X24: 94.52701981 | Y24: 99.68087713 | Z24: 103.3105888 | AA24: 103.7740072 | AB24: 109.6976016 | AE24: 20 | AF24: 101.3834538 | AG24: 104.5009306 | AH24: 108.7376443 | AI24: 114.1476178 | AJ24: 100.8569423 | AK24: 99.07330126 | AL24: 91.51583976 | AM24: 85.67785011 | AN24: 94.58504787 | AO24: 100.3947054 | AP24: 103.4320686 | AQ24: 110.3184967 | AS24: 103.8374408 | AT24: 107.0466799 | AU24: 110.2819954 | AV24: 117.5086973 | AW24: 107.1049391 | AX24: 106.5869299 | AY24: 98.54235299 | AZ24: 94.7109067 | BA24: 99.87622613 | BB24: 103.4036027 | BC24: 103.6549338 | BD24: 109.4192556 | BF24: 104.2768624 | BG24: 107.459073 | BH24: 110.5008507 | BI24: 117.5072196 | BJ24: 107.058378 | BK24: 106.3785521 | BL24: 98.34533358 | BM24: 94.52701981 | BN24: 99.68087713 | BO24: 103.3105888 | BP24: 103.7740072 | BQ24: 109.6976016 | BS24: 20 | BT24: 86.26962339 | BU24: 88.67624069 | BV24: 90.91260671 | BW24: 96.47077421 | BX24: 88.43903954 | BY24: 87.97199384 | BZ24: 81.77453215 | CA24: 78.79221249 | CB24: 82.71736837 | CC24: 85.49890221 | CD24: 85.76613661 | CE24: 90.27817074 | CH24: 20 | CI24: 84.08007664 | CJ24: 86.43852175 | CK24: 89.60626386 | CL24: 93.93780338 | CM24: 83.67650885 | CN24: 82.3442502 | CO24: 76.51190883 | CP24: 71.96293433 | CQ24: 78.80720477 | CR24: 83.2820914 | CS24: 85.55451432 | CT24: 90.80903809 | CV24: 85.92103671 | CW24: 88.34938972 | CX24: 90.73949087 | CY24: 96.47144028 | CZ24: 88.47600611 | DA24: 88.13765502 | DB24: 81.93148048 | DC24: 78.93871345 | DD24: 82.87266507 | DE24: 85.57273237 | DF24: 85.67164105 | DG24: 90.05843637 | DI24: 86.26962339 | DJ24: 88.67624069 | DK24: 90.91260671 | DL24: 96.47077421 | DM24: 88.43903954 | DN24: 87.97199384 | DO24: 81.77453215 | DP24: 78.79221249 | DQ24: 82.71736837 | DR24: 85.49890221 | DS24: 85.76613661 | DT24: 90.27817074 | DV24: 20 | DW24: 114.6433265 | DX24: 118.2933215 | DY24: 121.8068876 | DZ24: 129.7462029 | EA24: 117.808819 | EB24: 117.011509 | EC24: 107.8433939 | ED24: 103.4992921 | EE24: 109.4006546 | EF24: 113.550847 | EG24: 114.1134297 | EH24: 120.8961428 | EK24: 20 | EL24: 111.3211151 | EM24: 114.8965178 | EN24: 119.7690702 | EO24: 125.882888 | EP24: 110.7220109 | EQ24: 108.6702117 | ER24: 100.0454993 | ES24: 93.3993346 | ET24: 103.5757363 | EU24: 110.2094015 | EV24: 113.6999182 | EW24: 121.5817895 | EY24: 114.1471215 | EZ24: 117.8275404 | FA24: 121.5595875 | FB24: 129.7480892 | FC24: 117.8613611 | FD24: 117.2465755 | FE24: 108.0655352 | FF24: 103.7066248 | FG24: 109.6210429 | FH24: 113.6558356 | FI24: 113.9790192 | FJ24: 120.5814099 | FL24: 114.6433265 | FM24: 118.2933215 | FN24: 121.8068876 | FO24: 129.7462029 | FP24: 117.808819 | FQ24: 117.011509 | FR24: 107.8433939 | FS24: 103.4992921 | FT24: 109.4006546 | FU24: 113.550847 | FV24: 114.1134297 | FW24: 120.8961428
P25: 21 | Q25: 100.4453403 | R25: 101.6934766 | S25: 97.20066339 | T25: 100.6483112 | U25: 94.97315826 | V25: 95.43273149 | W25: 92.01732244 | X25: 85.10539508 | Y25: 86.34045975 | Z25: 93.2177902 | AA25: 98.4216146 | AB25: 101.5278013 | AE25: 21 | AF25: 98.54699198 | AG25: 99.94703117 | AH25: 94.53711135 | AI25: 97.26420902 | AJ25: 89.07953024 | AK25: 87.37836514 | AL25: 86.21992724 | AM25: 76.61965369 | AN25: 80.9678999 | AO25: 89.57890102 | AP25: 97.41574416 | AQ25: 102.2083741 | AS25: 100.4277438 | AT25: 101.7091775 | AU25: 97.01309073 | AV25: 100.3159707 | AW25: 94.7290454 | AX25: 95.61654189 | AY25: 92.19982791 | AZ25: 85.26847061 | BA25: 86.50594224 | BB25: 93.01237505 | BC25: 98.43607012 | BD25: 101.619025 | BF25: 100.4453403 | BG25: 101.6934766 | BH25: 97.20066339 | BI25: 100.6483112 | BJ25: 94.97315826 | BK25: 95.43273149 | BL25: 92.01732244 | BM25: 85.10539508 | BN25: 86.34045975 | BO25: 93.2177902 | BP25: 98.4216146 | BQ25: 101.5278013 | BS25: 21 | BT25: 83.29194772 | BU25: 84.20280148 | BV25: 80.62488322 | BW25: 83.44096953 | BX25: 79.07865322 | BY25: 79.47939266 | BZ25: 76.86403395 | CA25: 71.47748725 | CB25: 72.37414421 | CC25: 77.67960433 | CD25: 81.62134811 | CE25: 83.95876509 | CH25: 21 | CI25: 81.8804427 | CJ25: 82.91020329 | CK25: 78.60827182 | CL25: 80.84813981 | CM25: 74.53495582 | CN25: 73.25562653 | CO25: 72.38960799 | CP25: 64.91607121 | CQ25: 68.23573263 | CR25: 74.8880629 | CS25: 80.89241126 | CT25: 84.5414481 | CV25: 83.27799908 | CW25: 84.21525529 | CX25: 80.47650256 | CY25: 83.17664054 | CZ25: 78.88422065 | DA25: 79.62588674 | DB25: 77.00954558 | DC25: 71.60733524 | DD25: 72.50570969 | DE25: 77.51639316 | DF25: 81.63279045 | DG25: 84.03086029 | DI25: 83.29194772 | DJ25: 84.20280148 | DK25: 80.62488322 | DL25: 83.44096953 | DM25: 79.07865322 | DN25: 79.47939266 | DO25: 76.86403395 | DP25: 71.47748725 | DQ25: 72.37414421 | DR25: 77.67960433 | DS25: 81.62134811 | DT25: 83.95876509 | DV25: 21 | DW25: 110.2801564 | DX25: 111.7241877 | DY25: 106.6381712 | DZ25: 110.5125848 | EA25: 104.0297626 | EB25: 104.5369363 | EC25: 100.6318639 | ED25: 92.76372883 | EE25: 94.19449486 | EF25: 102.0442027 | EG25: 108.0113961 | EH25: 111.57934 | EK25: 21 | EL25: 108.088192 | EM25: 109.7048747 | EN25: 103.5817755 | EO25: 106.6449212 | EP25: 97.30388076 | EQ25: 95.34989245 | ER25: 94.01742469 | ES25: 83.08545623 | ET25: 88.0615386 | EU25: 97.88649592 | EV25: 106.8426589 | EW25: 112.3296512 | EY25: 110.2602798 | EZ25: 111.7419171 | FA25: 106.4262136 | FB25: 110.1377491 | FC25: 103.7545519 | FD25: 104.7441373 | FE25: 100.8375871 | FF25: 92.94762378 | FG25: 94.38118172 | FH25: 101.8124069 | FI25: 108.0277275 | FJ25: 111.6824613 | FL25: 110.2801564 | FM25: 111.7241877 | FN25: 106.6381712 | FO25: 110.5125848 | FP25: 104.0297626 | FQ25: 104.5369363 | FR25: 100.6318639 | FS25: 92.76372883 | FT25: 94.19449486 | FU25: 102.0442027 | FV25: 108.0113961 | FW25: 111.57934
P26: 22 | Q26: 89.66019011 | R26: 91.69222798 | S26: =OFFSET(AH26,0,$R$55) -> 88.25050139 | T26: 88.37821298 | U26: 81.43230601 | V26: 80.78258576 | W26: 83.94420486 | X26: 82.18876376 | Y26: 80.90143833 | Z26: 87.42761474 | AA26: 89.86533218 | AB26: 95.271829 | AE26: 22 | AF26: 87.75505381 | AG26: 88.67303088 | AH26: 86.32747739 | AI26: 87.14100158 | AJ26: 76.86874813 | AK26: 74.1453627 | AL26: 74.83442499 | AM26: 73.61046196 | AN26: 75.4535591 | AO26: 83.93042742 | AP26: 88.18470605 | AQ26: 94.13074466 | AS26: 89.38224002 | AT26: 91.4053466 | AU26: 88.19728544 | AV26: 88.52621599 | AW26: 81.55796649 | AX26: 81.28612828 | AY26: 84.46131279 | AZ26: 82.70233568 | BA26: 81.40812913 | BB26: 87.57607509 | BC26: 89.78861357 | BD26: 95.05019524 | BF26: 89.66019011 | BG26: 91.69222798 | BH26: 88.25050139 | BI26: 88.37821298 | BJ26: 81.43230601 | BK26: 80.78258576 | BL26: 83.94420486 | BM26: 82.18876376 | BN26: 80.90143833 | BO26: 87.42761474 | BP26: 89.86533218 | BQ26: 95.271829 | BS26: 22 | BT26: 75.09454515 | BU26: 76.45562462 | BV26: =OFFSET(CK26,0,$R$55) -> 73.69719447 | BW26: 73.92299651 | BX26: 68.56839038 | BY26: 68.10023499 | BZ26: 70.58666797 | CA26: 69.20549584 | CB26: 68.14719157 | CC26: 73.18447141 | CD26: 74.99603096 | CE26: 79.12065932 | CH26: 22 | CI26: 73.65080241 | CJ26: 74.14846841 | CK26: 72.24506749 | CL26: 73.00356519 | CM26: 65.06071419 | CN26: 62.98165827 | CO26: 63.54542223 | CP26: 62.57822764 | CQ26: 63.95641459 | CR26: 70.50989059 | CS26: 73.73120684 | CT26: 78.27162212 | CV26: 74.8736632 | CW26: 76.22840646 | CX26: 73.65508799 | CY26: 74.04072461 | CZ26: 68.66833887 | DA26: 68.50101717 | DB26: 70.99866092 | DC26: 69.61414322 | DD26: 68.5494783 | DE26: 73.30235017 | DF26: 74.93528912 | DG26: 78.94553833 | DI26: 75.09454515 | DJ26: 76.45562462 | DK26: 73.69719447 | DL26: 73.92299651 | DM26: 68.56839038 | DN26: 68.10023499 | DO26: 70.58666797 | DP26: 69.20549584 | DQ26: 68.14719157 | DR26: 73.18447141 | DS26: 74.99603096 | DT26: 79.12065932 | DV26: 22 | DW26: 97.92453435 | DX26: 100.3214017 | DY26: =OFFSET(EN26,0,$R$55) -> 96.43276826 | DZ26: 96.53023233 | EA26: 88.60112428 | EB26: 87.84724619 | EC26: 91.43801589 | ED26: 89.44473209 | EE26: 88.00003971 | EF26: 95.44782534 | EG26: 98.25549836 | EH26: 104.4436846 | EK26: 22 | EL26: 95.74084061 | EM26: 96.86775917 | EN26: 94.22578031 | EO26: 95.10395818 | EP26: 83.38732026 | EQ26: 80.27074282 | ER26: 81.04528713 | ES26: 79.65703314 | ET26: 81.77715558 | EU26: 91.44726689 | EV26: 96.32524175 | EW26: 103.1299878 | EY26: 97.61079567 | EZ26: 99.99730527 | FA26: 96.37264153 | FB26: 96.69716249 | FC26: 88.74285427 | FD26: 88.41508247 | FE26: 92.02103288 | FF26: 90.02398982 | FG26: 88.57187668 | FH26: 95.61538963 | FI26: 98.16883791 | FJ26: 104.193131 | FL26: 97.92453435 | FM26: 100.3214017 | FN26: 96.43276826 | FO26: 96.53023233 | FP26: 88.60112428 | FQ26: 87.84724619 | FR26: 91.43801589 | FS26: 89.44473209 | FT26: 88.00003971 | FU26: 95.44782534 | FV26: 98.25549836 | FW26: 104.4436846
P27: 23 | Q27: =OFFSET(AF27,0,$R$55) -> 84.32803796 | R27: 82.96909828 | S27: 79.693103 | T27: 79.67403774 | U27: 72.49480327 | V27: 75.91052533 | W27: 75.72166936 | X27: 77.91598281 | Y27: 78.4997933 | Z27: 79.53440973 | AA27: 83.74314097 | AB27: 89.40173867 | AE27: 23 | AF27: 82.99689295 | AG27: 80.3596323 | AH27: 78.21240839 | AI27: 79.10406501 | AJ27: 70.25439245 | AK27: 72.04205231 | AL27: 69.66676493 | AM27: 72.62878501 | AN27: 74.42713573 | AO27: 76.68699358 | AP27: 82.45262175 | AQ27: 89.33003762 | AS27: 84.47347856 | AT27: 83.11145401 | AU27: 79.82787939 | AV27: 79.80484637 | AW27: 72.60347574 | AX27: 76.15193167 | AY27: 75.96342699 | AZ27: 78.16731226 | BA27: 78.75360239 | BB27: 79.66696977 | BC27: 83.88544751 | BD27: 89.55790592 | BF27: 84.32803796 | BG27: 82.96909828 | BH27: 79.693103 | BI27: 79.67403774 | BJ27: 72.49480327 | BK27: 75.91052533 | BL27: 75.72166936 | BM27: 77.91598281 | BN27: 78.4997933 | BO27: 79.53440973 | BP27: 83.74314097 | BQ27: 89.40173867 | BS27: 23 | BT27: =OFFSET(CI27,0,$R$55) -> 70.78590632 | BU27: 69.68652993 | BV27: 67.06862294 | BW27: 67.17440754 | BX27: 61.62597955 | BY27: 64.31472714 | BZ27: 64.34237984 | CA27: 65.88579354 | CB27: 66.28325619 | CC27: 67.06347797 | CD27: 70.25129938 | CE27: 74.57381025 | CH27: 23 | CI27: 69.79367469 | CJ27: 67.70378263 | CK27: 65.96243314 | CL27: 66.77240236 | CM27: 59.92473399 | CN27: 61.34710377 | CO27: 59.67195834 | CP27: 61.81425087 | CQ27: 63.15974021 | CR27: 64.8921616 | CS27: 69.29279237 | CT27: 74.55854688 | CV27: 70.9009721 | CW27: 69.79897583 | CX27: 67.17477768 | CY27: 67.27831266 | CZ27: 61.71188499 | DA27: 64.50635194 | DB27: 64.53491475 | DC27: 66.08546626 | DD27: 66.48455056 | DE27: 67.16853707 | DF27: 70.36384985 | DG27: 74.69707864 | DI27: 70.78590632 | DJ27: 69.68652993 | DK27: 67.06862294 | DL27: 67.17440754 | DM27: 61.62597955 | DN27: 64.31472714 | DO27: 64.34237984 | DP27: 65.88579354 | DQ27: 66.28325619 | DR27: 67.06347797 | DS27: 70.25129938 | DT27: 74.57381025 | DV27: 23 | DW27: =OFFSET(EL27,0,$R$55) -> 91.91377269 | DX27: 90.38189104 | DY27: 86.67675641 | DZ27: 86.60857826 | EA27: 78.41833544 | EB27: 82.29674868 | EC27: 82.01610318 | ED27: 84.57688136 | EE27: 85.26316244 | EF27: 86.45095305 | EG27: 91.2770947 | EH27: 97.75223588 | EK27: 23 | EL27: 90.38018482 | EM27: 87.39088857 | EN27: 84.97189116 | EO27: 85.9426766 | EP27: 75.8502372 | EQ27: 77.87459348 | ER27: 75.10451905 | ES27: 78.53908537 | ET27: 80.60744942 | EU27: 83.19103061 | EV27: 89.78902108 | EW27: 97.65420255 | EY27: 92.07813751 | EZ27: 90.54283294 | FA27: 86.82923102 | FB27: 86.75616937 | FC27: 78.54110007 | FD27: 82.5691789 | FE27: 82.28871213 | FF27: 84.86047918 | FG27: 85.54969343 | FH27: 86.60064338 | FI27: 91.43790019 | FJ27: 97.92883473 | FL27: 91.91377269 | FM27: 90.38189104 | FN27: 86.67675641 | FO27: 86.60857826 | FP27: 78.41833544 | FQ27: 82.29674868 | FR27: 82.01610318 | FS27: 84.57688136 | FT27: 85.26316244 | FU27: 86.45095305 | FV27: 91.2770947 | FW27: 97.75223588
P28: 24 | Q28: 76.97701486 | R28: 78.81100758 | S28: 69.43445056 | T28: 73.62606301 | U28: 69.15523998 | V28: 70.03162395 | W28: 70.18849909 | X28: 73.33747732 | Y28: 73.14699091 | Z28: 73.84918853 | AA28: 78.82511507 | AB28: 80.77439031 | AE28: 24 | AF28: 74.99674745 | AG28: 76.44177244 | AH28: 68.48702083 | AI28: 72.54093311 | AJ28: 69.25463804 | AK28: 67.27325428 | AL28: 63.78458327 | AM28: 67.00309513 | AN28: 69.87053163 | AO28: 71.34682876 | AP28: 77.2704502 | AQ28: 80.50085623 | AS28: 77.10693095 | AT28: 78.94460786 | AU28: 69.54595755 | AV28: 73.74469885 | AW28: 69.25686478 | AX28: 70.2488222 | AY28: 70.40717701 | AZ28: 73.57030916 | BA28: 73.37886253 | BB28: 73.96973859 | BC28: 78.95728135 | BD28: 80.91259045 | BF28: 76.97701486 | BG28: 78.81100758 | BH28: 69.43445056 | BI28: 73.62606301 | BJ28: 69.15523998 | BK28: 70.03162395 | BL28: 70.18849909 | BM28: 73.33747732 | BN28: 73.14699091 | BO28: 73.84918853 | BP28: 78.82511507 | BQ28: 80.77439031 | BS28: 24 | BT28: 65.07672665 | BU28: 66.46071808 | BV28: 59.11880946 | BW28: 62.48032948 | BX28: 59.02975933 | BY28: 59.74250055 | BZ28: 59.8885135 | CA28: 62.33999106 | CB28: 62.122928 | CC28: 62.64719902 | CD28: 66.43957446 | CE28: 67.89576589 | CH28: 24 | CI28: 63.58029181 | CJ28: 64.66332934 | CK28: 58.42673315 | CL28: 61.67849215 | CM28: 59.1475751 | CN28: 57.63775593 | CO28: 54.94939836 | CP28: 57.45199816 | CQ28: 59.61760345 | CR28: 60.74507166 | CS28: 65.27665352 | CT28: 67.72558865 | CV28: 65.17895028 | CW28: 66.5659698 | CX28: 59.20580488 | CY28: 62.57422715 | CZ28: 59.10978262 | DA28: 59.91391337 | DB28: 60.06105062 | DC28: 62.52421374 | DD28: 62.30586152 | DE28: 62.74224365 | DF28: 66.54383217 | DG28: 68.00447609 | DI28: 65.07672665 | DJ28: 66.46071808 | DK28: 59.11880946 | DL28: 62.48032948 | DM28: 59.02975933 | DN28: 59.74250055 | DO28: 59.8885135 | DP28: 62.33999106 | DQ28: 62.122928 | DR28: 62.64719902 | DS28: 66.43957446 | DT28: 67.89576589 | DV28: 24 | DW28: 83.53803325 | DX28: 85.64281181 | DY28: 74.98086708 | DZ28: 79.71650489 | EA28: 74.61401333 | EB28: 75.60068408 | EC28: 75.77044571 | ED28: 79.35642682 | EE28: 79.16534611 | EF28: 79.97353644 | EG28: 85.67059645 | EH28: 87.91384383 | EK28: 24 | EL28: 81.26470955 | EM28: 82.9259228 | EN28: 73.88351906 | EO28: 78.46341716 | EP28: 74.71140887 | EQ28: 72.44296493 | ER28: 68.45966957 | ES28: 72.12627985 | ET28: 75.4167528 | EU28: 77.10611089 | EV28: 83.88118628 | EW28: 87.58499415 | EY28: 83.68506086 | EZ28: 85.7939571 | FA28: 75.10728837 | FB28: 79.85048716 | FC28: 74.7289171 | FD28: 75.84614506 | FE28: 76.01761074 | FF28: 79.61943254 | FG28: 79.42745928 | FH28: 80.10984411 | FI28: 85.82004502 | FJ28: 88.07026493 | FL28: 83.53803325 | FM28: 85.64281181 | FN28: 74.98086708 | FO28: 79.71650489 | FP28: 74.61401333 | FQ28: 75.60068408 | FR28: 75.77044571 | FS28: 79.35642682 | FT28: 79.16534611 | FU28: 79.97353644 | FV28: 85.67059645 | FW28: 87.91384383
B29: Sensitivities | Q29: SDG&E Weekend | AF29: PG&E Weekend | AS29: SCE Weekend | BF29: SDG&E Weekend | BT29: SDG&E Weekend | CI29: PG&E Weekend | CV29: SCE Weekend | DI29: SDG&E Weekend | DW29: SDG&E Weekend | EL29: PG&E Weekend | EY29: SCE Weekend | FL29: SDG&E Weekend
B30: PLS Incentive Level | P30: 1 | Q30: 72.51305646 | R30: 75.17558624 | S30: 69.11414323 | T30: 70.01584294 | U30: 67.6834953 | V30: 68.61994386 | W30: 70.19405607 | X30: 70.20309133 | Y30: 69.24782693 | Z30: 74.21925266 | AA30: 81.80268407 | AB30: 78.31981941 | AE30: 1 | AF30: 70.42614579 | AG30: 72.76569157 | AH30: 67.76381268 | AI30: 68.38014566 | AJ30: 69.36607488 | AK30: 68.20728634 | AL30: 67.53296051 | AM30: 67.10120045 | AN30: 67.66985697 | AO30: 71.77877971 | AP30: 80.65229545 | AQ30: 78.8845573 | AS30: 72.63280233 | AT30: 75.30106249 | AU30: 69.22500425 | AV30: 70.12699647 | AW30: 67.78150372 | AX30: 68.83171399 | AY30: 70.41301205 | AZ30: 70.42304558 | BA30: 69.46360441 | BB30: 74.34061982 | BC30: 81.94097761 | BD30: 78.45257009 | BF30: 72.51305646 | BG30: 75.17558624 | BH30: 69.11414323 | BI30: 70.01584294 | BJ30: 67.6834953 | BK30: 68.61994386 | BL30: 70.19405607 | BM30: 70.20309133 | BN30: 69.24782693 | BO30: 74.21925266 | BP30: 81.80268407 | BQ30: 78.31981941 | BS30: 1 | BT30: 61.6072551 | BU30: 63.63909757 | BV30: 58.87024107 | BW30: 59.67358367 | BX30: 57.89097398 | BY30: 58.64246764 | BZ30: 59.89164625 | CA30: 59.88243132 | CB30: 59.23927852 | CC30: 62.93521358 | CD30: 68.74708125 | CE30: 65.993615 | CH30: 1 | CI30: 60.03066805 | CJ30: 61.80988775 | CK30: 57.86584703 | CL30: 58.44476226 | CM30: 59.23368243 | CN30: 58.36361963 | CO30: 57.86442252 | CP30: 57.51120925 | CQ30: 58.05634299 | CR30: 61.08118218 | CS30: 67.89593972 | CT30: 66.47266437 | CV30: 61.70098748 | CW30: 63.73763657 | CX30: 58.95668426 | CY30: 59.76112182 | CZ30: 57.96824253 | DA30: 58.80913271 | DB30: 60.06429212 | DC30: 60.05558907 | DD30: 59.40936165 | DE30: 63.03096291 | DF30: 68.85633817 | DG30: 66.09782139 | DI30: 61.6072551 | DJ30: 63.63909757 | DK30: 58.87024107 | DL30: 59.67358367 | DM30: 57.89097398 | DN30: 58.64246764 | DO30: 59.89164625 | DP30: 59.88243132 | DQ30: 59.23927852 | DR30: 62.93521358 | DS30: 68.74708125 | DT30: 65.993615 | DV30: 1 | DW30: 78.45244815 | DX30: 81.49980636 | DY30: 74.61579309 | DZ30: 75.60418819 | EA30: 72.93528185 | EB30: 73.99371901 | EC30: 75.7772594 | ED30: 75.79391568 | EE30: 74.66819259 | EF30: 80.39495067 | EG30: 89.06509322 | EH30: 85.11542539 | EK30: 1 | EL30: 76.05646347 | EM30: 78.7365657 | EN30: 73.05912512 | EO30: 73.72343302 | EP30: 74.8387201 | EQ30: 73.50721683 | ER30: 72.72951795 | ES30: 72.2444915 | ET30: 72.85348167 | EU30: 77.59805905 | EV30: 87.73720157 | EW30: 85.74246725 | EY30: 78.58813009 | EZ30: 81.64186872 | FA30: 74.7414979 | FB30: 75.72988282 | FC30: 73.04604516 | FD30: 74.23322799 | FE30: 76.02478491 | FF30: 76.04270057 | FG30: 74.9121583 | FH30: 80.53215975 | FI30: 89.22140856 | FJ30: 85.26575324 | FL30: 78.45244815 | FM30: 81.49980636 | FN30: 74.61579309 | FO30: 75.60418819 | FP30: 72.93528185 | FQ30: 73.99371901 | FR30: 75.7772594 | FS30: 75.79391568 | FT30: 74.66819259 | FU30: 80.39495067 | FV30: 89.06509322 | FW30: 85.11542539
B31: Lower bound ( - %) | C31: -0.5 | P31: 2 | Q31: 70.81805698 | R31: 70.1933415 | S31: 67.22150711 | T31: 66.59132658 | U31: 66.60831615 | V31: 68.0487498 | W31: 68.2794803 | X31: 66.31645127 | Y31: 67.39818082 | Z31: 71.1096665 | AA31: 78.54494128 | AB31: 76.63591919 | AE31: 2 | AF31: 68.95396344 | AG31: 68.17854521 | AH31: 65.79544903 | AI31: 66.65725191 | AJ31: 67.73524683 | AK31: 67.84081111 | AL31: 65.29759969 | AM31: 63.8535682 | AN31: 66.22241874 | AO31: 68.98419191 | AP31: 77.54474147 | AQ31: 77.42222 | AS31: 70.93396634 | AT31: 70.30757821 | AU31: 67.32759547 | AV31: 66.69487567 | AW31: 66.70405613 | AX31: 68.25779818 | AY31: 68.48997679 | AZ31: 66.51904802 | BA31: 67.60563887 | BB31: 71.22463665 | BC31: 78.67646148 | BD31: 76.76489276 | BF31: 70.81805698 | BG31: 70.1933415 | BH31: 67.22150711 | BI31: 66.59132658 | BJ31: 66.60831615 | BK31: 68.0487498 | BL31: 68.2794803 | BM31: 66.31645127 | BN31: 67.39818082 | BO31: 71.1096665 | BP31: 78.54494128 | BQ31: 76.63591919 | BS31: 2 | BT31: 60.2892249 | BU31: 59.76861921 | BV31: 57.40534365 | BW31: 57.01242055 | BX31: 57.05520094 | BY31: 58.19847626 | BZ31: 58.4016707 | CA31: 56.9321426 | CB31: 57.65347975 | CC31: 60.51692443 | CD31: 66.22093087 | CE31: 64.68843491 | CH31: 2 | CI31: 58.8865743 | CJ31: 58.25015394 | CK31: 56.34312313 | CL31: 57.10741033 | CM31: 57.96696393 | CN31: 58.07796546 | CO31: 56.12591046 | CP31: 55.06295884 | CQ31: 56.78231476 | CR31: 58.90840379 | CS31: 65.48696981 | CT31: 65.33830539 | CV31: 60.37972266 | CW31: 59.85771311 | CX31: 57.48796409 | CY31: 57.09358995 | CZ31: 57.13057986 | DA31: 58.3629134 | DB31: 58.5672766 | DC31: 57.09113182 | DD31: 57.81591227 | DE31: 60.60720109 | DF31: 66.32459388 | DG31: 64.78950992 | DI31: 60.2892249 | DJ31: 59.76861921 | DK31: 57.40534365 | DL31: 57.01242055 | DM31: 57.05520094 | DN31: 58.19847626 | DO31: 58.4016707 | DP31: 56.9321426 | DQ31: 57.65347975 | DR31: 60.51692443 | DS31: 66.22093087 | DT31: 64.68843491 | DV31: 2 | DW31: 76.52175749 | DX31: 75.82309447 | DY31: 72.45719252 | DZ31: 71.70264694 | EA31: 71.71042935 | EB31: 73.34299911 | EC31: 73.59687811 | ED31: 71.33942135 | EE31: 72.61660898 | EF31: 76.85319846 | EG31: 85.3517636 | EH31: 83.19576426 | EK31: 2 | EL31: 74.37913101 | EM31: 73.50833277 | EN31: 70.8137786 | EO31: 71.75989691 | EP31: 72.98046556 | EQ31: 73.09009552 | ER31: 70.18325235 | ES31: 68.51570403 | ET31: 71.26046261 | EU31: 74.41469799 | EV31: 84.19473617 | EW31: 84.07574607 | EY31: 76.65317617 | EZ31: 75.95264223 | FA31: 72.57750593 | FB31: 71.8198669 | FC31: 71.81866062 | FD31: 73.57945441 | FE31: 73.83496524 | FF31: 71.5687129 | FG31: 72.85154347 | FH31: 76.98333649 | FI31: 85.50051324 | FJ31: 83.34187382 | FL31: 76.52175749 | FM31: 75.82309447 | FN31: 72.45719252 | FO31: 71.70264694 | FP31: 71.71042935 | FQ31: 73.34299911 | FR31: 73.59687811 | FS31: 71.33942135 | FT31: 72.61660898 | FU31: 76.85319846 | FV31: 85.3517636 | FW31: 83.19576426
B32: Upper bound (+ %) | C32: 0.5 | P32: 3 | Q32: 69.07088165 | R32: 70.09132695 | S32: 65.42317919 | T32: 63.57144745 | U32: 63.98661898 | V32: 65.81775165 | W32: 66.00515601 | X32: 63.77480552 | Y32: 65.7016616 | Z32: 69.00079602 | AA32: 78.01807626 | AB32: 75.81474827 | AE32: 3 | AF32: 67.28068531 | AG32: 68.19464903 | AH32: 63.96276433 | AI32: 63.17455985 | AJ32: 64.74205089 | AK32: 64.87745511 | AL32: 63.09691801 | AM32: 61.35899414 | AN32: 64.25029917 | AO32: 67.10515217 | AP32: 77.33775448 | AQ32: 76.74210555 | AS32: 69.18212855 | AT32: 70.20516518 | AU32: 65.52449934 | AV32: 63.66737221 | AW32: 64.07688988 | AX32: 66.01620731 | AY32: 66.20515846 | AZ32: 63.96422235 | BA32: 65.90072621 | BB32: 69.11105614 | BC32: 78.14858122 | BD32: 75.94196086 | BF32: 69.07088165 | BG32: 70.09132695 | BH32: 65.42317919 | BI32: 63.57144745 | BJ32: 63.98661898 | BK32: 65.81775165 | BL32: 66.00515601 | BM32: 63.77480552 | BN32: 65.7016616 | BO32: 69.00079602 | BP32: 78.01807626 | BQ32: 75.81474827 | BS32: 3 | BT32: 58.93575454 | BU32: 59.69052841 | BV32: 56.01513021 | BW32: 54.67022683 | BX32: 55.01877474 | BY32: 56.46484332 | BZ32: 56.63232374 | CA32: 54.88533639 | CB32: 56.3371354 | CC32: 58.8778073 | CD32: 65.81413603 | CE32: 64.05178497 | CH32: 3 | CI32: 57.59052821 | CJ32: 58.26320792 | CK32: 54.92671847 | CL32: 54.40369706 | CM32: 55.64342209 | CN32: 55.77406715 | CO32: 54.41582198 | CP32: 53.05351119 | CQ32: 55.2532423 | CR32: 57.44959669 | CS32: 65.32870975 | CT32: 64.81209978 | CV32: 59.02260829 | CW32: 59.77935252 | CX32: 56.09401657 | CY32: 54.74527937 | CZ32: 55.08965965 | DA32: 56.62065609 | DB32: 56.7892758 | DC32: 55.03357419 | DD32: 56.4928358 | DE32: 58.96412781 | DF32: 65.91703769 | DG32: 64.15138776 | DI32: 58.93575454 | DJ32: 59.69052841 | DK32: 56.01513021 | DL32: 54.67022683 | DM32: 55.01877474 | DN32: 56.46484332 | DO32: 56.63232374 | DP32: 54.88533639 | DQ32: 56.3371354 | DR32: 58.8778073 | DS32: 65.81413603 | DT32: 64.05178497 | DV32: 3 | DW32: 74.52928762 | DX32: 75.70643152 | DY32: 70.40548899 | DZ32: 68.26022756 | EA32: 68.72331245 | EB32: 70.80101664 | EC32: 71.00629592 | ED32: 68.47032763 | EE32: 70.68294527 | EF32: 74.45069388 | EG32: 84.75055862 | EH32: 82.25970559 | EK32: 3 | EL32: 72.4709649 | EM32: 73.52654984 | EN32: 68.72266881 | EO32: 67.79099308 | EP32: 69.56930494 | EQ32: 69.71416859 | ER32: 67.67582936 | ES32: 65.70008175 | ET32: 69.01215391 | EU32: 72.27337147 | EV32: 83.95795437 | EW32: 83.3000596 | EY32: 74.6553955 | EZ32: 75.8355111 | FA32: 70.52038251 | FB32: 68.36883942 | FC32: 68.82542069 | FD32: 71.0255546 | FE32: 71.23261778 | FF32: 68.68478153 | FG32: 70.90840529 | FH32: 74.57558716 | FI32: 84.89814558 | FJ32: 82.40385431 | FL32: 74.52928762 | FM32: 75.70643152 | FN32: 70.40548899 | FO32: 68.26022756 | FP32: 68.72331245 | FQ32: 70.80101664 | FR32: 71.00629592 | FS32: 68.47032763 | FT32: 70.68294527 | FU32: 74.45069388 | FV32: 84.75055862 | FW32: 82.25970559
B33: Participant Equipment Cost | P33: 4 | Q33: 69.02301995 | R33: 68.19994038 | S33: 66.84103672 | T33: 66.64750575 | U33: 65.06535466 | V33: 66.06195868 | W33: 66.06181496 | X33: 64.07623849 | Y33: 66.22722578 | Z33: 70.23596668 | AA33: 78.83801131 | AB33: 75.70083382 | AE33: 4 | AF33: 67.11185026 | AG33: 66.21749706 | AH33: 65.25019571 | AI33: 65.77502654 | AJ33: 66.06360385 | AK33: 65.25538765 | AL33: 63.7040256 | AM33: 61.90739911 | AN33: 64.92291129 | AO33: 68.22511162 | AP33: 78.24393845 | AQ33: 76.66322319 | AS33: 69.13420066 | AT33: 68.30891931 | AU33: 66.94635254 | AV33: 66.7513317 | AW33: 65.15810998 | AX33: 66.26205908 | AY33: 66.26164543 | AZ33: 64.2672697 | BA33: 66.42897969 | BB33: 70.34904695 | BC33: 78.97022369 | BD33: 75.82791354 | BF33: 69.02301995 | BG33: 68.19994038 | BH33: 66.84103672 | BI33: 66.64750575 | BJ33: 65.06535466 | BK33: 66.06195868 | BL33: 66.06181496 | BM33: 64.07623849 | BN33: 66.22722578 | BO33: 70.23596668 | BP33: 78.83801131 | BQ33: 75.70083382 | BS33: 4 | BT33: 58.89823133 | BU33: 58.22509897 | BV33: 57.1095892 | BW33: 57.05500811 | BX33: 55.85620935 | BY33: 56.65290014 | BZ33: 56.67789677 | CA33: 55.19401501 | CB33: 56.74456139 | CC33: 59.8380564 | CD33: 66.44999584 | CE33: 63.96314813 | CH33: 4 | CI33: 57.45937416 | CJ33: 56.73233639 | CK33: 55.92132088 | CL33: 56.42235738 | CM33: 56.67174958 | CN33: 56.06792358 | CO33: 54.88798351 | CP33: 53.55402728 | CQ33: 55.77425014 | CR33: 58.31928485 | CS33: 66.03135625 | CT33: 64.75157218 | CV33: 58.98501216 | CW33: 58.3100603 | CX33: 57.19152654 | CY33: 57.13635012 | CZ33: 55.92910374 | DA33: 56.80987783 | DB33: 56.83486408 | DC33: 55.343906 | DD33: 56.90238325 | DE33: 59.92675156 | DF33: 66.55431016 | DG33: 64.06261792 | DI33: 58.89823133 | DJ33: 58.22509897 | DK33: 57.1095892 | DL33: 57.05500811 | DM33: 55.85620935 | DN33: 56.65290014 | DO33: 56.67789677 | DP33: 55.19401501 | DQ33: 56.74456139 | DR33: 59.8380564 | DS33: 66.44999584 | DT33: 63.96314813 | DV33: 4 | DW33: 74.47489858 | DX33: 73.54972907 | DY33: 72.02370294 | DZ33: 71.76709891 | EA33: 69.95260715 | EB33: 71.07996615 | EC33: 71.07025281 | ED33: 68.7857562 | EE33: 71.28218192 | EF33: 75.85781945 | EG33: 85.68513767 | EH33: 82.13000389 | EK33: 4 | EL33: 72.27855092 | EM33: 71.271585 | EN33: 70.19177627 | EO33: 70.75459421 | EP33: 71.07442245 | EQ33: 70.14464881 | ER33: 68.36736775 | ES33: 66.29694262 | ET33: 69.77920366 | EU33: 73.5495864 | EV33: 84.99089585 | EW33: 83.20990282 | EY33: 74.60094006 | EZ33: 73.67330401 | FA33: 72.14316654 | FB33: 71.88465214 | FC33: 70.0575105 | FD33: 71.30642564 | FE33: 71.2963209 | FF33: 69.00189943 | FG33: 71.5106975 | FH33: 75.98585343 | FI33: 85.83463084 | FJ33: 82.27401473 | FL33: 74.47489858 | FM33: 73.54972907 | FN33: 72.02370294 | FO33: 71.76709891 | FP33: 69.95260715 | FQ33: 71.07996615 | FR33: 71.07025281 | FS33: 68.7857562 | FT33: 71.28218192 | FU33: 75.85781945 | FV33: 85.68513767 | FW33: 82.13000389
B34: - % | C34: -0.5 | P34: 5 | Q34: 70.28772965 | R34: 70.23215858 | S34: 69.8929379 | T34: 73.53221813 | U34: 67.40085371 | V34: 66.69775102 | W34: 66.23260407 | X34: 67.50212428 | Y34: 69.71449772 | Z34: 72.21694913 | AA34: 82.06686378 | AB34: 77.7709279 | AE34: 5 | AF34: 68.35229644 | AG34: 68.41158484 | AH34: 68.13109461 | AI34: 71.93936939 | AJ34: 68.26853027 | AK34: 64.01640743 | AL34: 62.63666267 | AM34: 65.33455607 | AN34: 68.59225647 | AO34: 70.13064442 | AP34: 81.34531034 | AQ34: 78.79147586 | AS34: 70.40223478 | AT34: 70.34618148 | AU34: 70.00608155 | AV34: 73.65070092 | AW34: 67.49899135 | AX34: 66.90106843 | AY34: 66.43371436 | AZ34: 67.71000398 | BA34: 69.9323662 | BB34: 72.33429687 | BC34: 82.20577062 | BD34: 77.90264379 | BF34: 70.28772965 | BG34: 70.23215858 | BH34: 69.8929379 | BI34: 73.53221813 | BJ34: 67.40085371 | BK34: 66.69775102 | BL34: 66.23260407 | BM34: 67.50212428 | BN34: 69.71449772 | BO34: 72.21694913 | BP34: 82.06686378 | BQ34: 77.7709279 | BS34: 5 | BT34: 59.8783881 | BU34: 59.80097761 | BV34: 59.47066077 | BW34: 62.40827362 | BX34: 57.6685108 | BY34: 57.1462557 | BZ34: 56.80914198 | CA34: 57.78026841 | CB34: 59.45377332 | CC34: 61.37867063 | CD34: 68.95333279 | CE34: 65.56722269 | CH34: 5 | CI34: 58.42048052 | CJ34: 58.43263902 | CK34: 58.14866939 | CL34: 61.21198183 | CM34: 58.38139789 | CN34: 55.10592812 | CO34: 54.0590523 | CP34: 56.13793427 | CQ34: 58.62375267 | CR34: 59.79938767 | CS34: 68.43440771 | CT34: 66.40073919 | CV34: 59.96778771 | CW34: 59.89001424 | CX34: 59.55881332 | CY34: 62.50208 | CZ34: 57.74572495 | DA34: 57.30578151 | DB34: 56.96699305 | DC34: 57.94331131 | DD34: 59.62486121 | DE34: 61.47100224 | DF34: 69.06315778 | DG34: 65.67051596 | DI34: 59.8783881 | DJ34: 59.80097761 | DK34: 59.47066077 | DL34: 62.40827362 | DM34: 57.6685108 | DN34: 57.1462557 | DO34: 56.80914198 | DP34: 57.78026841 | DQ34: 59.45377332 | DR34: 61.37867063 | DS34: 68.95333279 | DT34: 65.56722269 | DV34: 5 | DW34: 75.91687825 | DX34: 75.86639583 | DY34: 75.50509363 | DZ34: 79.60926847 | EA34: 72.61455761 | EB34: 71.80462936 | EC34: 71.26544651 | ED34: 72.71785367 | EE34: 75.25568132 | EF34: 78.1141979 | EG34: 89.3656914 | EH34: 84.4900988 | EK34: 5 | EL34: 73.69302431 | EM34: 73.77328939 | EN34: 73.47857944 | EO34: 77.77773721 | EP34: 73.58791811 | EQ34: 68.73266927 | ER34: 67.15106866 | ES34: 70.23176908 | ET34: 73.96067899 | EU34: 75.72082406 | EV34: 88.52673775 | EW34: 85.63627103 | EY34: 76.04669295 | EZ34: 75.9956543 | FA34: 75.6334301 | FB34: 79.74306681 | FC34: 72.7255375 | FD34: 72.03473351 | FE34: 71.49301828 | FF34: 72.95317445 | FG34: 75.50226161 | FH34: 78.24695957 | FI34: 89.5226689 | FJ34: 84.63929503 | FL34: 75.91687825 | FM34: 75.86639583 | FN34: 75.50509363 | FO34: 79.60926847 | FP34: 72.61455761 | FQ34: 71.80462936 | FR34: 71.26544651 | FS34: 72.71785367 | FT34: 75.25568132 | FU34: 78.1141979 | FV34: 89.3656914 | FW34: 84.4900988
B35: + % | C35: 0.5 | P35: 6 | Q35: 74.43481554 | R35: 76.15414366 | S35: 73.92609771 | T35: 75.04462156 | U35: 66.68632578 | V35: 65.29724325 | W35: 62.52459618 | X35: 66.71561869 | Y35: 68.78765357 | Z35: 71.8190289 | AA35: 84.23891514 | AB35: 82.49621263 | AE35: 6 | AF35: 72.31635063 | AG35: 74.21651 | AH35: 72.13265345 | AI35: 73.80180412 | AJ35: 68.05547807 | AK35: 63.51176006 | AL35: 60.67777303 | AM35: 64.82335427 | AN35: 68.3509447 | AO35: 69.65938657 | AP35: 83.3766291 | AQ35: 83.18408664 | AS35: 74.55916144 | AT35: 76.28196239 | AU35: 74.04864202 | AV35: 75.16621017 | AW35: 66.65246418 | AX35: 65.33732459 | AY35: 62.59453647 | AZ35: 66.75313348 | BA35: 68.87628451 | BB35: 71.78587716 | BC35: 84.34141343 | BD35: 82.63802746 | BF35: 74.43481554 | BG35: 76.15414366 | BH35: 73.92609771 | BI35: 75.04462156 | BJ35: 66.68632578 | BK35: 65.29724325 | BL35: 62.52459618 | BM35: 66.71561869 | BN35: 68.78765357 | BO35: 71.8190289 | BP35: 84.23891514 | BQ35: 82.49621263 | BS35: 6 | BT35: 63.09974156 | BU35: 64.39655317 | BV35: 62.59673795 | BW35: 63.58345812 | BX35: 57.11351821 | BY35: 56.06207127 | BZ35: 53.93057614 | CA35: 57.18662302 | CB35: 58.73375587 | CC35: 61.21889648 | CD35: 70.63529483 | CE35: 69.229183 | CH35: 6 | CI35: 61.49703393 | CJ35: 62.93453806 | CK35: 61.24881569 | CL35: 62.65899543 | CM35: 58.21608068 | CN35: 54.71677278 | CO35: 52.53929092 | CP35: 55.75871224 | CQ35: 58.43681037 | CR35: 59.58325133 | CS35: 70.00737099 | CT35: 69.80292041 | CV35: 63.19724818 | CW35: 64.49692442 | CX35: 62.69264715 | CY35: 63.67987741 | CZ35: 57.08692838 | DA35: 56.09367052 | DB35: 53.9854694 | DC35: 57.21605392 | DD35: 58.80359346 | DE35: 61.19289379 | DF35: 70.71651377 | DG35: 69.34085029 | DI35: 63.09974156 | DJ35: 64.39655317 | DK35: 62.59673795 | DL35: 63.58345812 | DM35: 57.11351821 | DN35: 56.06207127 | DO35: 53.93057614 | DP35: 57.18662302 | DQ35: 58.73375587 | DR35: 61.21889648 | DS35: 70.63529483 | DT35: 69.229183 | DV35: 6 | DW35: 80.64233768 | DX35: 82.61581292 | DY35: 80.10322304 | DZ35: 81.3322469 | EA35: 71.79980958 | EB35: 70.20646721 | EC35: 67.03891999 | ED35: 71.814302 | EE35: 74.19905202 | EF35: 77.60396014 | EG35: 91.84220207 | EH35: 89.87712526 | EK35: 6 | EL35: 78.21107602 | EM35: 80.39051503 | EN35: 78.0413878 | EO35: 79.89957783 | EP35: 73.34507912 | EQ35: 68.15650012 | ER35: 64.91814511 | ES35: 69.64248535 | ET35: 73.68546887 | EU35: 75.12744712 | EV35: 90.84298956 | EW35: 90.64478752 | EY35: 80.78318082 | EZ35: 82.76053591 | FA35: 80.24208675 | FB35: 81.46949533 | FC35: 71.761505 | FD35: 70.25178696 | FE35: 67.11803288 | FF35: 71.85677527 | FG35: 74.29929415 | FH35: 77.56643251 | FI35: 91.95796884 | FJ35: 90.03759529 | FL35: 80.64233768 | FM35: 82.61581292 | FN35: 80.10322304 | FO35: 81.3322469 | FP35: 71.79980958 | FQ35: 70.20646721 | FR35: 67.03891999 | FS35: 71.814302 | FT35: 74.19905202 | FU35: 77.60396014 | FV35: 91.84220207 | FW35: 89.87712526
B36: Equipment Lifetime | P36: 7 | Q36: 73.58659413 | R36: 76.39674872 | S36: 75.61566267 | T36: 68.77142767 | U36: 54.95714563 | V36: 61.71511498 | W36: 60.01334683 | X36: 64.43119088 | Y36: 66.77385148 | Z36: 70.92974869 | AA36: 81.28799778 | AB36: 84.71790246 | AE36: 7 | AF36: 71.73428828 | AG36: 74.91140731 | AH36: 75.72492099 | AI36: 71.46559358 | AJ36: 67.28921599 | AK36: 61.47225075 | AL36: 58.87396118 | AM36: 62.75562519 | AN36: 66.17424675 | AO36: 69.47271188 | AP36: 80.52526954 | AQ36: 85.36900746 | AS36: 73.7090027 | AT36: 76.52494637 | AU36: 75.74177456 | AV36: 68.88001852 | AW36: 54.93624418 | AX36: 61.75492035 | AY36: 60.08207714 | AZ36: 64.46929345 | BA36: 66.85394179 | BB36: 70.90096717 | BC36: 81.20851888 | BD36: 84.64630213 | BF36: 73.58659413 | BG36: 76.39674872 | BH36: 75.61566267 | BI36: 68.77142767 | BJ36: 54.95714563 | BK36: 61.71511498 | BL36: 60.01334683 | BM36: 64.43119088 | BN36: 66.77385148 | BO36: 70.92974869 | BP36: 81.28799778 | BQ36: 84.71790246 | BS36: 7 | BT36: 62.44056689 | BU36: 64.58584442 | BV36: 63.90747719 | BW36: 58.70647777 | BX36: 48.02013218 | BY36: 53.27968671 | BZ36: 51.98283443 | CA36: 55.39605795 | CB36: 57.18390686 | CC36: 60.52808999 | CD36: 68.35116422 | CE36: 70.95225692 | CH36: 7 | CI36: 61.04483408 | CJ36: 63.47468657 | CK36: 64.03268044 | CL36: 60.84215112 | CM36: 57.62278754 | CN36: 53.1315343 | CO36: 51.14011442 | CP36: 54.13678106 | CQ36: 56.76073753 | CR36: 59.43903998 | CS36: 67.79797479 | CT36: 71.49454908 | CV36: 62.53645995 | CW36: 64.68658351 | CX36: 64.00640381 | CY36: 58.79185318 | CZ36: 48.00376465 | DA36: 53.31080097 | DB36: 52.03675788 | DC36: 55.42590808 | DD36: 57.24656172 | DE36: 60.50573047 | DF36: 68.28861764 | DG36: 70.89576558 | DI36: 62.44056689 | DJ36: 64.58584442 | DK36: 63.90747719 | DL36: 58.70647777 | DM36: 48.02013218 | DN36: 53.27968671 | DO36: 51.98283443 | DP36: 55.39605795 | DQ36: 57.18390686 | DR36: 60.52808999 | DS36: 68.35116422 | DT36: 70.95225692 | DV36: 7 | DW36: 79.67599965 | DX36: 82.89186502 | DY36: 82.028789 | DZ36: 74.18656935 | EA36: 58.42771838 | EB36: 66.12466351 | EC36: 64.1762051 | ED36: 69.2172232 | EE36: 71.89899853 | EF36: 76.59057355 | EG36: 88.4763501 | EH36: 92.40858221 | EK36: 7 | EL36: 77.54789943 | EM36: 81.18211689 | EN36: 82.13673371 | EO36: 77.2386241 | EP36: 72.47103386 | EQ36: 65.8329498 | ER36: 62.86192175 | ES36: 67.29219592 | ET36: 71.19979359 | EU36: 74.91436218 | EV36: 87.59220785 | EW36: 93.13630738 | EY36: 79.81468153 | EZ36: 83.03698818 | FA36: 82.1716086 | FB36: 74.30941977 | FC36: 58.40412652 | FD36: 66.16978152 | FE36: 64.25395181 | FF36: 69.26037982 | FG36: 71.98972648 | FH36: 76.55792658 | FI36: 88.38642934 | FJ36: 92.32761089 | FL36: 79.67599965 | FM36: 82.89186502 | FN36: 82.028789 | FO36: 74.18656935 | FP36: 58.42771838 | FQ36: 66.12466351 | FR36: 64.1762051 | FS36: 69.2172232 | FT36: 71.89899853 | FU36: 76.59057355 | FV36: 88.4763501 | FW36: 92.40858221
B37: Lower bound (years) | C37: 10 | P37: 8 | Q37: 72.40288577 | R37: 76.28000429 | S37: 68.38954769 | T37: 57.00885059 | U37: 14.65852592 | V37: 58.06681764 | W37: 59.87207929 | X37: 60.41552064 | Y37: 61.70719145 | Z37: 66.23005123 | AA37: 74.4459373 | AB37: 84.94257432 | AE37: 8 | AF37: 71.27085659 | AG37: 75.61138014 | AH37: 73.20105783 | AI37: 69.64339161 | AJ37: 17.86608025 | AK37: 60.63062461 | AL37: 59.60545785 | AM37: 59.8622252 | AN37: 62.01733768 | AO37: 65.81595962 | AP37: 75.2335035 | AQ37: 86.92659488 | AS37: 72.5226072 | AT37: 76.40804908 | AU37: 68.57757165 | AV37: 57.17544985 | AW37: 14.66022607 | AX37: 58.18854535 | AY37: 60.00984328 | AZ37: 60.54369077 | BA37: 61.85161366 | BB37: 66.30589254 | BC37: 74.39767938 | BD37: 84.8707014 | BF37: 72.40288577 | BG37: 76.28000429 | BH37: 68.38954769 | BI37: 57.00885059 | BJ37: 14.65852592 | BK37: 58.06681764 | BL37: 59.87207929 | BM37: 60.41552064 | BN37: 61.70719145 | BO37: 66.23005123 | BP37: 74.4459373 | BQ37: 84.94257432 | BS37: 8 | BT37: 61.52006462 | BU37: 64.49397404 | BV37: 58.30961211 | BW37: 49.58733541 | BX37: 18.58595337 | BY37: 50.45195053 | BZ37: 51.8723713 | CA37: 52.28228222 | CB37: 53.24219976 | CC37: 56.72991054 | CD37: 63.0471108 | CE37: 71.12719905 | CH37: 8 | CI37: 60.68458924 | CJ37: 64.01858541 | CK37: 62.07808483 | CL37: 59.42961197 | CM37: 23.231526 | CN37: 52.4803814 | CO37: 51.70825355 | CP37: 51.89489355 | CQ37: 53.52365674 | CR37: 56.45149018 | CS37: 63.69786861 | CT37: 72.6997136 | CV37: 61.61369026 | CW37: 64.59452266 | CX37: 58.45607629 | CY37: 49.71772556 | CZ37: 18.58891859 | DA37: 50.54732781 | DB37: 51.98035696 | DC37: 52.38269272 | DD37: 53.35511764 | DE37: 56.78921586 | DF37: 63.00913911 | DG37: 71.07050068 | DI37: 61.52006462 | DJ37: 64.49397404 | DK37: 58.30961211 | DL37: 49.58733541 | DM37: 18.58595337 | DN37: 50.45195053 | DO37: 51.8723713 | DP37: 52.28228222 | DQ37: 53.24219976 | DR37: 56.72991054 | DS37: 63.0471108 | DT37: 71.12719905 | DV37: 8 | DW37: 78.32769831 | DX37: 82.75933494 | DY37: 73.78930491 | DZ37: 60.77635515 | EA37: 11.81434917 | EB37: 61.96497914 | EC37: 64.01548725 | ED37: 64.63915107 | EE37: 66.1275872 | EF37: 71.29106667 | EG37: 80.67669434 | EH37: 92.66440005 | EK37: 8 | EL37: 77.01992368 | EM37: 81.97962388 | EN37: 79.25854057 | EO37: 75.16114467 | EP37: 14.65312958 | EQ37: 64.87155226 | ER37: 63.69455538 | ES37: 63.99165634 | ET37: 66.46482917 | EU37: 70.80187031 | EV37: 81.55833602 | EW37: 94.91275101 | EY37: 78.46339403 | EZ37: 82.90431353 | FA37: 74.00252015 | FB37: 60.96474908 | FC37: 11.81566735 | FD37: 62.10264815 | FE37: 64.17131218 | FF37: 64.78415046 | FG37: 66.29108958 | FH37: 71.37697769 | FI37: 80.62208929 | FJ37: 92.58311748 | FL37: 78.32769831 | FM37: 82.75933494 | FN37: 73.78930491 | FO37: 60.77635515 | FP37: 11.81434917 | FQ37: 61.96497914 | FR37: 64.01548725 | FS37: 64.63915107 | FT37: 66.1275872 | FU37: 71.29106667 | FV37: 80.67669434 | FW37: 92.66440005
B38: Upper bound (years) | C38: 30 | P38: 9 | Q38: 71.20274396 | R38: 73.07468047 | S38: 57.56974262 | T38: 13.55873164 | U38: 13.40650404 | V38: 62.58763845 | W38: 63.15085934 | X38: 63.04482256 | Y38: 62.521008 | Z38: 64.86985282 | AA38: 70.48414276 | AB38: 75.55164491 | AE38: 9 | AF38: 70.44235924 | AG38: 73.14968017 | AH38: 71.28534863 | AI38: 15.81818146 | AJ38: 16.10126283 | AK38: 64.486317 | AL38: 63.51938884 | AM38: 63.09082066 | AN38: 63.77829525 | AO38: 64.8262583 | AP38: 72.84697347 | AQ38: 78.41309563 | AS38: 71.43446649 | AT38: 73.30567174 | AU38: 57.75517479 | AV38: 13.56002196 | AW38: 13.4070215 | AX38: 62.72721123 | AY38: 63.30279565 | AZ38: 63.18304827 | BA38: 62.66805878 | BB38: 64.94315778 | BC38: 70.56011879 | BD38: 75.63924339 | BF38: 71.20274396 | BG38: 73.07468047 | BH38: 57.56974262 | BI38: 13.55873164 | BJ38: 13.40650404 | BK38: 62.58763845 | BL38: 63.15085934 | BM38: 63.04482256 | BN38: 62.521008 | BO38: 64.86985282 | BP38: 70.48414276 | BQ38: 75.55164491 | BS38: 9 | BT38: 60.58958006 | BU38: 62.00886219 | BV38: 49.94798281 | BW38: 16.66780885 | BX38: 16.40230962 | BY38: 53.95678683 | BZ38: 54.41679099 | CA38: 54.32058533 | CB38: 53.87346144 | CC38: 55.67682098 | CD38: 59.97266749 | CE38: 63.84820947 | CH38: 9 | CI38: 60.04340254 | CJ38: 62.10845728 | CK38: 60.59564091 | CL38: 19.7998163 | CM38: 19.97873844 | CN38: 55.4734733 | CO38: 54.74550429 | CP38: 54.39813436 | CQ38: 54.88800843 | CR38: 55.68422048 | CS38: 61.85262299 | CT38: 66.11565261 | CV38: 60.77056461 | CW38: 62.19017237 | CX38: 50.09257104 | CY38: 16.67005929 | CZ38: 16.40321212 | DA38: 54.06609538 | DB38: 54.53593299 | DC38: 54.42879117 | DD38: 53.98850942 | DE38: 55.73416177 | DF38: 60.03222237 | DG38: 63.91674466 | DI38: 60.58958006 | DJ38: 62.00886219 | DK38: 49.94798281 | DL38: 16.66780885 | DM38: 16.40230962 | DN38: 53.95678683 | DO38: 54.41679099 | DP38: 54.32058533 | DQ38: 53.87346144 | DR38: 55.67682098 | DS38: 59.97266749 | DT38: 63.84820947 | DV38: 9 | DW38: 76.95935929 | DX38: 79.10518124 | DY38: 61.44375602 | DZ38: 10.96164049 | EA38: 10.84361314 | EB38: 67.11913217 | EC38: 67.75268546 | ED38: 67.63683322 | EE38: 67.05529441 | EF38: 69.73973027 | EG38: 76.16150561 | EH38: 81.95898493 | EK38: 9 | EL38: 76.07479444 | EM38: 79.17386996 | EN38: 77.07350454 | EO38: 13.01193556 | EP38: 13.35060895 | EQ38: 69.26597221 | ER38: 68.15566813 | ES38: 67.67246855 | ET38: 68.47283066 | EU38: 69.67346853 | EV38: 78.83353569 | EW38: 85.19929632 | EY38: 77.22202951 | EZ38: 79.36671333 | FA38: 61.65370782 | FB38: 10.96264091 | FC38: 10.84401435 | FD38: 67.2771104 | FE38: 67.92460723 | FF38: 67.79329704 | FG38: 67.22175973 | FH38: 69.82274798 | FI38: 76.24754119 | FJ38: 82.05826734 | FL38: 76.95935929 | FM38: 79.10518124 | FN38: 61.44375602 | FO38: 10.96164049 | FP38: 10.84361314 | FQ38: 67.11913217 | FR38: 67.75268546 | FS38: 67.63683322 | FT38: 67.05529441 | FU38: 69.73973027 | FV38: 76.16150561 | FW38: 81.95898493
P39: 10 | Q39: 68.70444056 | R39: 67.74957146 | S39: 15.98015702 | T39: 12.80872936 | U39: 12.80872936 | V39: 16.7827992 | W39: 66.21933703 | X39: 66.65672383 | Y39: 66.08701302 | Z39: 67.39969718 | AA39: 67.15047713 | AB39: 69.95081371 | AE39: 10 | AF39: 69.27157137 | AG39: 69.09268059 | AH39: 17.86368008 | AI39: 13.95662128 | AJ39: 14.0838232 | AK39: 16.36206984 | AL39: 67.28212545 | AM39: 66.64506375 | AN39: 66.57627328 | AO39: 67.05902398 | AP39: 70.01416607 | AQ39: 73.76822956 | AS39: 68.92632777 | AT39: 67.9552802 | AU39: 15.99467138 | AV39: 12.80872936 | AW39: 12.80872936 | AX39: 16.79542947 | AY39: 66.38350529 | AZ39: 66.80842228 | BA39: 66.24861853 | BB39: 67.47646844 | BC39: 67.22111704 | BD39: 70.02959289 | BF39: 68.70444056 | BG39: 67.74957146 | BH39: 15.98015702 | BI39: 12.80872936 | BJ39: 12.80872936 | BK39: 16.7827992 | BL39: 66.21933703 | BM39: 66.65672383 | BN39: 66.08701302 | BO39: 67.39969718 | BP39: 67.15047713 | BQ39: 69.95081371 | BS39: 10 | BT39: 58.6548942 | BU39: 57.87854539 | BV39: 20.89100213 | BW39: 15.35973444 | BX39: 15.35973444 | BY39: 22.29088546 | BZ39: 56.79903275 | CA39: 57.12547876 | CB39: 56.63915078 | CC39: 57.64032959 | CD39: 57.38720717 | CE39: 59.51026833 | CH39: 10 | CI39: 59.13594496 | CJ39: 58.95979533 | CK39: 23.45894166 | CL39: 16.28912033 | CM39: 16.38922389 | CN39: 22.15356656 | CO39: 57.66953079 | CP39: 57.15776465 | CQ39: 57.05935098 | CR39: 57.41735461 | CS39: 59.65563053 | CT39: 62.51243476 | CV39: 58.82836438 | CW39: 58.03909122 | CX39: 20.91631654 | CY39: 15.35973444 | CZ39: 15.35973444 | DA39: 22.31291384 | DB39: 56.927898 | DC39: 57.24445488 | DD39: 56.76584913 | DE39: 57.7004832 | DF39: 57.44238621 | DG39: 59.57162812 | DI39: 58.6548942 | DJ39: 57.87854539 | DK39: 20.89100213 | DL39: 15.35973444 | DM39: 15.35973444 | DN39: 22.29088546 | DO39: 56.79903275 | DP39: 57.12547876 | DQ39: 56.63915078 | DR39: 57.64032959 | DS39: 57.38720717 | DT39: 59.51026833 | DV39: 10 | DW39: 74.11021783 | DX39: 73.03520759 | DY39: 12.83905563 | DZ39: 10.38013768 | EA39: 10.38013768 | EB39: 13.46137197 | EC39: 71.24976445 | ED39: 71.75293356 | EE39: 71.12031984 | EF39: 72.62294059 | EG39: 72.36141692 | EH39: 75.57228349 | EK39: 10 | EL39: 74.7399891 | EM39: 74.55017073 | EN39: 14.56594563 | EO39: 11.66918789 | EP39: 11.81311524 | EQ39: 12.90821478 | ER39: 72.44286472 | ES39: 71.72310436 | ET39: 71.66188388 | EU39: 72.21810328 | EV39: 75.60456498 | EW39: 79.90523373 | EY39: 74.3616265 | EZ39: 73.26839984 | FA39: 12.85030912 | FB39: 10.38013768 | FC39: 10.38013768 | FD39: 13.47116466 | FE39: 71.43553852 | FF39: 71.92463291 | FG39: 71.30322865 | FH39: 72.7098567 | FI39: 72.44146637 | FJ39: 75.66164655 | FL39: 74.11021783 | FM39: 73.03520759 | FN39: 12.83905563 | FO39: 10.38013768 | FP39: 10.38013768 | FQ39: 13.46137197 | FR39: 71.24976445 | FS39: 71.75293356 | FT39: 71.12031984 | FU39: 72.62294059 | FV39: 72.36141692 | FW39: 75.57228349
P40: 11 | Q40: 67.45290319 | R40: 66.43277251 | S40: 16.13074344 | T40: 12.80872936 | U40: 12.80872936 | V40: 17.16146914 | W40: 69.04436032 | X40: 70.47094438 | Y40: 70.1206789 | Z40: 71.38624333 | AA40: 66.56026798 | AB40: 63.59464928 | AE40: 11 | AF40: 67.52141329 | AG40: 67.84779882 | AH40: 17.03614457 | AI40: 14.07787744 | AJ40: 14.78899332 | AK40: 16.62806595 | AL40: 69.67433603 | AM40: 69.70681915 | AN40: 69.88709436 | AO40: 70.34490604 | AP40: 69.48196282 | AQ40: 70.14457796 | AS40: 67.66869142 | AT40: 66.6282554 | AU40: 16.14637974 | AV40: 12.80872936 | AW40: 12.80872936 | AX40: 17.16006937 | AY40: 69.16511848 | AZ40: 70.56586892 | BA40: 70.2428908 | BB40: 71.47012469 | BC40: 66.62938579 | BD40: 63.65985219 | BF40: 67.45290319 | BG40: 66.43277251 | BH40: 16.13074344 | BI40: 12.80872936 | BJ40: 12.80872936 | BK40: 17.16146914 | BL40: 69.04436032 | BM40: 70.47094438 | BN40: 70.1206789 | BO40: 71.38624333 | BP40: 66.56026798 | BQ40: 63.59464928 | BS40: 11 | BT40: 57.68554706 | BU40: 56.85778927 | BV40: 21.15363898 | BW40: 15.35973444 | BX40: 15.35973444 | BY40: 22.89121346 | BZ40: 59.00086895 | CA40: 60.0930919 | CB40: 59.77354732 | CC40: 60.7335611 | CD40: 56.9289347 | CE40: 54.59786228 | CH40: 11 | CI40: 57.77856145 | CJ40: 57.99565437 | CK40: 22.75850669 | CL40: 16.38621209 | CM40: 16.93544487 | CN40: 22.61748877 | CO40: 59.53287009 | CP40: 59.54166221 | CQ40: 59.63302094 | CR40: 59.9679788 | CS40: 59.24035326 | CT40: 59.70102894 | CV40: 57.85430403 | CW40: 57.0102241 | CX40: 21.18091017 | CY40: 15.35973444 | CZ40: 15.35973444 | DA40: 22.89873208 | DB40: 59.09590441 | DC40: 60.16790629 | DD40: 59.86966828 | DE40: 60.79946239 | DF40: 56.98284409 | DG40: 54.64862567 | DI40: 57.68554706 | DJ40: 56.85778927 | DK40: 21.15363898 | DL40: 15.35973444 | DM40: 15.35973444 | DN40: 22.89121346 | DO40: 59.00086895 | DP40: 60.0930919 | DQ40: 59.77354732 | DR40: 60.7335611 | DS40: 56.9289347 | DT40: 54.59786228 | DV40: 11 | DW40: 72.68302132 | DX40: 71.53392982 | DY40: 12.9558105 | DZ40: 10.38013768 | EA40: 10.38013768 | EB40: 13.77625608 | EC40: 74.46552344 | ED40: 76.09689694 | EE40: 75.71577828 | EF40: 77.16674927 | EG40: 71.68887665 | EH40: 68.31987582 | EK40: 11 | EL40: 72.74490404 | EM40: 73.13051779 | EN40: 13.64464514 | EO40: 11.80385851 | EP40: 12.61725216 | EQ40: 13.1144508 | ER40: 75.16652934 | ES40: 75.20970414 | ET40: 75.43369261 | EU40: 75.96287393 | EV40: 74.99902195 | EW40: 75.7749608 | EY40: 72.92747067 | EZ40: 71.75553287 | FA40: 12.96793388 | FB40: 10.38013768 | FC40: 10.38013768 | FD40: 13.77129903 | FE40: 74.60210388 | FF40: 76.20423545 | FG40: 75.85400918 | FH40: 77.26167598 | FI40: 71.76722854 | FJ40: 68.39378784 | FL40: 72.68302132 | FM40: 71.53392982 | FN40: 12.9558105 | FO40: 10.38013768 | FP40: 10.38013768 | FQ40: 13.77625608 | FR40: 74.46552344 | FS40: 76.09689694 | FT40: 75.71577828 | FU40: 77.16674927 | FV40: 71.68887665 | FW40: 68.31987582
P41: 12 | Q41: 66.63385566 | R41: 66.02393613 | S41: 14.53475565 | T41: 12.80872936 | U41: 12.80872936 | V41: 18.93112338 | W41: 71.96005852 | X41: 74.12440805 | Y41: 74.26767141 | Z41: 73.06466906 | AA41: 68.60975355 | AB41: 62.98441121 | AE41: 12 | AF41: 66.01723077 | AG41: 67.3086267 | AH41: 14.65078697 | AI41: 14.03667368 | AJ41: 14.60357826 | AK41: 18.01674848 | AL41: 72.93931665 | AM41: 72.82301383 | AN41: 73.45768194 | AO41: 72.31292973 | AP41: 71.30787541 | AQ41: 68.91359661 | AS41: 66.84373661 | AT41: 66.21899664 | AU41: 14.54284345 | AV41: 12.80872936 | AW41: 12.80872936 | AX41: 18.93564538 | AY41: 72.1531206 | AZ41: 74.31492132 | BA41: 74.46805763 | BB41: 73.1511467 | BC41: 68.68221065 | BD41: 63.04875076 | BF41: 66.63385566 | BG41: 66.02393613 | BH41: 14.53475565 | BI41: 12.80872936 | BJ41: 12.80872936 | BK41: 18.93112338 | BL41: 71.96005852 | BM41: 74.12440805 | BN41: 74.26767141 | BO41: 73.06466906 | BP41: 68.60975355 | BQ41: 62.98441121 | BS41: 12 | BT41: 57.05040206 | BU41: 56.54138896 | BV41: 18.37008639 | BW41: 15.35973444 | BX41: 15.35973444 | BY41: 24.40532902 | BZ41: 61.26955768 | CA41: 63.01163986 | CB41: 62.99779439 | CC41: 62.03709275 | CD41: 58.51809865 | CE41: 54.12654218 | CH41: 12 | CI41: 56.61299642 | CJ41: 57.5773151 | CK41: 18.89908707 | CL41: 16.35109393 | CM41: 16.79269184 | CN41: 23.90845514 | CO41: 62.07938978 | CP41: 62.05233503 | CQ41: 62.41674902 | CR41: 61.50245496 | CS41: 60.65803966 | CT41: 58.74958498 | CV41: 57.21446142 | CW41: 56.69349147 | CX41: 18.38419227 | CY41: 15.35973444 | CZ41: 15.35973444 | DA41: 24.42503672 | DB41: 61.42215547 | DC41: 63.16261679 | DD41: 63.15605823 | DE41: 62.10515356 | DF41: 58.57471142 | DG41: 54.17663875 | DI41: 57.05040206 | DJ41: 56.54138896 | DK41: 18.37008639 | DL41: 15.35973444 | DM41: 15.35973444 | DN41: 24.40532902 | DO41: 61.26955768 | DP41: 63.01163986 | DQ41: 62.99779439 | DR41: 62.03709275 | DS41: 58.51809865 | DT41: 54.12654218 | DV41: 12 | DW41: 71.74933855 | DX41: 71.06756054 | DY41: 11.71838578 | DZ41: 10.38013768 | EA41: 10.38013768 | EB41: 15.73895718 | EC41: 77.78630767 | ED41: 80.22913305 | EE41: 80.43952212 | EF41: 79.07914699 | EG41: 74.02526248 | EH41: 67.62348017 | EK41: 12 | EL41: 71.02977293 | EM41: 72.51599006 | EN41: 11.68191983 | EO41: 11.76048823 | EP41: 12.40485648 | EQ41: 14.6147313 | ER41: 78.8804091 | ES41: 78.72303808 | ET41: 79.49552669 | EU41: 78.20006295 | EV41: 77.07964893 | EW41: 74.37040202 | EY41: 71.9871028 | EZ41: 71.28868159 | FA41: 11.72465653 | FB41: 10.38013768 | FC41: 10.38013768 | FD41: 15.73776892 | FE41: 78.00442926 | FF41: 80.44423762 | FG41: 80.66595716 | FH41: 79.1769699 | FI41: 74.10737603 | FJ41: 67.69640694 | FL41: 71.74933855 | FM41: 71.06756054 | FN41: 11.71838578 | FO41: 10.38013768 | FP41: 10.38013768 | FQ41: 15.73895718 | FR41: 77.78630767 | FS41: 80.22913305 | FT41: 80.43952212 | FU41: 79.07914699 | FV41: 74.02526248 | FW41: 67.62348017
P42: 13 | Q42: 64.86360911 | R42: 63.86685613 | S42: 14.53973171 | T42: 12.80872936 | U42: 12.80872936 | V42: 18.77348307 | W42: 74.66244204 | X42: 76.68270367 | Y42: 77.42192307 | Z42: 75.01136192 | AA42: 66.2473128 | AB42: 60.34763486 | AE42: 13 | AF42: 64.37757391 | AG42: 65.13994916 | AH42: 14.8644521 | AI42: 14.2796181 | AJ42: 14.48546263 | AK42: 17.66169724 | AL42: 73.4151239 | AM42: 73.44153672 | AN42: 75.45673988 | AO42: 73.62759304 | AP42: 68.34713122 | AQ42: 65.71785629 | AS42: 65.06398368 | AT42: 64.05089879 | AU42: 14.54795487 | AV42: 12.80872936 | AW42: 12.80872936 | AX42: 18.76713248 | AY42: 74.86478735 | AZ42: 76.88174987 | BA42: 77.63350237 | BB42: 75.10062848 | BC42: 66.31507387 | BD42: 60.4073211 | BF42: 64.86360911 | BG42: 63.86685613 | BH42: 14.53973171 | BI42: 12.80872936 | BJ42: 12.80872936 | BK42: 18.77348307 | BL42: 74.66244204 | BM42: 76.68270367 | BN42: 77.42192307 | BO42: 75.01136192 | BP42: 66.2473128 | BQ42: 60.34763486 | BS42: 13 | BT42: 55.67818762 | BU42: 54.87264707 | BV42: 18.37876511 | BW42: 15.35973444 | BX42: 15.35973444 | BY42: 24.33926475 | BZ42: 63.37334293 | CA42: 65.08413746 | CB42: 65.52157829 | CC42: 63.54705337 | CD42: 56.68761268 | CE42: 52.09001619 | CH42: 13 | CI42: 55.3427163 | CJ42: 55.89866816 | CK42: 19.05474698 | CL42: 16.53917248 | CM42: 16.70120011 | CN42: 23.67206067 | CO42: 62.45068925 | CP42: 62.61895425 | CQ42: 64.04707191 | CR42: 62.52342026 | CS42: 58.35840723 | CT42: 56.28099387 | CV42: 55.83477646 | CW42: 55.01622605 | CX42: 18.39310707 | CY42: 15.35973444 | CZ42: 15.35973444 | DA42: 24.35141298 | DB42: 63.53374049 | DC42: 65.24248614 | DD42: 65.6892933 | DE42: 63.61738476 | DF42: 56.74043554 | DG42: 52.13651875 | DI42: 55.67818762 | DJ42: 54.87264707 | DK42: 18.37876511 | DL42: 15.35973444 | DM42: 15.35973444 | DN42: 24.33926475 | DO42: 63.37334293 | DP42: 65.08413746 | DQ42: 65.52157829 | DR42: 63.54705337 | DS42: 56.68761268 | DT42: 52.09001619 | DV42: 13 | DW42: 69.73109251 | DX42: 68.60695015 | DY42: 11.72224389 | DZ42: 10.38013768 | EA42: 10.38013768 | EB42: 15.53675133 | EC42: 80.86343104 | ED42: 83.11175241 | EE42: 84.00562444 | EF42: 81.29797059 | EG42: 71.33152114 | EH42: 64.61442577 | EK42: 13 | EL42: 69.16006249 | EM42: 70.04248151 | EN42: 11.92927788 | EO42: 12.03756806 | EP42: 12.27016396 | EQ42: 14.19418952 | ER42: 79.42182808 | ES42: 79.39527769 | ET42: 81.74389537 | EU42: 79.69808566 | EV42: 73.70611255 | EW42: 70.72355628 | EY42: 69.95806124 | EZ42: 68.81550299 | FA42: 11.72861959 | FB42: 10.38013768 | FC42: 10.38013768 | FD42: 15.52271798 | FE42: 81.09186903 | FF42: 83.33626479 | FG42: 84.24449421 | FH42: 81.39892235 | FI42: 71.40833731 | FJ42: 64.68204223 | FL42: 69.73109251 | FM42: 68.60695015 | FN42: 11.72224389 | FO42: 10.38013768 | FP42: 10.38013768 | FQ42: 15.53675133 | FR42: 80.86343104 | FS42: 83.11175241 | FT42: 84.00562444 | FU42: 81.29797059 | FV42: 71.33152114 | FW42: 64.61442577
P43: 14 | Q43: 61.64788425 | R43: 62.50996094 | S43: 14.64973704 | T43: 12.80872936 | U43: 12.80872936 | V43: 20.13882084 | W43: 77.80320923 | X43: 81.43429651 | Y43: 81.254867 | Z43: 78.27285128 | AA43: 66.2523467 | AB43: 60.95848181 | AE43: 14 | AF43: 61.88762568 | AG43: 63.42068826 | AH43: 14.95255178 | AI43: 14.34696861 | AJ43: 14.56996039 | AK43: 18.77394239 | AL43: 75.23798222 | AM43: 77.11802913 | AN43: 78.12553443 | AO43: 76.26412009 | AP43: 68.73985329 | AQ43: 65.80118223 | AS43: 61.82963201 | AT43: 62.68838053 | AU43: 14.65857895 | AV43: 12.80872936 | AW43: 12.80872936 | AX43: 20.14230825 | AY43: 78.01613574 | AZ43: 81.64814383 | BA43: 81.47835935 | BB43: 78.36731607 | BC43: 66.31940039 | BD43: 61.01940071 | BF43: 61.64788425 | BG43: 62.50996094 | BH43: 14.64973704 | BI43: 12.80872936 | BJ43: 12.80872936 | BK43: 20.13882084 | BL43: 77.80320923 | BM43: 81.43429651 | BN43: 81.254867 | BO43: 78.27285128 | BP43: 66.2523467 | BQ43: 60.95848181 | BS43: 14 | BT43: 53.18773793 | BU43: 53.82293735 | BV43: 18.57062473 | BW43: 15.35973444 | BX43: 15.35973444 | BY43: 25.43078041 | BZ43: 65.8174605 | CA43: 68.78731977 | CB43: 68.57847974 | CC43: 66.07978417 | CD43: 56.69289638 | CE43: 52.56180656 | CH43: 14 | CI43: 53.41448256 | CJ43: 54.56841883 | CK43: 19.10160488 | CL43: 16.59131274 | CM43: 16.76665162 | CN43: 24.56806273 | CO43: 63.87234361 | CP43: 65.48935296 | CQ43: 66.20372578 | CR43: 64.57147903 | CS43: 58.66528861 | CT43: 56.34536018 | CV43: 53.32987273 | CW43: 53.96216625 | CX43: 18.58604586 | CY43: 15.35973444 | CZ43: 15.35973444 | DA43: 25.4502448 | DB43: 65.98669852 | DC43: 68.9578921 | DD43: 68.75616904 | DE43: 66.1544472 | DF43: 56.74519439 | DG43: 52.60926117 | DI43: 53.18773793 | DJ43: 53.82293735 | DK43: 18.57062473 | DL43: 15.35973444 | DM43: 15.35973444 | DN43: 25.43078041 | DO43: 65.8174605 | DP43: 68.78731977 | DQ43: 68.57847974 | DR43: 66.07978417 | DS43: 56.69289638 | DT43: 52.56180656 | DV43: 14 | DW43: 66.06383238 | DX43: 67.05912142 | DY43: 11.80753484 | DZ43: 10.38013768 | EA43: 10.38013768 | EB43: 17.08064901 | EC43: 84.44008099 | ED43: 88.52068246 | EE43: 88.34264072 | EF43: 85.01425711 | EG43: 71.33673005 | EH43: 65.31151625 | EK43: 14 | EL43: 66.32049519 | EM43: 68.08132724 | EN43: 12.03779266 | EO43: 12.1143818 | EP43: 12.36652052 | EQ43: 15.44955717 | ER43: 81.49641007 | ES43: 83.57834409 | ET43: 84.75288548 | EU43: 82.70198149 | EV43: 74.15292715 | EW43: 70.8186434 | EY43: 66.2695668 | EZ43: 67.26125994 | FA43: 11.81439028 | FB43: 10.38013768 | FC43: 10.38013768 | FD43: 17.07799328 | FE43: 84.68029629 | FF43: 88.76172266 | FG43: 88.59476861 | FH43: 85.12100221 | FI43: 71.41273071 | FJ43: 65.38053941 | FL43: 66.06383238 | FM43: 67.05912142 | FN43: 11.80753484 | FO43: 10.38013768 | FP43: 10.38013768 | FQ43: 17.08064901 | FR43: 84.44008099 | FS43: 88.52068246 | FT43: 88.34264072 | FU43: 85.01425711 | FV43: 71.33673005 | FW43: 65.31151625
P44: 15 | Q44: 63.55756746 | R44: 63.1118173 | S44: 16.49090634 | T44: 12.80872936 | U44: 12.80872936 | V44: 21.43103206 | W44: 80.62172316 | X44: 84.20346503 | Y44: 86.7431923 | Z44: 82.44566537 | AA44: 69.15093013 | AB44: 62.51699662 | AE44: 15 | AF44: 63.29037496 | AG44: 63.19725379 | AH44: 18.24924766 | AI44: 14.65182225 | AJ44: 14.32128547 | AK44: 19.11657348 | AL44: 76.53772137 | AM44: 78.2827282 | AN44: 82.3916248 | AO44: 80.0445247 | AP44: 70.83754364 | AQ44: 66.23285441 | AS44: 63.74898023 | AT44: 63.2946073 | AU44: 16.50884285 | AV44: 12.80872936 | AW44: 12.80872936 | AX44: 21.43398357 | AY44: 80.844566 | AZ44: 84.42589688 | BA44: 86.98544856 | BB44: 82.54585315 | BC44: 69.22246968 | BD44: 62.58085801 | BF44: 63.55756746 | BG44: 63.1118173 | BH44: 16.49090634 | BI44: 12.80872936 | BJ44: 12.80872936 | BK44: 21.43103206 | BL44: 80.62172316 | BM44: 84.20346503 | BN44: 86.7431923 | BO44: 82.44566537 | BP44: 69.15093013 | BQ44: 62.51699662 | BS44: 15 | BT44: 54.66776362 | BU44: 54.28854035 | BV44: 21.78179691 | BW44: 15.35973444 | BX44: 15.35973444 | BY44: 26.46771679 | BZ44: 68.00957147 | CA44: 70.7744285 | CB44: 72.69917587 | CC44: 69.31988815 | CD44: 58.93781682 | CE44: 53.76553243 | CH44: 15 | CI44: 54.50123209 | CJ44: 54.39554546 | CK44: 23.72521527 | CL44: 16.82731911 | CM44: 16.57402936 | CN44: 24.79287376 | CO44: 64.88292962 | CP44: 66.22514099 | CQ44: 69.37477477 | CR44: 67.50845745 | CS44: 60.29301119 | CT44: 56.67881148 | CV44: 54.81753837 | CW44: 54.43115025 | CX44: 21.81307987 | CY44: 15.35973444 | CZ44: 15.35973444 | DA44: 26.48717341 | DB44: 68.18696615 | DC44: 70.95142626 | DD44: 72.89166971 | DE44: 69.39925284 | DF44: 58.9936568 | DG44: 53.81525969 | DI44: 54.66776362 | DJ44: 54.28854035 | DK44: 21.78179691 | DL44: 15.35973444 | DM44: 15.35973444 | DN44: 26.46771679 | DO44: 68.00957147 | DP44: 70.7744285 | DQ44: 72.69917587 | DR44: 69.31988815 | DS44: 58.93781682 | DT44: 53.76553243 | DV44: 15 | DW44: 68.24121239 | DX44: 67.74566712 | DY44: 13.23505731 | DZ44: 10.38013768 | EA44: 10.38013768 | EB44: 18.53903818 | EC44: 87.65023185 | ED44: 91.73730717 | EE44: 94.64928178 | EF44: 89.76897262 | EG44: 74.64205525 | EH44: 67.09007281 | EK44: 15 | EL44: 67.9200185 | EM44: 67.8264605 | EN44: 15.01781823 | EO44: 12.46206955 | EP44: 12.08294542 | EQ44: 15.85332252 | ER44: 82.97687422 | ES44: 84.96881124 | ET44: 89.66702661 | EU44: 87.00889816 | EV44: 76.5436532 | EW44: 71.31124466 | EY44: 68.45790592 | EZ44: 67.95279103 | FA44: 13.24896411 | FB44: 10.38013768 | FC44: 10.38013768 | FD44: 18.53554041 | FE44: 87.90153226 | FF44: 91.98818029 | FG44: 94.92262649 | FH44: 89.88211953 | FI44: 74.72314439 | FJ44: 67.1624539 | FL44: 68.24121239 | FM44: 67.74566712 | FN44: 13.23505731 | FO44: 10.38013768 | FP44: 10.38013768 | FQ44: 18.53903818 | FR44: 87.65023185 | FS44: 91.73730717 | FT44: 94.64928178 | FU44: 89.76897262 | FV44: 74.64205525 | FW44: 67.09007281
P45: 16 | Q45: 68.18559434 | R45: 66.06034185 | S45: 67.45024113 | T45: 14.08103249 | U45: 13.01416579 | V45: 83.337939 | W45: 85.40024368 | X45: 92.34821314 | Y45: 93.32899088 | Z45: 87.50659017 | AA45: 75.84466908 | AB45: 72.50621867 | AE45: 16 | AF45: 67.69037747 | AG45: 65.99654548 | AH45: 73.7722547 | AI45: 17.23092001 | AJ45: 14.61397128 | AK45: 81.57644419 | AL45: 80.01232691 | AM45: 84.96271756 | AN45: 88.57465454 | AO45: 83.8607186 | AP45: 77.17115906 | AQ45: 75.58294055 | AS45: 68.40229142 | AT45: 66.25631892 | AU45: 67.69523216 | AV45: 14.08544851 | AW45: 13.0107039 | AX45: 83.55547015 | AY45: 85.63864949 | AZ45: 92.59675505 | BA45: 93.59279669 | BB45: 87.61395152 | BC45: 75.92634688 | BD45: 72.58764105 | BF45: 68.18559434 | BG45: 66.06034185 | BH45: 67.45024113 | BI45: 14.08103249 | BJ45: 13.01416579 | BK45: 83.337939 | BL45: 85.40024368 | BM45: 92.34821314 | BN45: 93.32899088 | BO45: 87.50659017 | BP45: 75.84466908 | BQ45: 72.50621867 | BS45: 16 | BT45: 58.25660524 | BU45: 56.56955284 | BV45: 57.58872355 | BW45: 17.57875058 | BX45: 15.52030798 | BY45: 70.08765891 | BZ45: 71.79680262 | CA45: 77.09652574 | CB45: 77.79071967 | CC45: 73.24542278 | CD45: 64.12881203 | CE45: 61.49111582 | CH45: 16 | CI45: 57.91146872 | CJ45: 56.56138405 | CK45: 62.5190927 | CL45: 20.87971901 | CM45: 16.80074222 | CN45: 68.77236346 | CO45: 67.66190269 | CP45: 71.41750365 | CQ45: 74.15538923 | CR45: 70.47148892 | CS45: 65.20642288 | CT45: 63.91966723 | CV45: 58.42643822 | CW45: 56.72236441 | CX45: 57.78018951 | CY45: 17.58645254 | CZ45: 15.51769037 | DA45: 70.26065479 | DB45: 71.987069 | DC45: 77.29435803 | DD45: 78.00045015 | DE45: 73.33058836 | DF45: 64.19302981 | DG45: 61.55472409 | DI45: 58.25660524 | DJ45: 56.56955284 | DK45: 57.58872355 | DL45: 17.57875058 | DM45: 15.52030798 | DN45: 70.08765891 | DO45: 71.79680262 | DP45: 77.09652574 | DQ45: 77.79071967 | DR45: 73.24542278 | DS45: 64.12881203 | DT45: 61.49111582 | DV45: 16 | DW45: 73.51703126 | DX45: 71.10908905 | DY45: 72.71529565 | DZ45: 11.36659846 | EA45: 10.61278868 | EB45: 90.75632967 | EC45: 93.06609924 | ED45: 101.0184562 | EE45: 102.1616823 | EF45: 95.53707818 | EG45: 82.27225203 | EH45: 78.48550941 | EK45: 16 | EL45: 72.93672353 | EM45: 71.01955043 | EN45: 79.91022579 | EO45: 14.62836467 | EP45: 12.4167081 | EQ45: 88.72556084 | ER45: 86.9053546 | ES45: 92.577935 | ET45: 96.71972131 | EU45: 91.35714611 | EV45: 83.76243952 | EW45: 81.9737434 | EY45: 73.76235866 | EZ45: 71.33125562 | FA45: 72.99284551 | FB45: 11.37002236 | FC45: 10.60877028 | FD45: 91.00168456 | FE45: 93.33477051 | FF45: 101.2987593 | FG45: 102.4592997 | FH45: 95.65828184 | FI45: 82.3646851 | FJ45: 78.57780403 | FL45: 73.51703126 | FM45: 71.10908905 | FN45: 72.71529565 | FO45: 11.36659846 | FP45: 10.61278868 | FQ45: 90.75632967 | FR45: 93.06609924 | FS45: 101.0184562 | FT45: 102.1616823 | FU45: 95.53707818 | FV45: 82.27225203 | FW45: 78.48550941
P46: 17 | Q46: 85.59218858 | R46: 77.1405704 | S46: 80.97295265 | T46: 62.63241969 | U46: 17.23629284 | V46: 87.1845241 | W46: 88.72304781 | X46: 90.68532448 | Y46: 95.59157204 | Z46: 103.2810019 | AA46: 96.66049683 | AB46: 91.19718186 | AE46: 17 | AF46: 82.7355866 | AG46: 76.04251977 | AH46: 81.43618013 | AI46: 75.68161129 | AJ46: 19.50631457 | AK46: 81.87926091 | AL46: 82.39520206 | AM46: 82.82306754 | AN46: 89.81194741 | AO46: 97.86881792 | AP46: 97.13151728 | AQ46: 94.68321472 | AS46: 85.89090013 | AT46: 77.38601974 | AU46: 81.28937333 | AV46: 62.79116016 | AW46: 17.23567923 | AX46: 87.41477307 | AY46: 88.9722901 | AZ46: 90.92805626 | BA46: 95.86265641 | BB46: 103.2139734 | BC46: 96.70846709 | BD46: 91.30616994 | BF46: 85.59218858 | BG46: 77.1405704 | BH46: 80.97295265 | BI46: 62.63241969 | BJ46: 17.23629284 | BK46: 87.1845241 | BL46: 88.72304781 | BM46: 90.68532448 | BN46: 95.59157204 | BO46: 103.2810019 | BP46: 96.66049683 | BQ46: 91.19718186 | BS46: 17 | BT46: 71.76559148 | BU46: 65.16247213 | BV46: 68.05645298 | BW46: 53.95324327 | BX46: 21.68287527 | BY46: 73.07516914 | BZ46: 74.3202377 | CA46: 75.80317914 | CB46: 79.5460379 | CC46: 85.46246443 | CD46: 80.27047695 | CE46: 75.9670607 | CH46: 17 | CI46: 69.58958015 | CJ46: 64.35203152 | CK46: 68.45507418 | CL46: 64.11590977 | CM46: 24.83726741 | CN46: 69.00955557 | CO46: 69.455821 | CP46: 69.75472143 | CQ46: 75.11543223 | CR46: 81.32684414 | CS46: 80.68710183 | CT46: 78.71382126 | CV46: 72.00185877 | CW46: 65.35553957 | CX46: 68.30567453 | CY46: 54.07873099 | CZ46: 21.68241868 | DA46: 73.25849387 | DB46: 74.51900028 | DC46: 75.99619541 | DD46: 79.76159504 | DE46: 85.40972096 | DF46: 80.30884736 | DG46: 76.05313143 | DI46: 71.76559148 | DJ46: 65.16247213 | DK46: 68.05645298 | DL46: 53.95324327 | DM46: 21.68287527 | DN46: 73.07516914 | DO46: 74.3202377 | DP46: 75.80317914 | DQ46: 79.5460379 | DR46: 85.46246443 | DS46: 80.27047695 | DT46: 75.9670607 | DV46: 17 | DW46: 93.35493637 | DX46: 83.73977127 | DY46: 88.13732623 | DZ46: 67.18459093 | EA46: 14.33622759 | EB46: 95.13895521 | EC46: 96.87350848 | ED46: 99.12454999 | EE46: 104.7403056 | EF46: 113.5228565 | EG46: 105.9986081 | EH46: 99.79748821 | EK46: 17 | EL46: 90.08281885 | EM46: 82.47141303 | EN46: 88.64926531 | EO46: 82.04172445 | EP46: 16.39493345 | EQ46: 89.06973249 | ER46: 89.64159544 | ES46: 90.14049122 | ET46: 98.12973741 | EU46: 107.3265557 | EV46: 106.5126867 | EW46: 103.7513095 | EY46: 93.69253005 | EZ46: 84.0175563 | FA46: 88.49528993 | FB46: 67.36384533 | FC46: 14.33548912 | FD46: 95.39857499 | FE46: 97.15444844 | FF46: 99.3983739 | FG46: 105.0461194 | FH46: 113.4469968 | FI46: 106.0526438 | FJ46: 99.9207172 | FL46: 93.35493637 | FM46: 83.73977127 | FN46: 88.13732623 | FO46: 67.18459093 | FP46: 14.33622759 | FQ46: 95.13895521 | FR46: 96.87350848 | FS46: 99.12454999 | FT46: 104.7403056 | FU46: 113.5228565 | FV46: 105.9986081 | FW46: 99.79748821
P47: 18 | Q47: 107.8216803 | R47: 98.08103573 | S47: 99.05434076 | T47: 86.320157 | U47: 76.7102438 | V47: 96.46453457 | W47: 92.72688112 | X47: 91.63962492 | Y47: 102.791524 | Z47: 129.9699041 | AA47: 121.9231119 | AB47: 117.2690206 | AE47: 18 | AF47: 102.5040865 | AG47: 95.73213536 | AH47: 97.38319555 | AI47: 86.08996271 | AJ47: 76.28915449 | AK47: 87.73157847 | AL47: 84.98732894 | AM47: 81.75099248 | AN47: 96.05362331 | AO47: 121.3900631 | AP47: 122.2143508 | AQ47: 121.0675827 | AS47: 108.2156147 | AT47: 98.40913822 | AU47: 99.46037244 | AV47: 86.54321311 | AW47: 76.78244051 | AX47: 96.70464872 | AY47: 92.97392695 | AZ47: 91.86511925 | BA47: 103.0690738 | BB47: 129.8856456 | BC47: 121.7706644 | BD47: 117.1541822 | BF47: 107.8216803 | BG47: 98.08103573 | BH47: 99.05434076 | BI47: 86.320157 | BJ47: 76.7102438 | BK47: 96.46453457 | BL47: 92.72688112 | BM47: 91.63962492 | BN47: 102.791524 | BO47: 129.9699041 | BP47: 121.9231119 | BQ47: 117.2690206 | BS47: 18 | BT47: 89.00016307 | BU47: 81.39625212 | BV47: 82.04944793 | BW47: 72.32897291 | BX47: 64.90219625 | BY47: 80.27422574 | BZ47: 77.41097494 | CA47: 76.55315872 | CB47: 85.37631692 | CC47: 106.1110334 | CD47: 99.7809543 | CE47: 96.12261146 | CH47: 18 | CI47: 84.91837269 | CJ47: 79.61645689 | CK47: 80.79588239 | CL47: 72.19210904 | CM47: 64.61499198 | CN47: 73.53715858 | CO47: 71.43915953 | CP47: 68.91257167 | CQ47: 80.20183698 | CR47: 99.51003985 | CS47: 100.0519188 | CT47: 99.10013044 | CV47: 89.3125299 | CW47: 81.656167 | CX47: 82.37063247 | CY47: 72.50638102 | CZ47: 64.95943045 | DA47: 80.46531586 | DB47: 77.60790906 | DC47: 76.73277144 | DD47: 85.59719212 | DE47: 106.0448145 | DF47: 99.66102541 | DG47: 96.03231668 | DI47: 89.00016307 | DJ47: 81.39625212 | DK47: 82.04944793 | DL47: 72.32897291 | DM47: 64.90219625 | DN47: 80.27422574 | DO47: 77.41097494 | DP47: 76.55315872 | DQ47: 85.37631692 | DR47: 106.1110334 | DS47: 99.7809543 | DT47: 96.12261146 | DV47: 18 | DW47: 118.6943831 | DX47: 107.6104921 | DY47: 108.7578895 | DZ47: 94.18327709 | EA47: 83.21921348 | EB47: 105.7157707 | EC47: 101.4427357 | ED47: 100.2088356 | EE47: 112.8546392 | EF47: 143.9639144 | EG47: 134.8237744 | EH47: 129.5375934 | EK47: 18 | EL47: 112.6165502 | EM47: 104.9164315 | EN47: 106.8361721 | EO47: 93.90381359 | EP47: 82.7238867 | EQ47: 95.74795767 | ER47: 92.6091539 | ES47: 88.9263501 | ET47: 105.1549502 | EU47: 134.1642996 | EV47: 135.1361358 | EW47: 133.852931 | EY47: 119.1393031 | EZ47: 107.9811458 | FA47: 109.2167145 | FB47: 94.43486312 | FC47: 83.30069679 | FD47: 105.9865585 | FE47: 101.7212325 | FF47: 100.4630996 | FG47: 113.1677151 | FH47: 143.8684842 | FI47: 134.6512404 | FJ47: 129.4075947 | FL47: 118.6943831 | FM47: 107.6104921 | FN47: 108.7578895 | FO47: 94.18327709 | FP47: 83.21921348 | FQ47: 105.7157707 | FR47: 101.4427357 | FS47: 100.2088356 | FT47: 112.8546392 | FU47: 143.9639144 | FV47: 134.8237744 | FW47: 129.5375934
P48: 19 | Q48: 111.6714064 | R48: 116.6191857 | S48: 118.2188703 | T48: 101.4838459 | U48: 92.08155789 | V48: 101.3148328 | W48: 96.24495016 | X48: 94.59327312 | Y48: 107.2922573 | Z48: 117.3744188 | AA48: 112.7012279 | AB48: 116.4988918 | AE48: 19 | AF48: 107.4566694 | AG48: 116.2923508 | AH48: 115.0244614 | AI48: 98.68143235 | AJ48: 85.72491601 | AK48: 92.1496036 | AL48: 87.61565869 | AM48: 84.36970355 | AN48: 100.2616728 | AO48: 110.7023568 | AP48: 112.7610004 | AQ48: 120.2641989 | AS48: 112.085677 | AT48: 117.0250993 | AU48: 118.7173213 | AV48: 101.7534324 | AW48: 92.1722999 | AX48: 101.5657375 | AY48: 96.50349836 | AZ48: 94.82638696 | BA48: 107.5840626 | BB48: 117.2971785 | BC48: 112.5512501 | BD48: 116.3775173 | BF48: 111.6714064 | BG48: 116.6191857 | BH48: 118.2188703 | BI48: 101.4838459 | BJ48: 92.08155789 | BK48: 101.3148328 | BL48: 96.24495016 | BM48: 94.59327312 | BN48: 107.2922573 | BO48: 117.3744188 | BP48: 112.7012279 | BQ48: 116.4988918 | BS48: 19 | BT48: 91.98120986 | BU48: 95.74232232 | BV48: 96.85111687 | BW48: 84.07958478 | BX48: 76.83211985 | BY48: 84.04058149 | BZ48: 80.14248483 | CA48: 78.84052088 | CB48: 88.6023454 | CC48: 96.37127849 | CD48: 92.66271927 | CE48: 95.52533705 | CH48: 19 | CI48: 88.75699437 | CJ48: 95.52876044 | CK48: 94.42512416 | CL48: 81.95110952 | CM48: 71.93879315 | CN48: 76.96694268 | CO48: 73.48022314 | CP48: 70.94185543 | CQ48: 83.19667909 | CR48: 91.24909466 | CS48: 92.75550359 | CT48: 98.47970829 | CV48: 92.30925642 | CW48: 96.0626643 | CX48: 97.24332545 | CY48: 84.29368916 | CZ48: 76.90436662 | DA48: 84.24049818 | DB48: 80.34858782 | DC48: 79.02621529 | DD48: 88.83376755 | DE48: 96.31048608 | DF48: 92.54453911 | DG48: 95.42990682 | DI48: 91.98120986 | DJ48: 95.74232232 | DK48: 96.85111687 | DL48: 84.07958478 | DM48: 76.83211985 | DN48: 84.04058149 | DO48: 80.14248483 | DP48: 78.84052088 | DQ48: 88.6023454 | DR48: 96.37127849 | DS48: 92.66271927 | DT48: 95.52533705 | DV48: 19 | DW48: 123.0840132 | DX48: 128.7524441 | DY48: 130.6253619 | DZ48: 111.4702101 | EA48: 100.7363664 | EB48: 111.242119 | EC48: 105.4514176 | ED48: 103.5766362 | EE48: 118.0840612 | EF48: 129.5948114 | EG48: 124.299254 | EH48: 128.6598603 | EK48: 19 | EL48: 118.2625223 | EM48: 128.3641881 | EN48: 126.9642877 | EO48: 108.2578386 | EP48: 93.47679896 | EQ48: 100.7822881 | ER48: 95.6039566 | ES48: 91.91177671 | ET48: 110.0525695 | EU48: 121.9702317 | EV48: 124.3471246 | EW48: 132.9362408 | EY48: 123.5520655 | EZ48: 129.2115055 | FA48: 131.1894929 | FB48: 111.7744001 | FC48: 100.8386855 | FD48: 111.5249735 | FE48: 105.7428814 | FF48: 103.839489 | FG48: 118.4135056 | FH48: 129.5074059 | FI48: 124.1295992 | FJ48: 128.5224592 | FL48: 123.0840132 | FM48: 128.7524441 | FN48: 130.6253619 | FO48: 111.4702101 | FP48: 100.7363664 | FQ48: 111.242119 | FR48: 105.4514176 | FS48: 103.5766362 | FT48: 118.0840612 | FU48: 129.5948114 | FV48: 124.299254 | FW48: 128.6598603
P49: 20 | Q49: 101.9936896 | R49: 103.3612101 | S49: 108.8077389 | T49: 108.9646779 | U49: 105.0408308 | V49: 104.1794729 | W49: 95.75154751 | X49: 90.75781573 | Y49: 97.20447529 | Z49: 99.85352626 | AA49: 101.0596052 | AB49: 106.3463751 | AE49: 20 | AF49: 98.23770238 | AG49: 100.8360403 | AH49: 104.9787596 | AI49: 105.8713219 | AJ49: 96.5892133 | AK49: 93.63161079 | AL49: 86.54786141 | AM49: 81.00426858 | AN49: 90.367662 | AO49: 95.05588309 | AP49: 101.302888 | AQ49: 109.6313846 | AS49: 102.3639754 | AT49: 103.7098546 | AU49: 109.2541396 | AV49: 109.3036116 | AW49: 105.1448997 | AX49: 104.4381766 | AY49: 96.007656 | AZ49: 90.98179325 | BA49: 97.46726278 | BB49: 99.97812483 | BC49: 100.9785361 | BD49: 106.2423572 | BF49: 101.9936896 | BG49: 103.3612101 | BH49: 108.8077389 | BI49: 108.9646779 | BJ49: 105.0408308 | BK49: 104.1794729 | BL49: 95.75154751 | BM49: 90.75781573 | BN49: 97.20447529 | BO49: 99.85352626 | BP49: 101.0596052 | BQ49: 106.3463751 | BS49: 20 | BT49: 84.48303293 | BU49: 85.48548551 | BV49: 89.58633846 | BW49: 89.86162968 | BX49: 86.8776463 | BY49: 86.26439138 | BZ49: 79.75945048 | CA49: 75.86333942 | CB49: 80.79488216 | CC49: 82.81777433 | CD49: 83.66264741 | CE49: 87.68603046 | CH49: 20 | CI49: 81.61144441 | CJ49: 83.56930121 | CK49: 86.66742708 | CL49: 87.5096446 | CM49: 80.3646839 | CN49: 78.12554143 | CO49: 72.65076877 | CP49: 68.32878894 | CQ49: 75.53199731 | CR49: 79.13985994 | CS49: 83.90063097 | CT49: 90.2728633 | CV49: 84.77663154 | CW49: 85.76168077 | CX49: 89.93880596 | CY49: 90.13020403 | CZ49: 86.96045782 | DA49: 86.47024787 | DB49: 79.96360911 | DC49: 76.04175501 | DD49: 81.0038763 | DE49: 82.9167187 | DF49: 83.59858025 | DG49: 87.60374732 | DI49: 84.48303293 | DJ49: 85.48548551 | DK49: 89.58633846 | DL49: 89.86162968 | DM49: 86.8776463 | DN49: 86.26439138 | DO49: 79.75945048 | DP49: 75.86333942 | DQ49: 80.79488216 | DR49: 82.81777433 | DS49: 83.66264741 | DT49: 87.68603046 | DV49: 20 | DW49: 112.0505457 | DX49: 113.6310627 | DY49: 119.885205 | DZ49: 120.0047125 | EA49: 115.508762 | EB49: 114.5065678 | EC49: 104.8891753 | ED49: 99.20606 | EE49: 106.5798172 | EF49: 109.6111214 | EG49: 111.0193868 | EH49: 117.0748879 | EK49: 20 | EL49: 107.7529094 | EM49: 110.7360608 | EN49: 115.5009285 | EO49: 116.4596714 | EP49: 105.8597676 | EQ49: 102.4678872 | ER49: 94.38734556 | ES49: 88.07702421 | ET49: 98.77193141 | EU49: 104.1261229 | EV49: 111.2751455 | EW49: 120.8017476 | EY49: 112.4687623 | EZ49: 114.0249197 | FA49: 120.3899102 | FB49: 120.3874008 | FC49: 115.6261211 | FD49: 114.7983355 | FE49: 105.1778885 | FF49: 99.45861152 | FG49: 106.8762633 | FH49: 109.7517427 | FI49: 110.9277735 | FJ49: 116.9573491 | FL49: 112.0505457 | FM49: 113.6310627 | FN49: 119.885205 | FO49: 120.0047125 | FP49: 115.508762 | FQ49: 114.5065678 | FR49: 104.8891753 | FS49: 99.20606 | FT49: 106.5798172 | FU49: 109.6111214 | FV49: 111.0193868 | FW49: 117.0748879
P50: 21 | Q50: 96.9857737 | R50: 99.51016254 | S50: 96.29437613 | T50: 96.96146774 | U50: 92.99420012 | V50: 92.98866938 | W50: 89.65216902 | X50: 81.55617136 | Y50: 85.02306492 | Z50: 89.26419745 | AA50: =OFFSET(AP50,0,$R$55) -> 96.33525716 | AB50: 99.66641347 | AE50: 21 | AF50: 94.36570522 | AG50: 97.17407876 | AH50: 93.5326282 | AI50: 94.60750501 | AJ50: 85.14943504 | AK50: 82.85223981 | AL50: 80.94025633 | AM50: 72.28848106 | AN50: 78.2342532 | AO50: 85.03897893 | AP50: 96.43691341 | AQ50: 102.6522495 | AS50: 97.33596046 | AT50: 99.84718287 | AU50: 96.54570811 | AV50: 97.06384075 | AW50: 92.94353653 | AX50: 93.21795954 | AY50: 89.89000007 | AZ50: 81.75285969 | BA50: 85.24773507 | BB50: 89.21583946 | BC50: 96.40134428 | BD50: 99.78750113 | BF50: 96.9857737 | BG50: 99.51016254 | BH50: 96.29437613 | BI50: 96.96146774 | BJ50: 92.99420012 | BK50: 92.98866938 | BL50: 89.65216902 | BM50: 81.55617136 | BN50: 85.02306492 | BO50: 89.26419745 | BP50: 96.33525716 | BQ50: 99.66641347 | BS50: 21 | BT50: 80.6011657 | BU50: 82.50315304 | BV50: 79.91519179 | BW50: 80.57608338 | BX50: 77.54006645 | BY50: 77.57961104 | BZ50: 75.02345414 | CA50: 68.71795029 | CB50: 71.34891011 | CC50: =OFFSET(CR50,0,$R$55) -> 74.61154902 | CD50: 80.00548066 | CE50: 82.51704663 | CH50: 21 | CI50: 78.609903 | CJ50: 80.7333307 | CK50: 77.81807226 | CL50: 78.79002126 | CM50: 71.48698919 | CN50: 69.743939 | CO50: 68.28971026 | CP50: 61.5484132 | CQ50: 66.11575756 | CR50: 71.36886673 | CS50: 80.13310605 | CT50: 84.87685893 | CV50: 80.8787843 | CW50: 82.77014007 | CX50: 80.11398285 | CY50: 80.65750937 | CZ50: 77.49969248 | DA50: 77.7623324 | DB50: 75.21302588 | DC50: 68.87441601 | DD50: 71.52748612 | DE50: 74.57310829 | DF50: 80.05783676 | DG50: 82.61273329 | DI50: 80.6011657 | DJ50: 82.50315304 | DK50: 79.91519179 | DL50: 80.57608338 | DM50: 77.54006645 | DN50: 77.57961104 | DO50: 75.02345414 | DP50: 68.71795029 | DQ50: 71.34891011 | DR50: 74.61154902 | DS50: 80.00548066 | DT50: 82.51704663 | DV50: 21 | DW50: 106.3417176 | DX50: 109.2399713 | DY50: 105.6097207 | DZ50: 106.3144331 | EA50: 101.7765254 | EB50: 101.7536359 | EC50: 97.93934254 | ED50: 88.72160802 | EE50: 92.69514308 | EF50: =OFFSET(EU50,0,$R$55) -> 97.5392947 | EG50: 105.6328577 | EH50: 109.457607 | EK50: 21 | EL50: 103.3389821 | EM50: 106.5605325 | EN50: 102.4440069 | EO50: 103.6159232 | EP50: 92.82427004 | EQ50: 90.1914736 | ER50: 88.00150559 | ES50: 78.15191898 | ET50: 84.94561805 | EU50: 92.71111118 | EV50: 105.7274117 | EW50: 112.8408459 | EY50: 106.7372497 | EZ50: 109.6206965 | FA50: 105.8937424 | FB50: 106.4299022 | FC50: 101.7194194 | FD50: 102.0121203 | FE50: 98.20745772 | FF50: 88.94346763 | FG50: 92.94862811 | FH50: 97.48473664 | FI50: 105.7075023 | FJ50: 109.594494 | FL50: 106.3417176 | FM50: 109.2399713 | FN50: 105.6097207 | FO50: 106.3144331 | FP50: 101.7765254 | FQ50: 101.7536359 | FR50: 97.93934254 | FS50: 88.72160802 | FT50: 92.69514308 | FU50: 97.5392947 | FV50: 105.6328577 | FW50: 109.457607
P51: 22 | Q51: =OFFSET(AF51,0,$R$55) -> 88.23084308 | R51: 90.29711105 | S51: 86.22154212 | T51: 86.85491993 | U51: 82.30932674 | V51: 79.8273515 | W51: 83.38384133 | X51: 80.46500854 | Y51: 79.59786003 | Z51: 83.75849114 | AA51: 87.97484556 | AB51: 92.43275328 | AE51: 22 | AF51: 85.79627946 | AG51: 87.77867259 | AH51: 84.93743315 | AI51: 85.01025951 | AJ51: 75.74554961 | AK51: 71.07397062 | AL51: 74.67530838 | AM51: 71.84955747 | AN51: 74.7764649 | AO51: 79.53157338 | AP51: 87.30895702 | AQ51: 93.97643138 | AS51: 88.38438391 | AT51: 90.45463113 | AU51: 86.3698415 | AV51: 86.99993978 | AW51: 82.4365972 | AX51: 80.22772026 | AY51: 83.77283571 | AZ51: 80.87389984 | BA51: 79.96446044 | BB51: 83.89954403 | BC51: 87.92809108 | BD51: 92.35786715 | BF51: 88.23084308 | BG51: 90.29711105 | BH51: 86.22154212 | BI51: 86.85491993 | BJ51: 82.30932674 | BK51: 79.8273515 | BL51: 83.38384133 | BM51: 80.46500854 | BN51: 79.59786003 | BO51: 83.75849114 | BP51: 87.97484556 | BQ51: 92.43275328 | BS51: 22 | BT51: =OFFSET(CI51,0,$R$55) -> 73.97758441 | BU51: 75.36724044 | BV51: 72.12385656 | BW51: 72.74251145 | BX51: 69.24849953 | BY51: 67.35897523 | BZ51: 70.15100556 | CA51: 67.86684421 | CB51: 67.13646649 | CC51: 70.3387983 | CD51: 73.53222906 | CE51: 76.92218773 | CH51: 22 | CI51: 72.13134671 | CJ51: 73.45555179 | CK51: 71.16922322 | CL51: 71.35197381 | CM51: 64.18859912 | CN51: 60.59519822 | CO51: 63.42091117 | CP51: 61.2082147 | CQ51: 63.43237893 | CR51: 67.09787279 | CS51: 73.05318012 | CT51: 78.15224121 | CV51: 74.09954865 | CW51: 75.49195969 | CX51: 72.24103019 | CY51: 72.85786684 | CZ51: 69.34973255 | DA51: 67.67756613 | DB51: 70.4608355 | DC51: 68.19205653 | DD51: 67.42747871 | DE51: 70.45068883 | DF51: 73.49519798 | DG51: 76.86305578 | DI51: 73.97758441 | DJ51: 75.36724044 | DK51: 72.12385656 | DL51: 72.74251145 | DM51: 69.24849953 | DN51: 67.35897523 | DO51: 70.15100556 | DP51: 67.86684421 | DQ51: 67.13646649 | DR51: 70.3387983 | DS51: 73.53222906 | DT51: 76.92218773 | DV51: 22 | DW51: =OFFSET(EL51,0,$R$55) -> 96.30018699 | DX51: 98.73537178 | DY51: 94.12087861 | DZ51: 94.79365863 | EA51: 89.60076626 | EB51: 86.75864097 | EC51: 90.79972168 | ED51: 87.48068164 | EE51: 86.51412884 | EF51: 91.26580007 | EG51: 96.09996455 | EH51: 101.2069884 | EK51: 22 | EL51: 93.50830083 | EM51: 95.84808178 | EN51: 92.64054552 | EO51: 92.67497833 | EP51: 82.10734426 | EQ51: 76.77165059 | ER51: 80.86433927 | ES51: 77.65154422 | ET51: 81.00497789 | EU51: 86.43351351 | EV51: 95.32660831 | EW51: 102.9539856 | EY51: 96.47352362 | EZ51: 98.91334804 | FA51: 94.28851514 | FB51: 94.95722407 | FC51: 89.74431063 | FD51: 87.21016056 | FE51: 91.23833489 | FF51: 87.94192589 | FG51: 86.92788697 | FH51: 91.42504337 | FI51: 96.04715787 | FJ51: 101.1223194 | FL51: 96.30018699 | FM51: 98.73537178 | FN51: 94.12087861 | FO51: 94.79365863 | FP51: 89.60076626 | FQ51: 86.75864097 | FR51: 90.79972168 | FS51: 87.48068164 | FT51: 86.51412884 | FU51: 91.26580007 | FV51: 96.09996455 | FW51: 101.2069884
P52: 23 | Q52: 80.31788923 | R52: 80.97489795 | S52: 77.69944898 | T52: 76.85710171 | U52: 73.20769059 | V52: 74.78884444 | W52: 75.42848072 | X52: 76.69943981 | Y52: 77.41502497 | Z52: 76.58587772 | AA52: 81.96421127 | AB52: 86.96321005 | AE52: 23 | AF52: 78.09906855 | AG52: 78.46657325 | AH52: 76.070955 | AI52: 75.03679811 | AJ52: 70.28369896 | AK52: 70.01663508 | AL52: 68.65389716 | AM52: 70.98318927 | AN52: 73.78079537 | AO52: 72.89120511 | AP52: 81.5497671 | AQ52: 88.15765962 | AS52: 80.45474795 | AT52: 81.11315645 | AU52: 77.83000944 | AV52: 76.98228329 | AW52: 73.31757458 | AX52: 75.02597366 | AY52: 75.66903234 | AZ52: 76.9459899 | BA52: 77.66466424 | BB52: 76.71229834 | BC52: 82.10288547 | BD52: 87.11432512 | BF52: 80.31788923 | BG52: 80.97489795 | BH52: 77.69944898 | BI52: 76.85710171 | BJ52: 73.20769059 | BK52: 74.78884444 | BL52: 75.42848072 | BM52: 76.69943981 | BN52: 77.41502497 | BO52: 76.58587772 | BP52: 81.96421127 | BQ52: 86.96321005 | BS52: 23 | BT52: 67.67210842 | BU52: 68.14126073 | BV52: 65.52296969 | BW52: 64.98899813 | BX52: 62.18016635 | BY52: 63.44467256 | BZ52: 64.11390713 | CA52: 64.94077723 | CB52: 65.4425849 | CC52: 64.77260339 | CD52: 68.87331342 | CE52: 72.68682817 | CH52: 23 | CI52: 65.99119552 | CJ52: 66.23638198 | CK52: 64.30226743 | CL52: 63.61700713 | CM52: 59.94924816 | CN52: 59.77234953 | CO52: 58.88324051 | CP52: 60.53322159 | CQ52: 62.65879406 | CR52: 61.94431647 | CS52: 68.59282976 | CT52: 73.65165757 | CV52: 67.78011305 | CW52: 68.25041937 | CX52: 65.62560524 | CY52: 65.08831822 | CZ52: 62.26709965 | DA52: 63.63291619 | DB52: 64.30540559 | DC52: 65.13657038 | DD52: 65.64059342 | DE52: 64.87251668 | DF52: 68.98292782 | DG52: 72.80602857 | DI52: 67.67210842 | DJ52: 68.14126073 | DK52: 65.52296969 | DL52: 64.98899813 | DM52: 62.18016635 | DN52: 63.44467256 | DO52: 64.11390713 | DP52: 64.94077723 | DQ52: 65.4425849 | DR52: 64.77260339 | DS52: 68.87331342 | DT52: 72.68682817 | DV52: 23 | DW52: 87.34428638 | DX52: 88.10838366 | DY52: 84.40418113 | DZ52: 83.39814102 | EA52: 79.2303212 | EB52: 81.01831909 | EC52: 81.68233943 | ED52: 83.19084776 | EE52: 84.02651607 | EF52: 83.09178246 | EG52: 89.24884109 | EH52: 94.97118863 | EK52: 23 | EL52: 84.79891808 | EM52: 85.23284411 | EN52: 82.53077188 | EO52: 81.30715532 | EP52: 75.88282962 | EQ52: 75.56754203 | ER52: 73.95116582 | ES52: 76.6651954 | ET52: 79.87061237 | EU52: 78.86594897 | EV52: 88.7598361 | EW52: 96.31700969 | EY52: 87.49904919 | EZ52: 88.26471232 | FA52: 84.55196009 | FB52: 83.53942598 | FC52: 79.35442495 | FD52: 81.28591734 | FE52: 81.9536167 | FF52: 83.46908328 | FG52: 84.30833175 | FH52: 83.23464416 | FI52: 89.4055656 | FJ52: 95.14210413 | FL52: 87.34428638 | FM52: 88.10838366 | FN52: 84.40418113 | FO52: 83.39814102 | FP52: 79.2303212 | FQ52: 81.01831909 | FR52: 81.68233943 | FS52: 83.19084776 | FT52: 84.02651607 | FU52: 83.09178246 | FV52: 89.24884109 | FW52: 94.97118863
P53: 24 | Q53: 75.04012586 | R53: 76.04637234 | S53: 70.22125951 | T53: 75.23120175 | U53: 66.71256964 | V53: 71.16822905 | W53: 71.8803282 | X53: 71.57723782 | Y53: 74.20960658 | Z53: 75.1803482 | AA53: 76.12429091 | AB53: 79.2952773 | AE53: 24 | AF53: 72.53420583 | AG53: 73.79328291 | AH53: 69.05837788 | AI53: 73.83941513 | AJ53: 70.57722765 | AK53: 66.53804975 | AL53: 65.45774332 | AM53: 65.41862249 | AN53: 71.74575764 | AO53: 72.04741995 | AP53: 75.66650961 | AQ53: 80.1743564 | AS53: 75.16564953 | AT53: 76.17412256 | AU53: 70.33431431 | AV53: 75.35299635 | AW53: 66.80888846 | AX53: 71.39013172 | AY53: 72.10624712 | AZ53: 71.80287828 | BA53: 74.44631279 | BB53: 75.30322799 | BC53: 76.25078391 | BD53: 79.43022749 | BF53: 75.04012586 | BG53: 76.04637234 | BH53: 70.22125951 | BI53: 75.23120175 | BJ53: 66.71256964 | BK53: 71.16822905 | BL53: 71.8803282 | BM53: 71.57723782 | BN53: 74.20960658 | BO53: 75.1803482 | BP53: 76.12429091 | BQ53: 79.2952773 | BS53: 24 | BT53: 63.57154618 | BU53: 64.31388665 | BV53: 59.7304868 | BW53: 63.72457527 | BX53: 57.13350453 | BY53: 60.62650575 | BZ53: 61.20494803 | CA53: 60.96955711 | CB53: 62.95164619 | CC53: 63.67939393 | CD53: 64.34401232 | CE53: 66.74714102 | CH53: 24 | CI53: 61.6669864 | CJ53: 62.60625055 | CK53: 58.87131993 | CL53: 62.68470186 | CM53: 60.17485708 | CN53: 57.06760326 | CO53: 56.24973397 | CP53: 56.22163342 | CQ53: 61.07653633 | CR53: 61.28884817 | CS53: 64.03182327 | CT53: 67.47111328 | CV53: 63.67011085 | CW53: 64.4142377 | CX53: 59.81885922 | CY53: 63.8210005 | CZ53: 57.20922593 | DA53: 60.8018475 | DB53: 61.38350682 | DC53: 61.14767332 | DD53: 63.13885296 | DE53: 63.77632416 | DF53: 64.44352904 | DG53: 66.85305211 | DI53: 63.57154618 | DJ53: 64.31388665 | DK53: 59.7304868 | DL53: 63.72457527 | DM53: 57.13350453 | DN53: 60.62650575 | DO53: 61.20494803 | DP53: 60.96955711 | DQ53: 62.95164619 | DR53: 63.67939393 | DS53: 64.34401232 | DT53: 66.74714102 | DV53: 24 | DW53: 81.33139661 | DX53: 82.49271259 | DY53: 75.87707359 | DZ53: 81.54625807 | EA53: 71.83038666 | EB53: 76.89529473 | EC53: 77.69725122 | ED53: 77.35210395 | EE53: 80.37487104 | EF53: 81.4907175 | EG53: 82.59251944 | EH53: 86.22849981 | EK53: 24 | EL53: 78.45900293 | EM53: 79.90827427 | EN53: 74.53414863 | EO53: 79.94374662 | EP53: 76.21838824 | EQ53: 71.60478434 | ER53: 70.36592888 | ES53: 70.32057509 | ET53: 77.55252313 | EU53: 77.90433179 | EV53: 82.05325671 | EW53: 87.21331415 | EY53: 81.4735234 | EZ53: 82.63734981 | FA53: 76.00518404 | FB53: 81.6837975 | FC53: 71.93932437 | FD53: 77.14599899 | FE53: 77.95249812 | FF53: 77.60714116 | FG53: 80.6422888 | FH53: 81.6296333 | FI53: 82.73565058 | FJ53: 86.38133284 | FL53: 81.33139661 | FM53: 82.49271259 | FN53: 75.87707359 | FO53: 81.54625807 | FP53: 71.83038666 | FQ53: 76.89529473 | FR53: 77.69725122 | FS53: 77.35210395 | FT53: 80.37487104 | FU53: 81.4907175 | FV53: 82.59251944 | FW53: 86.22849981
Q55: Utility Match | R55: =MATCH(Inputs!$C$4,'PLS Inputs'!$AF$4:$BQ$4,0)-1 -> 26
B57: Generation ($/kW-yr)
C58: 2018 | D58: =C58+1 -> 2019 | E58: =D58+1 -> 2020 | F58: 2021 | G58: 2022 | H58: 2023 | I58: 2024 | J58: 2025 | K58: 2026 | L58: 2027 | M58: 2028 | N58: 2029 | O58: 2030 | P58: 2031 | Q58: 2032 | R58: 2033 | S58: 2034 | T58: 2035 | U58: 2036 | V58: 2037 | W58: 2038 | X58: 2039 | Y58: 2040 | Z58: 2041 | AA58: 2042 | AB58: 2043 | AC58: 2044 | AD58: 2045 | AE58: 2046
B59: Statewide | C59: 106.6194261 | D59: 113.2033144 | E59: 116.2647498 | F59: 118.9799564 | G59: 121.0105153 | H59: 114.7694172 | I59: 108.5557965 | J59: 102.3126665 | K59: 96.07833557 | L59: 94.89905102 | M59: 96.48021638 | N59: 98.0173197 | O59: 98.86838228 | P59: 101.1758173 | Q59: 99.70348079 | R59: 98.84387242 | S59: 98.02352335 | T59: 97.17496482 | U59: 96.85804465 | V59: 96.41447806 | W59: 97.22644602 | X59: 96.45037554 | Y59: 92.42837978 | Z59: 86.14040445 | AA59: 86.73679155 | AB59: 87.37481693 | AC59: 88.03112097 | AD59: 88.72445265 | AE59: 89.44928125
B61: Transmission Deferral ($/kW-yr)
C62: 2018 | D62: =C62+1 -> 2019 | E62: =D62+1 -> 2020 | F62: 2021 | G62: 2022 | H62: 2023 | I62: 2024 | J62: 2025 | K62: 2026 | L62: 2027 | M62: 2028 | N62: 2029 | O62: 2030 | P62: 2031 | Q62: 2032 | R62: 2033 | S62: 2034 | T62: 2035 | U62: 2036 | V62: 2037 | W62: 2038 | X62: 2039 | Y62: 2040 | Z62: 2041 | AA62: 2042 | AB62: 2043 | AC62: 2044 | AD62: 2045 | AE62: 2046 | AF62: 2047
B63: PG&E | C63: 39.37704524 | D63: 40.16458614 | E63: 40.96787787 | F63: 41.78723542 | G63: 42.62298013 | H63: 43.47543973 | I63: 44.34494853 | J63: 45.2318475 | K63: 46.13648445 | L63: 47.05921414 | M63: 48.00039842 | N63: 48.96040639 | O63: 49.93961452 | P63: 50.93840681 | Q63: 51.95717494 | R63: 52.99631844 | S63: 54.05624481 | T63: 55.13736971 | U63: 56.2401171 | V63: 57.36491944 | W63: 58.51221783 | X63: 59.68246219 | Y63: 60.87611143 | Z63: 62.09363366 | AA63: 63.33550633 | AB63: 64.60221646 | AC63: 65.89426079 | AD63: 67.21214601 | AE63: 68.55638893 | AF63: 69.92751671
B64: SCE | C64: 33.4691169 | D64: 34.13849924 | E64: 34.82126922 | F64: 35.51769461 | G64: 36.2280485 | H64: 36.95260947 | I64: 37.69166166 | J64: 38.44549489 | K64: 39.21440479 | L64: 39.99869288 | M64: 40.79866674 | N64: 41.61464008 | O64: 42.44693288 | P64: 43.29587153 | Q64: 44.16178897 | R64: 45.04502474 | S64: 45.94592524 | T64: 46.86484374 | U64: 47.80214062 | V64: 48.75818343 | W64: 49.7333471 | X64: 50.72801404 | Y64: 51.74257432 | Z64: 52.77742581 | AA64: 53.83297433 | AB64: 54.90963381 | AC64: 56.00782649 | AD64: 57.12798302 | AE64: 58.27054268 | AF64: 59.43595353
B65: SDG&E | C65: 0 | D65: 0 | E65: 0 | F65: 0 | G65: 0 | H65: 0 | I65: 0 | J65: 0 | K65: 0 | L65: 0 | M65: 0 | N65: 0 | O65: 0 | P65: 0 | Q65: 0 | R65: 0 | S65: 0 | T65: 0 | U65: 0 | V65: 0 | W65: 0 | X65: 0 | Y65: 0 | Z65: 0 | AA65: 0 | AB65: 0 | AC65: 0 | AD65: 0 | AE65: 0 | AF65: 0
B66: =OFFSET(B62,MATCH(Inputs!$C$4,Inputs!$H$22:$H$24,0),0) -> SDG&E | C66: =OFFSET(C62,Inputs!$O$56,0) -> 0 | D66: =OFFSET(D62,Inputs!$O$56,0) -> 0 | E66: =OFFSET(E62,Inputs!$O$56,0) -> 0 | F66: =OFFSET(F62,Inputs!$O$56,0) -> 0 | G66: =OFFSET(G62,Inputs!$O$56,0) -> 0 | H66: =OFFSET(H62,Inputs!$O$56,0) -> 0 | I66: =OFFSET(I62,Inputs!$O$56,0) -> 0 | J66: =OFFSET(J62,Inputs!$O$56,0) -> 0 | K66: =OFFSET(K62,Inputs!$O$56,0) -> 0 | L66: =OFFSET(L62,Inputs!$O$56,0) -> 0 | M66: =OFFSET(M62,Inputs!$O$56,0) -> 0 | N66: =OFFSET(N62,Inputs!$O$56,0) -> 0 | O66: =OFFSET(O62,Inputs!$O$56,0) -> 0 | P66: =OFFSET(P62,Inputs!$O$56,0) -> 0 | Q66: =OFFSET(Q62,Inputs!$O$56,0) -> 0 | R66: =OFFSET(R62,Inputs!$O$56,0) -> 0 | S66: =OFFSET(S62,Inputs!$O$56,0) -> 0 | T66: =OFFSET(T62,Inputs!$O$56,0) -> 0 | U66: =OFFSET(U62,Inputs!$O$56,0) -> 0 | V66: =OFFSET(V62,Inputs!$O$56,0) -> 0 | W66: =OFFSET(W62,Inputs!$O$56,0) -> 0 | X66: =OFFSET(X62,Inputs!$O$56,0) -> 0 | Y66: =OFFSET(Y62,Inputs!$O$56,0) -> 0 | Z66: =OFFSET(Z62,Inputs!$O$56,0) -> 0 | AA66: =OFFSET(AA62,Inputs!$O$56,0) -> 0 | AB66: =OFFSET(AB62,Inputs!$O$56,0) -> 0 | AC66: =OFFSET(AC62,Inputs!$O$56,0) -> 0 | AD66: =OFFSET(AD62,Inputs!$O$56,0) -> 0 | AE66: =OFFSET(AE62,Inputs!$O$56,0) -> 0 | AF66: =OFFSET(AF62,Inputs!$O$56,0) -> 0
B68: Distribution Deferral ($/kW-yr)
C69: 2018 | D69: =C69+1 -> 2019 | E69: =D69+1 -> 2020 | F69: 2021 | G69: 2022 | H69: 2023 | I69: 2024 | J69: 2025 | K69: 2026 | L69: 2027 | M69: 2028 | N69: 2029 | O69: 2030 | P69: 2031 | Q69: 2032 | R69: 2033 | S69: 2034 | T69: 2035 | U69: 2036 | V69: 2037 | W69: 2038 | X69: 2039 | Y69: 2040 | Z69: 2041 | AA69: 2042 | AB69: 2043 | AC69: 2044 | AD69: 2045 | AE69: 2046 | AF69: 2047
B70: PG&E | C70: 96.2690297 | D70: 98.19441029 | E70: 100.1582985 | F70: 102.1614645 | G70: 104.2046938 | H70: 106.2887876 | I70: 108.4145634 | J70: 110.5828547 | K70: 112.7945117 | L70: 115.050402 | M70: 117.35141 | N70: 119.6984382 | O70: 122.092407 | P70: 124.5342551 | Q70: 127.0249402 | R70: 129.565439 | S70: 132.1567478 | T70: 134.7998828 | U70: 137.4958804 | V70: 140.245798 | W70: 143.050714 | X70: 145.9117283 | Y70: 148.8299628 | Z70: 151.8065621 | AA70: 154.8426933 | AB70: 157.9395472 | AC70: 161.0983381 | AD70: 164.3203049 | AE70: 167.606711 | AF70: 170.9588452
B71: SCE | C71: 108.3669192 | D71: 110.5342576 | E71: 112.7449428 | F71: 114.9998416 | G71: 117.2998385 | H71: 119.6458352 | I71: 122.0387519 | J71: 124.479527 | K71: 126.9691175 | L71: 129.5084999 | M71: 132.0986699 | N71: 134.7406433 | O71: 137.4354561 | P71: 140.1841653 | Q71: 142.9878486 | R71: 145.8476055 | S71: 148.7645576 | T71: 151.7398488 | U71: 154.7746458 | V71: 157.8701387 | W71: 161.0275415 | X71: 164.2480923 | Y71: 167.5330541 | Z71: 170.8837152 | AA71: 174.3013895 | AB71: 177.7874173 | AC71: 181.3431657 | AD71: 184.970029 | AE71: 188.6694295 | AF71: 192.4428181
B72: SDG&E | C72: 108.5265017 | D72: 110.6970317 | E72: 112.9109724 | F72: 115.1691918 | G72: 117.4725756 | H72: 119.8220271 | I72: 122.2184677 | J72: 124.662837 | K72: 127.1560938 | L72: 129.6992157 | M72: 132.2932 | N72: 134.939064 | O72: 137.6378453 | P72: 140.3906022 | Q72: 143.1984142 | R72: 146.0623825 | S72: 148.9836301 | T72: 151.9633027 | U72: 155.0025688 | V72: 158.1026202 | W72: 161.2646726 | X72: 164.489966 | Y72: 167.7797653 | Z72: 171.1353606 | AA72: 174.5580679 | AB72: 178.0492292 | AC72: 181.6102138 | AD72: 185.2424181 | AE72: 188.9472664 | AF72: 192.7262118
B73: =OFFSET(B69,MATCH(Inputs!$C$4,Inputs!$H$22:$H$24,0),0) -> SDG&E | C73: =OFFSET(C69,Inputs!$O$56,0) -> 108.5265017 | D73: =OFFSET(D69,Inputs!$O$56,0) -> 110.6970317 | E73: =OFFSET(E69,Inputs!$O$56,0) -> 112.9109724 | F73: =OFFSET(F69,Inputs!$O$56,0) -> 115.1691918 | G73: =OFFSET(G69,Inputs!$O$56,0) -> 117.4725756 | H73: =OFFSET(H69,Inputs!$O$56,0) -> 119.8220271 | I73: =OFFSET(I69,Inputs!$O$56,0) -> 122.2184677 | J73: =OFFSET(J69,Inputs!$O$56,0) -> 124.662837 | K73: =OFFSET(K69,Inputs!$O$56,0) -> 127.1560938 | L73: =OFFSET(L69,Inputs!$O$56,0) -> 129.6992157 | M73: =OFFSET(M69,Inputs!$O$56,0) -> 132.2932 | N73: =OFFSET(N69,Inputs!$O$56,0) -> 134.939064 | O73: =OFFSET(O69,Inputs!$O$56,0) -> 137.6378453 | P73: =OFFSET(P69,Inputs!$O$56,0) -> 140.3906022 | Q73: =OFFSET(Q69,Inputs!$O$56,0) -> 143.1984142 | R73: =OFFSET(R69,Inputs!$O$56,0) -> 146.0623825 | S73: =OFFSET(S69,Inputs!$O$56,0) -> 148.9836301 | T73: =OFFSET(T69,Inputs!$O$56,0) -> 151.9633027 | U73: =OFFSET(U69,Inputs!$O$56,0) -> 155.0025688 | V73: =OFFSET(V69,Inputs!$O$56,0) -> 158.1026202 | W73: =OFFSET(W69,Inputs!$O$56,0) -> 161.2646726 | X73: =OFFSET(X69,Inputs!$O$56,0) -> 164.489966 | Y73: =OFFSET(Y69,Inputs!$O$56,0) -> 167.7797653 | Z73: =OFFSET(Z69,Inputs!$O$56,0) -> 171.1353606 | AA73: =OFFSET(AA69,Inputs!$O$56,0) -> 174.5580679 | AB73: =OFFSET(AB69,Inputs!$O$56,0) -> 178.0492292 | AC73: =OFFSET(AC69,Inputs!$O$56,0) -> 181.6102138 | AD73: =OFFSET(AD69,Inputs!$O$56,0) -> 185.2424181 | AE73: =OFFSET(AE69,Inputs!$O$56,0) -> 188.9472664 | AF73: =OFFSET(AF69,Inputs!$O$56,0) -> 192.7262118

Sheet Summary
A1: DR COST EFFECTIVENESS REPORT
D2: Note: results highlighted in yellow have changed slightly from those in the work papers originally provided
C4: BIP | D4: CBP_DA | E4: CBP_DO | F4: ACS_DO | G4: ACS_DA | H4: AFP | I4: Portfolio | J4: PLS
B5: Benefit/Cost Ratio
B6: TRC | C6: =INDIRECT("'" & C$4 & "'!$I$6") -> 1.368835886 | D6: 0.9367819747 | E6: 0.7790394494 | F6: 0.7483127655 | G6: 1.066270742 | H6: 0.4654813911 | I6: =INDIRECT("'" & I$4 & "'!$i$6") -> 0.7511362851 | J6: =INDIRECT("'" & J$4 & "'!$G$6") -> 0.2069683385
B7: PAC | C7: =INDIRECT("'" & C$4 & "'!$I$7") -> 1.141716048 | D7: 0.8611337157 | E7: 0.7173006155 | F7: 0.5739768552 | G7: 1.098384032 | H7: 0.4713268898 | I7: =INDIRECT("'" & I$4 & "'!$i$7") -> 0.6862816976 | J7: =INDIRECT("'" & J$4 & "'!$G$7") -> 0.4854872717 | L7: TO Add PLS or DR Program
B8: RIM | C8: =INDIRECT("'" & C$4 & "'!$I$8") -> 1.133049669 | D8: 0.7803614917 | E8: 0.669720776 | F8: 0.5528407228 | G8: 1.02573378 | H8: 0.4167575271 | I8: =INDIRECT("'" & I$4 & "'!$i$8") -> 0.65186232 | J8: =INDIRECT("'" & J$4 & "'!$G$8") -> 0.225449597 | L8: Copy either DR or PLS program sheet (e.g. BIP Example or PLS Example) and rename
B9: PCT | C9: =INDIRECT("'" & C$4 & "'!$I$9") -> 1.333333333 | D9: 1.333333333 | E9: 1.333333333 | F9: 2.857142857 | G9: 1.211981372 | H9: 1.333333333 | I9: =INDIRECT("'" & I$4 & "'!$i$9") -> 1.555032468 | J9: =INDIRECT("'" & J$4 & "'!$G$9") -> 0.8987854651 | L9: On summary tab, insert a column between program columns and last portfolio column
B10: Load Impacts (MW) 2018, 12 month simple avg. | C10: =AVERAGE(INDIRECT("'" & C$4 & "'!$P$58:$AA$58")) -> 6.333975205 | D10: 3.8353384 | E10: 2.2763652 | F10: 4.25161025 | G10: 4.64930661 | H10: 1.183086268 | I10: =AVERAGE(INDIRECT("'" & I$4 & "'!$l$58:$w$58")) -> 22.0410447 | J10: =AVERAGE(INDIRECT("'" & J$4 & "'!$F$59:$y$59")) -> 0.8564049934 | L10: Copy column C (e.g. BIP Example) and paste into added column
B11: Energy Savings (MWh) 2018 sum | C11: =SUM(INDIRECT("'" & C$4 & "'!$P$59:$AA$59")) -> 59.43131684 | D11: 398.8751936 | E11: 218.5310592 | F11: 389.9491884 | G11: 408.7474778 | H11: 247.7332706 | I11: =SUM(INDIRECT("'" & I$4 & "'!$P$59:$AA$59")) -> 0 | L11: Change label in Row 2 (e.g. from "BIP Example") to name of added tab. (Must be exactly the same)
B13: $ Million | L13: INDIRECT Excel references will update the Summary results automatically
B14: TRC Costs | C14: =(INDIRECT("'" & C$4 & "'!$D$6"))/10^6 -> 2.843627308 | D14: 3.209986334 | E14: 2.935355313 | F14: 7.58126302 | G14: 8.178131734 | H14: 2.780593575 | I14: =(INDIRECT("'" & I$4 & "'!$D$6"))/10^6 -> 33.11495873 | J14: =(INDIRECT("'" & J$4 & "'!$D$6"))/10^6 -> 13.38153717
B15: PAC Costs | C15: =(INDIRECT("'" & C$4 & "'!$D$7"))/10^6 -> 3.409305764 | D15: 3.491974918 | E15: 3.188004496 | F15: 9.883945399 | G15: 7.939028921 | H15: 2.746108048 | I15: =(INDIRECT("'" & I$4 & "'!$D$7"))/10^6 -> 36.24436899 | J15: =(INDIRECT("'" & J$4 & "'!$D$7"))/10^6 -> 5.70469027
B16: RIM Costs | C16: =(INDIRECT("'" & C$4 & "'!$D$8"))/10^6 -> 3.435382589 | D16: 3.853415844 | E16: 3.414494024 | F16: 10.26182707 | G16: 8.501331203 | H16: 3.105677717 | I16: =(INDIRECT("'" & I$4 & "'!$D$8"))/10^6 -> 38.1581299 | J16: =(INDIRECT("'" & J$4 & "'!$D$8"))/10^6 -> 12.28458401
B17: PCT Costs | C17: =(INDIRECT("'" & C$4 & "'!$D$9"))/10^6 -> 1.775265845 | D17: 1.930288532 | E17: 1.437416131 | F17: 1.443380644 | G17: 1.524659768 | H17: 0.9752524273 | I17: =(INDIRECT("'" & I$4 & "'!$D$9"))/10^6 -> 9.086263347 | J17: =(INDIRECT("'" & J$4 & "'!$D$9"))/10^6 -> 10.83790151
B19: TRC Benefits | C19: =INDIRECT("'" & C$4 & "'!$C$6")/10^6 -> 3.892459104 | D19: 3.007057336 | E19: 2.286757587 | F19: 5.673155897 | G19: 8.720102593 | H19: 1.294314565 | I19: =INDIRECT("'" & I$4 & "'!$C$6")/10^6 -> 24.87384708 | J19: =INDIRECT("'" & J$4 & "'!$C$6")/10^6 -> 2.769554515
B20: PCT Benefits | C20: =INDIRECT("'" & C$4 & "'!$C$9")/10^6 -> 2.367021127 | D20: 2.573718042 | E20: 1.916554841 | F20: 4.123944698 | G20: 1.847859237 | H20: 1.30033657 | I20: =INDIRECT("'" & I$4 & "'!$C$9")/10^6 -> 14.12943451 | J20: =INDIRECT("'" & J$4 & "'!$C$9")/10^6 -> 9.740948351
B22: TRC Net Benefit | C22: =INDIRECT("'" & C$4 & "'!$E$6")/10^6 -> 1.048831797 | D22: -0.2029289973 | E22: -0.6485977261 | F22: -1.908107123 | G22: 0.5419708593 | H22: -1.486279009 | I22: =I19-I14 -> -8.241111649 | J22: =INDIRECT("'" & J$4 & "'!$E$6")/10^6 -> -10.61198266
B23: PAC Net Benefit | C23: =INDIRECT("'" & C$4 & "'!$E$7")/10^6 -> 0.48315334 | D23: -0.4849175816 | E23: -0.901246909 | F23: -4.210789502 | G23: 0.7810736726 | H23: -1.451793482 | I23: =I19-I15 -> -11.37052191 | J23: =INDIRECT("'" & J$4 & "'!$E$7")/10^6 -> -2.935135755
B24: RIM Net Benefit | C24: =INDIRECT("'" & C$4 & "'!$E$8")/10^6 -> 0.4570765151 | D24: -0.8463585079 | E24: -1.127736436 | F24: -4.588671177 | G24: 0.2187713904 | H24: -1.811363152 | I24: =I19-I16 -> -13.28428282 | J24: =INDIRECT("'" & J$4 & "'!$E$8")/10^6 -> -9.515029498
B25: PCT Net Benefit | C25: =INDIRECT("'" & C$4 & "'!$E$9")/10^6 -> 0.5917552817 | D25: 0.6434295106 | E25: 0.4791387102 | F25: 2.680564054 | G25: 0.3231994689 | H25: 0.3250841424 | I25: =I20-I17 -> 5.043171168 | J25: =INDIRECT("'" & J$4 & "'!$E$9")/10^6 -> -1.09695316
B27: $/kW-Yr. | C27: =INDIRECT("'" & C$4 & "'!$I$118") -> 26.51242334 | D27: 32.98276667 | E27: 22.30349401 | F27: 32.65665436 | G27: 37.32562413 | H27: 16.09350151 | I27: =INDIRECT("'" & I$4 & "'!$I$118") -> 103.414381 | J27: =INDIRECT("'" & J$4 & "'!$G$126") -> 37.36722698
B28: TRC Costs | C28: =C14/INDIRECT("'" & C$4 & "'!$I$118")*1000 -> 107.2564085 | D28: 97.32313743 | E28: 131.6096622 | F28: 232.1506342 | G28: 219.1023439 | H28: =H14/INDIRECT("'" & H$4 & "'!$I$118")*1000 -> 172.7774141 | I28: =I14/INDIRECT("'" & I$4 & "'!$I$118")*1000 -> 320.2161866 | J28: =J14/INDIRECT("'" & J$4 & "'!$G$126")*1000 -> 358.1089167
B29: PAC Costs | C29: 128.5927628 | D29: 105.8727108 | E29: 142.9374472 | F29: 302.6625229 | G29: 212.6964814 | H29: =H15/INDIRECT("'" & H$4 & "'!$I$118")*1000 -> 170.634591 | I29: =I15/INDIRECT("'" & I$4 & "'!$I$118")*1000 -> 350.4770674 | J29: =J15/INDIRECT("'" & J$4 & "'!$G$126")*1000 -> 152.6656038
B30: RIM Costs | C30: 129.5763328 | D30: 116.8311889 | E30: 153.0923371 | F30: 314.2338759 | G30: 227.7612605 | H30: =H16/INDIRECT("'" & H$4 & "'!$I$118")*1000 -> 192.977129 | I30: =I16/INDIRECT("'" & I$4 & "'!$I$118")*1000 -> 368.9828196 | J30: =J16/INDIRECT("'" & J$4 & "'!$G$126")*1000 -> 328.7528941
B32: TRC Benefits | C32: =C19/INDIRECT("'" & C$4 & "'!$I$118")*1000 -> 146.8164209 | D32: 91.17056086 | E32: 102.5291188 | F32: 173.7212831 | G32: 233.6224188 | H32: =H19/INDIRECT("'" & H$4 & "'!$I$118")*1000 -> 80.42467107 | I32: =I19/INDIRECT("'" & I$4 & "'!$I$118")*1000 -> 240.5259968 | J32: =J19/INDIRECT("'" & J$4 & "'!$G$126")*1000 -> 74.11720748
B34: TRC Net Benefit | C34: =C22/INDIRECT("'" & C$4 & "'!$I$118")*1000 -> 39.56001243 | D34: -6.152576566 | E34: -29.08054343 | F34: -58.42935109 | G34: 14.52007493 | H34: =H22/INDIRECT("'" & H$4 & "'!$I$118")*1000 -> -92.35274304 | I34: =I22/INDIRECT("'" & I$4 & "'!$I$118")*1000 -> -79.69018976 | J34: =J22/INDIRECT("'" & J$4 & "'!$G$126")*1000 -> -283.9917092
B35: PAC Net Benefit | C35: 18.22365817 | D35: -14.70214996 | E35: -40.40832834 | F35: -128.9412398 | G35: 20.92593736 | H35: =H23/INDIRECT("'" & H$4 & "'!$I$118")*1000 -> -90.20991992 | I35: =I23/INDIRECT("'" & I$4 & "'!$I$118")*1000 -> -109.9510706 | J35: =J23/INDIRECT("'" & J$4 & "'!$G$126")*1000 -> -78.54839633
B36: RIM Net Benefit | C36: 17.24008814 | D36: -25.66062806 | E36: -50.5632183 | F36: -140.5125928 | G36: 5.861158266 | H36: =H24/INDIRECT("'" & H$4 & "'!$I$118")*1000 -> -112.5524579 | I36: =I24/INDIRECT("'" & I$4 & "'!$I$118")*1000 -> -128.4568228 | J36: =J24/INDIRECT("'" & J$4 & "'!$G$126")*1000 -> -254.6356866

Sheet Portfolio
B1: Program Name
B2: Total DR Portfolio
B4: Base Case Results
B5: =Inputs!C3 & " Dollars" -> 2017 Dollars | C5: Benefits | D5: Costs | E5: Net Benefits | F5: Net $/kW-Yr. | I5: Ratio
B6: TRC | C6: =$I$115 -> 24873847.08 | D6: =I104 -> 33114958.73 | E6: =$C$6-D6 -> -8241111.649 | F6: =E6/$I$118/1000 -> -79.69018976 | I6: =C6/D6 -> 0.7511362851
B7: PAC | D7: =I105 -> 36244368.99 | E7: =$C$6-D7 -> -11370521.91 | F7: =E7/$I$118/1000 -> -109.9510706 | I7: =C6/D7 -> 0.6862816976
B8: RIM | D8: =I106 -> 38158129.9 | E8: =$C$6-D8 -> -13284282.82 | F8: =E8/$I$118/1000 -> -128.4568228 | I8: =C6/D8 -> 0.65186232
B9: PCT | C9: =I116 -> 14129434.51 | D9: =I107 -> 9086263.347 | E9: =C9-D9 -> 5043171.168 | F9: =E9/$I$118/1000 -> 48.76663301 | I9: =C9/D9 -> 1.555032468
B11: Sensitivities
C12: % of Customer Incentives in TRC | E12: Generation Capacity Value | I12: T&D Capacity Value | K12: Capital Amortization Period | O12: Load Impact
C15: 1 | D15: =TRCIncLow2Pct -> 0.5 | E15: =Inputs!$C$15 -> -0.3 | F15: =Inputs!$C$16 -> 0.3 | I15: =Inputs!$C$18 -> -0.3 | J15: =Inputs!$C$19 -> 0.3 | K15: =Inputs!$C$21 -> 3 | L15: =Inputs!$C$22 -> 15 | O15: =Inputs!$C$24 -> -0.3 | P15: =Inputs!$C$25 -> 0.3
B16: TRC | C16: =C6/I123 -> 0.65186232 | D16: =C6/I124 -> 0.7999716007 | E16: =I126/D6 -> 0.5490405492 | F16: =I127/D6 -> 0.953232021 | I16: =I129/D6 -> 0.7511362851 | J16: =I130/D6 -> 0.7511362851 | K16: =C6/I132 -> 0.7040775426 | L16: =C6/I135 -> 0.7999287834 | O16: =I139/D6 -> 0.5434784845 | P16: =I140/D6 -> 0.9587940857
B17: PAC | C17: - | E17: =I126/D7 -> 0.5016353059 | F17: =I127/D7 -> 0.8709280893 | I17: =I129/D7 -> 0.6862816976 | J17: =I130/D7 -> 0.6862816976 | K17: =C6/I133 -> 0.6609245015 | L17: =C6/I136 -> 0.7101275175 | O17: =I139/D7 -> 0.4965534809 | P17: =I140/D7 -> 0.8760099144
B18: RIM | C18: - | E18: =I126/D8 -> 0.4764765773 | F18: =I127/D8 -> 0.8272480628 | I18: =I129/D8 -> 0.65186232 | J18: =I130/D8 -> 0.65186232 | K18: =C6/I134 -> 0.6289423687 | L18: =C6/I137 -> 0.6733387958 | O18: =I139/D8 -> 0.4716496231 | P18: =I140/D8 -> 0.8320750169
B39: Adjustment Factors | J39: LEGEND
B40: A) Availability adjustment | J40: Utility Input | L40: Enter Utility specific information and program data in yellow cells
B41: B) Notification adjustment | J41: Do Not Alter
B42: C) Trigger adjustment | J42: Avoided Cost Input | L42: Inputs from Avoided Cost Model
B43: D) T&D right time-right place adjustment | J43: Formula | L43: Formulas contained in this Excel Workbook
B44: E) Energy price adjustment
B45: F) Flexiblity adjustment
B46: G) Geographical adjustment
B48: Program | J48: Annual Inputs | P48: Monthly Inputs
B49: Nominal Dollars | J49: (Inputs override monthly inputs) | P49: =Inputs!$C$2 -> 2018 | AB49: =P49+1 -> 2019 | AN49: =AB49+1 -> 2020 | AZ49: =AN49+1 -> 2021 | BL49: =AZ49+1 -> 2022
B50: Adjusted Avoided Cost Values | D50: =Inputs!$C$2 -> 2018 | E50: =D50+1 -> 2019 | F50: =E50+1 -> 2020 | G50: 2021 | H50: 2022 | J50: =Inputs!$C$2 -> 2018 | K50: =J50+1 -> 2019 | L50: =K50+1 -> 2020 | M50: 2021 | N50: 2022 | P50: =DATE(P49,1,1) -> 2018-01-01 | Q50: =DATE(P49,2,1) -> 2018-02-01 | R50: =DATE(P49,3,1) -> 2018-03-01 | S50: =DATE(P49,4,1) -> 2018-04-01 | T50: =DATE(P49,5,1) -> 2018-05-01 | U50: =DATE(P49,6,1) -> 2018-06-01 | V50: =DATE(P49,7,1) -> 2018-07-01 | W50: =DATE(P49,8,1) -> 2018-08-01 | X50: =DATE(P49,9,1) -> 2018-09-01 | Y50: =DATE(P49,10,1) -> 2018-10-01 | Z50: =DATE(P49,11,1) -> 2018-11-01 | AA50: =DATE(P49,12,1) -> 2018-12-01 | AB50: =DATE(AB49,1,1) -> 2019-01-01 | AC50: =DATE(AB49,2,1) -> 2019-02-01 | AD50: =DATE(AB49,3,1) -> 2019-03-01 | AE50: =DATE(AB49,4,1) -> 2019-04-01 | AF50: =DATE(AB49,5,1) -> 2019-05-01 | AG50: =DATE(AB49,6,1) -> 2019-06-01 | AH50: =DATE(AB49,7,1) -> 2019-07-01 | AI50: =DATE(AB49,8,1) -> 2019-08-01 | AJ50: =DATE(AB49,9,1) -> 2019-09-01 | AK50: =DATE(AB49,10,1) -> 2019-10-01 | AL50: =DATE(AB49,11,1) -> 2019-11-01 | AM50: =DATE(AB49,12,1) -> 2019-12-01 | AN50: =DATE(AN49,1,1) -> 2020-01-01 | AO50: =DATE(AN49,2,1) -> 2020-02-01 | AP50: =DATE(AN49,3,1) -> 2020-03-01 | AQ50: =DATE(AN49,4,1) -> 2020-04-01 | AR50: =DATE(AN49,5,1) -> 2020-05-01 | AS50: =DATE(AN49,6,1) -> 2020-06-01 | AT50: =DATE(AN49,7,1) -> 2020-07-01 | AU50: =DATE(AN49,8,1) -> 2020-08-01 | AV50: =DATE(AN49,9,1) -> 2020-09-01 | AW50: =DATE(AN49,10,1) -> 2020-10-01 | AX50: =DATE(AN49,11,1) -> 2020-11-01 | AY50: =DATE(AN49,12,1) -> 2020-12-01 | AZ50: =DATE(AZ49,1,1) -> 2021-01-01 | BA50: =DATE(AZ49,2,1) -> 2021-02-01 | BB50: =DATE(AZ49,3,1) -> 2021-03-01 | BC50: =DATE(AZ49,4,1) -> 2021-04-01 | BD50: =DATE(AZ49,5,1) -> 2021-05-01 | BE50: =DATE(AZ49,6,1) -> 2021-06-01 | BF50: =DATE(AZ49,7,1) -> 2021-07-01 | BG50: =DATE(AZ49,8,1) -> 2021-08-01 | BH50: =DATE(AZ49,9,1) -> 2021-09-01 | BI50: =DATE(AZ49,10,1) -> 2021-10-01 | BJ50: =DATE(AZ49,11,1) -> 2021-11-01 | BK50: =DATE(AZ49,12,1) -> 2021-12-01 | BL50: =DATE(BL49,1,1) -> 2022-01-01 | BM50: =DATE(BL49,2,1) -> 2022-02-01 | BN50: =DATE(BL49,3,1) -> 2022-03-01 | BO50: =DATE(BL49,4,1) -> 2022-04-01 | BP50: =DATE(BL49,5,1) -> 2022-05-01 | BQ50: =DATE(BL49,6,1) -> 2022-06-01 | BR50: =DATE(BL49,7,1) -> 2022-07-01 | BS50: =DATE(BL49,8,1) -> 2022-08-01 | BT50: =DATE(BL49,9,1) -> 2022-09-01 | BU50: =DATE(BL49,10,1) -> 2022-10-01 | BV50: =DATE(BL49,11,1) -> 2022-11-01 | BW50: =DATE(BL49,12,1) -> 2022-12-01
B51: Monthly Generation Capacity Allocation
B52: Monthly T&D Capacity Allocation
B53: Adjusted Generation Capacity Value ($/kW-Yr) | D53: =J$53/(1-Losses)*(1+ReserveMargin)*$D$40*$D$41*$D$42*$D$45*$D$46 -> 0 | E53: =K$53/(1-Losses)*(1+ReserveMargin)*$D$40*$D$41*$D$42*$D$45*$D$46 -> 0 | F53: =L$53/(1-Losses)*(1+ReserveMargin)*$D$40*$D$41*$D$42*$D$45*$D$46 -> 0 | G53: =M$53/(1-Losses)*(1+ReserveMargin)*$D$40*$D$41*$D$42*$D$45*$D$46 -> 0 | H53: =N$53/(1-Losses)*(1+ReserveMargin)*$D$40*$D$41*$D$42*$D$45*$D$46 -> 0 | BX53: Sum
B54: Adjusted T&D Capacity Value ($/kW-Yr.) | D54: =J54/(1-DLosses)*$D$43 -> 0 | E54: =K54/(1-DLosses)*$D$43 -> 0 | F54: =L54/(1-DLosses)*$D$43 -> 0 | G54: =M54/(1-DLosses)*$D$43 -> 0 | H54: =N54/(1-DLosses)*$D$43 -> 0 | BX54: Sum
B55: Adjusted On-Peak Avoided Energy Cost ($/MWh) | D55: =J55/(1-Losses)*$D$44 -> 0 | E55: =K55/(1-Losses)*$D$44 -> 0 | F55: =L55/(1-Losses)*$D$44 -> 0 | G55: =M55/(1-Losses)*$D$44 -> 0 | H55: =N55/(1-Losses)*$D$44 -> 0 | BX55: Avg
B56: Adjusted GHG Value ($/MWh) | D56: =J56/(1-Losses) -> 0 | E56: =K56/(1-Losses) -> 0 | F56: =L56/(1-Losses) -> 0 | G56: =M56/(1-Losses) -> 0 | H56: =N56/(1-Losses) -> 0 | BX56: Avg
B57: Impacts
B58: Load Impacts 1 in 2 Years (MW) | D58: =IF(SUM($P58:$AA58)>0,SUM($P58:$AA58)/COUNTIF(P58:AA58,">0"),0) -> 22.52968193 | E58: =IF(SUM($AB58:$AM58)>0,SUM($AB58:$AM58)/COUNTIF($AB58:$AM58,">0"),0) -> 23.67724336 | F58: =IF(SUM($AN58:$AY58)>0,SUM($AN58:$AY58)/COUNTIF($AN58:$AY58,">0"),0) -> 25.27585332 | G58: =IF(SUM($AZ58:$BK58)>0,SUM($AZ58:$BK58)/COUNTIF($AZ58:$BK58,">0"),0) -> 27.31211864 | H58: =IF(SUM($BL58:$BW58)>0,SUM($BL58:$BW58)/COUNTIF($BL58:$BW58,">0"),0) -> 29.60842942 | P58: =BIP!P58+CBP_DA!P58+CBP_DO!P58+ACS_DO!P58+ACS_DA!P58+AFP!P58 -> 5.633114148 | Q58: =BIP!Q58+CBP_DA!Q58+CBP_DO!Q58+ACS_DO!Q58+ACS_DA!Q58+AFP!Q58 -> 5.429333144 | R58: =BIP!R58+CBP_DA!R58+CBP_DO!R58+ACS_DO!R58+ACS_DA!R58+AFP!R58 -> 5.719027542 | S58: =BIP!S58+CBP_DA!S58+CBP_DO!S58+ACS_DO!S58+ACS_DA!S58+AFP!S58 -> 12.12924392 | T58: =BIP!T58+CBP_DA!T58+CBP_DO!T58+ACS_DO!T58+ACS_DA!T58+AFP!T58 -> 35.9995215 | U58: =BIP!U58+CBP_DA!U58+CBP_DO!U58+ACS_DO!U58+ACS_DA!U58+AFP!U58 -> 32.94761643 | V58: =BIP!V58+CBP_DA!V58+CBP_DO!V58+ACS_DO!V58+ACS_DA!V58+AFP!V58 -> 37.37300207 | W58: =BIP!W58+CBP_DA!W58+CBP_DO!W58+ACS_DO!W58+ACS_DA!W58+AFP!W58 -> 41.09749886 | X58: =BIP!X58+CBP_DA!X58+CBP_DO!X58+ACS_DO!X58+ACS_DA!X58+AFP!X58 -> 43.94340736 | Y58: =BIP!Y58+CBP_DA!Y58+CBP_DO!Y58+ACS_DO!Y58+ACS_DA!Y58+AFP!Y58 -> 38.34571391 | Z58: =BIP!Z58+CBP_DA!Z58+CBP_DO!Z58+ACS_DO!Z58+ACS_DA!Z58+AFP!Z58 -> 6.467533429 | AA58: =BIP!AA58+CBP_DA!AA58+CBP_DO!AA58+ACS_DO!AA58+ACS_DA!AA58+AFP!AA58 -> 5.271170873 | AB58: =BIP!AB58+CBP_DA!AB58+CBP_DO!AB58+ACS_DO!AB58+ACS_DA!AB58+AFP!AB58 -> 5.733114148 | AC58: =BIP!AC58+CBP_DA!AC58+CBP_DO!AC58+ACS_DO!AC58+ACS_DA!AC58+AFP!AC58 -> 5.529333144 | AD58: =BIP!AD58+CBP_DA!AD58+CBP_DO!AD58+ACS_DO!AD58+ACS_DA!AD58+AFP!AD58 -> 5.819027542 | AE58: =BIP!AE58+CBP_DA!AE58+CBP_DO!AE58+ACS_DO!AE58+ACS_DA!AE58+AFP!AE58 -> 12.99851252 | AF58: =BIP!AF58+CBP_DA!AF58+CBP_DO!AF58+ACS_DO!AF58+ACS_DA!AF58+AFP!AF58 -> 38.01219849 | AG58: =BIP!AG58+CBP_DA!AG58+CBP_DO!AG58+ACS_DO!AG58+ACS_DA!AG58+AFP!AG58 -> 34.63630859 | AH58: =BIP!AH58+CBP_DA!AH58+CBP_DO!AH58+ACS_DO!AH58+ACS_DA!AH58+AFP!AH58 -> 39.27893838 | AI58: =BIP!AI58+CBP_DA!AI58+CBP_DO!AI58+ACS_DO!AI58+ACS_DA!AI58+AFP!AI58 -> 43.15478106 | AJ58: =BIP!AJ58+CBP_DA!AJ58+CBP_DO!AJ58+ACS_DO!AJ58+ACS_DA!AJ58+AFP!AJ58 -> 46.32741826 | AK58: =BIP!AK58+CBP_DA!AK58+CBP_DO!AK58+ACS_DO!AK58+ACS_DA!AK58+AFP!AK58 -> 40.5624956 | AL58: =BIP!AL58+CBP_DA!AL58+CBP_DO!AL58+ACS_DO!AL58+ACS_DA!AL58+AFP!AL58 -> 6.703621733 | AM58: =BIP!AM58+CBP_DA!AM58+CBP_DO!AM58+ACS_DO!AM58+ACS_DA!AM58+AFP!AM58 -> 5.371170873 | AN58: =BIP!AN58+CBP_DA!AN58+CBP_DO!AN58+ACS_DO!AN58+ACS_DA!AN58+AFP!AN58 -> 5.833114148 | AO58: =BIP!AO58+CBP_DA!AO58+CBP_DO!AO58+ACS_DO!AO58+ACS_DA!AO58+AFP!AO58 -> 5.629333144 | AP58: =BIP!AP58+CBP_DA!AP58+CBP_DO!AP58+ACS_DO!AP58+ACS_DA!AP58+AFP!AP58 -> 5.919027542 | AQ58: =BIP!AQ58+CBP_DA!AQ58+CBP_DO!AQ58+ACS_DO!AQ58+ACS_DA!AQ58+AFP!AQ58 -> 14.22977008 | AR58: =BIP!AR58+CBP_DA!AR58+CBP_DO!AR58+ACS_DO!AR58+ACS_DA!AR58+AFP!AR58 -> 40.68629828 | AS58: =BIP!AS58+CBP_DA!AS58+CBP_DO!AS58+ACS_DO!AS58+ACS_DA!AS58+AFP!AS58 -> 36.84648657 | AT58: =BIP!AT58+CBP_DA!AT58+CBP_DO!AT58+ACS_DO!AT58+ACS_DA!AT58+AFP!AT58 -> 41.91093463 | AU58: =BIP!AU58+CBP_DA!AU58+CBP_DO!AU58+ACS_DO!AU58+ACS_DA!AU58+AFP!AU58 -> 46.13295193 | AV58: =BIP!AV58+CBP_DA!AV58+CBP_DO!AV58+ACS_DO!AV58+ACS_DA!AV58+AFP!AV58 -> 49.86685905 | AW58: =BIP!AW58+CBP_DA!AW58+CBP_DO!AW58+ACS_DO!AW58+ACS_DA!AW58+AFP!AW58 -> 43.74727623 | AX58: =BIP!AX58+CBP_DA!AX58+CBP_DO!AX58+ACS_DO!AX58+ACS_DA!AX58+AFP!AX58 -> 7.037017381 | AY58: =BIP!AY58+CBP_DA!AY58+CBP_DO!AY58+ACS_DO!AY58+ACS_DA!AY58+AFP!AY58 -> 5.471170873 | AZ58: =BIP!AZ58+CBP_DA!AZ58+CBP_DO!AZ58+ACS_DO!AZ58+ACS_DA!AZ58+AFP!AZ58 -> 5.933114148 | BA58: =BIP!BA58+CBP_DA!BA58+CBP_DO!BA58+ACS_DO!BA58+ACS_DA!BA58+AFP!BA58 -> 5.729333144 | BB58: =BIP!BB58+CBP_DA!BB58+CBP_DO!BB58+ACS_DO!BB58+ACS_DA!BB58+AFP!BB58 -> 6.019027542 | BC58: =BIP!BC58+CBP_DA!BC58+CBP_DO!BC58+ACS_DO!BC58+ACS_DA!BC58+AFP!BC58 -> 16.00827086 | BD58: =BIP!BD58+CBP_DA!BD58+CBP_DO!BD58+ACS_DO!BD58+ACS_DA!BD58+AFP!BD58 -> 44.18819786 | BE58: =BIP!BE58+CBP_DA!BE58+CBP_DO!BE58+ACS_DO!BE58+ACS_DA!BE58+AFP!BE58 -> 39.65133782 | BF58: =BIP!BF58+CBP_DA!BF58+CBP_DO!BF58+ACS_DO!BF58+ACS_DA!BF58+AFP!BF58 -> 45.28566929 | BG58: =BIP!BG58+CBP_DA!BG58+CBP_DO!BG58+ACS_DO!BG58+ACS_DA!BG58+AFP!BG58 -> 49.94459814 | BH58: =BIP!BH58+CBP_DA!BH58+CBP_DO!BH58+ACS_DO!BH58+ACS_DA!BH58+AFP!BH58 -> 54.33674331 | BI58: =BIP!BI58+CBP_DA!BI58+CBP_DO!BI58+ACS_DO!BI58+ACS_DA!BI58+AFP!BI58 -> 47.66157496 | BJ58: =BIP!BJ58+CBP_DA!BJ58+CBP_DO!BJ58+ACS_DO!BJ58+ACS_DA!BJ58+AFP!BJ58 -> 7.416385809 | BK58: =BIP!BK58+CBP_DA!BK58+CBP_DO!BK58+ACS_DO!BK58+ACS_DA!BK58+AFP!BK58 -> 5.571170873 | BL58: =BIP!BL58+CBP_DA!BL58+CBP_DO!BL58+ACS_DO!BL58+ACS_DA!BL58+AFP!BL58 -> 6.033114148 | BM58: =BIP!BM58+CBP_DA!BM58+CBP_DO!BM58+ACS_DO!BM58+ACS_DA!BM58+AFP!BM58 -> 5.829333144 | BN58: =BIP!BN58+CBP_DA!BN58+CBP_DO!BN58+ACS_DO!BN58+ACS_DA!BN58+AFP!BN58 -> 6.119027542 | BO58: =BIP!BO58+CBP_DA!BO58+CBP_DO!BO58+ACS_DO!BO58+ACS_DA!BO58+AFP!BO58 -> 17.97357299 | BP58: =BIP!BP58+CBP_DA!BP58+CBP_DO!BP58+ACS_DO!BP58+ACS_DA!BP58+AFP!BP58 -> 48.2443554 | BQ58: =BIP!BQ58+CBP_DA!BQ58+CBP_DO!BQ58+ACS_DO!BQ58+ACS_DA!BQ58+AFP!BQ58 -> 42.87930457 | BR58: =BIP!BR58+CBP_DA!BR58+CBP_DO!BR58+ACS_DO!BR58+ACS_DA!BR58+AFP!BR58 -> 49.14948902 | BS58: =BIP!BS58+CBP_DA!BS58+CBP_DO!BS58+ACS_DO!BS58+ACS_DA!BS58+AFP!BS58 -> 54.24798237 | BT58: =BIP!BT58+CBP_DA!BT58+CBP_DO!BT58+ACS_DO!BT58+ACS_DA!BT58+AFP!BT58 -> 59.33074868 | BU58: =BIP!BU58+CBP_DA!BU58+CBP_DO!BU58+ACS_DO!BU58+ACS_DA!BU58+AFP!BU58 -> 52.02391969 | BV58: =BIP!BV58+CBP_DA!BV58+CBP_DO!BV58+ACS_DO!BV58+ACS_DA!BV58+AFP!BV58 -> 7.799134609 | BW58: =BIP!BW58+CBP_DA!BW58+CBP_DO!BW58+ACS_DO!BW58+ACS_DA!BW58+AFP!BW58 -> 5.671170873 | BX58: Avg
B59: Energy Savings 1 in 2 years (MWh) | D59: =IF(SUM($P59:$AA59)>0,SUM($P59:$AA59),0) -> 0 | E59: =IF(SUM($AB59:$AM59)>0,SUM($AB59:$AM59),0) -> 0 | F59: =IF(SUM($AN59:$AY59)>0,SUM($AN59:$AY59),0) -> 0 | G59: =IF(SUM($AZ59:$BK59)>0,SUM($AZ59:$BK59),0) -> 0 | H59: =IF(SUM($BL59:$BW59)>0,SUM($BL59:$BW59),0) -> 0 | BX59: Sum
B60: Avg. Hours of Curtailment | D60: =D59/D58 -> 0 | E60: =E59/E58 -> 0 | F60: =F59/F58 -> 0 | G60: =G59/G58 -> 0 | H60: 0
B61: Expense Costs
B62: Annual Utility Expense ($ per year)
B63: Admin Costs | D63: =IF(J63>0,J63,IF(SUM($P63:$AA63)>0,SUM($P63:$AA63),0)) -> 5138642.097 | E63: =IF(K63>0,K63,IF(SUM($AB63:$AM63)>0,SUM($AB63:$AM63),0)) -> 5623601.541 | F63: =IF(L63>0,L63,IF(SUM($AN63:$AY63)>0,SUM($AN63:$AY63),0)) -> 5240647.222 | G63: =IF(M63>0,M63,IF(SUM($AZ63:$BK63)>0,SUM($AZ63:$BK63),0)) -> 5246590.833 | H63: =IF(N63>0,N63,IF(SUM($BL63:$BW63)>0,SUM($BL63:$BW63),0)) -> 5500920.54 | J63: =BIP!J63+CBP_DA!J63+CBP_DO!J63+ACS_DO!J63+ACS_DA!J63+budget!AV18+AFP!J63 -> 5138642.097 | K63: =BIP!K63+CBP_DA!K63+CBP_DO!K63+ACS_DO!K63+ACS_DA!K63+budget!AW18+AFP!K63 -> 5623601.541 | L63: =BIP!L63+CBP_DA!L63+CBP_DO!L63+ACS_DO!L63+ACS_DA!L63+budget!AX18+AFP!L63 -> 5240647.222 | M63: =BIP!M63+CBP_DA!M63+CBP_DO!M63+ACS_DO!M63+ACS_DA!M63+budget!AY18+AFP!M63 -> 5246590.833 | N63: =BIP!N63+CBP_DA!N63+CBP_DO!N63+ACS_DO!N63+ACS_DA!N63+budget!AZ18+AFP!N63 -> 5500920.54 | BX63: Sum
B64: Incentive Cost | D64: =IF(J64>0,J64,IF(SUM($P64:$AA64)>0,SUM($P64:$AA64),0)) -> 2860048.733 | E64: =IF(K64>0,K64,IF(SUM($AB64:$AM64)>0,SUM($AB64:$AM64),0)) -> 2860117.466 | F64: =IF(L64>0,L64,IF(SUM($AN64:$AY64)>0,SUM($AN64:$AY64),0)) -> 2967772.626 | G64: =IF(M64>0,M64,IF(SUM($AZ64:$BK64)>0,SUM($AZ64:$BK64),0)) -> 3116101.805 | H64: =IF(N64>0,N64,IF(SUM($BL64:$BW64)>0,SUM($BL64:$BW64),0)) -> 3294454.166 | J64: =BIP!J64+CBP_DA!J64+CBP_DO!J64+ACS_DO!J64+ACS_DA!J64+AFP!J64 -> 2860048.733 | K64: =BIP!K64+CBP_DA!K64+CBP_DO!K64+ACS_DO!K64+ACS_DA!K64+AFP!K64 -> 2860117.466 | L64: =BIP!L64+CBP_DA!L64+CBP_DO!L64+ACS_DO!L64+ACS_DA!L64+AFP!L64 -> 2967772.626 | M64: =BIP!M64+CBP_DA!M64+CBP_DO!M64+ACS_DO!M64+ACS_DA!M64+AFP!M64 -> 3116101.805 | N64: =BIP!N64+CBP_DA!N64+CBP_DO!N64+ACS_DO!N64+ACS_DA!N64+AFP!N64 -> 3294454.166 | BX64: Sum
B65: Net Bill/Revenue Reductions | D65: =IF(J65>0,J65,IF(SUM($P65:$AA65)>0,SUM($P65:$AA65),0)) -> 369928.4315 | E65: =IF(K65>0,K65,IF(SUM($AB65:$AM65)>0,SUM($AB65:$AM65),0)) -> 409978.2136 | F65: =IF(L65>0,L65,IF(SUM($AN65:$AY65)>0,SUM($AN65:$AY65),0)) -> 464953.7829 | G65: =IF(M65>0,M65,IF(SUM($AZ65:$BK65)>0,SUM($AZ65:$BK65),0)) -> 534605.9911 | H65: =IF(N65>0,N65,IF(SUM($BL65:$BW65)>0,SUM($BL65:$BW65),0)) -> 616993.4425 | J65: =BIP!J65+CBP_DA!J65+CBP_DO!J65+ACS_DO!J65+ACS_DA!J65+AFP!J65 -> 369928.4315 | K65: =BIP!K65+CBP_DA!K65+CBP_DO!K65+ACS_DO!K65+ACS_DA!K65+AFP!K65 -> 409978.2136 | L65: =BIP!L65+CBP_DA!L65+CBP_DO!L65+ACS_DO!L65+ACS_DA!L65+AFP!L65 -> 464953.7829 | M65: =BIP!M65+CBP_DA!M65+CBP_DO!M65+ACS_DO!M65+ACS_DA!M65+AFP!M65 -> 534605.9911 | N65: =BIP!N65+CBP_DA!N65+CBP_DO!N65+ACS_DO!N65+ACS_DA!N65+AFP!N65 -> 616993.4425 | BX65: Sum
B66: Ammortized Equipment Costs (entered below) | D66: =SUM(D76:D80) -> 242186.2692 | E66: =SUM(E76:E80) -> 469707.2758 | F66: =SUM(F76:F80) -> 599129.6046 | G66: =SUM(G76:G80) -> 732165.4998 | H66: 886148.5044
B67: name | D67: =IF(J67>0,J67,IF(SUM($P67:$AA67)>0,SUM($P67:$AA67),0)) -> 0 | E67: =IF(K67>0,K67,IF(SUM($AB67:$AM67)>0,SUM($AB67:$AM67),0)) -> 0 | F67: =IF(L67>0,L67,IF(SUM($AN67:$AY67)>0,SUM($AN67:$AY67),0)) -> 0 | G67: =IF(M67>0,M67,IF(SUM($AZ67:$BK67)>0,SUM($AZ67:$BK67),0)) -> 0 | H67: =IF(N67>0,N67,IF(SUM($BL67:$BW67)>0,SUM($BL67:$BW67),0)) -> 0 | J67: =BIP!J67+CBP_DA!J67+CBP_DO!J67+ACS_DO!J67+ACS_DA!J67+AFP!J67 -> 0 | K67: =BIP!K67+CBP_DA!K67+CBP_DO!K67+ACS_DO!K67+ACS_DA!K67+AFP!K67 -> 0 | L67: =BIP!L67+CBP_DA!L67+CBP_DO!L67+ACS_DO!L67+ACS_DA!L67+AFP!L67 -> 0 | M67: =BIP!M67+CBP_DA!M67+CBP_DO!M67+ACS_DO!M67+ACS_DA!M67+AFP!M67 -> 0 | N67: =BIP!N67+CBP_DA!N67+CBP_DO!N67+ACS_DO!N67+ACS_DA!N67+AFP!N67 -> 0 | BX67: Sum
B68: name | D68: =IF(J68>0,J68,IF(SUM($P68:$AA68)>0,SUM($P68:$AA68),0)) -> 0 | E68: =IF(K68>0,K68,IF(SUM($AB68:$AM68)>0,SUM($AB68:$AM68),0)) -> 0 | F68: =IF(L68>0,L68,IF(SUM($AN68:$AY68)>0,SUM($AN68:$AY68),0)) -> 0 | G68: =IF(M68>0,M68,IF(SUM($AZ68:$BK68)>0,SUM($AZ68:$BK68),0)) -> 0 | H68: =IF(N68>0,N68,IF(SUM($BL68:$BW68)>0,SUM($BL68:$BW68),0)) -> 0 | J68: =BIP!J68+CBP_DA!J68+CBP_DO!J68+ACS_DO!J68+ACS_DA!J68+AFP!J68 -> 0 | K68: =BIP!K68+CBP_DA!K68+CBP_DO!K68+ACS_DO!K68+ACS_DA!K68+AFP!K68 -> 0 | L68: =BIP!L68+CBP_DA!L68+CBP_DO!L68+ACS_DO!L68+ACS_DA!L68+AFP!L68 -> 0 | M68: =BIP!M68+CBP_DA!M68+CBP_DO!M68+ACS_DO!M68+ACS_DA!M68+AFP!M68 -> 0 | N68: =BIP!N68+CBP_DA!N68+CBP_DO!N68+ACS_DO!N68+ACS_DA!N68+AFP!N68 -> 0 | BX68: Sum
B69: Annual Participant Expense ($ per year)
B70: Participant Annual Expenses | D70: =BIP!D70+CBP_DA!D70+CBP_DO!D70+ACS_DO!D70+ACS_DA!D70+AFP!D70 -> 1746145.384 | E70: =BIP!E70+CBP_DA!E70+CBP_DO!E70+ACS_DO!E70+ACS_DA!E70+AFP!E70 -> 1763983.58 | F70: =BIP!F70+CBP_DA!F70+CBP_DO!F70+ACS_DO!F70+ACS_DA!F70+AFP!F70 -> 1851876.364 | G70: =BIP!G70+CBP_DA!G70+CBP_DO!G70+ACS_DO!G70+ACS_DA!G70+AFP!G70 -> 1962552.061 | H70: =BIP!H70+CBP_DA!H70+CBP_DO!H70+ACS_DO!H70+ACS_DA!H70+AFP!H70 -> 2098750.55 | BX70: Sum
B71: Ammortized Equipment Costs (entered below) | D71: =SUM(D82:D86) -> 79478.39807 | E71: =SUM(E82:E86) -> 182505.9511 | F71: =SUM(F82:F86) -> 344406.3916 | G71: =SUM(G82:G86) -> 554141.0532 | H71: 774914.3812
B72: name | D72: =IF(J72>0,J72,IF(SUM($P72:$AA72)>0,SUM($P72:$AA72),0)) -> 0 | E72: =IF(K72>0,K72,IF(SUM($AB72:$AM72)>0,SUM($AB72:$AM72),0)) -> 0 | F72: =IF(L72>0,L72,IF(SUM($AN72:$AY72)>0,SUM($AN72:$AY72),0)) -> 0 | G72: =IF(M72>0,M72,IF(SUM($AZ72:$BK72)>0,SUM($AZ72:$BK72),0)) -> 0 | H72: =IF(N72>0,N72,IF(SUM($BL72:$BW72)>0,SUM($BL72:$BW72),0)) -> 0 | J72: =BIP!J72+CBP_DA!J72+CBP_DO!J72+ACS_DO!J72+ACS_DA!J72+AFP!J72 -> 0 | K72: =BIP!K72+CBP_DA!K72+CBP_DO!K72+ACS_DO!K72+ACS_DA!K72+AFP!K72 -> 0 | L72: =BIP!L72+CBP_DA!L72+CBP_DO!L72+ACS_DO!L72+ACS_DA!L72+AFP!L72 -> 0 | M72: =BIP!M72+CBP_DA!M72+CBP_DO!M72+ACS_DO!M72+ACS_DA!M72+AFP!M72 -> 0 | N72: =BIP!N72+CBP_DA!N72+CBP_DO!N72+ACS_DO!N72+ACS_DA!N72+AFP!N72 -> 0 | BX72: Sum
B73: name | D73: =IF(J73>0,J73,IF(SUM($P73:$AA73)>0,SUM($P73:$AA73),0)) -> 0 | E73: =IF(K73>0,K73,IF(SUM($AB73:$AM73)>0,SUM($AB73:$AM73),0)) -> 0 | F73: =IF(L73>0,L73,IF(SUM($AN73:$AY73)>0,SUM($AN73:$AY73),0)) -> 0 | G73: =IF(M73>0,M73,IF(SUM($AZ73:$BK73)>0,SUM($AZ73:$BK73),0)) -> 0 | H73: =IF(N73>0,N73,IF(SUM($BL73:$BW73)>0,SUM($BL73:$BW73),0)) -> 0 | J73: =BIP!J73+CBP_DA!J73+CBP_DO!J73+ACS_DO!J73+ACS_DA!J73+AFP!J73 -> 0 | K73: =BIP!K73+CBP_DA!K73+CBP_DO!K73+ACS_DO!K73+ACS_DA!K73+AFP!K73 -> 0 | L73: =BIP!L73+CBP_DA!L73+CBP_DO!L73+ACS_DO!L73+ACS_DA!L73+AFP!L73 -> 0 | M73: =BIP!M73+CBP_DA!M73+CBP_DO!M73+ACS_DO!M73+ACS_DA!M73+AFP!M73 -> 0 | N73: =BIP!N73+CBP_DA!N73+CBP_DO!N73+ACS_DO!N73+ACS_DA!N73+AFP!N73 -> 0 | BX73: Sum
B74: Capital Costs
B75: Utility Equipment Cost ($ installed per year) | C75: Ammortization Period
B76: IT | C76: 5 | D76: =IF(C76>0,-PMT(WACC,C76,IF(J76>0,J76,IF(SUM($P76:$AA76)>0,SUM($P76:$AA76),0))),0) -> 215693.4698 | E76: =IF(C76>0,-PMT(WACC,C76,IF(K76>0,K76,IF(SUM($AB76:$AM76)>0,SUM($AB76:$AM76),0))),0)+D76 -> 397532.4342 | F76: =IF(C76>0,-PMT(WACC,C76,IF(L76>0,L76,IF(SUM($AN76:$AY76)>0,SUM($AN76:$AY76),0))),0)+E76 -> 448834.762 | G76: =IF(C76>0,-PMT(WACC,C76,IF(M76>0,M76,IF(SUM($AZ76:$BK76)>0,SUM($AZ76:$BK76),0))),0)+F76 -> 473360.4956 | H76: =IF(C76>0,-PMT(WACC,C76,IF(N76>0,N76,IF(SUM($BL76:$BW76)>0,SUM($BL76:$BW76),0))),0)+G76 -> 498902.9176 | J76: =BIP!J76+CBP_DA!J76+CBP_DO!J76+ACS_DO!J76+ACS_DA!J76+AFP!J76 -> 877093.326 | K76: =BIP!K76+CBP_DA!K76+CBP_DO!K76+ACS_DO!K76+ACS_DA!K76+AFP!K76 -> 739427.773 | L76: =BIP!L76+CBP_DA!L76+CBP_DO!L76+ACS_DO!L76+ACS_DA!L76+AFP!L76 -> 208615.1678 | M76: =BIP!M76+CBP_DA!M76+CBP_DO!M76+ACS_DO!M76+ACS_DA!M76+AFP!M76 -> 99731.14738 | N76: =BIP!N76+CBP_DA!N76+CBP_DO!N76+ACS_DO!N76+ACS_DA!N76+AFP!N76 -> 103865.3969 | BX76: Sum
B77: thermostats | C77: 5 | D77: =IF(C77>0,-PMT(WACC,C77,IF(J77>0,J77,IF(SUM($P77:$AA77)>0,SUM($P77:$AA77),0))),0) -> 26492.79936 | E77: =IF(C77>0,-PMT(WACC,C77,IF(K77>0,K77,IF(SUM($AB77:$AM77)>0,SUM($AB77:$AM77),0))),0)+D77 -> 60835.31704 | F77: =IF(C77>0,-PMT(WACC,C77,IF(L77>0,L77,IF(SUM($AN77:$AY77)>0,SUM($AN77:$AY77),0))),0)+E77 -> 114802.1305 | G77: =IF(C77>0,-PMT(WACC,C77,IF(M77>0,M77,IF(SUM($AZ77:$BK77)>0,SUM($AZ77:$BK77),0))),0)+F77 -> 184713.6844 | H77: =IF(C77>0,-PMT(WACC,C77,IF(N77>0,N77,IF(SUM($BL77:$BW77)>0,SUM($BL77:$BW77),0))),0)+G77 -> 258304.7937 | J77: =BIP!J77+CBP_DA!J77+CBP_DO!J77+ACS_DO!J77+ACS_DA!J77+AFP!J77 -> 107730 | K77: =BIP!K77+CBP_DA!K77+CBP_DO!K77+ACS_DO!K77+ACS_DA!K77+AFP!K77 -> 139650 | L77: =BIP!L77+CBP_DA!L77+CBP_DO!L77+ACS_DO!L77+ACS_DA!L77+AFP!L77 -> 219450 | M77: =BIP!M77+CBP_DA!M77+CBP_DO!M77+ACS_DO!M77+ACS_DA!M77+AFP!M77 -> 284287.5 | N77: =BIP!N77+CBP_DA!N77+CBP_DO!N77+ACS_DO!N77+ACS_DA!N77+AFP!N77 -> 299250 | BX77: Sum
B78: Auto DR | C78: 7.5 | D78: =IF(C78>0,-PMT(WACC,C78,IF(J78>0,J78,IF(SUM($P78:$AA78)>0,SUM($P78:$AA78),0))),0) -> 0 | E78: =IF(C78>0,-PMT(WACC,C78,IF(K78>0,K78,IF(SUM($AB78:$AM78)>0,SUM($AB78:$AM78),0))),0)+D78 -> 11339.5246 | F78: =IF(C78>0,-PMT(WACC,C78,IF(L78>0,L78,IF(SUM($AN78:$AY78)>0,SUM($AN78:$AY78),0))),0)+E78 -> 35492.71201 | G78: =IF(C78>0,-PMT(WACC,C78,IF(M78>0,M78,IF(SUM($AZ78:$BK78)>0,SUM($AZ78:$BK78),0))),0)+F78 -> 74091.31981 | H78: =IF(C78>0,-PMT(WACC,C78,IF(N78>0,N78,IF(SUM($BL78:$BW78)>0,SUM($BL78:$BW78),0))),0)+G78 -> 128940.7931 | J78: =BIP!J78+CBP_DA!J78+CBP_DO!J78+ACS_DO!J78+ACS_DA!J78+AFP!J78 -> 0 | K78: =BIP!K78+CBP_DA!K78+CBP_DO!K78+ACS_DO!K78+ACS_DA!K78+AFP!K78 -> 63738.2256 | L78: =BIP!L78+CBP_DA!L78+CBP_DO!L78+ACS_DO!L78+ACS_DA!L78+AFP!L78 -> 135762.4205 | M78: =BIP!M78+CBP_DA!M78+CBP_DO!M78+ACS_DO!M78+ACS_DA!M78+AFP!M78 -> 216958.5461 | N78: =BIP!N78+CBP_DA!N78+CBP_DO!N78+ACS_DO!N78+ACS_DA!N78+AFP!N78 -> 308302.8808 | BX78: Sum
B79: name | C79: 10 | D79: =IF(C79>0,-PMT(WACC,C79,IF(J79>0,J79,IF(SUM($P79:$AA79)>0,SUM($P79:$AA79),0))),0) -> 0 | E79: =IF(C79>0,-PMT(WACC,C79,IF(K79>0,K79,IF(SUM($AB79:$AM79)>0,SUM($AB79:$AM79),0))),0)+D79 -> 0 | F79: =IF(C79>0,-PMT(WACC,C79,IF(L79>0,L79,IF(SUM($AN79:$AY79)>0,SUM($AN79:$AY79),0))),0)+E79 -> 0 | G79: =IF(C79>0,-PMT(WACC,C79,IF(M79>0,M79,IF(SUM($AZ79:$BK79)>0,SUM($AZ79:$BK79),0))),0)+F79 -> 0 | H79: =IF(C79>0,-PMT(WACC,C79,IF(N79>0,N79,IF(SUM($BL79:$BW79)>0,SUM($BL79:$BW79),0))),0)+G79 -> 0 | J79: =BIP!J79+CBP_DA!J79+CBP_DO!J79+ACS_DO!J79+ACS_DA!J79+AFP!J79 -> 0 | K79: =BIP!K79+CBP_DA!K79+CBP_DO!K79+ACS_DO!K79+ACS_DA!K79+AFP!K79 -> 0 | L79: =BIP!L79+CBP_DA!L79+CBP_DO!L79+ACS_DO!L79+ACS_DA!L79+AFP!L79 -> 0 | M79: =BIP!M79+CBP_DA!M79+CBP_DO!M79+ACS_DO!M79+ACS_DA!M79+AFP!M79 -> 0 | N79: =BIP!N79+CBP_DA!N79+CBP_DO!N79+ACS_DO!N79+ACS_DA!N79+AFP!N79 -> 0 | BX79: Sum
B80: name | C80: 10 | D80: =IF(C80>0,-PMT(WACC,C80,IF(J80>0,J80,IF(SUM($P80:$AA80)>0,SUM($P80:$AA80),0))),0) -> 0 | E80: =IF(C80>0,-PMT(WACC,C80,IF(K80>0,K80,IF(SUM($AB80:$AM80)>0,SUM($AB80:$AM80),0))),0)+D80 -> 0 | F80: =IF(C80>0,-PMT(WACC,C80,IF(L80>0,L80,IF(SUM($AN80:$AY80)>0,SUM($AN80:$AY80),0))),0)+E80 -> 0 | G80: =IF(C80>0,-PMT(WACC,C80,IF(M80>0,M80,IF(SUM($AZ80:$BK80)>0,SUM($AZ80:$BK80),0))),0)+F80 -> 0 | H80: =IF(C80>0,-PMT(WACC,C80,IF(N80>0,N80,IF(SUM($BL80:$BW80)>0,SUM($BL80:$BW80),0))),0)+G80 -> 0 | J80: =BIP!J80+CBP_DA!J80+CBP_DO!J80+ACS_DO!J80+ACS_DA!J80+AFP!J80 -> 0 | K80: =BIP!K80+CBP_DA!K80+CBP_DO!K80+ACS_DO!K80+ACS_DA!K80+AFP!K80 -> 0 | L80: =BIP!L80+CBP_DA!L80+CBP_DO!L80+ACS_DO!L80+ACS_DA!L80+AFP!L80 -> 0 | M80: =BIP!M80+CBP_DA!M80+CBP_DO!M80+ACS_DO!M80+ACS_DA!M80+AFP!M80 -> 0 | N80: =BIP!N80+CBP_DA!N80+CBP_DO!N80+ACS_DO!N80+ACS_DA!N80+AFP!N80 -> 0 | BX80: Sum
B81: Participant Equipment Cost ($ installed per year) | C81: Ammortization Period
B82: thermostats | C82: 5 | D82: =IF(C82>0,-PMT(WACC,C82,IF(J82>0,J82,IF(SUM($P82:$AA82)>0,SUM($P82:$AA82),0))),0) -> 79478.39807 | E82: =IF(C82>0,-PMT(WACC,C82,IF(K82>0,K82,IF(SUM($AB82:$AM82)>0,SUM($AB82:$AM82),0))),0)+D82 -> 182505.9511 | F82: =IF(C82>0,-PMT(WACC,C82,IF(L82>0,L82,IF(SUM($AN82:$AY82)>0,SUM($AN82:$AY82),0))),0)+E82 -> 344406.3916 | G82: =IF(C82>0,-PMT(WACC,C82,IF(M82>0,M82,IF(SUM($AZ82:$BK82)>0,SUM($AZ82:$BK82),0))),0)+F82 -> 554141.0532 | H82: =IF(C82>0,-PMT(WACC,C82,IF(N82>0,N82,IF(SUM($BL82:$BW82)>0,SUM($BL82:$BW82),0))),0)+G82 -> 774914.3812 | J82: =BIP!J82+CBP_DA!J82+CBP_DO!J82+ACS_DO!J82+ACS_DA!J82+AFP!J82 -> 323190 | K82: =BIP!K82+CBP_DA!K82+CBP_DO!K82+ACS_DO!K82+ACS_DA!K82+AFP!K82 -> 418950 | L82: =BIP!L82+CBP_DA!L82+CBP_DO!L82+ACS_DO!L82+ACS_DA!L82+AFP!L82 -> 658350 | M82: =BIP!M82+CBP_DA!M82+CBP_DO!M82+ACS_DO!M82+ACS_DA!M82+AFP!M82 -> 852862.5 | N82: =BIP!N82+CBP_DA!N82+CBP_DO!N82+ACS_DO!N82+ACS_DA!N82+AFP!N82 -> 897750 | BX82: Sum
B83: name | C83: 10 | D83: =IF(C83>0,-PMT(WACC,C83,IF(J83>0,J83,IF(SUM($P83:$AA83)>0,SUM($P83:$AA83),0))),0) -> 0 | E83: =IF(C83>0,-PMT(WACC,C83,IF(K83>0,K83,IF(SUM($AB83:$AM83)>0,SUM($AB83:$AM83),0))),0)+D83 -> 0 | F83: =IF(C83>0,-PMT(WACC,C83,IF(L83>0,L83,IF(SUM($AN83:$AY83)>0,SUM($AN83:$AY83),0))),0)+E83 -> 0 | G83: =IF(C83>0,-PMT(WACC,C83,IF(M83>0,M83,IF(SUM($AZ83:$BK83)>0,SUM($AZ83:$BK83),0))),0)+F83 -> 0 | H83: =IF(C83>0,-PMT(WACC,C83,IF(N83>0,N83,IF(SUM($BL83:$BW83)>0,SUM($BL83:$BW83),0))),0)+G83 -> 0 | J83: =BIP!J83+CBP_DA!J83+CBP_DO!J83+ACS_DO!J83+ACS_DA!J83+AFP!J83 -> 0 | K83: =BIP!K83+CBP_DA!K83+CBP_DO!K83+ACS_DO!K83+ACS_DA!K83+AFP!K83 -> 0 | L83: =BIP!L83+CBP_DA!L83+CBP_DO!L83+ACS_DO!L83+ACS_DA!L83+AFP!L83 -> 0 | M83: =BIP!M83+CBP_DA!M83+CBP_DO!M83+ACS_DO!M83+ACS_DA!M83+AFP!M83 -> 0 | N83: =BIP!N83+CBP_DA!N83+CBP_DO!N83+ACS_DO!N83+ACS_DA!N83+AFP!N83 -> 0 | BX83: Sum
B84: name | C84: 10 | D84: =IF(C84>0,-PMT(WACC,C84,IF(J84>0,J84,IF(SUM($P84:$AA84)>0,SUM($P84:$AA84),0))),0) -> 0 | E84: =IF(C84>0,-PMT(WACC,C84,IF(K84>0,K84,IF(SUM($AB84:$AM84)>0,SUM($AB84:$AM84),0))),0)+D84 -> 0 | F84: =IF(C84>0,-PMT(WACC,C84,IF(L84>0,L84,IF(SUM($AN84:$AY84)>0,SUM($AN84:$AY84),0))),0)+E84 -> 0 | G84: =IF(C84>0,-PMT(WACC,C84,IF(M84>0,M84,IF(SUM($AZ84:$BK84)>0,SUM($AZ84:$BK84),0))),0)+F84 -> 0 | H84: =IF(C84>0,-PMT(WACC,C84,IF(N84>0,N84,IF(SUM($BL84:$BW84)>0,SUM($BL84:$BW84),0))),0)+G84 -> 0 | J84: =BIP!J84+CBP_DA!J84+CBP_DO!J84+ACS_DO!J84+ACS_DA!J84+AFP!J84 -> 0 | K84: =BIP!K84+CBP_DA!K84+CBP_DO!K84+ACS_DO!K84+ACS_DA!K84+AFP!K84 -> 0 | L84: =BIP!L84+CBP_DA!L84+CBP_DO!L84+ACS_DO!L84+ACS_DA!L84+AFP!L84 -> 0 | M84: =BIP!M84+CBP_DA!M84+CBP_DO!M84+ACS_DO!M84+ACS_DA!M84+AFP!M84 -> 0 | N84: =BIP!N84+CBP_DA!N84+CBP_DO!N84+ACS_DO!N84+ACS_DA!N84+AFP!N84 -> 0 | BX84: Sum
B85: name | C85: 10 | D85: =IF(C85>0,-PMT(WACC,C85,IF(J85>0,J85,IF(SUM($P85:$AA85)>0,SUM($P85:$AA85),0))),0) -> 0 | E85: =IF(C85>0,-PMT(WACC,C85,IF(K85>0,K85,IF(SUM($AB85:$AM85)>0,SUM($AB85:$AM85),0))),0)+D85 -> 0 | F85: =IF(C85>0,-PMT(WACC,C85,IF(L85>0,L85,IF(SUM($AN85:$AY85)>0,SUM($AN85:$AY85),0))),0)+E85 -> 0 | G85: =IF(C85>0,-PMT(WACC,C85,IF(M85>0,M85,IF(SUM($AZ85:$BK85)>0,SUM($AZ85:$BK85),0))),0)+F85 -> 0 | H85: =IF(C85>0,-PMT(WACC,C85,IF(N85>0,N85,IF(SUM($BL85:$BW85)>0,SUM($BL85:$BW85),0))),0)+G85 -> 0 | J85: =BIP!J85+CBP_DA!J85+CBP_DO!J85+ACS_DO!J85+ACS_DA!J85+AFP!J85 -> 0 | K85: =BIP!K85+CBP_DA!K85+CBP_DO!K85+ACS_DO!K85+ACS_DA!K85+AFP!K85 -> 0 | L85: =BIP!L85+CBP_DA!L85+CBP_DO!L85+ACS_DO!L85+ACS_DA!L85+AFP!L85 -> 0 | M85: =BIP!M85+CBP_DA!M85+CBP_DO!M85+ACS_DO!M85+ACS_DA!M85+AFP!M85 -> 0 | N85: =BIP!N85+CBP_DA!N85+CBP_DO!N85+ACS_DO!N85+ACS_DA!N85+AFP!N85 -> 0 | BX85: Sum
B86: name | C86: 10 | D86: =IF(C86>0,-PMT(WACC,C86,IF(J86>0,J86,IF(SUM($P86:$AA86)>0,SUM($P86:$AA86),0))),0) -> 0 | E86: =IF(C86>0,-PMT(WACC,C86,IF(K86>0,K86,IF(SUM($AB86:$AM86)>0,SUM($AB86:$AM86),0))),0)+D86 -> 0 | F86: =IF(C86>0,-PMT(WACC,C86,IF(L86>0,L86,IF(SUM($AN86:$AY86)>0,SUM($AN86:$AY86),0))),0)+E86 -> 0 | G86: =IF(C86>0,-PMT(WACC,C86,IF(M86>0,M86,IF(SUM($AZ86:$BK86)>0,SUM($AZ86:$BK86),0))),0)+F86 -> 0 | H86: =IF(C86>0,-PMT(WACC,C86,IF(N86>0,N86,IF(SUM($BL86:$BW86)>0,SUM($BL86:$BW86),0))),0)+G86 -> 0 | J86: =BIP!J86+CBP_DA!J86+CBP_DO!J86+ACS_DO!J86+ACS_DA!J86+AFP!J86 -> 0 | K86: =BIP!K86+CBP_DA!K86+CBP_DO!K86+ACS_DO!K86+ACS_DA!K86+AFP!K86 -> 0 | L86: =BIP!L86+CBP_DA!L86+CBP_DO!L86+ACS_DO!L86+ACS_DA!L86+AFP!L86 -> 0 | M86: =BIP!M86+CBP_DA!M86+CBP_DO!M86+ACS_DO!M86+ACS_DA!M86+AFP!M86 -> 0 | N86: =BIP!N86+CBP_DA!N86+CBP_DO!N86+ACS_DO!N86+ACS_DA!N86+AFP!N86 -> 0 | BX86: Sum
B87: Benefits
B88: Optional Benefits ($ per year)
B89: Environmental Benefits | D89: =IF(J89>0,J89,IF(SUM($P89:$AA89)>0,SUM($P89:$AA89),0)) -> 0 | E89: =IF(K89>0,K89,IF(SUM($AB89:$AM89)>0,SUM($AB89:$AM89),0)) -> 0 | F89: =IF(L89>0,L89,IF(SUM($AN89:$AY89)>0,SUM($AN89:$AY89),0)) -> 0 | G89: =IF(M89>0,M89,IF(SUM($AZ89:$BK89)>0,SUM($AZ89:$BK89),0)) -> 0 | H89: =IF(N89>0,N89,IF(SUM($BL89:$BW89)>0,SUM($BL89:$BW89),0)) -> 0 | J89: =BIP!J89+CBP_DA!J89+CBP_DO!J89+ACS_DO!J89+ACS_DA!J89+AFP!J89 -> 0 | K89: =BIP!K89+CBP_DA!K89+CBP_DO!K89+ACS_DO!K89+ACS_DA!K89+AFP!K89 -> 0 | L89: =BIP!L89+CBP_DA!L89+CBP_DO!L89+ACS_DO!L89+ACS_DA!L89+AFP!L89 -> 0 | M89: =BIP!M89+CBP_DA!M89+CBP_DO!M89+ACS_DO!M89+ACS_DA!M89+AFP!M89 -> 0 | N89: =BIP!N89+CBP_DA!N89+CBP_DO!N89+ACS_DO!N89+ACS_DA!N89+AFP!N89 -> 0 | BX89: Sum
B90: Market Benefits | D90: 0 | E90: 0 | F90: 0 | G90: =IF(M90>0,M90,IF(SUM($AZ90:$BK90)>0,SUM($AZ90:$BK90),0)) -> 0 | H90: =IF(N90>0,N90,IF(SUM($BL90:$BW90)>0,SUM($BL90:$BW90),0)) -> 0 | J90: =BIP!J90+CBP_DA!J90+CBP_DO!J90+ACS_DO!J90+ACS_DA!J90+AFP!J90 -> 0 | K90: =BIP!K90+CBP_DA!K90+CBP_DO!K90+ACS_DO!K90+ACS_DA!K90+AFP!K90 -> 0 | L90: =BIP!L90+CBP_DA!L90+CBP_DO!L90+ACS_DO!L90+ACS_DA!L90+AFP!L90 -> 0 | M90: =BIP!M90+CBP_DA!M90+CBP_DO!M90+ACS_DO!M90+ACS_DA!M90+AFP!M90 -> 0 | N90: =BIP!N90+CBP_DA!N90+CBP_DO!N90+ACS_DO!N90+ACS_DA!N90+AFP!N90 -> 0 | BX90: Sum
B91: Non-Energy/Non-Monetary Benefits | D91: 0 | E91: 0 | F91: 0 | G91: 0 | H91: 0 | J91: =BIP!J91+CBP_DA!J91+CBP_DO!J91+ACS_DO!J91+ACS_DA!J91+AFP!J91 -> 0 | K91: =BIP!K91+CBP_DA!K91+CBP_DO!K91+ACS_DO!K91+ACS_DA!K91+AFP!K91 -> 0 | L91: =BIP!L91+CBP_DA!L91+CBP_DO!L91+ACS_DO!L91+ACS_DA!L91+AFP!L91 -> 0 | M91: =BIP!M91+CBP_DA!M91+CBP_DO!M91+ACS_DO!M91+ACS_DA!M91+AFP!M91 -> 0 | N91: =BIP!N91+CBP_DA!N91+CBP_DO!N91+ACS_DO!N91+ACS_DA!N91+AFP!N91 -> 0 | BX91: Sum
B92: State Tax Benefits/(Costs) | D92: 0 | E92: 0 | F92: 0 | G92: 0 | H92: 0 | J92: =BIP!J92+CBP_DA!J92+CBP_DO!J92+ACS_DO!J92+ACS_DA!J92+AFP!J92 -> 0 | K92: =BIP!K92+CBP_DA!K92+CBP_DO!K92+ACS_DO!K92+ACS_DA!K92+AFP!K92 -> 0 | L92: =BIP!L92+CBP_DA!L92+CBP_DO!L92+ACS_DO!L92+ACS_DA!L92+AFP!L92 -> 0 | M92: =BIP!M92+CBP_DA!M92+CBP_DO!M92+ACS_DO!M92+ACS_DA!M92+AFP!M92 -> 0 | N92: =BIP!N92+CBP_DA!N92+CBP_DO!N92+ACS_DO!N92+ACS_DA!N92+AFP!N92 -> 0 | BX92: Sum
B93: Federal Tax Benefits/(Costs) | D93: 0 | E93: 0 | F93: 0 | G93: 0 | H93: 0 | J93: =BIP!J93+CBP_DA!J93+CBP_DO!J93+ACS_DO!J93+ACS_DA!J93+AFP!J93 -> 0 | K93: =BIP!K93+CBP_DA!K93+CBP_DO!K93+ACS_DO!K93+ACS_DA!K93+AFP!K93 -> 0 | L93: =BIP!L93+CBP_DA!L93+CBP_DO!L93+ACS_DO!L93+ACS_DA!L93+AFP!L93 -> 0 | M93: =BIP!M93+CBP_DA!M93+CBP_DO!M93+ACS_DO!M93+ACS_DA!M93+AFP!M93 -> 0 | N93: =BIP!N93+CBP_DA!N93+CBP_DO!N93+ACS_DO!N93+ACS_DA!N93+AFP!N93 -> 0 | BX93: Sum
B94: Participant benefits | D94: 79478.39807 | E94: 182505.9511 | F94: 344406.3916 | G94: 554141.0532 | H94: 774914.3812 | J94: =BIP!J94+CBP_DA!J94+CBP_DO!J94+ACS_DO!J94+ACS_DA!J94+AFP!J94 -> 79478.39807 | K94: =BIP!K94+CBP_DA!K94+CBP_DO!K94+ACS_DO!K94+ACS_DA!K94+AFP!K94 -> 182505.9511 | L94: =BIP!L94+CBP_DA!L94+CBP_DO!L94+ACS_DO!L94+ACS_DA!L94+AFP!L94 -> 344406.3916 | M94: =BIP!M94+CBP_DA!M94+CBP_DO!M94+ACS_DO!M94+ACS_DA!M94+AFP!M94 -> 554141.0532 | N94: =BIP!N94+CBP_DA!N94+CBP_DO!N94+ACS_DO!N94+ACS_DA!N94+AFP!N94 -> 774914.3812 | BX94: Sum
B95: name | D95: 0 | E95: 0 | F95: 0 | G95: 0 | H95: 0 | J95: =BIP!J95+CBP_DA!J95+CBP_DO!J95+ACS_DO!J95+ACS_DA!J95+AFP!J95 -> 0 | K95: =BIP!K95+CBP_DA!K95+CBP_DO!K95+ACS_DO!K95+ACS_DA!K95+AFP!K95 -> 0 | L95: =BIP!L95+CBP_DA!L95+CBP_DO!L95+ACS_DO!L95+ACS_DA!L95+AFP!L95 -> 0 | M95: =BIP!M95+CBP_DA!M95+CBP_DO!M95+ACS_DO!M95+ACS_DA!M95+AFP!M95 -> 0 | N95: =BIP!N95+CBP_DA!N95+CBP_DO!N95+ACS_DO!N95+ACS_DA!N95+AFP!N95 -> 0 | BX95: Sum
B96: CAISO Market Participation
B97: CAISO Market | D97: Spinning Reserve
B98: MWs Bid into Market | D98: =IF(J98>0,J98,IF(SUM($P98:$AA98)>0,AVERAGE($P98:$AA98),0)) -> 44.41889521 | E98: =IF(K98>0,K98,IF(SUM($AB98:$AM98)>0,AVERAGE($AB98:$AM98),0)) -> 46.80290612 | F98: =IF(L98>0,L98,IF(SUM($AN98:$AY98)>0,AVERAGE($AN98:$AY98),0)) -> 50.3423469 | G98: =IF(M98>0,M98,IF(SUM($AZ98:$BK98)>0,AVERAGE($AZ98:$BK98),0)) -> 54.81223116 | H98: =IF(N98>0,N98,IF(SUM($BL98:$BW98)>0,AVERAGE($BL98:$BW98),0)) -> 59.80623654 | J98: =BIP!J98+CBP_DA!J98+CBP_DO!J98+ACS_DO!J98+ACS_DA!J98+AFP!J98 -> 44.41889521 | K98: =BIP!K98+CBP_DA!K98+CBP_DO!K98+ACS_DO!K98+ACS_DA!K98+AFP!K98 -> 46.80290612 | L98: =BIP!L98+CBP_DA!L98+CBP_DO!L98+ACS_DO!L98+ACS_DA!L98+AFP!L98 -> 50.3423469 | M98: =BIP!M98+CBP_DA!M98+CBP_DO!M98+ACS_DO!M98+ACS_DA!M98+AFP!M98 -> 54.81223116 | N98: =BIP!N98+CBP_DA!N98+CBP_DO!N98+ACS_DO!N98+ACS_DA!N98+AFP!N98 -> 59.80623654 | BX98: Avg
B99: Number of Hours Bid | D99: =IF(J99>0,J99,IF(SUM($P99:$AA99)>0,SUMPRODUCT($P99:$AA99,$P98:$AA98)/AVERAGE($P98:$AA98),0)) -> 272 | E99: =IF(K99>0,K99,IF(SUM($AB99:$AM99)>0,SUMPRODUCT($AA99:$AB99,$AA98:$AM98)/AVERAGE($AB98:$AM98),0)) -> 272 | F99: =IF(L99>0,L99,IF(SUM($AN99:$AY99)>0,SUMPRODUCT($AN99:$AY99,$AN98:$AY98)/AVERAGE($AN98:$AY98),0)) -> 272 | G99: =IF(M99>0,M99,IF(SUM($AZ99:$BK99)>0,SUMPRODUCT($AZ99:$BK99,$AZ98:$BK98)/AVERAGE($AZ98:$BK98),0)) -> 272 | H99: =IF(N99>0,N99,IF(SUM($BL99:$BW99)>0,SUMPRODUCT($BL99:$BW99,$BL98:$BW98)/AVERAGE($BL98:$BW98),0)) -> 272 | J99: =BIP!J99+CBP_DA!J99+CBP_DO!J99+ACS_DO!J99+ACS_DA!J99+AFP!J99 -> 272 | K99: =BIP!K99+CBP_DA!K99+CBP_DO!K99+ACS_DO!K99+ACS_DA!K99+AFP!K99 -> 272 | L99: =BIP!L99+CBP_DA!L99+CBP_DO!L99+ACS_DO!L99+ACS_DA!L99+AFP!L99 -> 272 | M99: =BIP!M99+CBP_DA!M99+CBP_DO!M99+ACS_DO!M99+ACS_DA!M99+AFP!M99 -> 272 | N99: =BIP!N99+CBP_DA!N99+CBP_DO!N99+ACS_DO!N99+ACS_DA!N99+AFP!N99 -> 272 | BX99: Sum
B100: MWhs bid | D100: =IF(J100>0,J100,SUM($P100:$AA100)) -> 12081.9395 | E100: =IF(K100>0,K100,AVERAGE($AB100:$AM100)) -> 12730.39046 | F100: =IF(L100>0,L100,AVERAGE($AN100:$AY100)) -> 13693.11836 | G100: =IF(M100>0,M100,AVERAGE($AZ100:$BK100)) -> 14908.92688 | H100: =IF(N100>0,N100,AVERAGE($BL100:$BW100)) -> 16267.29634 | J100: =J98*J99 -> 12081.9395 | K100: =K98*K99 -> 12730.39046 | L100: =L98*L99 -> 13693.11836 | M100: =M98*M99 -> 14908.92688 | N100: 16267.29634 | P100: =P98*P99 -> 0 | Q100: =Q98*Q99 -> 0 | R100: 0 | S100: 0 | T100: 0 | U100: 0 | V100: 0 | W100: 0 | X100: 0 | Y100: 0 | Z100: 0 | AA100: 0 | AB100: 0 | AC100: 0 | AD100: 0 | AE100: 0 | AF100: 0 | AG100: 0 | AH100: 0 | AI100: 0 | AJ100: 0 | AK100: 0 | AL100: 0 | AM100: 0 | AN100: 0 | AO100: 0 | AP100: 0 | AQ100: 0 | AR100: 0 | AS100: 0 | AT100: 0 | AU100: 0 | AV100: 0 | AW100: 0 | AX100: 0 | AY100: 0 | AZ100: 0 | BA100: 0 | BB100: 0 | BC100: 0 | BD100: 0 | BE100: 0 | BF100: 0 | BG100: 0 | BH100: 0 | BI100: 0 | BJ100: 0 | BK100: 0 | BL100: 0 | BM100: 0 | BN100: 0 | BO100: 0 | BP100: 0 | BQ100: 0 | BR100: 0 | BS100: 0 | BT100: 0 | BU100: 0 | BV100: 0 | BW100: 0 | BX100: Sum
B101: Average Market Price ($/MWh) | D101: =IF(J101>0,J101,IF(SUM($P$100:$AA$100)>0,SUMPRODUCT($P$100:$AA$100,$P$101:$AA$101)/SUM($P$100:$AA$100),0)) -> 58.66306136 | E101: =IF(K101>0,K101,IF(SUM($AB$100:$AM$100)>0,SUMPRODUCT($AB$100:$AM$100,$AB$101:$AM$101)/SUM($AB$100:$AM$100),0)) -> 59.96371971 | F101: =IF(L101>0,L101,IF(SUM($AN$100:$AY$100)>0,SUMPRODUCT($AN$100:$AY$100,$AN$101:$AY$101)/SUM($AN$100:$AY$100),0)) -> 55.60274811 | G101: =IF(M101>0,M101,IF(SUM($AZ$100:$BK$100)>0,SUMPRODUCT($AZ$100:$BK$100,$AZ$101:$BK$101)/SUM($AZ$100:$BK$100),0)) -> 56.75404333 | H101: =IF(N101>0,N101,IF(SUM($BL$100:$BW$100)>0,SUMPRODUCT($BL$100:$BW$100,$BL$101:$BW$101)/SUM($BL$100:$BW$100),0)) -> 57.94747649 | J101: =BIP!J101 -> 58.66306136 | K101: =BIP!K101 -> 59.96371971 | L101: =BIP!L101 -> 55.60274811 | M101: =BIP!M101 -> 56.75404333 | N101: =BIP!N101 -> 57.94747649 | BX101: Avg
J102: All inputs in nominal year dollars
B103: TOTAL | D103: =Inputs!$C$2 -> 2018 | E103: =D103+1 -> 2019 | F103: =E103+1 -> 2020 | G103: 2021 | H103: 2022 | I103: =Inputs!$C$3 & " NPV" -> 2017 NPV
B104: TRC Costs | D104: =SUM(D63,D66:D68,D70:D73) -> 7206452.148 | E104: =SUM(E63,E66:E68,E70:E73) -> 8039798.348 | F104: 8036059.583 | G104: 8495449.447 | H104: 9260733.976 | I104: =SUMPRODUCT(D104:H104,DiscFactors) -> 33114958.73
B105: PAC Costs | D105: =SUM(D63:D64,D66:D68) -> 8240877.099 | E105: =SUM(E63:E64,E66:E68) -> 8953426.283 | F105: 8807549.454 | G105: 9094858.137 | H105: 9681523.211 | I105: =SUMPRODUCT(D105:H105,DiscFactors) -> 36244368.99
B106: RIM Costs | D106: =SUM(D63:D68) -> 8610805.53 | E106: =SUM(E63:E68) -> 9363404.497 | F106: 9272503.236 | G106: 9629464.128 | H106: 10298516.65 | I106: =SUMPRODUCT(D106:H106,DiscFactors) -> 38158129.9
B107: PCT Costs | D107: =SUM(D70:D73) -> 1825623.782 | E107: =SUM(E70:E73) -> 1946489.531 | F107: 2196282.756 | G107: 2516693.115 | H107: 2873664.931 | I107: =SUMPRODUCT(D107:H107,DiscFactors) -> 9086263.347
B109: Generation Capacity Value | D109: =BIP!D109+CBP_DA!D109+CBP_DO!D109+ACS_DO!D109+ACS_DA!D109+AFP!D109 -> 4543836.838 | E109: =BIP!E109+CBP_DA!E109+CBP_DO!E109+ACS_DO!E109+ACS_DA!E109+AFP!E109 -> 5031987.705 | F109: =BIP!F109+CBP_DA!F109+CBP_DO!F109+ACS_DO!F109+ACS_DA!F109+AFP!F109 -> 5500697.737 | G109: =BIP!G109+CBP_DA!G109+CBP_DO!G109+ACS_DO!G109+ACS_DA!G109+AFP!G109 -> 6065401.799 | H109: =BIP!H109+CBP_DA!H109+CBP_DO!H109+ACS_DO!H109+ACS_DA!H109+AFP!H109 -> 6657380.716 | I109: =SUMPRODUCT(D109:H109,DiscFactors) -> 22307973.18
B110: T&D Capacity Value | D110: =BIP!D110+CBP_DA!D110+CBP_DO!D110+ACS_DO!D110+ACS_DA!D110+AFP!D110 -> 0 | E110: =BIP!E110+CBP_DA!E110+CBP_DO!E110+ACS_DO!E110+ACS_DA!E110+AFP!E110 -> 0 | F110: =BIP!F110+CBP_DA!F110+CBP_DO!F110+ACS_DO!F110+ACS_DA!F110+AFP!F110 -> 0 | G110: =BIP!G110+CBP_DA!G110+CBP_DO!G110+ACS_DO!G110+ACS_DA!G110+AFP!G110 -> 0 | H110: =BIP!H110+CBP_DA!H110+CBP_DO!H110+ACS_DO!H110+ACS_DA!H110+AFP!H110 -> 0 | I110: 0
B111: Energy Value | D111: =BIP!D111+CBP_DA!D111+CBP_DO!D111+ACS_DO!D111+ACS_DA!D111+AFP!D111 -> 109269.8727 | E111: =BIP!E111+CBP_DA!E111+CBP_DO!E111+ACS_DO!E111+ACS_DA!E111+AFP!E111 -> 118495.8216 | F111: =BIP!F111+CBP_DA!F111+CBP_DO!F111+ACS_DO!F111+ACS_DA!F111+AFP!F111 -> 121226.5421 | G111: =BIP!G111+CBP_DA!G111+CBP_DO!G111+ACS_DO!G111+ACS_DA!G111+AFP!G111 -> 138350.5543 | H111: =BIP!H111+CBP_DA!H111+CBP_DO!H111+ACS_DO!H111+ACS_DA!H111+AFP!H111 -> 158626.6057 | I111: 518636.9242
B112: GHG Value | D112: =BIP!D112+CBP_DA!D112+CBP_DO!D112+ACS_DO!D112+ACS_DA!D112+AFP!D112 -> 13386.1662 | E112: =BIP!E112+CBP_DA!E112+CBP_DO!E112+ACS_DO!E112+ACS_DA!E112+AFP!E112 -> 15317.1957 | F112: =BIP!F112+CBP_DA!F112+CBP_DO!F112+ACS_DO!F112+ACS_DA!F112+AFP!F112 -> 25496.25565 | G112: =BIP!G112+CBP_DA!G112+CBP_DO!G112+ACS_DO!G112+ACS_DA!G112+AFP!G112 -> 30657.89257 | H112: =BIP!H112+CBP_DA!H112+CBP_DO!H112+ACS_DO!H112+ACS_DA!H112+AFP!H112 -> 36703.76174 | I112: 95321.55414
B113: Optional Benefits | D113: =BIP!D113+CBP_DA!D113+CBP_DO!D113+ACS_DO!D113+ACS_DA!D113+AFP!D113 -> 79478.39807 | E113: =BIP!E113+CBP_DA!E113+CBP_DO!E113+ACS_DO!E113+ACS_DA!E113+AFP!E113 -> 182505.9511 | F113: =BIP!F113+CBP_DA!F113+CBP_DO!F113+ACS_DO!F113+ACS_DA!F113+AFP!F113 -> 344406.3916 | G113: =BIP!G113+CBP_DA!G113+CBP_DO!G113+ACS_DO!G113+ACS_DA!G113+AFP!G113 -> 554141.0532 | H113: =BIP!H113+CBP_DA!H113+CBP_DO!H113+ACS_DO!H113+ACS_DA!H113+AFP!H113 -> 774914.3812 | I113: 1473717.598
B114: CAISO Market Value | D114: =BIP!D114+CBP_DA!D114+CBP_DO!D114+ACS_DO!D114+ACS_DA!D114+AFP!D114 -> 99348.93599 | E114: =BIP!E114+CBP_DA!E114+CBP_DO!E114+ACS_DO!E114+ACS_DA!E114+AFP!E114 -> 109627.6291 | F114: =BIP!F114+CBP_DA!F114+CBP_DO!F114+ACS_DO!F114+ACS_DA!F114+AFP!F114 -> 112153.9832 | G114: =BIP!G114+CBP_DA!G114+CBP_DO!G114+ACS_DO!G114+ACS_DA!G114+AFP!G114 -> 127996.4395 | H114: =BIP!H114+CBP_DA!H114+CBP_DO!H114+ACS_DO!H114+ACS_DA!H114+AFP!H114 -> 146755.0371 | I114: 478197.8257
B115: Total Benefits | D115: =SUM(D109:D114) -> 4845320.211 | E115: =SUM(E109:E114) -> 5457934.302 | F115: 6103980.909 | G115: 6916547.738 | H115: 7774380.502 | I115: 24873847.08
B116: Participant Benefits | D116: =D64+D65 -> 3229977.165 | E116: =E64+E65 -> 3270095.68 | F116: 3432726.409 | G116: 3650707.796 | H116: 3911447.609 | I116: 14129434.51
F118: NPV MW Impact (for levelized $/kW-Yr. calculation) | I118: =NPV(WACC,D58:H58) -> 103.414381
B120: Sensitivities
D121: =Inputs!$C$2 -> 2018 | E121: =D121+1 -> 2019 | F121: =E121+1 -> 2020 | G121: 2021 | H121: 2022 | I121: =I103 -> 2017 NPV
B122: % Incentives as Participant Costs
B123: =" " &TEXT(1,"0%") & " of Incentive Costs" -> 100% of Incentive Costs | C123: TRC Cost | D123: =SUM(D$63,MAX((D$64+D$65)*1-SUM(D$71:D$73),0),D$66:D$68,D$71:D$73) -> 8610805.53 | E123: =SUM(E$63,MAX((E$64+E$65)*1-SUM(E$71:E$73),0),E$66:E$68,E$71:E$73) -> 9363404.497 | F123: =SUM(F$63,MAX((F$64+F$65)*1-SUM(F$71:F$73),0),F$66:F$68,F$71:F$73) -> 9272503.236 | G123: =SUM(G$63,MAX((G$64+G$65)*1-SUM(G$71:G$73),0),G$66:G$68,G$71:G$73) -> 9629464.128 | H123: 10298516.65 | I123: =SUMPRODUCT(D123:H123,DiscFactors) -> 38158129.9
B124: =" " &TEXT(TRCIncLow2Pct,"0%") & " of Incentive Costs" -> 50% of Incentive Costs | C124: TRC Cost | D124: =SUM(D$63,MAX((D$64+D$65)*TRCIncLow2Pct-SUM(D$71:D$73),0),D$66:D$68,D$71:D$73) -> 6995816.948 | E124: =SUM(E$63,MAX((E$64+E$65)*TRCIncLow2Pct-SUM(E$71:E$73),0),E$66:E$68,E$71:E$73) -> 7728356.657 | F124: =SUM(F$63,MAX((F$64+F$65)*TRCIncLow2Pct-SUM(F$71:F$73),0),F$66:F$68,F$71:F$73) -> 7556140.032 | G124: =SUM(G$63,MAX((G$64+G$65)*TRCIncLow2Pct-SUM(G$71:G$73),0),G$66:G$68,G$71:G$73) -> 7804110.23 | H124: =SUM(H$63,MAX((H$64+H$65)*TRCIncLow2Pct-SUM(H$71:H$73),0),H$66:H$68,H$71:H$73) -> 8342792.849 | I124: =SUMPRODUCT(D124:H124,DiscFactors) -> 31093412.64
B125: Generation Capacity Costs
B126: =" Base Case " & TEXT(GenLowPct,"0%") -> Base Case -30% | C126: TRC Benefits | D126: =SUM(D$109*(1+GenLowPct),D$110:D$114) -> 3482169.16 | E126: =SUM(E$109*(1+GenLowPct),E$110:E$114) -> 3948337.991 | F126: =SUM(F$109*(1+GenLowPct),F$110:F$114) -> 4453771.588 | G126: =SUM(G$109*(1+GenLowPct),G$110:G$114) -> 5096927.199 | H126: =SUM(H$109*(1+GenLowPct),H$110:H$114) -> 5777166.287 | I126: =SUMPRODUCT(D126:H126,DiscFactors) -> 18181455.13
B127: =" Base Case +" & TEXT(GenHighPct,"0%") -> Base Case +30% | C127: TRC Benefits | D127: =SUM(D$109*(1+GenHighPct),D$110:D$114) -> 6208471.263 | E127: =SUM(E$109*(1+GenHighPct),E$110:E$114) -> 6967530.614 | F127: =SUM(F$109*(1+GenHighPct),F$110:F$114) -> 7754190.23 | G127: =SUM(G$109*(1+GenHighPct),G$110:G$114) -> 8736168.278 | H127: =SUM(H$109*(1+GenHighPct),H$110:H$114) -> 9771594.717 | I127: =SUMPRODUCT(D127:H127,DiscFactors) -> 31566239.04
B128: T&D Capacity Costs
B129: =" Base Case " & TEXT(TandDLowPct,"0%") -> Base Case -30% | C129: TRC Benefits | D129: =SUM(D$109,D$110*(1+TandDLowPct),D$111:D$114) -> 4845320.211 | E129: =SUM(E$109,E$110*(1+TandDLowPct),E$111:E$114) -> 5457934.302 | F129: =SUM(F$109,F$110*(1+TandDLowPct),F$111:F$114) -> 6103980.909 | G129: =SUM(G$109,G$110*(1+TandDLowPct),G$111:G$114) -> 6916547.738 | H129: =SUM(H$109,H$110*(1+TandDLowPct),H$111:H$114) -> 7774380.502 | I129: =SUMPRODUCT(D129:H129,DiscFactors) -> 24873847.08
B130: =" Base Case +" & TEXT(TandDHighPct,"0%") -> Base Case +30% | C130: TRC Benefits | D130: =SUM(D$109,D$110*(1+TandDHighPct),D$111:D$114) -> 4845320.211 | E130: =SUM(E$109,E$110*(1+TandDHighPct),E$111:E$114) -> 5457934.302 | F130: =SUM(F$109,F$110*(1+TandDHighPct),F$111:F$114) -> 6103980.909 | G130: =SUM(G$109,G$110*(1+TandDHighPct),G$111:G$114) -> 6916547.738 | H130: =SUM(H$109,H$110*(1+TandDHighPct),H$111:H$114) -> 7774380.502 | I130: =SUMPRODUCT(D130:H130,DiscFactors) -> 24873847.08
B131: Capital Ammortization Period
B132: =" " &AmmLowYrs & " Years" -> 3 Years | C132: TRC Cost | D132: =SUM(D$63,D$67:D$68,D70,D72:D73)-PMT(WACC,AmmLowYrs,MAX(SUM($J$76:$J$86),SUM($P$76:$AA$86))) -> 7386033.608 | E132: =SUM(E$63,E$67:E$68,E70,E72:E73)-PMT(WACC,AmmLowYrs,MAX(SUM($J$76:$K$86),SUM($P$76:$AM$86))) -> 8410676.033 | F132: =SUM(F$63,F$67:F$68,F70,F72:F73)-PMT(WACC,AmmLowYrs,MAX(SUM($J$76:$L$86),SUM($P$76:$AY$86))) -> 8583967.36 | G132: =SUM(G$63,G$67:G$68,G70,G72:G73)-PMT(WACC,AmmLowYrs,MAX(SUM($J$76:$M$86),SUM($P$76:$BK$86))) -> 9257715.177 | H132: =SUM(H$63,H$67:H$68,H70,H72:H73)-PMT(WACC,AmmLowYrs,MAX(SUM($J$76:$N$86),SUM($P$76:$BW$86))) -> 10264895.63 | I132: =SUMPRODUCT(D132:H132,DiscFactors) -> 35328277.89
C133: PAC Cost | D133: =SUM(D$63:D$64,D$67:D$68)-PMT(WACC,AmmLowYrs,MAX(SUM($J$76:$J$80),SUM($P$76:$AA$80))) -> 8376086.739 | E133: =SUM(E$63:E$64,E$67:E$68)-PMT(WACC,AmmLowYrs,MAX(SUM($J$76:$K$80),SUM($P$76:$AM$80))) -> 9222413.122 | F133: =SUM(F$63:F$64,F$67:F$68)-PMT(WACC,AmmLowYrs,MAX(SUM($J$76:$L$80),SUM($P$76:$AY$80))) -> 9163179.343 | G133: =SUM(G$63:G$64,G$67:G$68)-PMT(WACC,AmmLowYrs,MAX(SUM($J$76:$M$80),SUM($P$76:$BK$80))) -> 9547753.677 | H133: =SUM(H$63:H$64,H$67:H$68)-PMT(WACC,AmmLowYrs,MAX(SUM($J$76:$N$80),SUM($P$76:$BW$80))) -> 10253059.62 | I133: 37634929.6
C134: RIM Cost | D134: =SUM(D$63:D$65,D$67:D$68)-PMT(WACC,AmmLowYrs,MAX(SUM($J$76:$J$80),SUM($P$76:$AA$80))) -> 8746015.17 | E134: =SUM(E$63:E$65,E$67:E$68)-PMT(WACC,AmmLowYrs,MAX(SUM($J$76:$K$80),SUM($P$76:$AM$80))) -> 9632391.336 | F134: =SUM(F$63:F$65,F$67:F$68)-PMT(WACC,AmmLowYrs,MAX(SUM($J$76:$L$80),SUM($P$76:$AY$80))) -> 9628133.126 | G134: =SUM(G$63:G$65,G$67:G$68)-PMT(WACC,AmmLowYrs,MAX(SUM($J$76:$M$80),SUM($P$76:$BK$80))) -> 10082359.67 | H134: =SUM(H$63:H$65,H$67:H$68)-PMT(WACC,AmmLowYrs,MAX(SUM($J$76:$N$80),SUM($P$76:$BW$80))) -> 10870053.06 | I134: 39548690.5
B135: =" " &AmmHighYrs & " Years" -> 15 Years | C135: TRC Cost | D135: =SUM(D$63,D$67:D$68,D70,D72:D73)-PMT(WACC,AmmHighYrs,MAX(SUM($J$76:$J$86),SUM($P$76:$AA$86))) -> 7031224.976 | E135: =SUM(E$63,E$67:E$68,E70,E72:E73)-PMT(WACC,AmmHighYrs,MAX(SUM($J$76:$K$86),SUM($P$76:$AM$86))) -> 7686477.945 | F135: =SUM(F$63,F$67:F$68,F70,F72:F73)-PMT(WACC,AmmHighYrs,MAX(SUM($J$76:$L$86),SUM($P$76:$AY$86))) -> 7528244.241 | G135: =SUM(G$63,G$67:G$68,G70,G72:G73)-PMT(WACC,AmmHighYrs,MAX(SUM($J$76:$M$86),SUM($P$76:$BK$86))) -> 7807626.908 | H135: =SUM(H$63,H$67:H$68,H70,H72:H73)-PMT(WACC,AmmHighYrs,MAX(SUM($J$76:$N$86),SUM($P$76:$BW$86))) -> 8378308.14 | I135: 31095076.96
C136: PAC Cost | D136: =SUM(D$63:D$64,D$67:D$68)-PMT(WACC,AmmHighYrs,MAX(SUM($J$76:$J$80),SUM($P$76:$AA$80))) -> 8108945.869 | E136: =SUM(E$63:E$64,E$67:E$68)-PMT(WACC,AmmHighYrs,MAX(SUM($J$76:$K$80),SUM($P$76:$AM$80))) -> 8699526.193 | F136: =SUM(F$63:F$64,F$67:F$68)-PMT(WACC,AmmHighYrs,MAX(SUM($J$76:$L$80),SUM($P$76:$AY$80))) -> 8487349.862 | G136: =SUM(G$63:G$64,G$67:G$68)-PMT(WACC,AmmHighYrs,MAX(SUM($J$76:$M$80),SUM($P$76:$BK$80))) -> 8708904.53 | H136: =SUM(H$63:H$64,H$67:H$68)-PMT(WACC,AmmHighYrs,MAX(SUM($J$76:$N$80),SUM($P$76:$BW$80))) -> 9221232.814 | I136: 35027296.47
C137: RIM Cost | D137: =SUM(D$63:D$65,D$67:D$68)-PMT(WACC,AmmHighYrs,MAX(SUM($J$76:$J$80),SUM($P$76:$AA$80))) -> 8478874.301 | E137: =SUM(E$63:E$65,E$67:E$68)-PMT(WACC,AmmHighYrs,MAX(SUM($J$76:$K$80),SUM($P$76:$AM$80))) -> 9109504.406 | F137: =SUM(F$63:F$65,F$67:F$68)-PMT(WACC,AmmHighYrs,MAX(SUM($J$76:$L$80),SUM($P$76:$AY$80))) -> 8952303.645 | G137: =SUM(G$63:G$65,G$67:G$68)-PMT(WACC,AmmHighYrs,MAX(SUM($J$76:$M$80),SUM($P$76:$BK$80))) -> 9243510.521 | H137: =SUM(H$63:H$65,H$67:H$68)-PMT(WACC,AmmHighYrs,MAX(SUM($J$76:$N$80),SUM($P$76:$BW$80))) -> 9838226.257 | I137: 36941057.37
B138: Load Impact
B139: =" Base Case " & TEXT(ImpactLowPct,"0%") -> Base Case -30% | C139: TRC Benefits | I139: =SUM(I$109:I$112)*(1+ImpactLowPct)+SUM(I$113:I$114) -> 17997267.59
B140: =" Base Case +" & TEXT(ImpactHighPct,"0%") -> Base Case +30% | C140: TRC Benefits | I140: =SUM(I$109:I$112)*(1+ImpactHighPct)+SUM(I$113:I$114) -> 31750426.58
B147: Chart
D148: Base Case | E148: High | F148: Low | I148: Base Case | J148: 1
B149: Base Case | D149: =I6 -> 0.7511362851 | I149: =I6 -> 0.7511362851 | J149: 1
B150: % of Incentives as Participant Costs | C150: 1 | F150: =C16 -> 0.65186232 | I150: =I6 -> 0.7511362851 | J150: 1
C151: =TRCIncLow2Pct -> 0.5 | E151: =D16 -> 0.7999716007 | I151: =D149 -> 0.7511362851 | J151: 1
B152: Generation Capacity Value | C152: =Inputs!$C$15 -> -0.3 | F152: =E16 -> 0.5490405492 | I152: =I6 -> 0.7511362851 | J152: 1
C153: =Inputs!$C$16 -> 0.3 | E153: =F16 -> 0.953232021 | I153: =I6 -> 0.7511362851 | J153: 1
B154: T&D Capacity Value | C154: =Inputs!$C$18 -> -0.3 | F154: =I16 -> 0.7511362851 | I154: =I6 -> 0.7511362851 | J154: 1
C155: =Inputs!$C$19 -> 0.3 | E155: =J16 -> 0.7511362851 | I155: =I6 -> 0.7511362851 | J155: 1
B156: Capital Amortization Period | C156: =Inputs!$C$21 -> 3 | F156: =K16 -> 0.7040775426 | I156: =I6 -> 0.7511362851 | J156: 1
C157: =Inputs!$C$22 -> 15 | E157: =L16 -> 0.7999287834 | I157: =I6 -> 0.7511362851 | J157: 1
B158: Load Impact | C158: =Inputs!$C$24 -> -0.3 | F158: =O16 -> 0.5434784845 | I158: =I6 -> 0.7511362851 | J158: 1
C159: =Inputs!$C$25 -> 0.3 | E159: =P16 -> 0.9587940857 | I159: =I6 -> 0.7511362851 | J159: 1
B160: A Factor | C160: =(1+FactorLowPct)*D40 -> 0 | F160: =Q16 -> 0 | I160: =I6 -> 0.7511362851 | J160: 1
C161: =FactorHighPct -> 1 | E161: =R16 -> 0 | I161: =I6 -> 0.7511362851 | J161: 1

Sheet BIP
B1: Program Name
B2: BIP
B4: Base Case Results
B5: =Inputs!C3 & " Dollars" -> 2017 Dollars | C5: Benefits | D5: Costs | E5: Net Benefits | F5: Net $/kW-Yr. | I5: Ratio
B6: TRC | C6: =$I$115 -> 3892459.104 | D6: =I104 -> 2843627.308 | E6: =$C$6-D6 -> 1048831.797 | F6: =E6/$I$118/1000 -> 39.56001243 | I6: =C6/D6 -> 1.368835886
B7: PAC | D7: =I105 -> 3409305.764 | E7: =$C$6-D7 -> 483153.34 | F7: =E7/$I$118/1000 -> 18.22365817 | I7: =C6/D7 -> 1.141716048
B8: RIM | D8: =I106 -> 3435382.589 | E8: =$C$6-D8 -> 457076.5151 | F8: =E8/$I$118/1000 -> 17.24008814 | I8: =C6/D8 -> 1.133049669
B9: PCT | C9: =I116 -> 2367021.127 | D9: =I107 -> 1775265.845 | E9: =C9-D9 -> 591755.2817 | F9: =E9/$I$118/1000 -> 22.31992429 | I9: =C9/D9 -> 1.333333333
B11: Sensitivities
C12: % of Customer Incentives in TRC | E12: Generation Capacity Value | I12: T&D Capacity Value | K12: Capital Amortization Period | O12: Load Impact | Q12: A Adjustment Factor
C15: 1 | D15: =TRCIncLow2Pct -> 0.5 | E15: =Inputs!$C$15 -> -0.3 | F15: =Inputs!$C$16 -> 0.3 | I15: =Inputs!$C$18 -> -0.3 | J15: =Inputs!$C$19 -> 0.3 | K15: =Inputs!$C$21 -> 3 | L15: =Inputs!$C$22 -> 15 | O15: =Inputs!$C$24 -> -0.3 | P15: =Inputs!$C$25 -> 0.3 | Q15: =C160 -> 0.7720642844 | R15: =Inputs!$C$28 -> 1
B16: TRC | C16: =C6/I123 -> 1.133049669 | D16: =C6/I124 -> 1.728543656 | E16: =I126/D6 -> 0.9601116458 | F16: =I127/D6 -> 1.777560126 | I16: =I129/D6 -> 1.368835886 | J16: =I130/D6 -> 1.368835886 | K16: =C6/I132 -> 1.352677911 | L16: =C6/I135 -> 1.384978562 | O16: =I139/D6 -> 0.9589409326 | P16: =I140/D6 -> 1.778730839 | Q16: =I143/D6 -> 1.232594472 | R16: =I145/D6 -> 1.594596137
B17: PAC | C17: - | E17: =I126/D7 -> 0.8008081067 | F17: =I127/D7 -> 1.48262399 | I17: =I129/D7 -> 1.141716048 | J17: =I130/D7 -> 1.141716048 | K17: =C6/I133 -> 1.130453107 | L17: =C6/I136 -> 1.152924355 | O17: =I139/D7 -> 0.7998316404 | P17: =I140/D7 -> 1.483600456 | Q17: =I143/D7 -> 1.028080068 | R17: =I145/D7 -> 1.330017732
B18: RIM | C18: - | E18: =I126/D8 -> 0.7947294437 | F18: =I127/D8 -> 1.471369893 | I18: =I129/D8 -> 1.133049669 | J18: =I130/D8 -> 1.133049669 | K18: =C6/I134 -> 1.121956234 | L18: =C6/I137 -> 1.144087642 | O18: =I139/D8 -> 0.7937603895 | P18: =I140/D8 -> 1.472338948 | Q18: =I143/D8 -> 1.02027626 | R18: =I145/D8 -> 1.319922018
B39: Adjustment Factors | J39: LEGEND
B40: A) Availability adjustment | D40: =budget!L3 -> 0.8578492049 | J40: Utility Input | L40: Enter Utility specific information and program data in yellow cells
B41: B) Notification adjustment | D41: =budget!L4 -> 1 | J41: Do Not Alter
B42: C) Trigger adjustment | D42: =budget!L5 -> 1 | J42: Avoided Cost Input | L42: Inputs from Avoided Cost Model
B43: D) T&D right time-right place adjustment | D43: =budget!L6 -> 0 | E43: T&D Value--> | F43: D Only | J43: Formula | L43: Formulas contained in this Excel Workbook
B44: E) Energy price adjustment | D44: =budget!L7 -> 1.45
B45: F) Flexiblity adjustment | D45: =budget!L8 -> 1
B46: G) Geographical adjustment | D46: =budget!L9 -> 1.1
J47: P:AA | K47: AB:AM | L47: AN:AY | M47: AZ:BK | N47: BL:BW
B48: Program | J48: Annual Inputs | P48: Monthly Inputs
B49: Nominal Dollars | J49: (Inputs override monthly inputs) | P49: =Inputs!$C$2 -> 2018 | AB49: =P49+1 -> 2019 | AN49: =AB49+1 -> 2020 | AZ49: =AN49+1 -> 2021 | BL49: =AZ49+1 -> 2022
B50: Adjusted Avoided Cost Values | D50: =Inputs!$C$2 -> 2018 | E50: =D50+1 -> 2019 | F50: =E50+1 -> 2020 | G50: 2021 | H50: 2022 | J50: =Inputs!$C$2 -> 2018 | K50: =J50+1 -> 2019 | L50: =K50+1 -> 2020 | M50: 2021 | N50: 2022 | P50: =DATE(P49,1,1) -> 2018-01-01 | Q50: =DATE(P49,2,1) -> 2018-02-01 | R50: =DATE(P49,3,1) -> 2018-03-01 | S50: =DATE(P49,4,1) -> 2018-04-01 | T50: =DATE(P49,5,1) -> 2018-05-01 | U50: =DATE(P49,6,1) -> 2018-06-01 | V50: =DATE(P49,7,1) -> 2018-07-01 | W50: =DATE(P49,8,1) -> 2018-08-01 | X50: =DATE(P49,9,1) -> 2018-09-01 | Y50: =DATE(P49,10,1) -> 2018-10-01 | Z50: =DATE(P49,11,1) -> 2018-11-01 | AA50: =DATE(P49,12,1) -> 2018-12-01 | AB50: =DATE(AB49,1,1) -> 2019-01-01 | AC50: =DATE(AB49,2,1) -> 2019-02-01 | AD50: =DATE(AB49,3,1) -> 2019-03-01 | AE50: =DATE(AB49,4,1) -> 2019-04-01 | AF50: =DATE(AB49,5,1) -> 2019-05-01 | AG50: =DATE(AB49,6,1) -> 2019-06-01 | AH50: =DATE(AB49,7,1) -> 2019-07-01 | AI50: =DATE(AB49,8,1) -> 2019-08-01 | AJ50: =DATE(AB49,9,1) -> 2019-09-01 | AK50: =DATE(AB49,10,1) -> 2019-10-01 | AL50: =DATE(AB49,11,1) -> 2019-11-01 | AM50: =DATE(AB49,12,1) -> 2019-12-01 | AN50: =DATE(AN49,1,1) -> 2020-01-01 | AO50: =DATE(AN49,2,1) -> 2020-02-01 | AP50: =DATE(AN49,3,1) -> 2020-03-01 | AQ50: =DATE(AN49,4,1) -> 2020-04-01 | AR50: =DATE(AN49,5,1) -> 2020-05-01 | AS50: =DATE(AN49,6,1) -> 2020-06-01 | AT50: =DATE(AN49,7,1) -> 2020-07-01 | AU50: =DATE(AN49,8,1) -> 2020-08-01 | AV50: =DATE(AN49,9,1) -> 2020-09-01 | AW50: =DATE(AN49,10,1) -> 2020-10-01 | AX50: =DATE(AN49,11,1) -> 2020-11-01 | AY50: =DATE(AN49,12,1) -> 2020-12-01 | AZ50: =DATE(AZ49,1,1) -> 2021-01-01 | BA50: =DATE(AZ49,2,1) -> 2021-02-01 | BB50: =DATE(AZ49,3,1) -> 2021-03-01 | BC50: =DATE(AZ49,4,1) -> 2021-04-01 | BD50: =DATE(AZ49,5,1) -> 2021-05-01 | BE50: =DATE(AZ49,6,1) -> 2021-06-01 | BF50: =DATE(AZ49,7,1) -> 2021-07-01 | BG50: =DATE(AZ49,8,1) -> 2021-08-01 | BH50: =DATE(AZ49,9,1) -> 2021-09-01 | BI50: =DATE(AZ49,10,1) -> 2021-10-01 | BJ50: =DATE(AZ49,11,1) -> 2021-11-01 | BK50: =DATE(AZ49,12,1) -> 2021-12-01 | BL50: =DATE(BL49,1,1) -> 2022-01-01 | BM50: =DATE(BL49,2,1) -> 2022-02-01 | BN50: =DATE(BL49,3,1) -> 2022-03-01 | BO50: =DATE(BL49,4,1) -> 2022-04-01 | BP50: =DATE(BL49,5,1) -> 2022-05-01 | BQ50: =DATE(BL49,6,1) -> 2022-06-01 | BR50: =DATE(BL49,7,1) -> 2022-07-01 | BS50: =DATE(BL49,8,1) -> 2022-08-01 | BT50: =DATE(BL49,9,1) -> 2022-09-01 | BU50: =DATE(BL49,10,1) -> 2022-10-01 | BV50: =DATE(BL49,11,1) -> 2022-11-01 | BW50: =DATE(BL49,12,1) -> 2022-12-01
B51: Monthly Generation Capacity Allocation | I51: Enter Alternate | P51: =Inputs!I32 -> 0 | Q51: =Inputs!J32 -> 0 | R51: =Inputs!K32 -> 0 | S51: =Inputs!L32 -> 0 | T51: =Inputs!M32 -> 0 | U51: =Inputs!N32 -> 3.550063078e-05 | V51: =Inputs!O32 -> 0 | W51: =Inputs!P32 -> 0.2653796298 | X51: =Inputs!Q32 -> 0.7339891128 | Y51: =Inputs!R32 -> 0.0005957567357 | Z51: =Inputs!S32 -> 0 | AA51: =Inputs!T32 -> 0 | AB51: =P51 -> 0 | AC51: =Q51 -> 0 | AD51: 0 | AE51: 0 | AF51: 0 | AG51: 3.550063078e-05 | AH51: 0 | AI51: 0.2653796298 | AJ51: 0.7339891128 | AK51: 0.0005957567357 | AL51: 0 | AM51: 0 | AN51: 0 | AO51: 0 | AP51: 0 | AQ51: 0 | AR51: 0 | AS51: =AG51 -> 3.550063078e-05 | AT51: 0 | AU51: 0.2653796298 | AV51: 0.7339891128 | AW51: 0.0005957567357 | AX51: 0 | AY51: 0 | AZ51: 0 | BA51: 0 | BB51: 0 | BC51: 0 | BD51: 0 | BE51: 3.550063078e-05 | BF51: 0 | BG51: 0.2653796298 | BH51: 0.7339891128 | BI51: =AW51 -> 0.0005957567357 | BJ51: 0 | BK51: 0 | BL51: 0 | BM51: 0 | BN51: 0 | BO51: 0 | BP51: 0 | BQ51: 3.550063078e-05 | BR51: 0 | BS51: 0.2653796298 | BT51: 0.7339891128 | BU51: 0.0005957567357 | BV51: 0 | BW51: 0
B52: Monthly T&D Capacity Allocation | I52: T&D Values --> | P52: =Inputs!I39 -> 0 | Q52: =Inputs!J39 -> 0 | R52: =Inputs!K39 -> 0.00409822224 | S52: =Inputs!L39 -> 0 | T52: =Inputs!M39 -> 0 | U52: =Inputs!N39 -> 0.1123612092 | V52: =Inputs!O39 -> 0.00368034917 | W52: =Inputs!P39 -> 0.4812134927 | X52: =Inputs!Q39 -> 0.2869158031 | Y52: =Inputs!R39 -> 0.1117309235 | Z52: =Inputs!S39 -> 0 | AA52: =Inputs!T39 -> 0 | AB52: =P52 -> 0 | AC52: 0 | AD52: 0.00409822224 | AE52: 0 | AF52: 0 | AG52: 0.1123612092 | AH52: 0.00368034917 | AI52: 0.4812134927 | AJ52: 0.2869158031 | AK52: 0.1117309235 | AL52: 0 | AM52: 0 | AN52: 0 | AO52: 0 | AP52: 0.00409822224 | AQ52: 0 | AR52: 0 | AS52: 0.1123612092 | AT52: 0.00368034917 | AU52: 0.4812134927 | AV52: 0.2869158031 | AW52: 0.1117309235 | AX52: 0 | AY52: 0 | AZ52: 0 | BA52: 0 | BB52: 0.00409822224 | BC52: 0 | BD52: 0 | BE52: 0.1123612092 | BF52: 0.00368034917 | BG52: 0.4812134927 | BH52: 0.2869158031 | BI52: 0.1117309235 | BJ52: 0 | BK52: 0 | BL52: 0 | BM52: 0 | BN52: 0.00409822224 | BO52: 0 | BP52: 0 | BQ52: 0.1123612092 | BR52: 0.00368034917 | BS52: 0.4812134927 | BT52: 0.2869158031 | BU52: 0.1117309235 | BV52: 0 | BW52: 0
B53: Adjusted Generation Capacity Value ($/kW-Yr) | D53: =J$53/(1-Losses)*(1+ReserveMargin)*$D$40*$D$41*$D$42*$D$45*$D$46 -> 135.9991217 | E53: =K$53/(1-Losses)*(1+ReserveMargin)*$D$40*$D$41*$D$42*$D$45*$D$46 -> 144.2167357 | F53: =L$53/(1-Losses)*(1+ReserveMargin)*$D$40*$D$41*$D$42*$D$45*$D$46 -> 147.9371727 | G53: =M$53/(1-Losses)*(1+ReserveMargin)*$D$40*$D$41*$D$42*$D$45*$D$46 -> 151.2136779 | H53: =N$53/(1-Losses)*(1+ReserveMargin)*$D$40*$D$41*$D$42*$D$45*$D$46 -> 153.6183259 | J53: =IF(SUM($P$58:$AA$58)>0,SUMPRODUCT($P$53:$AA$53,$P$58:$AA$58)/D58,0) -> 115.9448893 | K53: =IF(SUM($AB$58:$AM$58)>0,SUMPRODUCT($AB$53:$AM$53,$AB$58:$AM$58)/E58,0) -> 122.9507459 | L53: =IF(SUM($AN$58:$AY$58)>0,SUMPRODUCT($AN$53:$AY$53,$AN$58:$AY$58)/F58,0) -> 126.1225727 | M53: =IF(SUM($AZ$58:$BK$58)>0,SUMPRODUCT($AZ$53:$BK$53,$AZ$58:$BK$58)/G58,0) -> 128.9159292 | N53: =IF(SUM($BL$58:$BW$58)>0,SUMPRODUCT($BL$53:$BW$53,$BL$58:$BW$58)/H58,0) -> 130.9659913 | P53: =Inputs!$I$7*P$51 -> 0 | Q53: =Inputs!$I$7*Q$51 -> 0 | R53: =Inputs!$I$7*R$51 -> 0 | S53: =Inputs!$I$7*S$51 -> 0 | T53: =Inputs!$I$8*T$51 -> 0 | U53: =Inputs!$I$8*U$51 -> 0.003785056879 | V53: =Inputs!$I$8*V$51 -> 0 | W53: =Inputs!$I$8*W$51 -> 28.29462382 | X53: =Inputs!$I$8*X$51 -> 78.25749794 | Y53: =Inputs!$I$8*Y$51 -> 0.06351924124 | Z53: =Inputs!$I$7*Z$51 -> 0 | AA53: =Inputs!$I$7*AA$51 -> 0 | AB53: =Inputs!$J$7*AB$51 -> 0 | AC53: =Inputs!$J$7*AC$51 -> 0 | AD53: =Inputs!$J$7*AD$51 -> 0 | AE53: =Inputs!$J$7*AE$51 -> 0 | AF53: =Inputs!$J$8*AF$51 -> 0 | AG53: =Inputs!$J$8*AG$51 -> 0.004018789068 | AH53: =Inputs!$J$8*AH$51 -> 0 | AI53: =Inputs!$J$8*AI$51 -> 30.04185367 | AJ53: =Inputs!$J$8*AJ$51 -> 83.0900003 | AK53: =Inputs!$J$8*AK$51 -> 0.06744163706 | AL53: =Inputs!$J$7*AL$51 -> 0 | AM53: =Inputs!$J$7*AM$51 -> 0 | AN53: =Inputs!$K$7*AN$51 -> 0 | AO53: =Inputs!$K$7*AO$51 -> 0 | AP53: =Inputs!$K$7*AP$51 -> 0 | AQ53: =Inputs!$K$7*AQ$51 -> 0 | AR53: =Inputs!$K$8*AR$51 -> 0 | AS53: =Inputs!$K$8*AS$51 -> 0.004127471955 | AT53: =Inputs!$K$8*AT$51 -> 0 | AU53: =Inputs!$K$8*AU$51 -> 30.85429626 | AV53: =Inputs!$K$8*AV$51 -> 85.33706056 | AW53: =Inputs!$K$8*AW$51 -> 0.06926550782 | AX53: =Inputs!$K$7*AX$51 -> 0 | AY53: =Inputs!$K$7*AY$51 -> 0 | AZ53: =Inputs!$L$7*AZ$51 -> 0 | BA53: =Inputs!$L$7*BA$51 -> 0 | BB53: =Inputs!$L$7*BB$51 -> 0 | BC53: =Inputs!$L$7*BC$51 -> 0 | BD53: =Inputs!$L$8*BD$51 -> 0 | BE53: =Inputs!$L$8*BE$51 -> 0.004223863503 | BF53: =Inputs!$L$8*BF$51 -> 0 | BG53: =Inputs!$L$8*BG$51 -> 31.57485679 | BH53: =Inputs!$L$8*BH$51 -> 87.32999264 | BI53: =Inputs!$L$8*BI$51 -> 0.07088311045 | BJ53: =Inputs!$L$7*BJ$51 -> 0 | BK53: =Inputs!$L$7*BK$51 -> 0 | BL53: =Inputs!$M$7*BL$51 -> 0 | BM53: =Inputs!$M$7*BM$51 -> 0 | BN53: =Inputs!$M$7*BN$51 -> 0 | BO53: =Inputs!$M$7*BO$51 -> 0 | BP53: =Inputs!$M$8*BP$51 -> 0 | BQ53: =Inputs!$M$8*BQ$51 -> 0.004295949625 | BR53: =Inputs!$M$8*BR$51 -> 0 | BS53: =Inputs!$M$8*BS$51 -> 32.11372576 | BT53: =Inputs!$M$8*BT$51 -> 88.82040079 | BU53: =Inputs!$M$8*BU$51 -> 0.0720928296 | BV53: =Inputs!$M$7*BV$51 -> 0 | BW53: =Inputs!$M$7*BW$51 -> 0 | BX53: Sum
B54: Adjusted T&D Capacity Value ($/kW-Yr.) | D54: =J54/(1-DLosses)*$D$43 -> 0 | E54: =K54/(1-DLosses)*$D$43 -> 0 | F54: =L54/(1-DLosses)*$D$43 -> 0 | G54: =M54/(1-DLosses)*$D$43 -> 0 | H54: =N54/(1-DLosses)*$D$43 -> 0 | J54: =IF(SUM($P$58:$AA$58)>0,SUMPRODUCT($P$54:$AA$54,$P$58:$AA$58)/D58,0) -> 118.4977619 | K54: =IF(SUM($AB$58:$AM$58)>0,SUMPRODUCT($AB$54:$AM$54,$AB$58:$AM$58)/E58,0) -> 120.7096394 | L54: =IF(SUM($AN$58:$AY$58)>0,SUMPRODUCT($AN$54:$AY$54,$AN$58:$AY$58)/F58,0) -> 122.9675282 | M54: =IF(SUM($AZ$58:$BK$58)>0,SUMPRODUCT($AZ$54:$BK$54,$AZ$58:$BK$58)/G58,0) -> 125.2722553 | N54: =IF(SUM($BL$58:$BW$58)>0,SUMPRODUCT($BL$54:$BW$54,$BL$58:$BW$58)/H58,0) -> 127.6246685 | P54: =$J$110*P$52 -> 0 | Q54: 0 | R54: 0.4447657228 | S54: 0 | T54: 0 | U54: 12.19416896 | V54: 0.3994154204 | W54: 52.22441693 | X54: 31.13796839 | Y54: 12.12576626 | Z54: 0 | AA54: 0 | AB54: =$K$110*AB$52 -> 0 | AC54: 0 | AD54: 0.4536610373 | AE54: 0 | AF54: 0 | AG54: 12.43805234 | AH54: 0.4074037288 | AI54: 53.26890527 | AJ54: 31.76072776 | AK54: 12.36828159 | AL54: 0 | AM54: 0 | AN54: =$L110*AN$52 -> 0 | AO54: 0 | AP54: 0.462734258 | AQ54: 0 | AR54: 0 | AS54: 12.68681339 | AT54: 0.4155518034 | AU54: 54.33428337 | AV54: 32.39594232 | AW54: 12.61564722 | AX54: 0 | AY54: 0 | AZ54: =$M110*AZ$52 -> 0 | BA54: 0 | BB54: 0.4719889432 | BC54: 0 | BD54: 0 | BE54: 12.94054965 | BF54: 0.4238628394 | BG54: 55.42096904 | BH54: 33.04386116 | BI54: 12.86796016 | BJ54: 0 | BK54: 0 | BL54: =$N110*BL$52 -> 0 | BM54: =$N110*BM$52 -> 0 | BN54: 0.481428722 | BO54: 0 | BP54: 0 | BQ54: 13.19936065 | BR54: 0.4323400962 | BS54: 56.52938842 | BT54: 33.70473838 | BU54: 13.12531936 | BV54: 0 | BW54: 0 | BX54: Sum
B55: Adjusted On-Peak Avoided Energy Cost ($/MWh) | D55: =J55/(1-Losses)*$D$44 -> 63.40853772 | E55: =K55/(1-Losses)*$D$44 -> 64.81441123 | F55: =L55/(1-Losses)*$D$44 -> 60.10066419 | G55: =M55/(1-Losses)*$D$44 -> 61.34509202 | H55: =N55/(1-Losses)*$D$44 -> 62.63506649 | J55: =IF(SUM($P$59:$AA$59)>0,SUMPRODUCT($P$55:$AA$55,$P$59:$AA$59)/SUM($P$59:$AA$59),0) -> 40.4572837 | K55: =IF(SUM($AB$59:$AM$59)>0,SUMPRODUCT($AB$55:$AM$55,$AB$59:$AM$59)/SUM($AB$59:$AM$59),0) -> 41.35428945 | L55: =IF(SUM($AN$59:$AY$59)>0,SUMPRODUCT($AN$55:$AY$55,$AN$59:$AY$59)/SUM($AN$59:$AY$59),0) -> 38.34672284 | M55: =IF(SUM($AZ$59:$BK$59)>0,SUMPRODUCT($AZ$55:$BK$55,$AZ$59:$BK$59)/SUM($AZ$59:$BK$59),0) -> 39.14071954 | N55: =IF(SUM($BL$59:$BW$59)>0,SUMPRODUCT($BL$55:$BW$55,$BL$59:$BW$59)/SUM($BL$59:$BW$59),0) -> 39.96377689 | P55: =Inputs!$I$6 -> 40.4572837 | Q55: =Inputs!$I$6 -> 40.4572837 | R55: =Inputs!$I$6 -> 40.4572837 | S55: =Inputs!$I$6 -> 40.4572837 | T55: =Inputs!$I$6 -> 40.4572837 | U55: =Inputs!$I$6 -> 40.4572837 | V55: =Inputs!$I$6 -> 40.4572837 | W55: =Inputs!$I$6 -> 40.4572837 | X55: =Inputs!$I$6 -> 40.4572837 | Y55: =Inputs!$I$6 -> 40.4572837 | Z55: =Inputs!$I$6 -> 40.4572837 | AA55: =Inputs!$I$6 -> 40.4572837 | AB55: =Inputs!$J$6 -> 41.35428945 | AC55: =Inputs!$J$6 -> 41.35428945 | AD55: =Inputs!$J$6 -> 41.35428945 | AE55: =Inputs!$J$6 -> 41.35428945 | AF55: =Inputs!$J$6 -> 41.35428945 | AG55: =Inputs!$J$6 -> 41.35428945 | AH55: =Inputs!$J$6 -> 41.35428945 | AI55: =Inputs!$J$6 -> 41.35428945 | AJ55: =Inputs!$J$6 -> 41.35428945 | AK55: =Inputs!$J$6 -> 41.35428945 | AL55: =Inputs!$J$6 -> 41.35428945 | AM55: =Inputs!$J$6 -> 41.35428945 | AN55: =Inputs!$K$6 -> 38.34672284 | AO55: =Inputs!$K$6 -> 38.34672284 | AP55: =Inputs!$K$6 -> 38.34672284 | AQ55: =Inputs!$K$6 -> 38.34672284 | AR55: =Inputs!$K$6 -> 38.34672284 | AS55: =Inputs!$K$6 -> 38.34672284 | AT55: =Inputs!$K$6 -> 38.34672284 | AU55: =Inputs!$K$6 -> 38.34672284 | AV55: =Inputs!$K$6 -> 38.34672284 | AW55: =Inputs!$K$6 -> 38.34672284 | AX55: =Inputs!$K$6 -> 38.34672284 | AY55: =Inputs!$K$6 -> 38.34672284 | AZ55: =Inputs!$L$6 -> 39.14071954 | BA55: =Inputs!$L$6 -> 39.14071954 | BB55: =Inputs!$L$6 -> 39.14071954 | BC55: =Inputs!$L$6 -> 39.14071954 | BD55: =Inputs!$L$6 -> 39.14071954 | BE55: =Inputs!$L$6 -> 39.14071954 | BF55: =Inputs!$L$6 -> 39.14071954 | BG55: =Inputs!$L$6 -> 39.14071954 | BH55: =Inputs!$L$6 -> 39.14071954 | BI55: =Inputs!$L$6 -> 39.14071954 | BJ55: =Inputs!$L$6 -> 39.14071954 | BK55: =Inputs!$L$6 -> 39.14071954 | BL55: =Inputs!$M$6 -> 39.96377689 | BM55: =Inputs!$M$6 -> 39.96377689 | BN55: =Inputs!$M$6 -> 39.96377689 | BO55: =Inputs!$M$6 -> 39.96377689 | BP55: =Inputs!$M$6 -> 39.96377689 | BQ55: =Inputs!$M$6 -> 39.96377689 | BR55: =Inputs!$M$6 -> 39.96377689 | BS55: =Inputs!$M$6 -> 39.96377689 | BT55: =Inputs!$M$6 -> 39.96377689 | BU55: =Inputs!$M$6 -> 39.96377689 | BV55: =Inputs!$M$6 -> 39.96377689 | BW55: =Inputs!$M$6 -> 39.96377689 | BX55: Avg
B56: Adjusted GHG Value ($/MWh) | D56: =J56/(1-Losses) -> 7.767897992 | E56: =K56/(1-Losses) -> 8.378143696 | F56: =L56/(1-Losses) -> 12.64031682 | G56: =M56/(1-Losses) -> 13.59381066 | H56: =N56/(1-Losses) -> 14.49279297 | J56: =IF(SUM($P$59:$AA$59)>0,SUMPRODUCT($P$56:$AA$56,$P$59:$AA$59)/SUM($P$59:$AA$59),0) -> 7.186550785 | K56: =IF(SUM($AB$59:$AM$59)>0,SUMPRODUCT($AB$56:$AM$56,$AB$59:$AM$59)/SUM($AB$59:$AM$59),0) -> 7.75112588 | L56: =IF(SUM($AN$59:$AY$59)>0,SUMPRODUCT($AN$56:$AY$56,$AN$59:$AY$59)/SUM($AN$59:$AY$59),0) -> 11.69431922 | M56: =IF(SUM($AZ$59:$BK$59)>0,SUMPRODUCT($AZ$56:$BK$56,$AZ$59:$BK$59)/SUM($AZ$59:$BK$59),0) -> 12.57645386 | N56: =IF(SUM($BL$59:$BW$59)>0,SUMPRODUCT($BL$56:$BW$56,$BL$59:$BW$59)/SUM($BL$59:$BW$59),0) -> 13.4081566 | P56: =Inputs!I18 -> 7.186550785 | Q56: =Inputs!$I$18 -> 7.186550785 | R56: =Inputs!$I$18 -> 7.186550785 | S56: =Inputs!$I$18 -> 7.186550785 | T56: =Inputs!$I$18 -> 7.186550785 | U56: =Inputs!$I$18 -> 7.186550785 | V56: =Inputs!$I$18 -> 7.186550785 | W56: =Inputs!$I$18 -> 7.186550785 | X56: =Inputs!$I$18 -> 7.186550785 | Y56: =Inputs!$I$18 -> 7.186550785 | Z56: =Inputs!$I$18 -> 7.186550785 | AA56: =Inputs!$I$18 -> 7.186550785 | AB56: =Inputs!$J$18 -> 7.75112588 | AC56: =Inputs!$J$18 -> 7.75112588 | AD56: =Inputs!$J$18 -> 7.75112588 | AE56: =Inputs!$J$18 -> 7.75112588 | AF56: =Inputs!$J$18 -> 7.75112588 | AG56: =Inputs!$J$18 -> 7.75112588 | AH56: =Inputs!$J$18 -> 7.75112588 | AI56: =Inputs!$J$18 -> 7.75112588 | AJ56: =Inputs!$J$18 -> 7.75112588 | AK56: =Inputs!$J$18 -> 7.75112588 | AL56: =Inputs!$J$18 -> 7.75112588 | AM56: =Inputs!$J$18 -> 7.75112588 | AN56: =Inputs!$K$18 -> 11.69431922 | AO56: =Inputs!$K$18 -> 11.69431922 | AP56: =Inputs!$K$18 -> 11.69431922 | AQ56: =Inputs!$K$18 -> 11.69431922 | AR56: =Inputs!$K$18 -> 11.69431922 | AS56: =Inputs!$K$18 -> 11.69431922 | AT56: =Inputs!$K$18 -> 11.69431922 | AU56: =Inputs!$K$18 -> 11.69431922 | AV56: =Inputs!$K$18 -> 11.69431922 | AW56: =Inputs!$K$18 -> 11.69431922 | AX56: =Inputs!$K$18 -> 11.69431922 | AY56: =Inputs!$K$18 -> 11.69431922 | AZ56: =Inputs!$L$18 -> 12.57645386 | BA56: =Inputs!$L$18 -> 12.57645386 | BB56: =Inputs!$L$18 -> 12.57645386 | BC56: =Inputs!$L$18 -> 12.57645386 | BD56: =Inputs!$L$18 -> 12.57645386 | BE56: =Inputs!$L$18 -> 12.57645386 | BF56: =Inputs!$L$18 -> 12.57645386 | BG56: =Inputs!$L$18 -> 12.57645386 | BH56: =Inputs!$L$18 -> 12.57645386 | BI56: =Inputs!$L$18 -> 12.57645386 | BJ56: =Inputs!$L$18 -> 12.57645386 | BK56: =Inputs!$L$18 -> 12.57645386 | BL56: =Inputs!$M$18 -> 13.4081566 | BM56: =Inputs!$M$18 -> 13.4081566 | BN56: =Inputs!$M$18 -> 13.4081566 | BO56: =Inputs!$M$18 -> 13.4081566 | BP56: =Inputs!$M$18 -> 13.4081566 | BQ56: =Inputs!$M$18 -> 13.4081566 | BR56: =Inputs!$M$18 -> 13.4081566 | BS56: =Inputs!$M$18 -> 13.4081566 | BT56: =Inputs!$M$18 -> 13.4081566 | BU56: =Inputs!$M$18 -> 13.4081566 | BV56: =Inputs!$M$18 -> 13.4081566 | BW56: =Inputs!$M$18 -> 13.4081566 | BX56: Avg
B57: Impacts
B58: Load Impacts 1 in 2 Years (MW) | D58: =IF(SUM($P58:$AA58)>0,SUM($P58:$AA58)/COUNTIF(P58:AA58,">0"),0) -> 6.333975205 | E58: =IF(SUM($AB58:$AM58)>0,SUM($AB58:$AM58)/COUNTIF($AB58:$AM58,">0"),0) -> 6.433975205 | F58: =IF(SUM($AN58:$AY58)>0,SUM($AN58:$AY58)/COUNTIF($AN58:$AY58,">0"),0) -> 6.533975205 | G58: =IF(SUM($AZ58:$BK58)>0,SUM($AZ58:$BK58)/COUNTIF($AZ58:$BK58,">0"),0) -> 6.633975205 | H58: =IF(SUM($BL58:$BW58)>0,SUM($BL58:$BW58)/COUNTIF($BL58:$BW58,">0"),0) -> 6.733975205 | P58: =impacts3!H46 -> 5.633114148 | Q58: =impacts3!I46 -> 5.429333144 | R58: =impacts3!J46 -> 5.719027542 | S58: =impacts3!K46 -> 5.90192707 | T58: =impacts3!L46 -> 7.371009474 | U58: =impacts3!M46 -> 7.428914605 | V58: =impacts3!N46 -> 6.916743896 | W58: =impacts3!O46 -> 6.706063495 | X58: =impacts3!P46 -> 6.953426749 | Y58: =impacts3!Q46 -> 7.251527381 | Z58: =impacts3!R46 -> 5.425444078 | AA58: =impacts3!S46 -> 5.271170873 | AB58: =impacts3!H47 -> 5.733114148 | AC58: =impacts3!I47 -> 5.529333144 | AD58: =impacts3!J47 -> 5.819027542 | AE58: =impacts3!K47 -> 6.00192707 | AF58: =impacts3!L47 -> 7.471009474 | AG58: =impacts3!M47 -> 7.528914605 | AH58: =impacts3!N47 -> 7.016743896 | AI58: =impacts3!O47 -> 6.806063495 | AJ58: =impacts3!P47 -> 7.053426749 | AK58: =impacts3!Q47 -> 7.351527381 | AL58: =impacts3!R47 -> 5.525444078 | AM58: =impacts3!S47 -> 5.371170873 | AN58: =impacts3!H48 -> 5.833114148 | AO58: =impacts3!I48 -> 5.629333144 | AP58: =impacts3!J48 -> 5.919027542 | AQ58: =impacts3!K48 -> 6.10192707 | AR58: =impacts3!L48 -> 7.571009474 | AS58: =impacts3!M48 -> 7.628914605 | AT58: =impacts3!N48 -> 7.116743896 | AU58: =impacts3!O48 -> 6.906063495 | AV58: =impacts3!P48 -> 7.153426749 | AW58: =impacts3!Q48 -> 7.451527381 | AX58: =impacts3!R48 -> 5.625444078 | AY58: =impacts3!S48 -> 5.471170873 | AZ58: =impacts3!H49 -> 5.933114148 | BA58: =impacts3!I49 -> 5.729333144 | BB58: =impacts3!J49 -> 6.019027542 | BC58: =impacts3!K49 -> 6.20192707 | BD58: =impacts3!L49 -> 7.671009474 | BE58: =impacts3!M49 -> 7.728914605 | BF58: =impacts3!N49 -> 7.216743896 | BG58: =impacts3!O49 -> 7.006063495 | BH58: =impacts3!P49 -> 7.253426749 | BI58: =impacts3!Q49 -> 7.551527381 | BJ58: =impacts3!R49 -> 5.725444078 | BK58: =impacts3!S49 -> 5.571170873 | BL58: =impacts3!H50 -> 6.033114148 | BM58: =impacts3!I50 -> 5.829333144 | BN58: =impacts3!J50 -> 6.119027542 | BO58: =impacts3!K50 -> 6.30192707 | BP58: =impacts3!L50 -> 7.771009474 | BQ58: =impacts3!M50 -> 7.828914605 | BR58: =impacts3!N50 -> 7.316743896 | BS58: =impacts3!O50 -> 7.106063495 | BT58: =impacts3!P50 -> 7.353426749 | BU58: =impacts3!Q50 -> 7.651527381 | BV58: =impacts3!R50 -> 5.825444078 | BW58: =impacts3!S50 -> 5.671170873 | BX58: Avg
B59: Energy Savings 1 in 2 years (MWh) | D59: =IF(SUM($P59:$AA59)>0,SUM($P59:$AA59),0) -> 59.43131684 | E59: =IF(SUM($AB59:$AM59)>0,SUM($AB59:$AM59),0) -> 30.11565842 | F59: =IF(SUM($AN59:$AY59)>0,SUM($AN59:$AY59),0) -> 30.51565842 | G59: =IF(SUM($AZ59:$BK59)>0,SUM($AZ59:$BK59),0) -> 30.91565842 | H59: =IF(SUM($BL59:$BW59)>0,SUM($BL59:$BW59),0) -> 31.31565842 | P59: 0 | Q59: 0 | R59: 0 | S59: 0 | T59: 0 | U59: 0 | V59: =budget!L28 -> 29.71565842 | W59: =budget!L28 -> 29.71565842 | X59: 0 | Y59: 0 | Z59: 0 | AA59: 0 | AB59: 0 | AC59: 0 | AD59: 0 | AE59: 0 | AF59: 0 | AG59: 0 | AH59: =budget!M28 -> 30.11565842 | AI59: 0 | AJ59: 0 | AK59: 0 | AL59: 0 | AM59: 0 | AN59: 0 | AO59: 0 | AP59: 0 | AQ59: 0 | AR59: 0 | AS59: 0 | AT59: 0 | AU59: =budget!N28 -> 30.51565842 | AV59: 0 | AW59: 0 | AX59: 0 | AY59: 0 | AZ59: 0 | BA59: 0 | BB59: 0 | BC59: 0 | BD59: 0 | BE59: 0 | BF59: 0 | BG59: =budget!O28 -> 30.91565842 | BH59: 0 | BI59: 0 | BJ59: 0 | BK59: 0 | BL59: 0 | BM59: 0 | BN59: 0 | BO59: 0 | BP59: 0 | BQ59: 0 | BR59: 0 | BS59: =budget!P28 -> 31.31565842 | BT59: 0 | BU59: 0 | BV59: 0 | BW59: 0 | BX59: Sum
B60: Avg. Hours of Curtailment | D60: =D59/D58 -> 9.38294119 | E60: =E59/E58 -> 4.68072342 | F60: =F59/F58 -> 4.670305207 | G60: =G59/G58 -> 4.660201081 | H60: 4.650397049
B61: Expense Costs
B62: Annual Utility Expense ($ per year)
B63: Admin Costs | D63: =IF(J63>0,J63,IF(SUM($P63:$AA63)>0,SUM($P63:$AA63),0)) -> 243366.3302 | E63: =IF(K63>0,K63,IF(SUM($AB63:$AM63)>0,SUM($AB63:$AM63),0)) -> 306540.481 | F63: =IF(L63>0,L63,IF(SUM($AN63:$AY63)>0,SUM($AN63:$AY63),0)) -> 223016.3196 | G63: =IF(M63>0,M63,IF(SUM($AZ63:$BK63)>0,SUM($AZ63:$BK63),0)) -> 224643.3433 | H63: =IF(N63>0,N63,IF(SUM($BL63:$BW63)>0,SUM($BL63:$BW63),0)) -> 234293.5068 | J63: =budget!L18 -> 243366.3302 | K63: =budget!M18 -> 306540.481 | L63: =budget!N18 -> 223016.3196 | M63: =budget!O18 -> 224643.3433 | N63: =budget!P18 -> 234293.5068 | BX63: Sum
B64: Incentive Cost | D64: =IF(J64>0,J64,IF(SUM($P64:$AA64)>0,SUM($P64:$AA64),0)) -> 561625.9442 | E64: =IF(K64>0,K64,IF(SUM($AB64:$AM64)>0,SUM($AB64:$AM64),0)) -> 569185.9442 | F64: =IF(L64>0,L64,IF(SUM($AN64:$AY64)>0,SUM($AN64:$AY64),0)) -> 576745.9442 | G64: =IF(M64>0,M64,IF(SUM($AZ64:$BK64)>0,SUM($AZ64:$BK64),0)) -> 584305.9442 | H64: =IF(N64>0,N64,IF(SUM($BL64:$BW64)>0,SUM($BL64:$BW64),0)) -> 591865.9442 | J64: =budget!L22 -> 561625.9442 | K64: =budget!M22 -> 569185.9442 | L64: =budget!N22 -> 576745.9442 | M64: =budget!O22 -> 584305.9442 | N64: =budget!P22 -> 591865.9442 | BX64: Sum
B65: Net Bill/Revenue Reductions | D65: =IF(J65>0,J65,IF(SUM($P65:$AA65)>0,SUM($P65:$AA65),0)) -> 5911.947389 | E65: =IF(K65>0,K65,IF(SUM($AB65:$AM65)>0,SUM($AB65:$AM65),0)) -> 6171.273448 | F65: =IF(L65>0,L65,IF(SUM($AN65:$AY65)>0,SUM($AN65:$AY65),0)) -> 6440.838319 | G65: =IF(M65>0,M65,IF(SUM($AZ65:$BK65)>0,SUM($AZ65:$BK65),0)) -> 6721.022935 | H65: =IF(N65>0,N65,IF(SUM($BL65:$BW65)>0,SUM($BL65:$BW65),0)) -> 7012.221874 | J65: =budget!L26 -> 5911.947389 | K65: =budget!M26 -> 6171.273448 | L65: =budget!N26 -> 6440.838319 | M65: =budget!O26 -> 6721.022935 | N65: =budget!P26 -> 7012.221874 | BX65: Sum
B66: Ammortized Equipment Costs (entered below) | D66: =SUM(D76:D80) -> 0 | E66: =SUM(E76:E80) -> 19175.96037 | F66: =SUM(F76:F80) -> 19175.96037 | G66: =SUM(G76:G80) -> 19175.96037 | H66: 20222.27665
B67: name | D67: =IF(J67>0,J67,IF(SUM($P67:$AA67)>0,SUM($P67:$AA67),0)) -> 0 | E67: =IF(K67>0,K67,IF(SUM($AB67:$AM67)>0,SUM($AB67:$AM67),0)) -> 0 | F67: =IF(L67>0,L67,IF(SUM($AN67:$AY67)>0,SUM($AN67:$AY67),0)) -> 0 | G67: =IF(M67>0,M67,IF(SUM($AZ67:$BK67)>0,SUM($AZ67:$BK67),0)) -> 0 | H67: =IF(N67>0,N67,IF(SUM($BL67:$BW67)>0,SUM($BL67:$BW67),0)) -> 0 | BX67: Sum
B68: name | D68: =IF(J68>0,J68,IF(SUM($P68:$AA68)>0,SUM($P68:$AA68),0)) -> 0 | E68: =IF(K68>0,K68,IF(SUM($AB68:$AM68)>0,SUM($AB68:$AM68),0)) -> 0 | F68: =IF(L68>0,L68,IF(SUM($AN68:$AY68)>0,SUM($AN68:$AY68),0)) -> 0 | G68: =IF(M68>0,M68,IF(SUM($AZ68:$BK68)>0,SUM($AZ68:$BK68),0)) -> 0 | H68: =IF(N68>0,N68,IF(SUM($BL68:$BW68)>0,SUM($BL68:$BW68),0)) -> 0 | BX68: Sum
B69: Annual Participant Expense ($ per year)
B70: Participant Annual Expenses | D70: =MAX((D64+D65)*TRCIncBasePct-SUM(D71:D73),0) -> 425653.4187 | E70: =MAX((E64+E65)*TRCIncBasePct-SUM(E71:E73),0) -> 431517.9132 | F70: =MAX((F64+F65)*TRCIncBasePct-SUM(F71:F73),0) -> 437390.0869 | G70: =MAX((G64+G65)*TRCIncBasePct-SUM(G71:G73),0) -> 443270.2253 | H70: =MAX((H64+H65)*TRCIncBasePct-SUM(H71:H73),0) -> 449158.6245 | BX70: Sum
B71: Ammortized Equipment Costs (entered below) | D71: =SUM(D82:D86) -> 0 | E71: =SUM(E82:E86) -> 0 | F71: =SUM(F82:F86) -> 0 | G71: =SUM(G82:G86) -> 0 | H71: 0
B72: name | D72: =IF(J72>0,J72,IF(SUM($P72:$AA72)>0,SUM($P72:$AA72),0)) -> 0 | E72: =IF(K72>0,K72,IF(SUM($AB72:$AM72)>0,SUM($AB72:$AM72),0)) -> 0 | F72: =IF(L72>0,L72,IF(SUM($AN72:$AY72)>0,SUM($AN72:$AY72),0)) -> 0 | G72: =IF(M72>0,M72,IF(SUM($AZ72:$BK72)>0,SUM($AZ72:$BK72),0)) -> 0 | H72: =IF(N72>0,N72,IF(SUM($BL72:$BW72)>0,SUM($BL72:$BW72),0)) -> 0 | BX72: Sum
B73: name | D73: =IF(J73>0,J73,IF(SUM($P73:$AA73)>0,SUM($P73:$AA73),0)) -> 0 | E73: =IF(K73>0,K73,IF(SUM($AB73:$AM73)>0,SUM($AB73:$AM73),0)) -> 0 | F73: =IF(L73>0,L73,IF(SUM($AN73:$AY73)>0,SUM($AN73:$AY73),0)) -> 0 | G73: =IF(M73>0,M73,IF(SUM($AZ73:$BK73)>0,SUM($AZ73:$BK73),0)) -> 0 | H73: =IF(N73>0,N73,IF(SUM($BL73:$BW73)>0,SUM($BL73:$BW73),0)) -> 0 | BX73: Sum
B74: Equipment Costs
B75: Utility Equipment Cost ($ installed per year) | C75: Ammortization Period
B76: IT | C76: 5 | D76: =IF(C76>0,-PMT(WACC,C76,IF(J76>0,J76,IF(SUM($P76:$AA76)>0,SUM($P76:$AA76),0))),0) -> 0 | E76: =IF(C76>0,-PMT(WACC,C76,IF(K76>0,K76,IF(SUM($AB76:$AM76)>0,SUM($AB76:$AM76),0))),0)+D76 -> 19175.96037 | F76: =IF(C76>0,-PMT(WACC,C76,IF(L76>0,L76,IF(SUM($AN76:$AY76)>0,SUM($AN76:$AY76),0))),0)+E76 -> 19175.96037 | G76: =IF(C76>0,-PMT(WACC,C76,IF(M76>0,M76,IF(SUM($AZ76:$BK76)>0,SUM($AZ76:$BK76),0))),0)+F76 -> 19175.96037 | H76: =IF(C76>0,-PMT(WACC,C76,IF(N76>0,N76,IF(SUM($BL76:$BW76)>0,SUM($BL76:$BW76),0))),0)+G76 -> 20222.27665 | J76: =budget!L16 -> 0 | K76: =budget!M16 -> 77976.89411 | L76: =budget!N16 -> 0 | M76: =budget!O16 -> 0 | N76: =budget!P16 -> 4254.727929 | BX76: Sum
B77: name | C77: 10 | D77: =IF(C77>0,-PMT(WACC,C77,IF(J77>0,J77,IF(SUM($P77:$AA77)>0,SUM($P77:$AA77),0))),0) -> 0 | E77: =IF(C77>0,-PMT(WACC,C77,IF(K77>0,K77,IF(SUM($AB77:$AM77)>0,SUM($AB77:$AM77),0))),0)+D77 -> 0 | F77: =IF(C77>0,-PMT(WACC,C77,IF(L77>0,L77,IF(SUM($AN77:$AY77)>0,SUM($AN77:$AY77),0))),0)+E77 -> 0 | G77: =IF(C77>0,-PMT(WACC,C77,IF(M77>0,M77,IF(SUM($AZ77:$BK77)>0,SUM($AZ77:$BK77),0))),0)+F77 -> 0 | H77: =IF(C77>0,-PMT(WACC,C77,IF(N77>0,N77,IF(SUM($BL77:$BW77)>0,SUM($BL77:$BW77),0))),0)+G77 -> 0 | BX77: Sum
B78: name | C78: 10 | D78: =IF(C78>0,-PMT(WACC,C78,IF(J78>0,J78,IF(SUM($P78:$AA78)>0,SUM($P78:$AA78),0))),0) -> 0 | E78: =IF(C78>0,-PMT(WACC,C78,IF(K78>0,K78,IF(SUM($AB78:$AM78)>0,SUM($AB78:$AM78),0))),0)+D78 -> 0 | F78: =IF(C78>0,-PMT(WACC,C78,IF(L78>0,L78,IF(SUM($AN78:$AY78)>0,SUM($AN78:$AY78),0))),0)+E78 -> 0 | G78: =IF(C78>0,-PMT(WACC,C78,IF(M78>0,M78,IF(SUM($AZ78:$BK78)>0,SUM($AZ78:$BK78),0))),0)+F78 -> 0 | H78: =IF(C78>0,-PMT(WACC,C78,IF(N78>0,N78,IF(SUM($BL78:$BW78)>0,SUM($BL78:$BW78),0))),0)+G78 -> 0 | BX78: Sum
B79: name | C79: 10 | D79: =IF(C79>0,-PMT(WACC,C79,IF(J79>0,J79,IF(SUM($P79:$AA79)>0,SUM($P79:$AA79),0))),0) -> 0 | E79: =IF(C79>0,-PMT(WACC,C79,IF(K79>0,K79,IF(SUM($AB79:$AM79)>0,SUM($AB79:$AM79),0))),0)+D79 -> 0 | F79: =IF(C79>0,-PMT(WACC,C79,IF(L79>0,L79,IF(SUM($AN79:$AY79)>0,SUM($AN79:$AY79),0))),0)+E79 -> 0 | G79: =IF(C79>0,-PMT(WACC,C79,IF(M79>0,M79,IF(SUM($AZ79:$BK79)>0,SUM($AZ79:$BK79),0))),0)+F79 -> 0 | H79: =IF(C79>0,-PMT(WACC,C79,IF(N79>0,N79,IF(SUM($BL79:$BW79)>0,SUM($BL79:$BW79),0))),0)+G79 -> 0 | BX79: Sum
B80: name | C80: 10 | D80: =IF(C80>0,-PMT(WACC,C80,IF(J80>0,J80,IF(SUM($P80:$AA80)>0,SUM($P80:$AA80),0))),0) -> 0 | E80: =IF(C80>0,-PMT(WACC,C80,IF(K80>0,K80,IF(SUM($AB80:$AM80)>0,SUM($AB80:$AM80),0))),0)+D80 -> 0 | F80: =IF(C80>0,-PMT(WACC,C80,IF(L80>0,L80,IF(SUM($AN80:$AY80)>0,SUM($AN80:$AY80),0))),0)+E80 -> 0 | G80: =IF(C80>0,-PMT(WACC,C80,IF(M80>0,M80,IF(SUM($AZ80:$BK80)>0,SUM($AZ80:$BK80),0))),0)+F80 -> 0 | H80: =IF(C80>0,-PMT(WACC,C80,IF(N80>0,N80,IF(SUM($BL80:$BW80)>0,SUM($BL80:$BW80),0))),0)+G80 -> 0 | BX80: Sum
B81: Participant Equipment Cost ($ installed per year) | C81: Ammortization Period
B82: name | C82: 10 | D82: =IF(C82>0,-PMT(WACC,C82,IF(J82>0,J82,IF(SUM($P82:$AA82)>0,SUM($P82:$AA82),0))),0) -> 0 | E82: =IF(C82>0,-PMT(WACC,C82,IF(K82>0,K82,IF(SUM($AB82:$AM82)>0,SUM($AB82:$AM82),0))),0)+D82 -> 0 | F82: =IF(C82>0,-PMT(WACC,C82,IF(L82>0,L82,IF(SUM($AN82:$AY82)>0,SUM($AN82:$AY82),0))),0)+E82 -> 0 | G82: =IF(C82>0,-PMT(WACC,C82,IF(M82>0,M82,IF(SUM($AZ82:$BK82)>0,SUM($AZ82:$BK82),0))),0)+F82 -> 0 | H82: =IF(C82>0,-PMT(WACC,C82,IF(N82>0,N82,IF(SUM($BL82:$BW82)>0,SUM($BL82:$BW82),0))),0)+G82 -> 0 | BX82: Sum
B83: name | C83: 10 | D83: =IF(C83>0,-PMT(WACC,C83,IF(J83>0,J83,IF(SUM($P83:$AA83)>0,SUM($P83:$AA83),0))),0) -> 0 | E83: =IF(C83>0,-PMT(WACC,C83,IF(K83>0,K83,IF(SUM($AB83:$AM83)>0,SUM($AB83:$AM83),0))),0)+D83 -> 0 | F83: =IF(C83>0,-PMT(WACC,C83,IF(L83>0,L83,IF(SUM($AN83:$AY83)>0,SUM($AN83:$AY83),0))),0)+E83 -> 0 | G83: =IF(C83>0,-PMT(WACC,C83,IF(M83>0,M83,IF(SUM($AZ83:$BK83)>0,SUM($AZ83:$BK83),0))),0)+F83 -> 0 | H83: =IF(C83>0,-PMT(WACC,C83,IF(N83>0,N83,IF(SUM($BL83:$BW83)>0,SUM($BL83:$BW83),0))),0)+G83 -> 0 | BX83: Sum
B84: name | C84: 10 | D84: =IF(C84>0,-PMT(WACC,C84,IF(J84>0,J84,IF(SUM($P84:$AA84)>0,SUM($P84:$AA84),0))),0) -> 0 | E84: =IF(C84>0,-PMT(WACC,C84,IF(K84>0,K84,IF(SUM($AB84:$AM84)>0,SUM($AB84:$AM84),0))),0)+D84 -> 0 | F84: =IF(C84>0,-PMT(WACC,C84,IF(L84>0,L84,IF(SUM($AN84:$AY84)>0,SUM($AN84:$AY84),0))),0)+E84 -> 0 | G84: =IF(C84>0,-PMT(WACC,C84,IF(M84>0,M84,IF(SUM($AZ84:$BK84)>0,SUM($AZ84:$BK84),0))),0)+F84 -> 0 | H84: =IF(C84>0,-PMT(WACC,C84,IF(N84>0,N84,IF(SUM($BL84:$BW84)>0,SUM($BL84:$BW84),0))),0)+G84 -> 0 | BX84: Sum
B85: name | C85: 10 | D85: =IF(C85>0,-PMT(WACC,C85,IF(J85>0,J85,IF(SUM($P85:$AA85)>0,SUM($P85:$AA85),0))),0) -> 0 | E85: =IF(C85>0,-PMT(WACC,C85,IF(K85>0,K85,IF(SUM($AB85:$AM85)>0,SUM($AB85:$AM85),0))),0)+D85 -> 0 | F85: =IF(C85>0,-PMT(WACC,C85,IF(L85>0,L85,IF(SUM($AN85:$AY85)>0,SUM($AN85:$AY85),0))),0)+E85 -> 0 | G85: =IF(C85>0,-PMT(WACC,C85,IF(M85>0,M85,IF(SUM($AZ85:$BK85)>0,SUM($AZ85:$BK85),0))),0)+F85 -> 0 | H85: =IF(C85>0,-PMT(WACC,C85,IF(N85>0,N85,IF(SUM($BL85:$BW85)>0,SUM($BL85:$BW85),0))),0)+G85 -> 0 | BX85: Sum
B86: name | C86: 10 | D86: =IF(C86>0,-PMT(WACC,C86,IF(J86>0,J86,IF(SUM($P86:$AA86)>0,SUM($P86:$AA86),0))),0) -> 0 | E86: =IF(C86>0,-PMT(WACC,C86,IF(K86>0,K86,IF(SUM($AB86:$AM86)>0,SUM($AB86:$AM86),0))),0)+D86 -> 0 | F86: =IF(C86>0,-PMT(WACC,C86,IF(L86>0,L86,IF(SUM($AN86:$AY86)>0,SUM($AN86:$AY86),0))),0)+E86 -> 0 | G86: =IF(C86>0,-PMT(WACC,C86,IF(M86>0,M86,IF(SUM($AZ86:$BK86)>0,SUM($AZ86:$BK86),0))),0)+F86 -> 0 | H86: =IF(C86>0,-PMT(WACC,C86,IF(N86>0,N86,IF(SUM($BL86:$BW86)>0,SUM($BL86:$BW86),0))),0)+G86 -> 0 | BX86: Sum
B87: Benefits
B88: Optional Benefits ($ per year)
B89: Environmental Benefits | D89: =IF(J89>0,J89,IF(SUM($P89:$AA89)>0,SUM($P89:$AA89),0)) -> 0 | E89: =IF(K89>0,K89,IF(SUM($AB89:$AM89)>0,SUM($AB89:$AM89),0)) -> 0 | F89: =IF(L89>0,L89,IF(SUM($AN89:$AY89)>0,SUM($AN89:$AY89),0)) -> 0 | G89: =IF(M89>0,M89,IF(SUM($AZ89:$BK89)>0,SUM($AZ89:$BK89),0)) -> 0 | H89: =IF(N89>0,N89,IF(SUM($BL89:$BW89)>0,SUM($BL89:$BW89),0)) -> 0 | J89: =budget!L40 -> 0 | K89: =budget!M40 -> 0 | L89: =budget!N40 -> 0 | M89: =budget!O40 -> 0 | N89: =budget!P40 -> 0 | BX89: Sum
B90: Market Benefits | D90: 0 | E90: 0 | F90: 0 | G90: =IF(M90>0,M90,IF(SUM($AZ90:$BK90)>0,SUM($AZ90:$BK90),0)) -> 0 | H90: =IF(N90>0,N90,IF(SUM($BL90:$BW90)>0,SUM($BL90:$BW90),0)) -> 0 | BX90: Sum
B91: Non-Energy/Non-Monetary Benefits | D91: 0 | E91: 0 | F91: 0 | G91: 0 | H91: 0 | BX91: Sum
B92: State Tax Benefits/(Costs) | D92: 0 | E92: 0 | F92: 0 | G92: 0 | H92: 0 | BX92: Sum
B93: Federal Tax Benefits/(Costs) | D93: 0 | E93: 0 | F93: 0 | G93: 0 | H93: 0 | BX93: Sum
B94: name | D94: 0 | E94: 0 | F94: 0 | G94: 0 | H94: 0 | BX94: Sum
B95: name | D95: 0 | E95: 0 | F95: 0 | G95: 0 | H95: 0 | BX95: Sum
B96: CAISO Market Participation
B97: CAISO Market | D97: Spinning Reserve
B98: MWs Bid into Market | D98: =IF(J98>0,J98,IF(SUM($P98:$AA98)>0,AVERAGE($P98:$AA98),0)) -> 7.428914605 | E98: =IF(K98>0,K98,IF(SUM($AB98:$AM98)>0,AVERAGE($AB98:$AM98),0)) -> 7.528914605 | F98: =IF(L98>0,L98,IF(SUM($AN98:$AY98)>0,AVERAGE($AN98:$AY98),0)) -> 7.628914605 | G98: =IF(M98>0,M98,IF(SUM($AZ98:$BK98)>0,AVERAGE($AZ98:$BK98),0)) -> 7.728914605 | H98: =IF(N98>0,N98,IF(SUM($BL98:$BW98)>0,AVERAGE($BL98:$BW98),0)) -> 7.828914605 | J98: =budget!L27 -> 7.428914605 | K98: =budget!M27 -> 7.528914605 | L98: =budget!N27 -> 7.628914605 | M98: =budget!O27 -> 7.728914605 | N98: =budget!P27 -> 7.828914605 | BX98: Avg
B99: Number of Hours Bid | D99: =IF(J99>0,J99,IF(SUM($P99:$AA99)>0,SUMPRODUCT($P99:$AA99,$P98:$AA98)/AVERAGE($P98:$AA98),0)) -> 4 | E99: =IF(K99>0,K99,IF(SUM($AB99:$AM99)>0,SUMPRODUCT($AA99:$AB99,$AA98:$AM98)/AVERAGE($AB98:$AM98),0)) -> 4 | F99: =IF(L99>0,L99,IF(SUM($AN99:$AY99)>0,SUMPRODUCT($AN99:$AY99,$AN98:$AY98)/AVERAGE($AN98:$AY98),0)) -> 4 | G99: =IF(M99>0,M99,IF(SUM($AZ99:$BK99)>0,SUMPRODUCT($AZ99:$BK99,$AZ98:$BK98)/AVERAGE($AZ98:$BK98),0)) -> 4 | H99: =IF(N99>0,N99,IF(SUM($BL99:$BW99)>0,SUMPRODUCT($BL99:$BW99,$BL98:$BW98)/AVERAGE($BL98:$BW98),0)) -> 4 | J99: =Programs!$I2*Programs!L2 -> 4 | K99: =Programs!$I2*Programs!M2 -> 4 | L99: =Programs!$I2*Programs!N2 -> 4 | M99: =Programs!$I2*Programs!O2 -> 4 | N99: =Programs!$I2*Programs!P2 -> 4 | BX99: Sum
B100: MWhs bid | D100: =IF(J100>0,J100,SUM($P100:$AA100)) -> 29.71565842 | E100: =IF(K100>0,K100,AVERAGE($AB100:$AM100)) -> 30.11565842 | F100: =IF(L100>0,L100,AVERAGE($AN100:$AY100)) -> 30.51565842 | G100: =IF(M100>0,M100,AVERAGE($AZ100:$BK100)) -> 30.91565842 | H100: =IF(N100>0,N100,AVERAGE($BL100:$BW100)) -> 31.31565842 | J100: =J98*J99 -> 29.71565842 | K100: =K98*K99 -> 30.11565842 | L100: =L98*L99 -> 30.51565842 | M100: =M98*M99 -> 30.91565842 | N100: 31.31565842 | P100: =P98*P99 -> 0 | Q100: =Q98*Q99 -> 0 | R100: 0 | S100: 0 | T100: 0 | U100: 0 | V100: 0 | W100: 0 | X100: 0 | Y100: 0 | Z100: 0 | AA100: 0 | AB100: 0 | AC100: 0 | AD100: 0 | AE100: 0 | AF100: 0 | AG100: 0 | AH100: 0 | AI100: 0 | AJ100: 0 | AK100: 0 | AL100: 0 | AM100: 0 | AN100: 0 | AO100: 0 | AP100: 0 | AQ100: 0 | AR100: 0 | AS100: 0 | AT100: 0 | AU100: 0 | AV100: 0 | AW100: 0 | AX100: 0 | AY100: 0 | AZ100: 0 | BA100: 0 | BB100: 0 | BC100: 0 | BD100: 0 | BE100: 0 | BF100: 0 | BG100: 0 | BH100: 0 | BI100: 0 | BJ100: 0 | BK100: 0 | BL100: 0 | BM100: 0 | BN100: 0 | BO100: 0 | BP100: 0 | BQ100: 0 | BR100: 0 | BS100: 0 | BT100: 0 | BU100: 0 | BV100: 0 | BW100: 0 | BX100: Sum
B101: Average Market Price ($/MWh) | D101: =IF(J101>0,J101,IF(SUM($P$100:$AA$100)>0,SUMPRODUCT($P$100:$AA$100,$P$101:$AA$101)/SUM($P$100:$AA$100),0)) -> 58.66306136 | E101: =IF(K101>0,K101,IF(SUM($AB$100:$AM$100)>0,SUMPRODUCT($AB$100:$AM$100,$AB$101:$AM$101)/SUM($AB$100:$AM$100),0)) -> 59.96371971 | F101: =IF(L101>0,L101,IF(SUM($AN$100:$AY$100)>0,SUMPRODUCT($AN$100:$AY$100,$AN$101:$AY$101)/SUM($AN$100:$AY$100),0)) -> 55.60274811 | G101: =IF(M101>0,M101,IF(SUM($AZ$100:$BK$100)>0,SUMPRODUCT($AZ$100:$BK$100,$AZ$101:$BK$101)/SUM($AZ$100:$BK$100),0)) -> 56.75404333 | H101: =IF(N101>0,N101,IF(SUM($BL$100:$BW$100)>0,SUMPRODUCT($BL$100:$BW$100,$BL$101:$BW$101)/SUM($BL$100:$BW$100),0)) -> 57.94747649 | J101: =Inputs!I6*$D$44 -> 58.66306136 | K101: =Inputs!J6*$D$44 -> 59.96371971 | L101: =Inputs!K6*$D$44 -> 55.60274811 | M101: =Inputs!L6*$D$44 -> 56.75404333 | N101: =Inputs!M6*$D$44 -> 57.94747649 | BX101: Avg
J102: All inputs in nominal year dollars
B103: TOTAL | D103: =Inputs!$C$2 -> 2018 | E103: =D103+1 -> 2019 | F103: =E103+1 -> 2020 | G103: 2021 | H103: 2022 | I103: =Inputs!$C$3 & " NPV" -> 2017 NPV
B104: TRC Costs | D104: =SUM(D63,D66:D68,D70:D73) -> 669019.7488 | E104: =SUM(E63,E66:E68,E70:E73) -> 757234.3546 | F104: 679582.3669 | G104: 687089.529 | H104: 703674.408 | I104: =SUMPRODUCT(D104:H104,DiscFactors) -> 2843627.308
B105: PAC Costs | D105: =SUM(D63:D64,D66:D68) -> 804992.2743 | E105: =SUM(E63:E64,E66:E68) -> 894902.3856 | F105: 818938.2242 | G105: 828125.2478 | H105: 846381.7276 | I105: =SUMPRODUCT(D105:H105,DiscFactors) -> 3409305.764
B106: RIM Costs | D106: =SUM(D63:D68) -> 810904.2217 | E106: =SUM(E63:E68) -> 901073.659 | F106: 825379.0625 | G106: 834846.2708 | H106: 853393.9495 | I106: =SUMPRODUCT(D106:H106,DiscFactors) -> 3435382.589
B107: PCT Costs | D107: =SUM(D70:D73) -> 425653.4187 | E107: =SUM(E70:E73) -> 431517.9132 | F107: 437390.0869 | G107: 443270.2253 | H107: 449158.6245 | I107: =SUMPRODUCT(D107:H107,DiscFactors) -> 1775265.845
B109: Generation Capacity Value | D109: =D$58*D$53*1000 -> 861415.0646 | E109: =E$58*E$53*1000 -> 927886.9016 | F109: 966617.8184 | G109: 1003147.79 | H109: 1034461.998 | I109: =SUMPRODUCT(D109:H109,DiscFactors) -> 3874198.034 | J109: T&D Values
B110: T&D Capacity Value | D110: =D58*D54*1000 -> 0 | E110: =E58*E54*1000 -> 0 | F110: 0 | G110: 0 | H110: 0 | I110: 0 | J110: =CHOOSE(MATCH($F$43,TDList,0),Inputs!I$9+Inputs!I$10,Inputs!I$10,'BIP example'!J$52) -> 108.5265017 | K110: =CHOOSE(MATCH($F$43,TDList,0),Inputs!J$9+Inputs!J$10,Inputs!J$10,'BIP example'!K$52) -> 110.6970317 | L110: =CHOOSE(MATCH($F$43,TDList,0),Inputs!K$9+Inputs!K$10,Inputs!K$10,'BIP example'!L$52) -> 112.9109724 | M110: =CHOOSE(MATCH($F$43,TDList,0),Inputs!L$9+Inputs!L$10,Inputs!L$10,'BIP example'!M$52) -> 115.1691918 | N110: =CHOOSE(MATCH($F$43,TDList,0),Inputs!M$9+Inputs!M$10,Inputs!M$10,'BIP example'!N$52) -> 117.4725756
B111: Energy Value | D111: =D55*D59 -> 3768.452896 | E111: =E55*E59 -> 1951.928669 | F111: 1834.011339 | G111: 1896.523911 | H111: 1961.458347 | I111: 9499.572447
B112: GHG Value | D112: =D56*D59 -> 461.6564068 | E112: =E56*E59 -> 252.3133138 | F112: 385.7275905 | G112: 420.2616072 | H112: 453.8513543 | I112: 1597.334129
B113: Optional Benefits | D113: =SUM(D89:D95) -> 0 | E113: =SUM(E89:E95) -> 0 | F113: 0 | G113: 0 | H113: 0 | I113: 0
B114: CAISO Market Value | D114: =D100*D101 -> 1743.211493 | E114: =E100*E101 -> 1805.8469 | F114: 1696.754469 | G114: 1754.588618 | H114: 1814.66338 | I114: 7164.164001
B115: Total Benefits | D115: =SUM(D109:D114) -> 867388.3854 | E115: =SUM(E109:E114) -> 931896.9904 | F115: 970534.3118 | G115: 1007219.164 | H115: 1038691.971 | I115: 3892459.104
B116: Participant Benefits | D116: =D64+D65 -> 567537.8916 | E116: =E64+E65 -> 575357.2176 | F116: 583186.7825 | G116: 591026.9671 | H116: 598878.166 | I116: 2367021.127
F118: NPV MW Impact (for levelized $/kW-Yr. calculation) | I118: =NPV(WACC,D58:H58) -> 26.51242334
D119: P:AA | E119: AB:AM | F119: AN:AY | G119: AZ:BK | H119: BL:BW
B120: Sensitivities
D121: =Inputs!$C$2 -> 2018 | E121: =D121+1 -> 2019 | F121: =E121+1 -> 2020 | G121: 2021 | H121: 2022 | I121: =I103 -> 2017 NPV
B122: % Incentives as Participant Costs
B123: =" " &TEXT(1,"0%") & " of Incentive Costs" -> 100% of Incentive Costs | C123: TRC Cost | D123: =SUM(D$63,MAX((D$64+D$65)*1-SUM(D$71:D$73),0),D$66:D$68,D$71:D$73) -> 810904.2217 | E123: =SUM(E$63,MAX((E$64+E$65)*1-SUM(E$71:E$73),0),E$66:E$68,E$71:E$73) -> 901073.659 | F123: =SUM(F$63,MAX((F$64+F$65)*1-SUM(F$71:F$73),0),F$66:F$68,F$71:F$73) -> 825379.0625 | G123: =SUM(G$63,MAX((G$64+G$65)*1-SUM(G$71:G$73),0),G$66:G$68,G$71:G$73) -> 834846.2708 | H123: 853393.9495 | I123: =SUMPRODUCT(D123:H123,DiscFactors) -> 3435382.589
B124: =" " &TEXT(TRCIncLow2Pct,"0%") & " of Incentive Costs" -> 50% of Incentive Costs | C124: TRC Cost | D124: =SUM(D$63,MAX((D$64+D$65)*TRCIncLow2Pct-SUM(D$71:D$73),0),D$66:D$68,D$71:D$73) -> 527135.276 | E124: =SUM(E$63,MAX((E$64+E$65)*TRCIncLow2Pct-SUM(E$71:E$73),0),E$66:E$68,E$71:E$73) -> 613395.0502 | F124: =SUM(F$63,MAX((F$64+F$65)*TRCIncLow2Pct-SUM(F$71:F$73),0),F$66:F$68,F$71:F$73) -> 533785.6713 | G124: =SUM(G$63,MAX((G$64+G$65)*TRCIncLow2Pct-SUM(G$71:G$73),0),G$66:G$68,G$71:G$73) -> 539332.7872 | H124: =SUM(H$63,MAX((H$64+H$65)*TRCIncLow2Pct-SUM(H$71:H$73),0),H$66:H$68,H$71:H$73) -> 553954.8665 | I124: =SUMPRODUCT(D124:H124,DiscFactors) -> 2251872.026
B125: Generation Capacity Costs
B126: =" Base Case " & TEXT(GenLowPct,"0%") -> Base Case -30% | C126: TRC Benefits | D126: =SUM(D$109*(1+GenLowPct),D$110:D$114) -> 608963.866 | E126: =SUM(E$109*(1+GenLowPct),E$110:E$114) -> 653530.92 | F126: =SUM(F$109*(1+GenLowPct),F$110:F$114) -> 680548.9663 | G126: =SUM(G$109*(1+GenLowPct),G$110:G$114) -> 706274.827 | H126: =SUM(H$109*(1+GenLowPct),H$110:H$114) -> 728353.3715 | I126: =SUMPRODUCT(D126:H126,DiscFactors) -> 2730199.694
B127: =" Base Case +" & TEXT(GenHighPct,"0%") -> Base Case +30% | C127: TRC Benefits | D127: =SUM(D$109*(1+GenHighPct),D$110:D$114) -> 1125812.905 | E127: =SUM(E$109*(1+GenHighPct),E$110:E$114) -> 1210263.061 | F127: =SUM(F$109*(1+GenHighPct),F$110:F$114) -> 1260519.657 | G127: =SUM(G$109*(1+GenHighPct),G$110:G$114) -> 1308163.501 | H127: =SUM(H$109*(1+GenHighPct),H$110:H$114) -> 1349030.57 | I127: =SUMPRODUCT(D127:H127,DiscFactors) -> 5054718.515
B128: T&D Capacity Costs
B129: =" Base Case " & TEXT(TandDLowPct,"0%") -> Base Case -30% | C129: TRC Benefits | D129: =SUM(D$109,D$110*(1+TandDLowPct),D$111:D$114) -> 867388.3854 | E129: =SUM(E$109,E$110*(1+TandDLowPct),E$111:E$114) -> 931896.9904 | F129: =SUM(F$109,F$110*(1+TandDLowPct),F$111:F$114) -> 970534.3118 | G129: =SUM(G$109,G$110*(1+TandDLowPct),G$111:G$114) -> 1007219.164 | H129: =SUM(H$109,H$110*(1+TandDLowPct),H$111:H$114) -> 1038691.971 | I129: =SUMPRODUCT(D129:H129,DiscFactors) -> 3892459.104
B130: =" Base Case +" & TEXT(TandDHighPct,"0%") -> Base Case +30% | C130: TRC Benefits | D130: =SUM(D$109,D$110*(1+TandDHighPct),D$111:D$114) -> 867388.3854 | E130: =SUM(E$109,E$110*(1+TandDHighPct),E$111:E$114) -> 931896.9904 | F130: =SUM(F$109,F$110*(1+TandDHighPct),F$111:F$114) -> 970534.3118 | G130: =SUM(G$109,G$110*(1+TandDHighPct),G$111:G$114) -> 1007219.164 | H130: =SUM(H$109,H$110*(1+TandDHighPct),H$111:H$114) -> 1038691.971 | I130: =SUMPRODUCT(D130:H130,DiscFactors) -> 3892459.104
B131: Capital Ammortization Period
B132: =" " &AmmLowYrs & " Years" -> 3 Years | C132: TRC Cost | D132: =SUM(D$63,D$67:D$68,D70,D72:D73)-PMT(WACC,AmmLowYrs,MAX(SUM($J$76:$J$86),SUM($P$76:$AA$86))) -> 669019.7488 | E132: =SUM(E$63,E$67:E$68,E70,E72:E73)-PMT(WACC,AmmLowYrs,MAX(SUM($J$76:$K$86),SUM($P$76:$AM$86))) -> 767940.0594 | F132: =SUM(F$63,F$67:F$68,F70,F72:F73)-PMT(WACC,AmmLowYrs,MAX(SUM($J$76:$L$86),SUM($P$76:$AY$86))) -> 690288.0716 | G132: =SUM(G$63,G$67:G$68,G70,G72:G73)-PMT(WACC,AmmLowYrs,MAX(SUM($J$76:$M$86),SUM($P$76:$BK$86))) -> 697795.2337 | H132: =SUM(H$63,H$67:H$68,H70,H72:H73)-PMT(WACC,AmmLowYrs,MAX(SUM($J$76:$N$86),SUM($P$76:$BW$86))) -> 714964.2584 | I132: =SUMPRODUCT(D132:H132,DiscFactors) -> 2877594.935
C133: PAC Cost | D133: =SUM(D$63:D$64,D$67:D$68)-PMT(WACC,AmmLowYrs,MAX(SUM($J$76:$J$80),SUM($P$76:$AA$80))) -> 804992.2743 | E133: =SUM(E$63:E$64,E$67:E$68)-PMT(WACC,AmmLowYrs,MAX(SUM($J$76:$K$80),SUM($P$76:$AM$80))) -> 905608.0903 | F133: =SUM(F$63:F$64,F$67:F$68)-PMT(WACC,AmmLowYrs,MAX(SUM($J$76:$L$80),SUM($P$76:$AY$80))) -> 829643.9289 | G133: =SUM(G$63:G$64,G$67:G$68)-PMT(WACC,AmmLowYrs,MAX(SUM($J$76:$M$80),SUM($P$76:$BK$80))) -> 838830.9526 | H133: =SUM(H$63:H$64,H$67:H$68)-PMT(WACC,AmmLowYrs,MAX(SUM($J$76:$N$80),SUM($P$76:$BW$80))) -> 857671.578 | I133: 3443273.392
C134: RIM Cost | D134: =SUM(D$63:D$65,D$67:D$68)-PMT(WACC,AmmLowYrs,MAX(SUM($J$76:$J$80),SUM($P$76:$AA$80))) -> 810904.2217 | E134: =SUM(E$63:E$65,E$67:E$68)-PMT(WACC,AmmLowYrs,MAX(SUM($J$76:$K$80),SUM($P$76:$AM$80))) -> 911779.3638 | F134: =SUM(F$63:F$65,F$67:F$68)-PMT(WACC,AmmLowYrs,MAX(SUM($J$76:$L$80),SUM($P$76:$AY$80))) -> 836084.7673 | G134: =SUM(G$63:G$65,G$67:G$68)-PMT(WACC,AmmLowYrs,MAX(SUM($J$76:$M$80),SUM($P$76:$BK$80))) -> 845551.9755 | H134: =SUM(H$63:H$65,H$67:H$68)-PMT(WACC,AmmLowYrs,MAX(SUM($J$76:$N$80),SUM($P$76:$BW$80))) -> 864683.7999 | I134: 3469350.217
B135: =" " &AmmHighYrs & " Years" -> 15 Years | C135: TRC Cost | D135: =SUM(D$63,D$67:D$68,D70,D72:D73)-PMT(WACC,AmmHighYrs,MAX(SUM($J$76:$J$86),SUM($P$76:$AA$86))) -> 669019.7488 | E135: =SUM(E$63,E$67:E$68,E70,E72:E73)-PMT(WACC,AmmHighYrs,MAX(SUM($J$76:$K$86),SUM($P$76:$AM$86))) -> 746788.2297 | F135: =SUM(F$63,F$67:F$68,F70,F72:F73)-PMT(WACC,AmmHighYrs,MAX(SUM($J$76:$L$86),SUM($P$76:$AY$86))) -> 669136.2419 | G135: =SUM(G$63,G$67:G$68,G70,G72:G73)-PMT(WACC,AmmHighYrs,MAX(SUM($J$76:$M$86),SUM($P$76:$BK$86))) -> 676643.404 | H135: =SUM(H$63,H$67:H$68,H70,H72:H73)-PMT(WACC,AmmHighYrs,MAX(SUM($J$76:$N$86),SUM($P$76:$BW$86))) -> 692658.3011 | I135: 2810483.289
C136: PAC Cost | D136: =SUM(D$63:D$64,D$67:D$68)-PMT(WACC,AmmHighYrs,MAX(SUM($J$76:$J$80),SUM($P$76:$AA$80))) -> 804992.2743 | E136: =SUM(E$63:E$64,E$67:E$68)-PMT(WACC,AmmHighYrs,MAX(SUM($J$76:$K$80),SUM($P$76:$AM$80))) -> 884456.2606 | F136: =SUM(F$63:F$64,F$67:F$68)-PMT(WACC,AmmHighYrs,MAX(SUM($J$76:$L$80),SUM($P$76:$AY$80))) -> 808492.0992 | G136: =SUM(G$63:G$64,G$67:G$68)-PMT(WACC,AmmHighYrs,MAX(SUM($J$76:$M$80),SUM($P$76:$BK$80))) -> 817679.1229 | H136: =SUM(H$63:H$64,H$67:H$68)-PMT(WACC,AmmHighYrs,MAX(SUM($J$76:$N$80),SUM($P$76:$BW$80))) -> 835365.6208 | I136: 3376161.746
C137: RIM Cost | D137: =SUM(D$63:D$65,D$67:D$68)-PMT(WACC,AmmHighYrs,MAX(SUM($J$76:$J$80),SUM($P$76:$AA$80))) -> 810904.2217 | E137: =SUM(E$63:E$65,E$67:E$68)-PMT(WACC,AmmHighYrs,MAX(SUM($J$76:$K$80),SUM($P$76:$AM$80))) -> 890627.5341 | F137: =SUM(F$63:F$65,F$67:F$68)-PMT(WACC,AmmHighYrs,MAX(SUM($J$76:$L$80),SUM($P$76:$AY$80))) -> 814932.9376 | G137: =SUM(G$63:G$65,G$67:G$68)-PMT(WACC,AmmHighYrs,MAX(SUM($J$76:$M$80),SUM($P$76:$BK$80))) -> 824400.1458 | H137: =SUM(H$63:H$65,H$67:H$68)-PMT(WACC,AmmHighYrs,MAX(SUM($J$76:$N$80),SUM($P$76:$BW$80))) -> 842377.8426 | I137: 3402238.57
B138: Load Impact
B139: =" Base Case " & TEXT(ImpactLowPct,"0%") -> Base Case -30% | C139: TRC Benefits | I139: =SUM(I$109:I$112)*(1+ImpactLowPct)+SUM(I$113:I$114) -> 2726870.622
B140: =" Base Case +" & TEXT(ImpactHighPct,"0%") -> Base Case +30% | C140: TRC Benefits | I140: =SUM(I$109:I$112)*(1+ImpactHighPct)+SUM(I$113:I$114) -> 5058047.587
B141: Adjustment Factors
B142: =" A Factor at "&TEXT(C160,"0%") -> A Factor at 77% | C142: Gen. Cap. Value | D142: =J$53/(1-Losses)*(1+ReserveMargin)*$C$160*$D$41*$D$42*$D$45*$D$46 -> 122.3992095 | E142: =K$53/(1-Losses)*(1+ReserveMargin)*$C$160*$D$41*$D$42*$D$45*$D$46 -> 129.7950621 | F142: =L$53/(1-Losses)*(1+ReserveMargin)*$C$160*$D$41*$D$42*$D$45*$D$46 -> 133.1434555 | G142: =M$53/(1-Losses)*(1+ReserveMargin)*$C$160*$D$41*$D$42*$D$45*$D$46 -> 136.0923101 | H142: =N$53/(1-Losses)*(1+ReserveMargin)*$C$160*$D$41*$D$42*$D$45*$D$46 -> 138.2564933
C143: TRC Benefits | D143: =D$109*D142/D$53+SUM(D$110:D$114) -> 781246.879 | E143: =IF(E53>0,E$109*E142/E$53+SUM(E$110:E$114),0) -> 839108.3003 | F143: =IF(F53>0,F$109*F142/F$53+SUM(F$110:F$114),0) -> 873872.53 | G143: =IF(G53>0,G$109*G142/G$53+SUM(G$110:G$114),0) -> 906904.385 | H143: 935245.7711 | I143: =SUMPRODUCT(D143:H143,DiscFactors) -> 3505039.301
B144: =" A Factor at "&TEXT(FactorHighPct,"0%") -> A Factor at 100% | C144: Gen. Cap. Value | D144: =J$53/(1-Losses)*(1+ReserveMargin)*$C$161*$D$41*$D$42*$D$45*$D$46 -> 158.5349977 | E144: =K$53/(1-Losses)*(1+ReserveMargin)*$C$161*$D$41*$D$42*$D$45*$D$46 -> 168.1143199 | F144: =L$53/(1-Losses)*(1+ReserveMargin)*$C$161*$D$41*$D$42*$D$45*$D$46 -> 172.4512559 | G144: =M$53/(1-Losses)*(1+ReserveMargin)*$C$161*$D$41*$D$42*$D$45*$D$46 -> 176.2706977 | H144: =N$53/(1-Losses)*(1+ReserveMargin)*$C$161*$D$41*$D$42*$D$45*$D$46 -> 179.0738105
C145: TRC Benefits | D145: =D$109*D144/D$53+SUM(D$110:D$114) -> 1010130.065 | E145: =IF(E53>0,E$109*E144/E$53+SUM(E$110:E$114),0) -> 1085653.455 | F145: =IF(F53>0,F$109*F144/F$53+SUM(F$110:F$114),0) -> 1130708.723 | G145: =IF(G53>0,G$109*G144/G$53+SUM(G$110:G$114),0) -> 1173446.812 | H145: 1210108.573 | I145: =SUMPRODUCT(D145:H145,DiscFactors) -> 4534437.121
B147: Chart
D148: Base Case | E148: High | F148: Low | I148: Base Case | J148: 1
B149: Base Case | D149: =I6 -> 1.368835886 | I149: =I6 -> 1.368835886 | J149: 1
B150: % of Incentives as Participant Costs | C150: 1 | F150: =C16 -> 1.133049669 | I150: =I6 -> 1.368835886 | J150: 1
C151: =TRCIncLow2Pct -> 0.5 | E151: =D16 -> 1.728543656 | I151: =D149 -> 1.368835886 | J151: 1
B152: Generation Capacity Value | C152: =Inputs!$C$15 -> -0.3 | F152: =E16 -> 0.9601116458 | I152: =I6 -> 1.368835886 | J152: 1
C153: =Inputs!$C$16 -> 0.3 | E153: =F16 -> 1.777560126 | I153: =I6 -> 1.368835886 | J153: 1
B154: T&D Capacity Value | C154: =Inputs!$C$18 -> -0.3 | F154: =I16 -> 1.368835886 | I154: =I6 -> 1.368835886 | J154: 1
C155: =Inputs!$C$19 -> 0.3 | E155: =J16 -> 1.368835886 | I155: =I6 -> 1.368835886 | J155: 1
B156: Capital Amortization Period | C156: =Inputs!$C$21 -> 3 | F156: =K16 -> 1.352677911 | I156: =I6 -> 1.368835886 | J156: 1
C157: =Inputs!$C$22 -> 15 | E157: =L16 -> 1.384978562 | I157: =I6 -> 1.368835886 | J157: 1
B158: Load Impact | C158: =Inputs!$C$24 -> -0.3 | F158: =O16 -> 0.9589409326 | I158: =I6 -> 1.368835886 | J158: 1
C159: =Inputs!$C$25 -> 0.3 | E159: =P16 -> 1.778730839 | I159: =I6 -> 1.368835886 | J159: 1
B160: A Factor | C160: =(1+FactorLowPct)*D40 -> 0.7720642844 | F160: =Q16 -> 1.232594472 | I160: =I6 -> 1.368835886 | J160: 1
C161: =FactorHighPct -> 1 | E161: =R16 -> 1.594596137 | I161: =I6 -> 1.368835886 | J161: 1

Sheet CBP_DA
B1: Program Name
B2: CBP_DA
B4: Base Case Results
B5: =Inputs!C3 & " Dollars" -> 2017 Dollars | C5: Benefits | D5: Costs | E5: Net Benefits | F5: Net $/kW-Yr. | I5: Ratio
B6: TRC | C6: =$I$115 -> 3007057.336 | D6: =I104 -> 3209986.334 | E6: =$C$6-D6 -> -202928.9973 | F6: =E6/$I$118/1000 -> -6.152576566 | I6: =C6/D6 -> 0.9367819747
B7: PAC | D7: =I105 -> 3491974.918 | E7: =$C$6-D7 -> -484917.5816 | F7: =E7/$I$118/1000 -> -14.70214996 | I7: =C6/D7 -> 0.8611337157
B8: RIM | D8: =I106 -> 3853415.844 | E8: =$C$6-D8 -> -846358.5079 | F8: =E8/$I$118/1000 -> -25.66062806 | I8: =C6/D8 -> 0.7803614917
B9: PCT | C9: =I116 -> 2573718.042 | D9: =I107 -> 1930288.532 | E9: =C9-D9 -> 643429.5106 | F9: =E9/$I$118/1000 -> 19.50805149 | I9: =C9/D9 -> 1.333333333
B11: Sensitivities
C12: % of Customer Incentives in TRC | E12: Generation Capacity Value | I12: T&D Capacity Value | K12: Capital Amortization Period | O12: Load Impact | Q12: A Adjustment Factor
C15: 1 | D15: =TRCIncLow2Pct -> 0.5 | E15: =Inputs!$C$15 -> -0.3 | F15: =Inputs!$C$16 -> 0.3 | I15: =Inputs!$C$18 -> -0.3 | J15: =Inputs!$C$19 -> 0.3 | K15: =Inputs!$C$21 -> 3 | L15: =Inputs!$C$22 -> 15 | O15: =Inputs!$C$24 -> -0.3 | P15: =Inputs!$C$25 -> 0.3 | Q15: =C160 -> 0.5488222785 | R15: =Inputs!$C$28 -> 1
B16: TRC | C16: =C6/I123 -> 0.7803614917 | D16: =C6/I124 -> 1.171630922 | E16: =I126/D6 -> 0.6768334918 | F16: =I127/D6 -> 1.196730458 | I16: =I129/D6 -> 0.9367819747 | J16: =I130/D6 -> 0.9367819747 | K16: =C6/I132 -> 0.9367819747 | L16: =C6/I135 -> 0.9367819747 | O16: =I139/D6 -> 0.6650162123 | P16: =I140/D6 -> 1.208547737 | Q16: =I143/D6 -> 0.8501324804 | R16: =I145/D6 -> 1.491230531
B17: PAC | C17: - | E17: =I126/D7 -> 0.6221769371 | F17: =I127/D7 -> 1.100090494 | I17: =I129/D7 -> 0.8611337157 | J17: =I130/D7 -> 0.8611337157 | K17: =C6/I133 -> 0.8611337157 | L17: =C6/I136 -> 0.8611337157 | O17: =I139/D7 -> 0.6113139422 | P17: =I140/D7 -> 1.110953489 | Q17: =I143/D7 -> 0.7814814562 | R17: =I145/D7 -> 1.370808707
B18: RIM | C18: - | E18: =I126/D8 -> 0.563818271 | F18: =I127/D8 -> 0.9969047124 | I18: =I129/D8 -> 0.7803614917 | J18: =I130/D8 -> 0.7803614917 | K18: =C6/I134 -> 0.7803614917 | L18: =C6/I137 -> 0.7803614917 | O18: =I139/D8 -> 0.5539741984 | P18: =I140/D8 -> 1.006748785 | Q18: =I143/D8 -> 0.7081804181 | R18: =I145/D8 -> 1.242230223
B39: Adjustment Factors | J39: LEGEND
B40: A) Availability adjustment | D40: =budget!Q3 -> 0.6098025316 | J40: Utility Input | L40: Enter Utility specific information and program data in yellow cells
B41: B) Notification adjustment | D41: =budget!Q4 -> 0.88 | J41: Do Not Alter
B42: C) Trigger adjustment | D42: =budget!Q5 -> 1 | J42: Avoided Cost Input | L42: Inputs from Avoided Cost Model
B43: D) T&D right time-right place adjustment | D43: =budget!Q6 -> 0 | E43: T&D Value--> | F43: D Only | J43: Formula | L43: Formulas contained in this Excel Workbook
B44: E) Energy price adjustment | D44: =budget!Q7 -> 1.45
B45: F) Flexiblity adjustment | D45: =budget!Q8 -> 1
B46: G) Geographical adjustment | D46: =budget!Q9 -> 1.1
J47: P:AA | K47: AB:AM | L47: AN:AY | M47: AZ:BK | N47: BL:BW
B48: Program | J48: Annual Inputs | P48: Monthly Inputs
B49: Nominal Dollars | J49: (Inputs override monthly inputs) | P49: =Inputs!$C$2 -> 2018 | AB49: =P49+1 -> 2019 | AN49: =AB49+1 -> 2020 | AZ49: =AN49+1 -> 2021 | BL49: =AZ49+1 -> 2022
B50: Adjusted Avoided Cost Values | D50: =Inputs!$C$2 -> 2018 | E50: =D50+1 -> 2019 | F50: =E50+1 -> 2020 | G50: 2021 | H50: 2022 | J50: =Inputs!$C$2 -> 2018 | K50: =J50+1 -> 2019 | L50: =K50+1 -> 2020 | M50: 2021 | N50: 2022 | P50: =DATE(P49,1,1) -> 2018-01-01 | Q50: =DATE(P49,2,1) -> 2018-02-01 | R50: =DATE(P49,3,1) -> 2018-03-01 | S50: =DATE(P49,4,1) -> 2018-04-01 | T50: =DATE(P49,5,1) -> 2018-05-01 | U50: =DATE(P49,6,1) -> 2018-06-01 | V50: =DATE(P49,7,1) -> 2018-07-01 | W50: =DATE(P49,8,1) -> 2018-08-01 | X50: =DATE(P49,9,1) -> 2018-09-01 | Y50: =DATE(P49,10,1) -> 2018-10-01 | Z50: =DATE(P49,11,1) -> 2018-11-01 | AA50: =DATE(P49,12,1) -> 2018-12-01 | AB50: =DATE(AB49,1,1) -> 2019-01-01 | AC50: =DATE(AB49,2,1) -> 2019-02-01 | AD50: =DATE(AB49,3,1) -> 2019-03-01 | AE50: =DATE(AB49,4,1) -> 2019-04-01 | AF50: =DATE(AB49,5,1) -> 2019-05-01 | AG50: =DATE(AB49,6,1) -> 2019-06-01 | AH50: =DATE(AB49,7,1) -> 2019-07-01 | AI50: =DATE(AB49,8,1) -> 2019-08-01 | AJ50: =DATE(AB49,9,1) -> 2019-09-01 | AK50: =DATE(AB49,10,1) -> 2019-10-01 | AL50: =DATE(AB49,11,1) -> 2019-11-01 | AM50: =DATE(AB49,12,1) -> 2019-12-01 | AN50: =DATE(AN49,1,1) -> 2020-01-01 | AO50: =DATE(AN49,2,1) -> 2020-02-01 | AP50: =DATE(AN49,3,1) -> 2020-03-01 | AQ50: =DATE(AN49,4,1) -> 2020-04-01 | AR50: =DATE(AN49,5,1) -> 2020-05-01 | AS50: =DATE(AN49,6,1) -> 2020-06-01 | AT50: =DATE(AN49,7,1) -> 2020-07-01 | AU50: =DATE(AN49,8,1) -> 2020-08-01 | AV50: =DATE(AN49,9,1) -> 2020-09-01 | AW50: =DATE(AN49,10,1) -> 2020-10-01 | AX50: =DATE(AN49,11,1) -> 2020-11-01 | AY50: =DATE(AN49,12,1) -> 2020-12-01 | AZ50: =DATE(AZ49,1,1) -> 2021-01-01 | BA50: =DATE(AZ49,2,1) -> 2021-02-01 | BB50: =DATE(AZ49,3,1) -> 2021-03-01 | BC50: =DATE(AZ49,4,1) -> 2021-04-01 | BD50: =DATE(AZ49,5,1) -> 2021-05-01 | BE50: =DATE(AZ49,6,1) -> 2021-06-01 | BF50: =DATE(AZ49,7,1) -> 2021-07-01 | BG50: =DATE(AZ49,8,1) -> 2021-08-01 | BH50: =DATE(AZ49,9,1) -> 2021-09-01 | BI50: =DATE(AZ49,10,1) -> 2021-10-01 | BJ50: =DATE(AZ49,11,1) -> 2021-11-01 | BK50: =DATE(AZ49,12,1) -> 2021-12-01 | BL50: =DATE(BL49,1,1) -> 2022-01-01 | BM50: =DATE(BL49,2,1) -> 2022-02-01 | BN50: =DATE(BL49,3,1) -> 2022-03-01 | BO50: =DATE(BL49,4,1) -> 2022-04-01 | BP50: =DATE(BL49,5,1) -> 2022-05-01 | BQ50: =DATE(BL49,6,1) -> 2022-06-01 | BR50: =DATE(BL49,7,1) -> 2022-07-01 | BS50: =DATE(BL49,8,1) -> 2022-08-01 | BT50: =DATE(BL49,9,1) -> 2022-09-01 | BU50: =DATE(BL49,10,1) -> 2022-10-01 | BV50: =DATE(BL49,11,1) -> 2022-11-01 | BW50: =DATE(BL49,12,1) -> 2022-12-01
B51: Monthly Generation Capacity Allocation | I51: Enter Alternate | P51: =Inputs!I32 -> 0 | Q51: =Inputs!J32 -> 0 | R51: =Inputs!K32 -> 0 | S51: =Inputs!L32 -> 0 | T51: =Inputs!M32 -> 0 | U51: =Inputs!N32 -> 3.550063078e-05 | V51: =Inputs!O32 -> 0 | W51: =Inputs!P32 -> 0.2653796298 | X51: =Inputs!Q32 -> 0.7339891128 | Y51: =Inputs!R32 -> 0.0005957567357 | Z51: =Inputs!S32 -> 0 | AA51: =Inputs!T32 -> 0 | AB51: =P51 -> 0 | AC51: =Q51 -> 0 | AD51: 0 | AE51: 0 | AF51: 0 | AG51: 3.550063078e-05 | AH51: 0 | AI51: 0.2653796298 | AJ51: 0.7339891128 | AK51: 0.0005957567357 | AL51: 0 | AM51: 0 | AN51: 0 | AO51: 0 | AP51: 0 | AQ51: 0 | AR51: 0 | AS51: =AG51 -> 3.550063078e-05 | AT51: 0 | AU51: 0.2653796298 | AV51: 0.7339891128 | AW51: 0.0005957567357 | AX51: 0 | AY51: 0 | AZ51: 0 | BA51: 0 | BB51: 0 | BC51: 0 | BD51: 0 | BE51: 3.550063078e-05 | BF51: 0 | BG51: 0.2653796298 | BH51: 0.7339891128 | BI51: =AW51 -> 0.0005957567357 | BJ51: 0 | BK51: 0 | BL51: 0 | BM51: 0 | BN51: 0 | BO51: 0 | BP51: 0 | BQ51: 3.550063078e-05 | BR51: 0 | BS51: 0.2653796298 | BT51: 0.7339891128 | BU51: 0.0005957567357 | BV51: 0 | BW51: 0
B52: Monthly T&D Capacity Allocation | I52: T&D Values --> | P52: =Inputs!I39 -> 0 | Q52: =Inputs!J39 -> 0 | R52: =Inputs!K39 -> 0.00409822224 | S52: =Inputs!L39 -> 0 | T52: =Inputs!M39 -> 0 | U52: =Inputs!N39 -> 0.1123612092 | V52: =Inputs!O39 -> 0.00368034917 | W52: =Inputs!P39 -> 0.4812134927 | X52: =Inputs!Q39 -> 0.2869158031 | Y52: =Inputs!R39 -> 0.1117309235 | Z52: =Inputs!S39 -> 0 | AA52: =Inputs!T39 -> 0 | AB52: =P52 -> 0 | AC52: 0 | AD52: 0.00409822224 | AE52: 0 | AF52: 0 | AG52: 0.1123612092 | AH52: 0.00368034917 | AI52: 0.4812134927 | AJ52: 0.2869158031 | AK52: 0.1117309235 | AL52: 0 | AM52: 0 | AN52: 0 | AO52: 0 | AP52: 0.00409822224 | AQ52: 0 | AR52: 0 | AS52: 0.1123612092 | AT52: 0.00368034917 | AU52: 0.4812134927 | AV52: 0.2869158031 | AW52: 0.1117309235 | AX52: 0 | AY52: 0 | AZ52: 0 | BA52: 0 | BB52: 0.00409822224 | BC52: 0 | BD52: 0 | BE52: 0.1123612092 | BF52: 0.00368034917 | BG52: 0.4812134927 | BH52: 0.2869158031 | BI52: 0.1117309235 | BJ52: 0 | BK52: 0 | BL52: 0 | BM52: 0 | BN52: 0.00409822224 | BO52: 0 | BP52: 0 | BQ52: 0.1123612092 | BR52: 0.00368034917 | BS52: 0.4812134927 | BT52: 0.2869158031 | BU52: 0.1117309235 | BV52: 0 | BW52: 0
B53: Adjusted Generation Capacity Value ($/kW-Yr) | D53: =J$53/(1-Losses)*(1+ReserveMargin)*$D$40*$D$41*$D$42*$D$45*$D$46 -> 78.23152134 | E53: =K$53/(1-Losses)*(1+ReserveMargin)*$D$40*$D$41*$D$42*$D$45*$D$46 -> 83.06241961 | F53: =L$53/(1-Losses)*(1+ReserveMargin)*$D$40*$D$41*$D$42*$D$45*$D$46 -> 85.30873398 | G53: =M$53/(1-Losses)*(1+ReserveMargin)*$D$40*$D$41*$D$42*$D$45*$D$46 -> 87.30100454 | H53: =N$53/(1-Losses)*(1+ReserveMargin)*$D$40*$D$41*$D$42*$D$45*$D$46 -> 88.79091796 | J53: =IF(SUM($P$58:$AA$58)>0,SUMPRODUCT($P$53:$AA$53,$P$58:$AA$58)/D58,0) -> 106.6194261 | K53: =IF(SUM($AB$58:$AM$58)>0,SUMPRODUCT($AB$53:$AM$53,$AB$58:$AM$58)/E58,0) -> 113.2033144 | L53: =IF(SUM($AN$58:$AY$58)>0,SUMPRODUCT($AN$53:$AY$53,$AN$58:$AY$58)/F58,0) -> 116.2647498 | M53: =IF(SUM($AZ$58:$BK$58)>0,SUMPRODUCT($AZ$53:$BK$53,$AZ$58:$BK$58)/G58,0) -> 118.9799564 | N53: =IF(SUM($BL$58:$BW$58)>0,SUMPRODUCT($BL$53:$BW$53,$BL$58:$BW$58)/H58,0) -> 121.0105153 | P53: =Inputs!$I$7*P$51 -> 0 | Q53: =Inputs!$I$7*Q$51 -> 0 | R53: =Inputs!$I$7*R$51 -> 0 | S53: =Inputs!$I$7*S$51 -> 0 | T53: =Inputs!$I$8*T$51 -> 0 | U53: =Inputs!$I$8*U$51 -> 0.003785056879 | V53: =Inputs!$I$8*V$51 -> 0 | W53: =Inputs!$I$8*W$51 -> 28.29462382 | X53: =Inputs!$I$8*X$51 -> 78.25749794 | Y53: =Inputs!$I$8*Y$51 -> 0.06351924124 | Z53: =Inputs!$I$7*Z$51 -> 0 | AA53: =Inputs!$I$7*AA$51 -> 0 | AB53: =Inputs!$J$7*AB$51 -> 0 | AC53: =Inputs!$J$7*AC$51 -> 0 | AD53: =Inputs!$J$7*AD$51 -> 0 | AE53: =Inputs!$J$7*AE$51 -> 0 | AF53: =Inputs!$J$8*AF$51 -> 0 | AG53: =Inputs!$J$8*AG$51 -> 0.004018789068 | AH53: =Inputs!$J$8*AH$51 -> 0 | AI53: =Inputs!$J$8*AI$51 -> 30.04185367 | AJ53: =Inputs!$J$8*AJ$51 -> 83.0900003 | AK53: =Inputs!$J$8*AK$51 -> 0.06744163706 | AL53: =Inputs!$J$7*AL$51 -> 0 | AM53: =Inputs!$J$7*AM$51 -> 0 | AN53: =Inputs!$K$7*AN$51 -> 0 | AO53: =Inputs!$K$7*AO$51 -> 0 | AP53: =Inputs!$K$7*AP$51 -> 0 | AQ53: =Inputs!$K$7*AQ$51 -> 0 | AR53: =Inputs!$K$8*AR$51 -> 0 | AS53: =Inputs!$K$8*AS$51 -> 0.004127471955 | AT53: =Inputs!$K$8*AT$51 -> 0 | AU53: =Inputs!$K$8*AU$51 -> 30.85429626 | AV53: =Inputs!$K$8*AV$51 -> 85.33706056 | AW53: =Inputs!$K$8*AW$51 -> 0.06926550782 | AX53: =Inputs!$K$7*AX$51 -> 0 | AY53: =Inputs!$K$7*AY$51 -> 0 | AZ53: =Inputs!$L$7*AZ$51 -> 0 | BA53: =Inputs!$L$7*BA$51 -> 0 | BB53: =Inputs!$L$7*BB$51 -> 0 | BC53: =Inputs!$L$7*BC$51 -> 0 | BD53: =Inputs!$L$8*BD$51 -> 0 | BE53: =Inputs!$L$8*BE$51 -> 0.004223863503 | BF53: =Inputs!$L$8*BF$51 -> 0 | BG53: =Inputs!$L$8*BG$51 -> 31.57485679 | BH53: =Inputs!$L$8*BH$51 -> 87.32999264 | BI53: =Inputs!$L$8*BI$51 -> 0.07088311045 | BJ53: =Inputs!$L$7*BJ$51 -> 0 | BK53: =Inputs!$L$7*BK$51 -> 0 | BL53: =Inputs!$M$7*BL$51 -> 0 | BM53: =Inputs!$M$7*BM$51 -> 0 | BN53: =Inputs!$M$7*BN$51 -> 0 | BO53: =Inputs!$M$7*BO$51 -> 0 | BP53: =Inputs!$M$8*BP$51 -> 0 | BQ53: =Inputs!$M$8*BQ$51 -> 0.004295949625 | BR53: =Inputs!$M$8*BR$51 -> 0 | BS53: =Inputs!$M$8*BS$51 -> 32.11372576 | BT53: =Inputs!$M$8*BT$51 -> 88.82040079 | BU53: =Inputs!$M$8*BU$51 -> 0.0720928296 | BV53: =Inputs!$M$7*BV$51 -> 0 | BW53: =Inputs!$M$7*BW$51 -> 0 | BX53: Sum
B54: Adjusted T&D Capacity Value ($/kW-Yr.) | D54: =J54/(1-DLosses)*$D$43 -> 0 | E54: =K54/(1-DLosses)*$D$43 -> 0 | F54: =L54/(1-DLosses)*$D$43 -> 0 | G54: =M54/(1-DLosses)*$D$43 -> 0 | H54: =N54/(1-DLosses)*$D$43 -> 0 | J54: =IF(SUM($P$58:$AA$58)>0,SUMPRODUCT($P$54:$AA$54,$P$58:$AA$58)/D58,0) -> 108.081736 | K54: =IF(SUM($AB$58:$AM$58)>0,SUMPRODUCT($AB$54:$AM$54,$AB$58:$AM$58)/E58,0) -> 110.2433707 | L54: =IF(SUM($AN$58:$AY$58)>0,SUMPRODUCT($AN$54:$AY$54,$AN$58:$AY$58)/F58,0) -> 112.4482381 | M54: =IF(SUM($AZ$58:$BK$58)>0,SUMPRODUCT($AZ$54:$BK$54,$AZ$58:$BK$58)/G58,0) -> 114.6972029 | N54: =IF(SUM($BL$58:$BW$58)>0,SUMPRODUCT($BL$54:$BW$54,$BL$58:$BW$58)/H58,0) -> 116.9911469 | P54: =$J$110*P$52 -> 0 | Q54: 0 | R54: 0.4447657228 | S54: 0 | T54: 0 | U54: 12.19416896 | V54: 0.3994154204 | W54: 52.22441693 | X54: 31.13796839 | Y54: 12.12576626 | Z54: 0 | AA54: 0 | AB54: =$K$110*AB$52 -> 0 | AC54: 0 | AD54: 0.4536610373 | AE54: 0 | AF54: 0 | AG54: 12.43805234 | AH54: 0.4074037288 | AI54: 53.26890527 | AJ54: 31.76072776 | AK54: 12.36828159 | AL54: 0 | AM54: 0 | AN54: =$L110*AN$52 -> 0 | AO54: 0 | AP54: 0.462734258 | AQ54: 0 | AR54: 0 | AS54: 12.68681339 | AT54: 0.4155518034 | AU54: 54.33428337 | AV54: 32.39594232 | AW54: 12.61564722 | AX54: 0 | AY54: 0 | AZ54: =$M110*AZ$52 -> 0 | BA54: 0 | BB54: 0.4719889432 | BC54: 0 | BD54: 0 | BE54: 12.94054965 | BF54: 0.4238628394 | BG54: 55.42096904 | BH54: 33.04386116 | BI54: 12.86796016 | BJ54: 0 | BK54: 0 | BL54: =$N110*BL$52 -> 0 | BM54: =$N110*BM$52 -> 0 | BN54: 0.481428722 | BO54: 0 | BP54: 0 | BQ54: 13.19936065 | BR54: 0.4323400962 | BS54: 56.52938842 | BT54: 33.70473838 | BU54: 13.12531936 | BV54: 0 | BW54: 0 | BX54: Sum
B55: Adjusted On-Peak Avoided Energy Cost ($/MWh) | D55: =J55/(1-Losses)*$D$44 -> 63.40853772 | E55: =K55/(1-Losses)*$D$44 -> 64.81441123 | F55: =L55/(1-Losses)*$D$44 -> 60.10066419 | G55: =M55/(1-Losses)*$D$44 -> 61.34509202 | H55: =N55/(1-Losses)*$D$44 -> 62.63506649 | J55: =IF(SUM($P$59:$AA$59)>0,SUMPRODUCT($P$55:$AA$55,$P$59:$AA$59)/SUM($P$59:$AA$59),0) -> 40.4572837 | K55: =IF(SUM($AB$59:$AM$59)>0,SUMPRODUCT($AB$55:$AM$55,$AB$59:$AM$59)/SUM($AB$59:$AM$59),0) -> 41.35428945 | L55: =IF(SUM($AN$59:$AY$59)>0,SUMPRODUCT($AN$55:$AY$55,$AN$59:$AY$59)/SUM($AN$59:$AY$59),0) -> 38.34672284 | M55: =IF(SUM($AZ$59:$BK$59)>0,SUMPRODUCT($AZ$55:$BK$55,$AZ$59:$BK$59)/SUM($AZ$59:$BK$59),0) -> 39.14071954 | N55: =IF(SUM($BL$59:$BW$59)>0,SUMPRODUCT($BL$55:$BW$55,$BL$59:$BW$59)/SUM($BL$59:$BW$59),0) -> 39.96377689 | P55: =Inputs!$I$6 -> 40.4572837 | Q55: =Inputs!$I$6 -> 40.4572837 | R55: =Inputs!$I$6 -> 40.4572837 | S55: =Inputs!$I$6 -> 40.4572837 | T55: =Inputs!$I$6 -> 40.4572837 | U55: =Inputs!$I$6 -> 40.4572837 | V55: =Inputs!$I$6 -> 40.4572837 | W55: =Inputs!$I$6 -> 40.4572837 | X55: =Inputs!$I$6 -> 40.4572837 | Y55: =Inputs!$I$6 -> 40.4572837 | Z55: =Inputs!$I$6 -> 40.4572837 | AA55: =Inputs!$I$6 -> 40.4572837 | AB55: =Inputs!$J$6 -> 41.35428945 | AC55: =Inputs!$J$6 -> 41.35428945 | AD55: =Inputs!$J$6 -> 41.35428945 | AE55: =Inputs!$J$6 -> 41.35428945 | AF55: =Inputs!$J$6 -> 41.35428945 | AG55: =Inputs!$J$6 -> 41.35428945 | AH55: =Inputs!$J$6 -> 41.35428945 | AI55: =Inputs!$J$6 -> 41.35428945 | AJ55: =Inputs!$J$6 -> 41.35428945 | AK55: =Inputs!$J$6 -> 41.35428945 | AL55: =Inputs!$J$6 -> 41.35428945 | AM55: =Inputs!$J$6 -> 41.35428945 | AN55: =Inputs!$K$6 -> 38.34672284 | AO55: =Inputs!$K$6 -> 38.34672284 | AP55: =Inputs!$K$6 -> 38.34672284 | AQ55: =Inputs!$K$6 -> 38.34672284 | AR55: =Inputs!$K$6 -> 38.34672284 | AS55: =Inputs!$K$6 -> 38.34672284 | AT55: =Inputs!$K$6 -> 38.34672284 | AU55: =Inputs!$K$6 -> 38.34672284 | AV55: =Inputs!$K$6 -> 38.34672284 | AW55: =Inputs!$K$6 -> 38.34672284 | AX55: =Inputs!$K$6 -> 38.34672284 | AY55: =Inputs!$K$6 -> 38.34672284 | AZ55: =Inputs!$L$6 -> 39.14071954 | BA55: =Inputs!$L$6 -> 39.14071954 | BB55: =Inputs!$L$6 -> 39.14071954 | BC55: =Inputs!$L$6 -> 39.14071954 | BD55: =Inputs!$L$6 -> 39.14071954 | BE55: =Inputs!$L$6 -> 39.14071954 | BF55: =Inputs!$L$6 -> 39.14071954 | BG55: =Inputs!$L$6 -> 39.14071954 | BH55: =Inputs!$L$6 -> 39.14071954 | BI55: =Inputs!$L$6 -> 39.14071954 | BJ55: =Inputs!$L$6 -> 39.14071954 | BK55: =Inputs!$L$6 -> 39.14071954 | BL55: =Inputs!$M$6 -> 39.96377689 | BM55: =Inputs!$M$6 -> 39.96377689 | BN55: =Inputs!$M$6 -> 39.96377689 | BO55: =Inputs!$M$6 -> 39.96377689 | BP55: =Inputs!$M$6 -> 39.96377689 | BQ55: =Inputs!$M$6 -> 39.96377689 | BR55: =Inputs!$M$6 -> 39.96377689 | BS55: =Inputs!$M$6 -> 39.96377689 | BT55: =Inputs!$M$6 -> 39.96377689 | BU55: =Inputs!$M$6 -> 39.96377689 | BV55: =Inputs!$M$6 -> 39.96377689 | BW55: =Inputs!$M$6 -> 39.96377689 | BX55: Avg
B56: Adjusted GHG Value ($/MWh) | D56: =J56/(1-Losses) -> 7.767897992 | E56: =K56/(1-Losses) -> 8.378143696 | F56: =L56/(1-Losses) -> 12.64031682 | G56: =M56/(1-Losses) -> 13.59381066 | H56: =N56/(1-Losses) -> 14.49279297 | J56: =IF(SUM($P$59:$AA$59)>0,SUMPRODUCT($P$56:$AA$56,$P$59:$AA$59)/SUM($P$59:$AA$59),0) -> 7.186550785 | K56: =IF(SUM($AB$59:$AM$59)>0,SUMPRODUCT($AB$56:$AM$56,$AB$59:$AM$59)/SUM($AB$59:$AM$59),0) -> 7.75112588 | L56: =IF(SUM($AN$59:$AY$59)>0,SUMPRODUCT($AN$56:$AY$56,$AN$59:$AY$59)/SUM($AN$59:$AY$59),0) -> 11.69431922 | M56: =IF(SUM($AZ$59:$BK$59)>0,SUMPRODUCT($AZ$56:$BK$56,$AZ$59:$BK$59)/SUM($AZ$59:$BK$59),0) -> 12.57645386 | N56: =IF(SUM($BL$59:$BW$59)>0,SUMPRODUCT($BL$56:$BW$56,$BL$59:$BW$59)/SUM($BL$59:$BW$59),0) -> 13.4081566 | P56: =Inputs!I18 -> 7.186550785 | Q56: =Inputs!$I$18 -> 7.186550785 | R56: =Inputs!$I$18 -> 7.186550785 | S56: =Inputs!$I$18 -> 7.186550785 | T56: =Inputs!$I$18 -> 7.186550785 | U56: =Inputs!$I$18 -> 7.186550785 | V56: =Inputs!$I$18 -> 7.186550785 | W56: =Inputs!$I$18 -> 7.186550785 | X56: =Inputs!$I$18 -> 7.186550785 | Y56: =Inputs!$I$18 -> 7.186550785 | Z56: =Inputs!$I$18 -> 7.186550785 | AA56: =Inputs!$I$18 -> 7.186550785 | AB56: =Inputs!$J$18 -> 7.75112588 | AC56: =Inputs!$J$18 -> 7.75112588 | AD56: =Inputs!$J$18 -> 7.75112588 | AE56: =Inputs!$J$18 -> 7.75112588 | AF56: =Inputs!$J$18 -> 7.75112588 | AG56: =Inputs!$J$18 -> 7.75112588 | AH56: =Inputs!$J$18 -> 7.75112588 | AI56: =Inputs!$J$18 -> 7.75112588 | AJ56: =Inputs!$J$18 -> 7.75112588 | AK56: =Inputs!$J$18 -> 7.75112588 | AL56: =Inputs!$J$18 -> 7.75112588 | AM56: =Inputs!$J$18 -> 7.75112588 | AN56: =Inputs!$K$18 -> 11.69431922 | AO56: =Inputs!$K$18 -> 11.69431922 | AP56: =Inputs!$K$18 -> 11.69431922 | AQ56: =Inputs!$K$18 -> 11.69431922 | AR56: =Inputs!$K$18 -> 11.69431922 | AS56: =Inputs!$K$18 -> 11.69431922 | AT56: =Inputs!$K$18 -> 11.69431922 | AU56: =Inputs!$K$18 -> 11.69431922 | AV56: =Inputs!$K$18 -> 11.69431922 | AW56: =Inputs!$K$18 -> 11.69431922 | AX56: =Inputs!$K$18 -> 11.69431922 | AY56: =Inputs!$K$18 -> 11.69431922 | AZ56: =Inputs!$L$18 -> 12.57645386 | BA56: =Inputs!$L$18 -> 12.57645386 | BB56: =Inputs!$L$18 -> 12.57645386 | BC56: =Inputs!$L$18 -> 12.57645386 | BD56: =Inputs!$L$18 -> 12.57645386 | BE56: =Inputs!$L$18 -> 12.57645386 | BF56: =Inputs!$L$18 -> 12.57645386 | BG56: =Inputs!$L$18 -> 12.57645386 | BH56: =Inputs!$L$18 -> 12.57645386 | BI56: =Inputs!$L$18 -> 12.57645386 | BJ56: =Inputs!$L$18 -> 12.57645386 | BK56: =Inputs!$L$18 -> 12.57645386 | BL56: =Inputs!$M$18 -> 13.4081566 | BM56: =Inputs!$M$18 -> 13.4081566 | BN56: =Inputs!$M$18 -> 13.4081566 | BO56: =Inputs!$M$18 -> 13.4081566 | BP56: =Inputs!$M$18 -> 13.4081566 | BQ56: =Inputs!$M$18 -> 13.4081566 | BR56: =Inputs!$M$18 -> 13.4081566 | BS56: =Inputs!$M$18 -> 13.4081566 | BT56: =Inputs!$M$18 -> 13.4081566 | BU56: =Inputs!$M$18 -> 13.4081566 | BV56: =Inputs!$M$18 -> 13.4081566 | BW56: =Inputs!$M$18 -> 13.4081566 | BX56: Avg
B57: Impacts
B58: Load Impacts 1 in 2 Years (MW) | D58: =IF(SUM($P58:$AA58)>0,SUM($P58:$AA58)/COUNTIF(P58:AA58,">0"),0) -> 7.6706768 | E58: =IF(SUM($AB58:$AM58)>0,SUM($AB58:$AM58)/COUNTIF($AB58:$AM58,">0"),0) -> 7.900797104 | F58: =IF(SUM($AN58:$AY58)>0,SUM($AN58:$AY58)/COUNTIF($AN58:$AY58,">0"),0) -> 8.137821017 | G58: =IF(SUM($AZ58:$BK58)>0,SUM($AZ58:$BK58)/COUNTIF($AZ58:$BK58,">0"),0) -> 8.381955648 | H58: =IF(SUM($BL58:$BW58)>0,SUM($BL58:$BW58)/COUNTIF($BL58:$BW58,">0"),0) -> 8.633414317 | P58: =impacts3!H7 -> 0 | Q58: =impacts3!I7 -> 0 | R58: =impacts3!J7 -> 0 | S58: =impacts3!K7 -> 0 | T58: =impacts3!L7 -> 7.6706768 | U58: =impacts3!M7 -> 7.6706768 | V58: =impacts3!N7 -> 7.6706768 | W58: =impacts3!O7 -> 7.6706768 | X58: =impacts3!P7 -> 7.6706768 | Y58: =impacts3!Q7 -> 7.6706768 | Z58: =impacts3!R7 -> 0 | AA58: =impacts3!S7 -> 0 | AB58: =impacts3!H8 -> 0 | AC58: =impacts3!I8 -> 0 | AD58: =impacts3!J8 -> 0 | AE58: =impacts3!K8 -> 0 | AF58: =impacts3!L8 -> 7.900797104 | AG58: =impacts3!M8 -> 7.900797104 | AH58: =impacts3!N8 -> 7.900797104 | AI58: =impacts3!O8 -> 7.900797104 | AJ58: =impacts3!P8 -> 7.900797104 | AK58: =impacts3!Q8 -> 7.900797104 | AL58: =impacts3!R8 -> 0 | AM58: =impacts3!S8 -> 0 | AN58: =impacts3!H9 -> 0 | AO58: =impacts3!I9 -> 0 | AP58: =impacts3!J9 -> 0 | AQ58: =impacts3!K9 -> 0 | AR58: =impacts3!L9 -> 8.137821017 | AS58: =impacts3!M9 -> 8.137821017 | AT58: =impacts3!N9 -> 8.137821017 | AU58: =impacts3!O9 -> 8.137821017 | AV58: =impacts3!P9 -> 8.137821017 | AW58: =impacts3!Q9 -> 8.137821017 | AX58: =impacts3!R9 -> 0 | AY58: =impacts3!S9 -> 0 | AZ58: =impacts3!H10 -> 0 | BA58: =impacts3!I10 -> 0 | BB58: =impacts3!J10 -> 0 | BC58: =impacts3!K10 -> 0 | BD58: =impacts3!L10 -> 8.381955648 | BE58: =impacts3!M10 -> 8.381955648 | BF58: =impacts3!N10 -> 8.381955648 | BG58: =impacts3!O10 -> 8.381955648 | BH58: =impacts3!P10 -> 8.381955648 | BI58: =impacts3!Q10 -> 8.381955648 | BJ58: =impacts3!R10 -> 0 | BK58: =impacts3!S10 -> 0 | BL58: =impacts3!H11 -> 0 | BM58: =impacts3!I11 -> 0 | BN58: =impacts3!J11 -> 0 | BO58: =impacts3!K11 -> 0 | BP58: =impacts3!L11 -> 8.633414317 | BQ58: =impacts3!M11 -> 8.633414317 | BR58: =impacts3!N11 -> 8.633414317 | BS58: =impacts3!O11 -> 8.633414317 | BT58: =impacts3!P11 -> 8.633414317 | BU58: =impacts3!Q11 -> 8.633414317 | BV58: =impacts3!R11 -> 0 | BW58: =impacts3!S11 -> 0 | BX58: Avg
B59: Energy Savings 1 in 2 years (MWh) | D59: =IF(SUM($P59:$AA59)>0,SUM($P59:$AA59),0) -> 398.8751936 | E59: =IF(SUM($AB59:$AM59)>0,SUM($AB59:$AM59),0) -> 410.8414494 | F59: =IF(SUM($AN59:$AY59)>0,SUM($AN59:$AY59),0) -> 423.1666929 | G59: =IF(SUM($AZ59:$BK59)>0,SUM($AZ59:$BK59),0) -> 435.8616937 | H59: =IF(SUM($BL59:$BW59)>0,SUM($BL59:$BW59),0) -> 448.9375445 | P59: 0 | Q59: 0 | R59: 0 | S59: 0 | T59: 0 | U59: 0 | V59: 0 | W59: =budget!Q28 -> 398.8751936 | X59: 0 | Y59: 0 | Z59: 0 | AA59: 0 | AB59: 0 | AC59: 0 | AD59: 0 | AE59: 0 | AF59: 0 | AG59: 0 | AH59: 0 | AI59: =budget!R28 -> 410.8414494 | AJ59: 0 | AK59: 0 | AL59: 0 | AM59: 0 | AN59: 0 | AO59: 0 | AP59: 0 | AQ59: 0 | AR59: 0 | AS59: 0 | AT59: 0 | AU59: =budget!S28 -> 423.1666929 | AV59: 0 | AW59: 0 | AX59: 0 | AY59: 0 | AZ59: 0 | BA59: 0 | BB59: 0 | BC59: 0 | BD59: 0 | BE59: 0 | BF59: 0 | BG59: =budget!T28 -> 435.8616937 | BH59: 0 | BI59: 0 | BJ59: 0 | BK59: 0 | BL59: 0 | BM59: 0 | BN59: 0 | BO59: 0 | BP59: 0 | BQ59: 0 | BR59: 0 | BS59: =budget!U28 -> 448.9375445 | BT59: 0 | BU59: 0 | BV59: 0 | BW59: 0 | BX59: Sum
B60: Avg. Hours of Curtailment | D60: =D59/D58 -> 52 | E60: =E59/E58 -> 52 | F60: =F59/F58 -> 52 | G60: =G59/G58 -> 52 | H60: 52
B61: Expense Costs
B62: Annual Utility Expense ($ per year)
B63: Admin Costs | D63: =IF(J63>0,J63,IF(SUM($P63:$AA63)>0,SUM($P63:$AA63),0)) -> 265734.4784 | E63: =IF(K63>0,K63,IF(SUM($AB63:$AM63)>0,SUM($AB63:$AM63),0)) -> 316028.951 | F63: =IF(L63>0,L63,IF(SUM($AN63:$AY63)>0,SUM($AN63:$AY63),0)) -> 308935.6868 | G63: =IF(M63>0,M63,IF(SUM($AZ63:$BK63)>0,SUM($AZ63:$BK63),0)) -> 347646.1098 | H63: =IF(N63>0,N63,IF(SUM($BL63:$BW63)>0,SUM($BL63:$BW63),0)) -> 349279.8833 | J63: =budget!Q18 -> 265734.4784 | K63: =budget!R18 -> 316028.951 | L63: =budget!S18 -> 308935.6868 | M63: =budget!T18 -> 347646.1098 | N63: =budget!U18 -> 349279.8833 | BX63: Sum
B64: Incentive Cost | D64: =IF(J64>0,J64,IF(SUM($P64:$AA64)>0,SUM($P64:$AA64),0)) -> 514731.3989 | E64: =IF(K64>0,K64,IF(SUM($AB64:$AM64)>0,SUM($AB64:$AM64),0)) -> 530541.868 | F64: =IF(L64>0,L64,IF(SUM($AN64:$AY64)>0,SUM($AN64:$AY64),0)) -> 545185.422 | G64: =IF(M64>0,M64,IF(SUM($AZ64:$BK64)>0,SUM($AZ64:$BK64),0)) -> 561887.0574 | H64: =IF(N64>0,N64,IF(SUM($BL64:$BW64)>0,SUM($BL64:$BW64),0)) -> 579113.1705 | J64: =budget!Q22 -> 514731.3989 | K64: =budget!R22 -> 530541.868 | L64: =budget!S22 -> 545185.422 | M64: =budget!T22 -> 561887.0574 | N64: =budget!U22 -> 579113.1705 | BX64: Sum
